Workbook

Sheet Introduction
C4: Joint Monitoring Programme for Water Supply, Sanitation and Hygiene
C6: Estimates on household water, sanitation and hygiene by wealth quintile and sub-national region in
C7: =+Water!B5 -> Angola
C9: Updated May 2021
C11: Follow the links below to find the following information:
C13: JMP Estimates
C14: WASH status and trends by wealth quintile (customized quintiles made without water and sanitation assets)
C15: Water
C16: Sanitation
C17: Hygiene
C19: Data inputs
C20: customized wealth quintiles and subnational data:
C21: =IF(INDIRECT(CONCATENATE("Water","!B105"))=0,"",INDIRECT(CONCATENATE("Water","!B105"))) -> MICS00
C22: =IF(INDIRECT(CONCATENATE("Water","!B106"))=0,"",INDIRECT(CONCATENATE("Water","!B106"))) -> MIS07
C23: =IF(INDIRECT(CONCATENATE("Water","!B107"))=0,"",INDIRECT(CONCATENATE("Water","!B107"))) -> MIS11
C24: =IF(INDIRECT(CONCATENATE("Water","!B108"))=0,"",INDIRECT(CONCATENATE("Water","!B108"))) -> DHS16
C25: =IF(INDIRECT(CONCATENATE("Water","!B109"))=0,"",INDIRECT(CONCATENATE("Water","!B109"))) -> 
C26: =IF(INDIRECT(CONCATENATE("Water","!B110"))=0,"",INDIRECT(CONCATENATE("Water","!B110"))) -> 
C27: =IF(INDIRECT(CONCATENATE("Water","!B111"))=0,"",INDIRECT(CONCATENATE("Water","!B111"))) -> 
C28: =IF(INDIRECT(CONCATENATE("Water","!B112"))=0,"",INDIRECT(CONCATENATE("Water","!B112"))) -> 
C29: =IF(INDIRECT(CONCATENATE("Water","!B113"))=0,"",INDIRECT(CONCATENATE("Water","!B113"))) -> 
C30: =IF(INDIRECT(CONCATENATE("Water","!B114"))=0,"",INDIRECT(CONCATENATE("Water","!B114"))) -> 
C31: =IF(INDIRECT(CONCATENATE("Water","!B115"))=0,"",INDIRECT(CONCATENATE("Water","!B115"))) -> 
C32: =IF(INDIRECT(CONCATENATE("Water","!B116"))=0,"",INDIRECT(CONCATENATE("Water","!B116"))) -> 
L55: =+IF(ISNUMBER(M48), "", "Insufficient data to estimate safely managed sanitation services at national level") -> Insufficient data to estimate safely managed sanitation services at national level

Sheet Water
A1: BGD
B4: Summary of trends in use of drinking water by wealth quintile (%)
B5: =IF(ISERROR(INDIRECT(CONCATENATE($B105,"!A2"))),"",INDIRECT(CONCATENATE($B105,"!A2"))) -> Angola
B7: =B118 -> National use of drinking water sources, 2000–2020 | J7: =B218 -> Urban use of drinking water sources, 2000–2020 | R7: =B318 -> Rural use of drinking water sources, 2000–2020
B31: =IF(ISERROR(INDIRECT(CONCATENATE($B105,"!A2"))),"",INDIRECT(CONCATENATE($B105,"!A2"))) -> Angola | F31: Poorest | J31: Poor | N31: Middle | R31: Rich | V31: Richest
F32: Basic | G32: Limited | H32: Unimproved | I32: Surface water | J32: Basic | K32: Limited | L32: Unimproved | M32: Surface water | N32: Basic | O32: Limited | P32: Unimproved | Q32: Surface water | R32: Basic | S32: Limited | T32: Unimproved | U32: Surface water | V32: Basic | W32: Limited | X32: Unimproved | Y32: Surface water
B33: NATIONAL | D33: Estimate | E33: =C99 -> 2000 | F33: =E99 -> 27.28080547 | G33: =F99 -> 10.81628353 | H33: 15.08683598 | I33: 46.81607502 | J33: =J99 -> 45.80095429 | K33: =K99 -> 11.3517448 | L33: 13.03990204 | M33: 29.80739887 | N33: =O99 -> 59.01397899 | O33: =P99 -> 8.25288807 | P33: 11.71023512 | Q33: 21.02289782 | R33: =T99 -> 73.40022568 | S33: =U99 -> 8.232669616 | T33: 7.989590289 | U33: 10.37751442 | V33: =Y99 -> 85.05954599 | W33: =Z99 -> 5.489055405 | X33: 6.793092948 | Y33: 2.658305657
E34: =C100 -> 2020 | F34: =E100 -> 16.32403866 | G34: 6.472148735 | H34: 20.3013748 | I34: 56.9024378 | J34: =J100 -> 30.44108642 | K34: 7.544808831 | L34: 21.26467105 | M34: 40.7494337 | N34: =O100 -> 67.02219997 | O34: 9.37280834 | P34: 12.74953906 | Q34: 10.85545263 | R34: =T100 -> 88.61633481 | S34: 9.939329209 | T34: 1.444335981 | U34: 0 | V34: =Y100 -> 93.9380009 | W34: 6.061999104 | X34: 0 | Y34: 0
B36: URBAN | D36: Estimate | E36: =C199 -> 2000 | F36: =E199 -> 57.19080657 | G36: =F199 -> 10.49522633 | H36: 13.85664346 | I36: 18.45732363 | J36: =J199 -> 64.35954651 | K36: =K199 -> 8.302682282 | L36: 10.4656493 | M36: 16.87212191 | N36: =O199 -> 67.92856573 | O36: =P199 -> 6.563260682 | P36: 9.990784759 | Q36: 15.51738883 | R36: =T199 -> 74.65810136 | S36: =U199 -> 6.983691842 | T36: 11.92744102 | U36: 6.430765779 | V36: =Y199 -> 86.0270613 | W36: =Z199 -> 4.322503664 | X36: 6.752477906 | Y36: 2.897957126
E37: =C200 -> 2020 | F37: =E200 -> 57.15859228 | G37: 10.48931461 | H37: 17.73236806 | I37: 14.61972505 | J37: =J200 -> 77.27098822 | K37: 9.968318604 | L37: 10.90062811 | M37: 1.860065067 | N37: =O200 -> 87.15594808 | O37: 8.421011117 | P37: 4.423040806 | Q37: 0 | R37: =T200 -> 88.04247166 | S37: 8.235696863 | T37: 3.639179773 | U37: 0.08265170234 | V37: =Y200 -> 94.70002831 | W37: 4.758284349 | X37: 0.5416873409 | Y37: 0
B39: RURAL | D39: Estimate | E39: =C299 -> 2000 | F39: =E299 -> 18.45059538 | G39: =F299 -> 10.77392908 | H39: 17.19209853 | I39: 53.58337701 | J39: =J299 -> 22.94208207 | K39: =K299 -> 10.80745404 | L39: 12.47561366 | M39: 53.77485024 | N39: =O299 -> 23.94236475 | O39: =P299 -> 9.024775044 | P39: 15.85456314 | Q39: 51.17829707 | R39: =T299 -> 37.29171651 | S39: =U299 -> 16.97792431 | T39: 15.77062608 | U39: 29.95973309 | V39: =Y299 -> 49.49560644 | W39: =Z299 -> 12.62820454 | X39: 15.1042248 | Y39: 22.77196422
E40: =C300 -> 2020 | F40: =E300 -> 14.33900913 | G40: 8.373034272 | H40: 20.58154125 | I40: 56.70641535 | J40: =J300 -> 18.03225711 | K40: 8.494555523 | L40: 20.20712535 | M40: 53.26606201 | N40: =O300 -> 22.38267069 | O40: 8.436867868 | P40: 22.59474196 | Q40: 46.58571948 | R40: =T300 -> 26.52337655 | S40: 12.07538622 | T40: 24.72028685 | U40: 36.68095037 | V40: =Y300 -> 47.42973005 | W40: 12.1011212 | X40: 20.07397692 | Y40: 20.39517184
A97: NATIONAL | D97: Poorest | I97: Poor | N97: Middle | S97: Rich | X97: Richest
D98: Improved | E98: Basic | F98: Limited | G98: Unimproved | H98: Surface water | I98: Improved | J98: Basic | K98: Limited | L98: Unimproved | M98: Surface water | N98: Improved | O98: Basic | P98: Limited | Q98: Unimproved | R98: Surface water | S98: Improved | T98: Basic | U98: Limited | V98: Unimproved | W98: Surface water | X98: Improved | Y98: Basic | Z98: Limited | AA98: Unimproved | AB98: Surface water
A99: Forecast period: | C99: 2000 | D99: =IF((D101+H101)>100,D101*100/(D101+H101),D101) -> 38.097089 | E99: =D99*AVERAGEIF(E105:E116,">0")/100 -> 27.28080547 | F99: =D99*(100-AVERAGEIF(E105:E116,">0"))/100 -> 10.81628353 | G99: =100-(E99+F99+H99) -> 15.08683598 | H99: =IF((D101+H101)>100,H101*100/(D101+H101),H101) -> 46.81607502 | I99: =IF((I101+M101)>100,I101*100/(I101+M101),I101) -> 57.15269909 | J99: =I99*AVERAGEIF(J105:J116,">0")/100 -> 45.80095429 | K99: =I99*(100-AVERAGEIF(J105:J116,">0"))/100 -> 11.3517448 | L99: =100-(J99+K99+M99) -> 13.03990204 | M99: =IF((I101+M101)>100,M101*100/(I101+M101),M101) -> 29.80739887 | N99: =IF((N101+R101)>100,N101*100/(N101+R101),N101) -> 67.26686706 | O99: =N99*AVERAGEIF(O105:O116,">0")/100 -> 59.01397899 | P99: =N99*(100-AVERAGEIF(O105:O116,">0"))/100 -> 8.25288807 | Q99: =100-(O99+P99+R99) -> 11.71023512 | R99: =IF((N101+R101)>100,R101*100/(N101+R101),R101) -> 21.02289782 | S99: =IF((S101+W101)>100,S101*100/(S101+W101),S101) -> 81.63289529 | T99: =S99*AVERAGEIF(T105:T116,">0")/100 -> 73.40022568 | U99: =S99*(100-AVERAGEIF(T105:T116,">0"))/100 -> 8.232669616 | V99: =100-(T99+U99+W99) -> 7.989590289 | W99: =IF((S101+W101)>100,W101*100/(S101+W101),W101) -> 10.37751442 | X99: =IF((X101+AB101)>100,X101*100/(X101+AB101),X101) -> 90.5486014 | Y99: =X99*AVERAGEIF(Y105:Y116,">0")/100 -> 85.05954599 | Z99: =X99*(100-AVERAGEIF(Y105:Y116,">0"))/100 -> 5.489055405 | AA99: =100-(Y99+Z99+AB99) -> 6.793092948 | AB99: =IF((X101+AB101)>100,AB101*100/(X101+AB101),AB101) -> 2.658305657
C100: 2020 | D100: =IF((D102+H102)>100,D102*100/(D102+H102),D102) -> 22.7961874 | E100: =D100*AVERAGEIF(E105:E116,">0")/100 -> 16.32403866 | F100: =D100*(100-AVERAGEIF(E105:E116,">0"))/100 -> 6.472148735 | G100: =100-(E100+F100+H100) -> 20.3013748 | H100: =IF((D102+H102)>100,H102*100/(D102+H102),H102) -> 56.9024378 | I100: =IF((I102+M102)>100,I102*100/(I102+M102),I102) -> 37.98589525 | J100: =I100*AVERAGEIF(J105:J116,">0")/100 -> 30.44108642 | K100: =I100*(100-AVERAGEIF(J105:J116,">0"))/100 -> 7.544808831 | L100: =100-(J100+K100+M100) -> 21.26467105 | M100: =IF((I102+M102)>100,M102*100/(I102+M102),M102) -> 40.7494337 | N100: =IF((N102+R102)>100,N102*100/(N102+R102),N102) -> 76.39500831 | O100: =N100*AVERAGEIF(O105:O116,">0")/100 -> 67.02219997 | P100: =N100*(100-AVERAGEIF(O105:O116,">0"))/100 -> 9.37280834 | Q100: =100-(O100+P100+R100) -> 12.74953906 | R100: =IF((N102+R102)>100,R102*100/(N102+R102),R102) -> 10.85545263 | S100: =IF((S102+W102)>100,S102*100/(S102+W102),S102) -> 98.55566402 | T100: =S100*AVERAGEIF(T105:T116,">0")/100 -> 88.61633481 | U100: =S100*(100-AVERAGEIF(T105:T116,">0"))/100 -> 9.939329209 | V100: =100-(T100+U100+W100) -> 1.444335981 | W100: =IF((S102+W102)>100,W102*100/(S102+W102),W102) -> 0 | X100: =IF((X102+AB102)>100,X102*100/(X102+AB102),X102) -> 100 | Y100: =X100*AVERAGEIF(Y105:Y116,">0")/100 -> 93.9380009 | Z100: =X100*(100-AVERAGEIF(Y105:Y116,">0"))/100 -> 6.061999104 | AA100: =100-(Y100+Z100+AB100) -> 0 | AB100: =IF((X102+AB102)>100,AB102*100/(X102+AB102),AB102) -> 0
A101: Regression period: | C101: =MinRegYear(C99,C105:C116) -> 2000 | D101: =IF(MAX(C105:C116)-MIN(C105:C116)<5,AVERAGEIF(C105:C116,">0",D105:D116), IF(FORECAST($C101,D$105:D$116,$C$105:$C$116)<0,0, IF(FORECAST($C101,D$105:D$116,$C$105:$C$116)>100,100, FORECAST($C101,D$105:D$116,$C$105:$C$116)))) -> 38.097089 | H101: =IF(MAX(C105:C116)-MIN(C105:C116)<5,AVERAGEIF(C105:C116,">0",H105:H116), IF(FORECAST($C101,H$105:H$116,$C$105:$C$116)<0,0, IF(FORECAST($C101,H$105:H$116,$C$105:$C$116)>100,100, FORECAST($C101,H$105:H$116,$C$105:$C$116)))) -> 46.81607502 | I101: =IF(MAX(C105:C116)-MIN(C105:C116)<5,AVERAGEIF(C105:C116,">0",I105:I116), IF(FORECAST($C101,I$105:I$116,$C$105:$C$116)<0,0, IF(FORECAST($C101,I$105:I$116,$C$105:$C$116)>100,100, FORECAST($C101,I$105:I$116,$C$105:$C$116)))) -> 57.15269909 | M101: =IF(MAX(C105:C116)-MIN(C105:C116)<5,AVERAGEIF(C105:C116,">0",M105:M116), IF(FORECAST($C101,M$105:M$116,$C$105:$C$116)<0,0, IF(FORECAST($C101,M$105:M$116,$C$105:$C$116)>100,100, FORECAST($C101,M$105:M$116,$C$105:$C$116)))) -> 29.80739887 | N101: =IF(MAX(C105:C116)-MIN(C105:C116)<5,AVERAGEIF(C105:C116,">0",N105:N116), IF(FORECAST($C101,N$105:N$116,$C$105:$C$116)<0,0, IF(FORECAST($C101,N$105:N$116,$C$105:$C$116)>100,100, FORECAST($C101,N$105:N$116,$C$105:$C$116)))) -> 67.26686706 | R101: =IF(MAX(C105:C116)-MIN(C105:C116)<5,AVERAGEIF(C105:C116,">0",R105:R116), IF(FORECAST($C101,R$105:R$116,$C$105:$C$116)<0,0, IF(FORECAST($C101,R$105:R$116,$C$105:$C$116)>100,100, FORECAST($C101,R$105:R$116,$C$105:$C$116)))) -> 21.02289782 | S101: =IF(MAX(C105:C116)-MIN(C105:C116)<5,AVERAGEIF(C105:C116,">0",S105:S116), IF(FORECAST($C101,S$105:S$116,$C$105:$C$116)<0,0, IF(FORECAST($C101,S$105:S$116,$C$105:$C$116)>100,100, FORECAST($C101,S$105:S$116,$C$105:$C$116)))) -> 81.63289529 | W101: =IF(MAX(C105:C116)-MIN(C105:C116)<5,AVERAGEIF(C105:C116,">0",W105:W116), IF(FORECAST($C101,W$105:W$116,$C$105:$C$116)<0,0, IF(FORECAST($C101,W$105:W$116,$C$105:$C$116)>100,100, FORECAST($C101,W$105:W$116,$C$105:$C$116)))) -> 10.37751442 | X101: =IF(MAX(C105:C116)-MIN(C105:C116)<5,AVERAGEIF(C105:C116,">0",X105:X116), IF(FORECAST($C101,X$105:X$116,$C$105:$C$116)<0,0, IF(FORECAST($C101,X$105:X$116,$C$105:$C$116)>100,100, FORECAST($C101,X$105:X$116,$C$105:$C$116)))) -> 90.5486014 | AB101: =IF(MAX(C105:C116)-MIN(C105:C116)<5,AVERAGEIF(C105:C116,">0",AB105:AB116), IF(FORECAST($C101,AB$105:AB$116,$C$105:$C$116)<0,0, IF(FORECAST($C101,AB$105:AB$116,$C$105:$C$116)>100,100, FORECAST($C101,AB$105:AB$116,$C$105:$C$116)))) -> 2.658305657
C102: =MaxRegYear(C100,C105:C116) -> 2018 | D102: =IF(MAX(C105:C116)-MIN(C105:C116)<5,AVERAGEIF(C105:C116,">0",D105:D116), IF(FORECAST($C102,D$105:D$116,$C$105:$C$116)<0,0, IF(FORECAST($C102,D$105:D$116,$C$105:$C$116)>100,100, FORECAST($C102,D$105:D$116,$C$105:$C$116)))) -> 22.7961874 | H102: =IF(MAX(C105:C116)-MIN(C105:C116)<5,AVERAGEIF(C105:C116,">0",H105:H116), IF(FORECAST($C102,H$105:H$116,$C$105:$C$116)<0,0, IF(FORECAST($C102,H$105:H$116,$C$105:$C$116)>100,100, FORECAST($C102,H$105:H$116,$C$105:$C$116)))) -> 56.9024378 | I102: =IF(MAX(C105:C116)-MIN(C105:C116)<5,AVERAGEIF(C105:C116,">0",I105:I116), IF(FORECAST($C102,I$105:I$116,$C$105:$C$116)<0,0, IF(FORECAST($C102,I$105:I$116,$C$105:$C$116)>100,100, FORECAST($C102,I$105:I$116,$C$105:$C$116)))) -> 37.98589525 | M102: =IF(MAX(C105:C116)-MIN(C105:C116)<5,AVERAGEIF(C105:C116,">0",M105:M116), IF(FORECAST($C102,M$105:M$116,$C$105:$C$116)<0,0, IF(FORECAST($C102,M$105:M$116,$C$105:$C$116)>100,100, FORECAST($C102,M$105:M$116,$C$105:$C$116)))) -> 40.7494337 | N102: =IF(MAX(C105:C116)-MIN(C105:C116)<5,AVERAGEIF(C105:C116,">0",N105:N116), IF(FORECAST($C102,N$105:N$116,$C$105:$C$116)<0,0, IF(FORECAST($C102,N$105:N$116,$C$105:$C$116)>100,100, FORECAST($C102,N$105:N$116,$C$105:$C$116)))) -> 76.39500831 | R102: =IF(MAX(C105:C116)-MIN(C105:C116)<5,AVERAGEIF(C105:C116,">0",R105:R116), IF(FORECAST($C102,R$105:R$116,$C$105:$C$116)<0,0, IF(FORECAST($C102,R$105:R$116,$C$105:$C$116)>100,100, FORECAST($C102,R$105:R$116,$C$105:$C$116)))) -> 10.85545263 | S102: =IF(MAX(C105:C116)-MIN(C105:C116)<5,AVERAGEIF(C105:C116,">0",S105:S116), IF(FORECAST($C102,S$105:S$116,$C$105:$C$116)<0,0, IF(FORECAST($C102,S$105:S$116,$C$105:$C$116)>100,100, FORECAST($C102,S$105:S$116,$C$105:$C$116)))) -> 98.55566402 | W102: =IF(MAX(C105:C116)-MIN(C105:C116)<5,AVERAGEIF(C105:C116,">0",W105:W116), IF(FORECAST($C102,W$105:W$116,$C$105:$C$116)<0,0, IF(FORECAST($C102,W$105:W$116,$C$105:$C$116)>100,100, FORECAST($C102,W$105:W$116,$C$105:$C$116)))) -> 0 | X102: =IF(MAX(C105:C116)-MIN(C105:C116)<5,AVERAGEIF(C105:C116,">0",X105:X116), IF(FORECAST($C102,X$105:X$116,$C$105:$C$116)<0,0, IF(FORECAST($C102,X$105:X$116,$C$105:$C$116)>100,100, FORECAST($C102,X$105:X$116,$C$105:$C$116)))) -> 100 | AB102: =IF(MAX(C105:C116)-MIN(C105:C116)<5,AVERAGEIF(C105:C116,">0",AB105:AB116), IF(FORECAST($C102,AB$105:AB$116,$C$105:$C$116)<0,0, IF(FORECAST($C102,AB$105:AB$116,$C$105:$C$116)>100,100, FORECAST($C102,AB$105:AB$116,$C$105:$C$116)))) -> 0
B104: Survey | C104: Year | D104: Improved | E104: % Improved < = 30min | H104: Surface water | I104: Improved | J104: % Improved < = 30min | M104: Surface water | N104: Improved | O104: % Improved < = 30min | R104: Surface water | S104: Improved | T104: % Improved < = 30min | W104: Surface water | X104: Improved | Y104: % Improved < = 30min | AB104: Surface water
B105: MICS00 | C105: 2000 | D105: =IF(ISERROR(INDIRECT(CONCATENATE($B105,"!C16"))),"",INDIRECT(CONCATENATE($B105,"!C16"))) -> 43.73087999 | E105: =IF(ISERROR(INDIRECT(CONCATENATE($B105,"!C23"))),"",INDIRECT(CONCATENATE($B105,"!C23"))) -> 73.63307839 | H105: =IF(ISERROR(INDIRECT(CONCATENATE($B105,"!C21"))),"",INDIRECT(CONCATENATE($B105,"!C21"))) -> 40.1478659 | I105: =IF(ISERROR(INDIRECT(CONCATENATE($B105,"!D16"))),"",INDIRECT(CONCATENATE($B105,"!D16"))) -> 56.97836283 | J105: =IF(ISERROR(INDIRECT(CONCATENATE($B105,"!D23"))),"",INDIRECT(CONCATENATE($B105,"!D23"))) -> 77.27643062 | M105: =IF(ISERROR(INDIRECT(CONCATENATE($B105,"!D21"))),"",INDIRECT(CONCATENATE($B105,"!D21"))) -> 27.87861941 | N105: =IF(ISERROR(INDIRECT(CONCATENATE($B105,"!E16"))),"",INDIRECT(CONCATENATE($B105,"!E16"))) -> 65.987926 | O105: =IF(ISERROR(INDIRECT(CONCATENATE($B105,"!E23"))),"",INDIRECT(CONCATENATE($B105,"!E23"))) -> 86.35873323 | R105: =IF(ISERROR(INDIRECT(CONCATENATE($B105,"!E21"))),"",INDIRECT(CONCATENATE($B105,"!E21"))) -> 22.14658065 | S105: =IF(ISERROR(INDIRECT(CONCATENATE($B105,"!F16"))),"",INDIRECT(CONCATENATE($B105,"!F16"))) -> 76.974644 | T105: =IF(ISERROR(INDIRECT(CONCATENATE($B105,"!F23"))),"",INDIRECT(CONCATENATE($B105,"!F23"))) -> 88.21739521 | W105: =IF(ISERROR(INDIRECT(CONCATENATE($B105,"!F21"))),"",INDIRECT(CONCATENATE($B105,"!F21"))) -> 12.75704866 | X105: =IF(ISERROR(INDIRECT(CONCATENATE($B105,"!G16"))),"",INDIRECT(CONCATENATE($B105,"!G16"))) -> 87.48649661 | Y105: =IF(ISERROR(INDIRECT(CONCATENATE($B105,"!G23"))),"",INDIRECT(CONCATENATE($B105,"!G23"))) -> 96.10540778 | AB105: =IF(ISERROR(INDIRECT(CONCATENATE($B105,"!G221"))),"",INDIRECT(CONCATENATE($B105,"!G21"))) -> 3.427853484
B106: MIS07 | C106: 2007 | D106: 24.62091154 | E106: N/A | H106: 54.17167637 | I106: 56.16990962 | J106: N/A | M106: 26.68086407 | N106: 79.42719861 | O106: N/A | R106: 8.606923069 | S106: 96.39238715 | T106: N/A | W106: 1.454458075 | X106: 99.39915138 | Y106: N/A | AB106: 0.2031759869
B107: MIS11 | C107: 2011 | D107: 24.26489517 | E107: N/A | H107: 68.13860411 | I107: 34.34978667 | J107: N/A | M107: 55.95347924 | N107: 61.43888909 | O107: N/A | R107: 26.44521694 | S107: 92.1598442 | T107: N/A | W107: 3.506799468 | X107: 98.98546139 | Y107: N/A | AB107: 0.1581162067
B108: DHS16 | C108: 2016 | D108: 30.86996628 | E108: 69.58419191 | H108: 43.8581723 | I108: 44.90877442 | J108: 82.99930445 | M108: 29.38492078 | N108: 79.45549912 | O108: 89.10351608 | R108: 7.687696367 | S108: 92.96993564 | T108: 91.61262408 | W108: 1.723868788 | X108: 97.31269865 | Y108: 91.77059401 | AB108: 0.4231628174
D111: =IF(ISERROR(INDIRECT(CONCATENATE($B111,"!C16"))),"",INDIRECT(CONCATENATE($B111,"!C16"))) ->  | E111: =IF(ISERROR(INDIRECT(CONCATENATE($B111,"!C23"))),"",INDIRECT(CONCATENATE($B111,"!C23"))) ->  | H111: =IF(ISERROR(INDIRECT(CONCATENATE($B111,"!C21"))),"",INDIRECT(CONCATENATE($B111,"!C21"))) ->  | I111: =IF(ISERROR(INDIRECT(CONCATENATE($B111,"!D16"))),"",INDIRECT(CONCATENATE($B111,"!D16"))) ->  | J111: =IF(ISERROR(INDIRECT(CONCATENATE($B111,"!D23"))),"",INDIRECT(CONCATENATE($B111,"!D23"))) ->  | M111: =IF(ISERROR(INDIRECT(CONCATENATE($B111,"!D21"))),"",INDIRECT(CONCATENATE($B111,"!D21"))) ->  | N111: =IF(ISERROR(INDIRECT(CONCATENATE($B111,"!E16"))),"",INDIRECT(CONCATENATE($B111,"!E16"))) ->  | O111: =IF(ISERROR(INDIRECT(CONCATENATE($B111,"!E23"))),"",INDIRECT(CONCATENATE($B111,"!E23"))) ->  | R111: =IF(ISERROR(INDIRECT(CONCATENATE($B111,"!E21"))),"",INDIRECT(CONCATENATE($B111,"!E21"))) ->  | S111: =IF(ISERROR(INDIRECT(CONCATENATE($B111,"!F16"))),"",INDIRECT(CONCATENATE($B111,"!F16"))) ->  | T111: =IF(ISERROR(INDIRECT(CONCATENATE($B111,"!F23"))),"",INDIRECT(CONCATENATE($B111,"!F23"))) ->  | W111: =IF(ISERROR(INDIRECT(CONCATENATE($B111,"!F21"))),"",INDIRECT(CONCATENATE($B111,"!F21"))) ->  | X111: =IF(ISERROR(INDIRECT(CONCATENATE($B111,"!G16"))),"",INDIRECT(CONCATENATE($B111,"!G16"))) ->  | Y111: =IF(ISERROR(INDIRECT(CONCATENATE($B111,"!G23"))),"",INDIRECT(CONCATENATE($B111,"!G23"))) ->  | AB111: =IF(ISERROR(INDIRECT(CONCATENATE($B111,"!G221"))),"",INDIRECT(CONCATENATE($B111,"!G21"))) -> 
D112: =IF(ISERROR(INDIRECT(CONCATENATE($B112,"!C16"))),"",INDIRECT(CONCATENATE($B112,"!C16"))) ->  | E112: =IF(ISERROR(INDIRECT(CONCATENATE($B112,"!C23"))),"",INDIRECT(CONCATENATE($B112,"!C23"))) ->  | H112: =IF(ISERROR(INDIRECT(CONCATENATE($B112,"!C21"))),"",INDIRECT(CONCATENATE($B112,"!C21"))) ->  | I112: =IF(ISERROR(INDIRECT(CONCATENATE($B112,"!D16"))),"",INDIRECT(CONCATENATE($B112,"!D16"))) ->  | J112: =IF(ISERROR(INDIRECT(CONCATENATE($B112,"!D23"))),"",INDIRECT(CONCATENATE($B112,"!D23"))) ->  | M112: =IF(ISERROR(INDIRECT(CONCATENATE($B112,"!D21"))),"",INDIRECT(CONCATENATE($B112,"!D21"))) ->  | N112: =IF(ISERROR(INDIRECT(CONCATENATE($B112,"!E16"))),"",INDIRECT(CONCATENATE($B112,"!E16"))) ->  | O112: =IF(ISERROR(INDIRECT(CONCATENATE($B112,"!E23"))),"",INDIRECT(CONCATENATE($B112,"!E23"))) ->  | R112: =IF(ISERROR(INDIRECT(CONCATENATE($B112,"!E21"))),"",INDIRECT(CONCATENATE($B112,"!E21"))) ->  | S112: =IF(ISERROR(INDIRECT(CONCATENATE($B112,"!F16"))),"",INDIRECT(CONCATENATE($B112,"!F16"))) ->  | T112: =IF(ISERROR(INDIRECT(CONCATENATE($B112,"!F23"))),"",INDIRECT(CONCATENATE($B112,"!F23"))) ->  | W112: =IF(ISERROR(INDIRECT(CONCATENATE($B112,"!F21"))),"",INDIRECT(CONCATENATE($B112,"!F21"))) ->  | X112: =IF(ISERROR(INDIRECT(CONCATENATE($B112,"!G16"))),"",INDIRECT(CONCATENATE($B112,"!G16"))) ->  | Y112: =IF(ISERROR(INDIRECT(CONCATENATE($B112,"!G23"))),"",INDIRECT(CONCATENATE($B112,"!G23"))) ->  | AB112: =IF(ISERROR(INDIRECT(CONCATENATE($B112,"!G221"))),"",INDIRECT(CONCATENATE($B112,"!G21"))) -> 
B118: =CONCATENATE("National use of drinking water sources, ",C99,"–",C100) -> National use of drinking water sources, 2000–2020 | S118: Data points used for regression
E153: =IF(ISERROR(INDIRECT(CONCATENATE($B153,"!M18"))),"",INDIRECT(CONCATENATE($B153,"!M18"))) ->  | F153: =IF(ISERROR(INDIRECT(CONCATENATE($B153,"!M19"))),"",INDIRECT(CONCATENATE($B153,"!M19"))) ->  | G153: =IF(ISERROR(INDIRECT(CONCATENATE($B153,"!M20"))),"",INDIRECT(CONCATENATE($B153,"!M20"))) ->  | H153: =IF(ISERROR(INDIRECT(CONCATENATE($B153,"!M21"))),"",INDIRECT(CONCATENATE($B153,"!M21"))) ->  | J153: =IF(ISERROR(INDIRECT(CONCATENATE($B153,"!N18"))),"",INDIRECT(CONCATENATE($B153,"!N18"))) ->  | K153: =IF(ISERROR(INDIRECT(CONCATENATE($B153,"!N19"))),"",INDIRECT(CONCATENATE($B153,"!N19"))) ->  | L153: =IF(ISERROR(INDIRECT(CONCATENATE($B153,"!N20"))),"",INDIRECT(CONCATENATE($B153,"!N20"))) ->  | M153: =IF(ISERROR(INDIRECT(CONCATENATE($B153,"!N21"))),"",INDIRECT(CONCATENATE($B153,"!N21"))) ->  | O153: =IF(ISERROR(INDIRECT(CONCATENATE($B153,"!O18"))),"",INDIRECT(CONCATENATE($B153,"!O18"))) ->  | P153: =IF(ISERROR(INDIRECT(CONCATENATE($B153,"!O19"))),"",INDIRECT(CONCATENATE($B153,"!O19"))) ->  | Q153: =IF(ISERROR(INDIRECT(CONCATENATE($B153,"!O20"))),"",INDIRECT(CONCATENATE($B153,"!O20"))) ->  | R153: =IF(ISERROR(INDIRECT(CONCATENATE($B153,"!O21"))),"",INDIRECT(CONCATENATE($B153,"!O21"))) ->  | T153: =IF(ISERROR(INDIRECT(CONCATENATE($B153,"!P18"))),"",INDIRECT(CONCATENATE($B153,"!P18"))) ->  | U153: =IF(ISERROR(INDIRECT(CONCATENATE($B153,"!P19"))),"",INDIRECT(CONCATENATE($B153,"!P19"))) ->  | V153: =IF(ISERROR(INDIRECT(CONCATENATE($B153,"!P20"))),"",INDIRECT(CONCATENATE($B153,"!P20"))) ->  | W153: =IF(ISERROR(INDIRECT(CONCATENATE($B153,"!P21"))),"",INDIRECT(CONCATENATE($B153,"!P21"))) ->  | Y153: =IF(ISERROR(INDIRECT(CONCATENATE($B153,"!Q18"))),"",INDIRECT(CONCATENATE($B153,"!Q18"))) ->  | Z153: =IF(ISERROR(INDIRECT(CONCATENATE($B153,"!Q19"))),"",INDIRECT(CONCATENATE($B153,"!Q19"))) ->  | AA153: =IF(ISERROR(INDIRECT(CONCATENATE($B153,"!Q20"))),"",INDIRECT(CONCATENATE($B153,"!Q20"))) ->  | AB153: =IF(ISERROR(INDIRECT(CONCATENATE($B153,"!Q21"))),"",INDIRECT(CONCATENATE($B153,"!Q1"))) -> 
A197: URBAN | D197: Poorest | I197: Poor | N197: Middle | S197: Rich | X197: Richest
D198: Improved | E198: Basic | F198: Limited | G198: Unimproved | H198: Surface water | I198: Improved | J198: Basic | K198: Limited | L198: Unimproved | M198: Surface water | N198: Improved | O198: Basic | P198: Limited | Q198: Unimproved | R198: Surface water | S198: Improved | T198: Basic | U198: Limited | V198: Unimproved | W198: Surface water | X198: Improved | Y198: Basic | Z198: Limited | AA198: Unimproved | AB198: Surface water
A199: Forecast period: | C199: 2000 | D199: =IF((D201+H201)>100,D201*100/(D201+H201),D201) -> 67.68603291 | E199: =D199*AVERAGEIF(E205:E216,">0")/100 -> 57.19080657 | F199: =D199*(100-AVERAGEIF(E205:E216,">0"))/100 -> 10.49522633 | G199: =100-(E199+F199+H199) -> 13.85664346 | H199: =IF((D201+H201)>100,H201*100/(D201+H201),H201) -> 18.45732363 | I199: =IF((I201+M201)>100,I201*100/(I201+M201),I201) -> 72.66222879 | J199: =I199*AVERAGEIF(J205:J216,">0")/100 -> 64.35954651 | K199: =I199*(100-AVERAGEIF(J205:J216,">0"))/100 -> 8.302682282 | L199: =100-(J199+K199+M199) -> 10.4656493 | M199: =IF((I201+M201)>100,M201*100/(I201+M201),M201) -> 16.87212191 | N199: =IF((N201+R201)>100,N201*100/(N201+R201),N201) -> 74.49182641 | O199: =N199*AVERAGEIF(O205:O216,">0")/100 -> 67.92856573 | P199: =N199*(100-AVERAGEIF(O205:O216,">0"))/100 -> 6.563260682 | Q199: =100-(O199+P199+R199) -> 9.990784759 | R199: =IF((N201+R201)>100,R201*100/(N201+R201),R201) -> 15.51738883 | S199: =IF((S201+W201)>100,S201*100/(S201+W201),S201) -> 81.6417932 | T199: =S199*AVERAGEIF(T205:T216,">0")/100 -> 74.65810136 | U199: =S199*(100-AVERAGEIF(T205:T216,">0"))/100 -> 6.983691842 | V199: =100-(T199+U199+W199) -> 11.92744102 | W199: =IF((S201+W201)>100,W201*100/(S201+W201),W201) -> 6.430765779 | X199: =IF((X201+AB201)>100,X201*100/(X201+AB201),X201) -> 90.34956497 | Y199: =X199*AVERAGEIF(Y205:Y216,">0")/100 -> 86.0270613 | Z199: =X199*(100-AVERAGEIF(Y205:Y216,">0"))/100 -> 4.322503664 | AA199: =100-(Y199+Z199+AB199) -> 6.752477906 | AB199: =IF((X201+AB201)>100,AB201*100/(X201+AB201),AB201) -> 2.897957126
C200: 2020 | D200: =IF((D202+H202)>100,D202*100/(D202+H202),D202) -> 67.64790688 | E200: =D200*AVERAGEIF(E205:E216,">0")/100 -> 57.15859228 | F200: =D200*(100-AVERAGEIF(E205:E216,">0"))/100 -> 10.48931461 | G200: =100-(E200+F200+H200) -> 17.73236806 | H200: =IF((D202+H202)>100,H202*100/(D202+H202),H202) -> 14.61972505 | I200: =IF((I202+M202)>100,I202*100/(I202+M202),I202) -> 87.23930683 | J200: =I200*AVERAGEIF(J205:J216,">0")/100 -> 77.27098822 | K200: =I200*(100-AVERAGEIF(J205:J216,">0"))/100 -> 9.968318604 | L200: =100-(J200+K200+M200) -> 10.90062811 | M200: =IF((I202+M202)>100,M202*100/(I202+M202),M202) -> 1.860065067 | N200: =IF((N202+R202)>100,N202*100/(N202+R202),N202) -> 95.57695919 | O200: =N200*AVERAGEIF(O205:O216,">0")/100 -> 87.15594808 | P200: =N200*(100-AVERAGEIF(O205:O216,">0"))/100 -> 8.421011117 | Q200: =100-(O200+P200+R200) -> 4.423040806 | R200: =IF((N202+R202)>100,R202*100/(N202+R202),R202) -> 0 | S200: =IF((S202+W202)>100,S202*100/(S202+W202),S202) -> 96.27816852 | T200: =S200*AVERAGEIF(T205:T216,">0")/100 -> 88.04247166 | U200: =S200*(100-AVERAGEIF(T205:T216,">0"))/100 -> 8.235696863 | V200: =100-(T200+U200+W200) -> 3.639179773 | W200: =IF((S202+W202)>100,W202*100/(S202+W202),W202) -> 0.08265170234 | X200: =IF((X202+AB202)>100,X202*100/(X202+AB202),X202) -> 99.45831266 | Y200: =X200*AVERAGEIF(Y205:Y216,">0")/100 -> 94.70002831 | Z200: =X200*(100-AVERAGEIF(Y205:Y216,">0"))/100 -> 4.758284349 | AA200: =100-(Y200+Z200+AB200) -> 0.5416873409 | AB200: =IF((X202+AB202)>100,AB202*100/(X202+AB202),AB202) -> 0
A201: Regression period: | C201: =MinRegYear(C199,C205:C216) -> 2000 | D201: =IF(MAX(C205:C216)-MIN(C205:C216)<5,AVERAGEIF(C205:C216,">0",D205:D216), IF(FORECAST($C201,D$205:D$216,$C$205:$C$216)<0,0, IF(FORECAST($C201,D$205:D$216,$C$205:$C$216)>100,100, FORECAST($C201,D$205:D$216,$C$205:$C$216)))) -> 67.68603291 | H201: =IF(MAX(C205:C216)-MIN(C205:C216)<5,AVERAGEIF(C205:C216,">0",H205:H216), IF(FORECAST($C201,H$205:H$216,$C$205:$C$216)<0,0, IF(FORECAST($C201,H$205:H$216,$C$205:$C$216)>100,100, FORECAST($C201,H$205:H$216,$C$205:$C$216)))) -> 18.45732363 | I201: =IF(MAX(C205:C216)-MIN(C205:C216)<5,AVERAGEIF(C205:C216,">0",I205:I216), IF(FORECAST($C201,I$205:I$216,$C$205:$C$216)<0,0, IF(FORECAST($C201,I$205:I$216,$C$205:$C$216)>100,100, FORECAST($C201,I$205:I$216,$C$205:$C$216)))) -> 72.66222879 | M201: =IF(MAX(C205:C216)-MIN(C205:C216)<5,AVERAGEIF(C205:C216,">0",M205:M216), IF(FORECAST($C201,M$205:M$216,$C$205:$C$216)<0,0, IF(FORECAST($C201,M$205:M$216,$C$205:$C$216)>100,100, FORECAST($C201,M$205:M$216,$C$205:$C$216)))) -> 16.87212191 | N201: =IF(MAX(C205:C216)-MIN(C205:C216)<5,AVERAGEIF(C205:C216,">0",N205:N216), IF(FORECAST($C201,N$205:N$216,$C$205:$C$216)<0,0, IF(FORECAST($C201,N$205:N$216,$C$205:$C$216)>100,100, FORECAST($C201,N$205:N$216,$C$205:$C$216)))) -> 74.49182641 | R201: =IF(MAX(C205:C216)-MIN(C205:C216)<5,AVERAGEIF(C205:C216,">0",R205:R216), IF(FORECAST($C201,R$205:R$216,$C$205:$C$216)<0,0, IF(FORECAST($C201,R$205:R$216,$C$205:$C$216)>100,100, FORECAST($C201,R$205:R$216,$C$205:$C$216)))) -> 15.51738883 | S201: =IF(MAX(C205:C216)-MIN(C205:C216)<5,AVERAGEIF(C205:C216,">0",S205:S216), IF(FORECAST($C201,S$205:S$216,$C$205:$C$216)<0,0, IF(FORECAST($C201,S$205:S$216,$C$205:$C$216)>100,100, FORECAST($C201,S$205:S$216,$C$205:$C$216)))) -> 81.6417932 | W201: =IF(MAX(C205:C216)-MIN(C205:C216)<5,AVERAGEIF(C205:C216,">0",W205:W216), IF(FORECAST($C201,W$205:W$216,$C$205:$C$216)<0,0, IF(FORECAST($C201,W$205:W$216,$C$205:$C$216)>100,100, FORECAST($C201,W$205:W$216,$C$205:$C$216)))) -> 6.430765779 | X201: =IF(MAX(C205:C216)-MIN(C205:C216)<5,AVERAGEIF(C205:C216,">0",X205:X216), IF(FORECAST($C201,X$205:X$216,$C$205:$C$216)<0,0, IF(FORECAST($C201,X$205:X$216,$C$205:$C$216)>100,100, FORECAST($C201,X$205:X$216,$C$205:$C$216)))) -> 90.34956497 | AB201: =IF(MAX(C205:C216)-MIN(C205:C216)<5,AVERAGEIF(C205:C216,">0",AB205:AB216), IF(FORECAST($C201,AB$205:AB$216,$C$205:$C$216)<0,0, IF(FORECAST($C201,AB$205:AB$216,$C$205:$C$216)>100,100, FORECAST($C201,AB$205:AB$216,$C$205:$C$216)))) -> 2.897957126
C202: =MaxRegYear(C200,C205:C216) -> 2018 | D202: =IF(MAX(C205:C216)-MIN(C205:C216)<5,AVERAGEIF(C205:C216,">0",D205:D216), IF(FORECAST($C202,D$205:D$216,$C$205:$C$216)<0,0, IF(FORECAST($C202,D$205:D$216,$C$205:$C$216)>100,100, FORECAST($C202,D$205:D$216,$C$205:$C$216)))) -> 67.64790688 | H202: =IF(MAX(C205:C216)-MIN(C205:C216)<5,AVERAGEIF(C205:C216,">0",H205:H216), IF(FORECAST($C202,H$205:H$216,$C$205:$C$216)<0,0, IF(FORECAST($C202,H$205:H$216,$C$205:$C$216)>100,100, FORECAST($C202,H$205:H$216,$C$205:$C$216)))) -> 14.61972505 | I202: =IF(MAX(C205:C216)-MIN(C205:C216)<5,AVERAGEIF(C205:C216,">0",I205:I216), IF(FORECAST($C202,I$205:I$216,$C$205:$C$216)<0,0, IF(FORECAST($C202,I$205:I$216,$C$205:$C$216)>100,100, FORECAST($C202,I$205:I$216,$C$205:$C$216)))) -> 87.23930683 | M202: =IF(MAX(C205:C216)-MIN(C205:C216)<5,AVERAGEIF(C205:C216,">0",M205:M216), IF(FORECAST($C202,M$205:M$216,$C$205:$C$216)<0,0, IF(FORECAST($C202,M$205:M$216,$C$205:$C$216)>100,100, FORECAST($C202,M$205:M$216,$C$205:$C$216)))) -> 1.860065067 | N202: =IF(MAX(C205:C216)-MIN(C205:C216)<5,AVERAGEIF(C205:C216,">0",N205:N216), IF(FORECAST($C202,N$205:N$216,$C$205:$C$216)<0,0, IF(FORECAST($C202,N$205:N$216,$C$205:$C$216)>100,100, FORECAST($C202,N$205:N$216,$C$205:$C$216)))) -> 95.57695919 | R202: =IF(MAX(C205:C216)-MIN(C205:C216)<5,AVERAGEIF(C205:C216,">0",R205:R216), IF(FORECAST($C202,R$205:R$216,$C$205:$C$216)<0,0, IF(FORECAST($C202,R$205:R$216,$C$205:$C$216)>100,100, FORECAST($C202,R$205:R$216,$C$205:$C$216)))) -> 0 | S202: =IF(MAX(C205:C216)-MIN(C205:C216)<5,AVERAGEIF(C205:C216,">0",S205:S216), IF(FORECAST($C202,S$205:S$216,$C$205:$C$216)<0,0, IF(FORECAST($C202,S$205:S$216,$C$205:$C$216)>100,100, FORECAST($C202,S$205:S$216,$C$205:$C$216)))) -> 96.27816852 | W202: =IF(MAX(C205:C216)-MIN(C205:C216)<5,AVERAGEIF(C205:C216,">0",W205:W216), IF(FORECAST($C202,W$205:W$216,$C$205:$C$216)<0,0, IF(FORECAST($C202,W$205:W$216,$C$205:$C$216)>100,100, FORECAST($C202,W$205:W$216,$C$205:$C$216)))) -> 0.08265170234 | X202: =IF(MAX(C205:C216)-MIN(C205:C216)<5,AVERAGEIF(C205:C216,">0",X205:X216), IF(FORECAST($C202,X$205:X$216,$C$205:$C$216)<0,0, IF(FORECAST($C202,X$205:X$216,$C$205:$C$216)>100,100, FORECAST($C202,X$205:X$216,$C$205:$C$216)))) -> 99.45831266 | AB202: =IF(MAX(C205:C216)-MIN(C205:C216)<5,AVERAGEIF(C205:C216,">0",AB205:AB216), IF(FORECAST($C202,AB$205:AB$216,$C$205:$C$216)<0,0, IF(FORECAST($C202,AB$205:AB$216,$C$205:$C$216)>100,100, FORECAST($C202,AB$205:AB$216,$C$205:$C$216)))) -> 0
B204: Survey | C204: Year | D204: Improved | E204: % Improved < = 30min | H204: Surface water | I204: Improved | J204: % Improved < = 30min | M204: Surface water | N204: Improved | O204: % Improved < = 30min | R204: Surface water | S204: Improved | T204: % Improved < = 30min | W204: Surface water | X204: Improved | Y204: % Improved < = 30min | AB204: Surface water
B205: MICS00 | C205: 2000 | D205: =IF(ISERROR(INDIRECT(CONCATENATE($B205,"!H16"))),"",INDIRECT(CONCATENATE($B205,"!H16"))) -> 67.68603291 | E205: =IF(ISERROR(INDIRECT(CONCATENATE($B205,"!H23"))),"",INDIRECT(CONCATENATE($B205,"!H23"))) -> 83.19142358 | H205: =IF(ISERROR(INDIRECT(CONCATENATE($B205,"!H21"))),"",INDIRECT(CONCATENATE($B205,"!H21"))) -> 18.45732363 | I205: =IF(ISERROR(INDIRECT(CONCATENATE($B205,"!I16"))),"",INDIRECT(CONCATENATE($B205,"!I16"))) -> 72.66222879 | J205: =IF(ISERROR(INDIRECT(CONCATENATE($B205,"!I23"))),"",INDIRECT(CONCATENATE($B205,"!I23"))) -> 86.75013502 | M205: =IF(ISERROR(INDIRECT(CONCATENATE($B205,"!I21"))),"",INDIRECT(CONCATENATE($B205,"!I21"))) -> 16.87212191 | N205: =IF(ISERROR(INDIRECT(CONCATENATE($B205,"!J16"))),"",INDIRECT(CONCATENATE($B205,"!J16"))) -> 74.49182641 | O205: =IF(ISERROR(INDIRECT(CONCATENATE($B205,"!J23"))),"",INDIRECT(CONCATENATE($B205,"!J23"))) -> 90.30130096 | R205: =IF(ISERROR(INDIRECT(CONCATENATE($B205,"!J21"))),"",INDIRECT(CONCATENATE($B205,"!J21"))) -> 15.51738883 | S205: =IF(ISERROR(INDIRECT(CONCATENATE($B205,"!K16"))),"",INDIRECT(CONCATENATE($B205,"!K16"))) -> 81.6417932 | T205: =IF(ISERROR(INDIRECT(CONCATENATE($B205,"!K23"))),"",INDIRECT(CONCATENATE($B205,"!K23"))) -> 91.5180326 | W205: =IF(ISERROR(INDIRECT(CONCATENATE($B205,"!K21"))),"",INDIRECT(CONCATENATE($B205,"!K21"))) -> 6.430765779 | X205: =IF(ISERROR(INDIRECT(CONCATENATE($B205,"!L16"))),"",INDIRECT(CONCATENATE($B205,"!L16"))) -> 90.34956497 | Y205: =IF(ISERROR(INDIRECT(CONCATENATE($B205,"!L23"))),"",INDIRECT(CONCATENATE($B205,"!L23"))) -> 98.10342282 | AB205: =IF(ISERROR(INDIRECT(CONCATENATE($B205,"!L221"))),"",INDIRECT(CONCATENATE($B205,"!L21"))) -> 2.897957126
B206: MIS07 | D206: 86.69723007 | E206: N/A | H206: 5.811726248 | I206: 90.34066529 | J206: N/A | M206: 6.207789886 | N206: 98.01803937 | O206: N/A | R206: 0 | S206: 99.27499478 | T206: N/A | W206: 0 | X206: 100 | Y206: N/A | AB206: 0
B207: MIS11 | D207: 83.55680732 | E207: N/A | H207: 10.14877619 | I207: 98.41675889 | J207: N/A | M207: 0.6558692017 | N207: 98.60196859 | O207: N/A | R207: 0.2116198858 | S207: 99.38195655 | T207: N/A | W207: 0.03035688588 | X207: 99.54899639 | Y207: N/A | AB207: 0
B208: DHS16 | C208: 2016 | D208: 67.65214311 | E208: 85.79707853 | H208: 15.0461249 | I208: 85.61963149 | J208: 90.39705019 | M208: 3.528071382 | N208: 93.23416666 | O208: 92.07727399 | R208: 1.394776675 | S208: 94.6519046 | T208: 91.37383793 | W208: 0.7879977108 | X208: 98.44622958 | Y208: 92.32817768 | AB208: 0.2307767868
B218: =CONCATENATE("Urban use of drinking water sources, ",C199,"–",C200) -> Urban use of drinking water sources, 2000–2020 | S218: Data points used for regression
E253: =IF(ISERROR(INDIRECT(CONCATENATE($B253,"!M18"))),"",INDIRECT(CONCATENATE($B253,"!M18"))) ->  | F253: =IF(ISERROR(INDIRECT(CONCATENATE($B253,"!M19"))),"",INDIRECT(CONCATENATE($B253,"!M19"))) ->  | G253: =IF(ISERROR(INDIRECT(CONCATENATE($B253,"!M20"))),"",INDIRECT(CONCATENATE($B253,"!M20"))) ->  | H253: =IF(ISERROR(INDIRECT(CONCATENATE($B253,"!M21"))),"",INDIRECT(CONCATENATE($B253,"!M21"))) ->  | J253: =IF(ISERROR(INDIRECT(CONCATENATE($B253,"!N18"))),"",INDIRECT(CONCATENATE($B253,"!N18"))) ->  | K253: =IF(ISERROR(INDIRECT(CONCATENATE($B253,"!N19"))),"",INDIRECT(CONCATENATE($B253,"!N19"))) ->  | L253: =IF(ISERROR(INDIRECT(CONCATENATE($B253,"!N20"))),"",INDIRECT(CONCATENATE($B253,"!N20"))) ->  | M253: =IF(ISERROR(INDIRECT(CONCATENATE($B253,"!N21"))),"",INDIRECT(CONCATENATE($B253,"!N21"))) ->  | O253: =IF(ISERROR(INDIRECT(CONCATENATE($B253,"!O18"))),"",INDIRECT(CONCATENATE($B253,"!O18"))) ->  | P253: =IF(ISERROR(INDIRECT(CONCATENATE($B253,"!O19"))),"",INDIRECT(CONCATENATE($B253,"!O19"))) ->  | Q253: =IF(ISERROR(INDIRECT(CONCATENATE($B253,"!O20"))),"",INDIRECT(CONCATENATE($B253,"!O20"))) ->  | R253: =IF(ISERROR(INDIRECT(CONCATENATE($B253,"!O21"))),"",INDIRECT(CONCATENATE($B253,"!O21"))) ->  | T253: =IF(ISERROR(INDIRECT(CONCATENATE($B253,"!P18"))),"",INDIRECT(CONCATENATE($B253,"!P18"))) ->  | U253: =IF(ISERROR(INDIRECT(CONCATENATE($B253,"!P19"))),"",INDIRECT(CONCATENATE($B253,"!P19"))) ->  | V253: =IF(ISERROR(INDIRECT(CONCATENATE($B253,"!P20"))),"",INDIRECT(CONCATENATE($B253,"!P20"))) ->  | W253: =IF(ISERROR(INDIRECT(CONCATENATE($B253,"!P21"))),"",INDIRECT(CONCATENATE($B253,"!P21"))) ->  | Y253: =IF(ISERROR(INDIRECT(CONCATENATE($B253,"!Q18"))),"",INDIRECT(CONCATENATE($B253,"!Q18"))) ->  | Z253: =IF(ISERROR(INDIRECT(CONCATENATE($B253,"!Q19"))),"",INDIRECT(CONCATENATE($B253,"!Q19"))) ->  | AA253: =IF(ISERROR(INDIRECT(CONCATENATE($B253,"!Q20"))),"",INDIRECT(CONCATENATE($B253,"!Q20"))) ->  | AB253: =IF(ISERROR(INDIRECT(CONCATENATE($B253,"!Q21"))),"",INDIRECT(CONCATENATE($B253,"!Q1"))) -> 
E254: =IF(ISERROR(INDIRECT(CONCATENATE($B254,"!M18"))),"",INDIRECT(CONCATENATE($B254,"!M18"))) ->  | F254: =IF(ISERROR(INDIRECT(CONCATENATE($B254,"!M19"))),"",INDIRECT(CONCATENATE($B254,"!M19"))) ->  | G254: =IF(ISERROR(INDIRECT(CONCATENATE($B254,"!M20"))),"",INDIRECT(CONCATENATE($B254,"!M20"))) ->  | H254: =IF(ISERROR(INDIRECT(CONCATENATE($B254,"!M21"))),"",INDIRECT(CONCATENATE($B254,"!M21"))) ->  | J254: =IF(ISERROR(INDIRECT(CONCATENATE($B254,"!N18"))),"",INDIRECT(CONCATENATE($B254,"!N18"))) ->  | K254: =IF(ISERROR(INDIRECT(CONCATENATE($B254,"!N19"))),"",INDIRECT(CONCATENATE($B254,"!N19"))) ->  | L254: =IF(ISERROR(INDIRECT(CONCATENATE($B254,"!N20"))),"",INDIRECT(CONCATENATE($B254,"!N20"))) ->  | M254: =IF(ISERROR(INDIRECT(CONCATENATE($B254,"!N21"))),"",INDIRECT(CONCATENATE($B254,"!N21"))) ->  | O254: =IF(ISERROR(INDIRECT(CONCATENATE($B254,"!O18"))),"",INDIRECT(CONCATENATE($B254,"!O18"))) ->  | P254: =IF(ISERROR(INDIRECT(CONCATENATE($B254,"!O19"))),"",INDIRECT(CONCATENATE($B254,"!O19"))) ->  | Q254: =IF(ISERROR(INDIRECT(CONCATENATE($B254,"!O20"))),"",INDIRECT(CONCATENATE($B254,"!O20"))) ->  | R254: =IF(ISERROR(INDIRECT(CONCATENATE($B254,"!O21"))),"",INDIRECT(CONCATENATE($B254,"!O21"))) ->  | T254: =IF(ISERROR(INDIRECT(CONCATENATE($B254,"!P18"))),"",INDIRECT(CONCATENATE($B254,"!P18"))) ->  | U254: =IF(ISERROR(INDIRECT(CONCATENATE($B254,"!P19"))),"",INDIRECT(CONCATENATE($B254,"!P19"))) ->  | V254: =IF(ISERROR(INDIRECT(CONCATENATE($B254,"!P20"))),"",INDIRECT(CONCATENATE($B254,"!P20"))) ->  | W254: =IF(ISERROR(INDIRECT(CONCATENATE($B254,"!P21"))),"",INDIRECT(CONCATENATE($B254,"!P21"))) ->  | Y254: =IF(ISERROR(INDIRECT(CONCATENATE($B254,"!Q18"))),"",INDIRECT(CONCATENATE($B254,"!Q18"))) ->  | Z254: =IF(ISERROR(INDIRECT(CONCATENATE($B254,"!Q19"))),"",INDIRECT(CONCATENATE($B254,"!Q19"))) ->  | AA254: =IF(ISERROR(INDIRECT(CONCATENATE($B254,"!Q20"))),"",INDIRECT(CONCATENATE($B254,"!Q20"))) ->  | AB254: =IF(ISERROR(INDIRECT(CONCATENATE($B254,"!Q21"))),"",INDIRECT(CONCATENATE($B254,"!Q1"))) -> 
E255: =IF(ISERROR(INDIRECT(CONCATENATE($B255,"!M18"))),"",INDIRECT(CONCATENATE($B255,"!M18"))) ->  | F255: =IF(ISERROR(INDIRECT(CONCATENATE($B255,"!M19"))),"",INDIRECT(CONCATENATE($B255,"!M19"))) ->  | G255: =IF(ISERROR(INDIRECT(CONCATENATE($B255,"!M20"))),"",INDIRECT(CONCATENATE($B255,"!M20"))) ->  | H255: =IF(ISERROR(INDIRECT(CONCATENATE($B255,"!M21"))),"",INDIRECT(CONCATENATE($B255,"!M21"))) ->  | J255: =IF(ISERROR(INDIRECT(CONCATENATE($B255,"!N18"))),"",INDIRECT(CONCATENATE($B255,"!N18"))) ->  | K255: =IF(ISERROR(INDIRECT(CONCATENATE($B255,"!N19"))),"",INDIRECT(CONCATENATE($B255,"!N19"))) ->  | L255: =IF(ISERROR(INDIRECT(CONCATENATE($B255,"!N20"))),"",INDIRECT(CONCATENATE($B255,"!N20"))) ->  | M255: =IF(ISERROR(INDIRECT(CONCATENATE($B255,"!N21"))),"",INDIRECT(CONCATENATE($B255,"!N21"))) ->  | O255: =IF(ISERROR(INDIRECT(CONCATENATE($B255,"!O18"))),"",INDIRECT(CONCATENATE($B255,"!O18"))) ->  | P255: =IF(ISERROR(INDIRECT(CONCATENATE($B255,"!O19"))),"",INDIRECT(CONCATENATE($B255,"!O19"))) ->  | Q255: =IF(ISERROR(INDIRECT(CONCATENATE($B255,"!O20"))),"",INDIRECT(CONCATENATE($B255,"!O20"))) ->  | R255: =IF(ISERROR(INDIRECT(CONCATENATE($B255,"!O21"))),"",INDIRECT(CONCATENATE($B255,"!O21"))) ->  | T255: =IF(ISERROR(INDIRECT(CONCATENATE($B255,"!P18"))),"",INDIRECT(CONCATENATE($B255,"!P18"))) ->  | U255: =IF(ISERROR(INDIRECT(CONCATENATE($B255,"!P19"))),"",INDIRECT(CONCATENATE($B255,"!P19"))) ->  | V255: =IF(ISERROR(INDIRECT(CONCATENATE($B255,"!P20"))),"",INDIRECT(CONCATENATE($B255,"!P20"))) ->  | W255: =IF(ISERROR(INDIRECT(CONCATENATE($B255,"!P21"))),"",INDIRECT(CONCATENATE($B255,"!P21"))) ->  | Y255: =IF(ISERROR(INDIRECT(CONCATENATE($B255,"!Q18"))),"",INDIRECT(CONCATENATE($B255,"!Q18"))) ->  | Z255: =IF(ISERROR(INDIRECT(CONCATENATE($B255,"!Q19"))),"",INDIRECT(CONCATENATE($B255,"!Q19"))) ->  | AA255: =IF(ISERROR(INDIRECT(CONCATENATE($B255,"!Q20"))),"",INDIRECT(CONCATENATE($B255,"!Q20"))) ->  | AB255: =IF(ISERROR(INDIRECT(CONCATENATE($B255,"!Q21"))),"",INDIRECT(CONCATENATE($B255,"!Q1"))) -> 
E256: =IF(ISERROR(INDIRECT(CONCATENATE($B256,"!M18"))),"",INDIRECT(CONCATENATE($B256,"!M18"))) ->  | F256: =IF(ISERROR(INDIRECT(CONCATENATE($B256,"!M19"))),"",INDIRECT(CONCATENATE($B256,"!M19"))) ->  | G256: =IF(ISERROR(INDIRECT(CONCATENATE($B256,"!M20"))),"",INDIRECT(CONCATENATE($B256,"!M20"))) ->  | H256: =IF(ISERROR(INDIRECT(CONCATENATE($B256,"!M21"))),"",INDIRECT(CONCATENATE($B256,"!M21"))) ->  | J256: =IF(ISERROR(INDIRECT(CONCATENATE($B256,"!N18"))),"",INDIRECT(CONCATENATE($B256,"!N18"))) ->  | K256: =IF(ISERROR(INDIRECT(CONCATENATE($B256,"!N19"))),"",INDIRECT(CONCATENATE($B256,"!N19"))) ->  | L256: =IF(ISERROR(INDIRECT(CONCATENATE($B256,"!N20"))),"",INDIRECT(CONCATENATE($B256,"!N20"))) ->  | M256: =IF(ISERROR(INDIRECT(CONCATENATE($B256,"!N21"))),"",INDIRECT(CONCATENATE($B256,"!N21"))) ->  | O256: =IF(ISERROR(INDIRECT(CONCATENATE($B256,"!O18"))),"",INDIRECT(CONCATENATE($B256,"!O18"))) ->  | P256: =IF(ISERROR(INDIRECT(CONCATENATE($B256,"!O19"))),"",INDIRECT(CONCATENATE($B256,"!O19"))) ->  | Q256: =IF(ISERROR(INDIRECT(CONCATENATE($B256,"!O20"))),"",INDIRECT(CONCATENATE($B256,"!O20"))) ->  | R256: =IF(ISERROR(INDIRECT(CONCATENATE($B256,"!O21"))),"",INDIRECT(CONCATENATE($B256,"!O21"))) ->  | T256: =IF(ISERROR(INDIRECT(CONCATENATE($B256,"!P18"))),"",INDIRECT(CONCATENATE($B256,"!P18"))) ->  | U256: =IF(ISERROR(INDIRECT(CONCATENATE($B256,"!P19"))),"",INDIRECT(CONCATENATE($B256,"!P19"))) ->  | V256: =IF(ISERROR(INDIRECT(CONCATENATE($B256,"!P20"))),"",INDIRECT(CONCATENATE($B256,"!P20"))) ->  | W256: =IF(ISERROR(INDIRECT(CONCATENATE($B256,"!P21"))),"",INDIRECT(CONCATENATE($B256,"!P21"))) ->  | Y256: =IF(ISERROR(INDIRECT(CONCATENATE($B256,"!Q18"))),"",INDIRECT(CONCATENATE($B256,"!Q18"))) ->  | Z256: =IF(ISERROR(INDIRECT(CONCATENATE($B256,"!Q19"))),"",INDIRECT(CONCATENATE($B256,"!Q19"))) ->  | AA256: =IF(ISERROR(INDIRECT(CONCATENATE($B256,"!Q20"))),"",INDIRECT(CONCATENATE($B256,"!Q20"))) ->  | AB256: =IF(ISERROR(INDIRECT(CONCATENATE($B256,"!Q21"))),"",INDIRECT(CONCATENATE($B256,"!Q1"))) -> 
E257: =IF(ISERROR(INDIRECT(CONCATENATE($B257,"!M18"))),"",INDIRECT(CONCATENATE($B257,"!M18"))) ->  | F257: =IF(ISERROR(INDIRECT(CONCATENATE($B257,"!M19"))),"",INDIRECT(CONCATENATE($B257,"!M19"))) ->  | G257: =IF(ISERROR(INDIRECT(CONCATENATE($B257,"!M20"))),"",INDIRECT(CONCATENATE($B257,"!M20"))) ->  | H257: =IF(ISERROR(INDIRECT(CONCATENATE($B257,"!M21"))),"",INDIRECT(CONCATENATE($B257,"!M21"))) ->  | J257: =IF(ISERROR(INDIRECT(CONCATENATE($B257,"!N18"))),"",INDIRECT(CONCATENATE($B257,"!N18"))) ->  | K257: =IF(ISERROR(INDIRECT(CONCATENATE($B257,"!N19"))),"",INDIRECT(CONCATENATE($B257,"!N19"))) ->  | L257: =IF(ISERROR(INDIRECT(CONCATENATE($B257,"!N20"))),"",INDIRECT(CONCATENATE($B257,"!N20"))) ->  | M257: =IF(ISERROR(INDIRECT(CONCATENATE($B257,"!N21"))),"",INDIRECT(CONCATENATE($B257,"!N21"))) ->  | O257: =IF(ISERROR(INDIRECT(CONCATENATE($B257,"!O18"))),"",INDIRECT(CONCATENATE($B257,"!O18"))) ->  | P257: =IF(ISERROR(INDIRECT(CONCATENATE($B257,"!O19"))),"",INDIRECT(CONCATENATE($B257,"!O19"))) ->  | Q257: =IF(ISERROR(INDIRECT(CONCATENATE($B257,"!O20"))),"",INDIRECT(CONCATENATE($B257,"!O20"))) ->  | R257: =IF(ISERROR(INDIRECT(CONCATENATE($B257,"!O21"))),"",INDIRECT(CONCATENATE($B257,"!O21"))) ->  | T257: =IF(ISERROR(INDIRECT(CONCATENATE($B257,"!P18"))),"",INDIRECT(CONCATENATE($B257,"!P18"))) ->  | U257: =IF(ISERROR(INDIRECT(CONCATENATE($B257,"!P19"))),"",INDIRECT(CONCATENATE($B257,"!P19"))) ->  | V257: =IF(ISERROR(INDIRECT(CONCATENATE($B257,"!P20"))),"",INDIRECT(CONCATENATE($B257,"!P20"))) ->  | W257: =IF(ISERROR(INDIRECT(CONCATENATE($B257,"!P21"))),"",INDIRECT(CONCATENATE($B257,"!P21"))) ->  | Y257: =IF(ISERROR(INDIRECT(CONCATENATE($B257,"!Q18"))),"",INDIRECT(CONCATENATE($B257,"!Q18"))) ->  | Z257: =IF(ISERROR(INDIRECT(CONCATENATE($B257,"!Q19"))),"",INDIRECT(CONCATENATE($B257,"!Q19"))) ->  | AA257: =IF(ISERROR(INDIRECT(CONCATENATE($B257,"!Q20"))),"",INDIRECT(CONCATENATE($B257,"!Q20"))) ->  | AB257: =IF(ISERROR(INDIRECT(CONCATENATE($B257,"!Q21"))),"",INDIRECT(CONCATENATE($B257,"!Q1"))) -> 
A297: RURAL | D297: Poorest | I297: Poor | N297: Middle | S297: Rich | X297: Richest
D298: Improved | E298: Basic | F298: Limited | G298: Unimproved | H298: Surface water | I298: Improved | J298: Basic | K298: Limited | L298: Unimproved | M298: Surface water | N298: Improved | O298: Basic | P298: Limited | Q298: Unimproved | R298: Surface water | S298: Improved | T298: Basic | U298: Limited | V298: Unimproved | W298: Surface water | X298: Improved | Y298: Basic | Z298: Limited | AA298: Unimproved | AB298: Surface water
A299: Forecast period: | C299: 2000 | D299: =IF((D301+H301)>100,D301*100/(D301+H301),D301) -> 29.22452446 | E299: =D299*AVERAGEIF(E305:E316,">0")/100 -> 18.45059538 | F299: =D299*(100-AVERAGEIF(E305:E316,">0"))/100 -> 10.77392908 | G299: =100-(E299+F299+H299) -> 17.19209853 | H299: =IF((D301+H301)>100,H301*100/(D301+H301),H301) -> 53.58337701 | I299: =IF((I301+M301)>100,I301*100/(I301+M301),I301) -> 33.7495361 | J299: =I299*AVERAGEIF(J305:J316,">0")/100 -> 22.94208207 | K299: =I299*(100-AVERAGEIF(J305:J316,">0"))/100 -> 10.80745404 | L299: =100-(J299+K299+M299) -> 12.47561366 | M299: =IF((I301+M301)>100,M301*100/(I301+M301),M301) -> 53.77485024 | N299: =IF((N301+R301)>100,N301*100/(N301+R301),N301) -> 32.9671398 | O299: =N299*AVERAGEIF(O305:O316,">0")/100 -> 23.94236475 | P299: =N299*(100-AVERAGEIF(O305:O316,">0"))/100 -> 9.024775044 | Q299: =100-(O299+P299+R299) -> 15.85456314 | R299: =IF((N301+R301)>100,R301*100/(N301+R301),R301) -> 51.17829707 | S299: =IF((S301+W301)>100,S301*100/(S301+W301),S301) -> 54.26964082 | T299: =S299*AVERAGEIF(T305:T316,">0")/100 -> 37.29171651 | U299: =S299*(100-AVERAGEIF(T305:T316,">0"))/100 -> 16.97792431 | V299: =100-(T299+U299+W299) -> 15.77062608 | W299: =IF((S301+W301)>100,W301*100/(S301+W301),W301) -> 29.95973309 | X299: =IF((X301+AB301)>100,X301*100/(X301+AB301),X301) -> 62.12381098 | Y299: =X299*AVERAGEIF(Y305:Y316,">0")/100 -> 49.49560644 | Z299: =X299*(100-AVERAGEIF(Y305:Y316,">0"))/100 -> 12.62820454 | AA299: =100-(Y299+Z299+AB299) -> 15.1042248 | AB299: =IF((X301+AB301)>100,AB301*100/(X301+AB301),AB301) -> 22.77196422
C300: 2020 | D300: =IF((D302+H302)>100,D302*100/(D302+H302),D302) -> 22.7120434 | E300: =D300*AVERAGEIF(E305:E316,">0")/100 -> 14.33900913 | F300: =D300*(100-AVERAGEIF(E305:E316,">0"))/100 -> 8.373034272 | G300: =100-(E300+F300+H300) -> 20.58154125 | H300: =IF((D302+H302)>100,H302*100/(D302+H302),H302) -> 56.70641535 | I300: =IF((I302+M302)>100,I302*100/(I302+M302),I302) -> 26.52681263 | J300: =I300*AVERAGEIF(J305:J316,">0")/100 -> 18.03225711 | K300: =I300*(100-AVERAGEIF(J305:J316,">0"))/100 -> 8.494555523 | L300: =100-(J300+K300+M300) -> 20.20712535 | M300: =IF((I302+M302)>100,M302*100/(I302+M302),M302) -> 53.26606201 | N300: =IF((N302+R302)>100,N302*100/(N302+R302),N302) -> 30.81953856 | O300: =N300*AVERAGEIF(O305:O316,">0")/100 -> 22.38267069 | P300: =N300*(100-AVERAGEIF(O305:O316,">0"))/100 -> 8.436867868 | Q300: =100-(O300+P300+R300) -> 22.59474196 | R300: =IF((N302+R302)>100,R302*100/(N302+R302),R302) -> 46.58571948 | S300: =IF((S302+W302)>100,S302*100/(S302+W302),S302) -> 38.59876277 | T300: =S300*AVERAGEIF(T305:T316,">0")/100 -> 26.52337655 | U300: =S300*(100-AVERAGEIF(T305:T316,">0"))/100 -> 12.07538622 | V300: =100-(T300+U300+W300) -> 24.72028685 | W300: =IF((S302+W302)>100,W302*100/(S302+W302),W302) -> 36.68095037 | X300: =IF((X302+AB302)>100,X302*100/(X302+AB302),X302) -> 59.53085124 | Y300: =X300*AVERAGEIF(Y305:Y316,">0")/100 -> 47.42973005 | Z300: =X300*(100-AVERAGEIF(Y305:Y316,">0"))/100 -> 12.1011212 | AA300: =100-(Y300+Z300+AB300) -> 20.07397692 | AB300: =IF((X302+AB302)>100,AB302*100/(X302+AB302),AB302) -> 20.39517184
A301: Regression period: | C301: =MinRegYear(C299,C305:C316) -> 2000 | D301: =IF(MAX(C305:C316)-MIN(C305:C316)<5,AVERAGEIF(C305:C316,">0",D305:D316), IF(FORECAST($C301,D$305:D$316,$C$305:$C$316)<0,0, IF(FORECAST($C301,D$305:D$316,$C$305:$C$316)>100,100, FORECAST($C301,D$305:D$316,$C$305:$C$316)))) -> 29.22452446 | H301: =IF(MAX(C305:C316)-MIN(C305:C316)<5,AVERAGEIF(C305:C316,">0",H305:H316), IF(FORECAST($C301,H$305:H$316,$C$305:$C$316)<0,0, IF(FORECAST($C301,H$305:H$316,$C$305:$C$316)>100,100, FORECAST($C301,H$305:H$316,$C$305:$C$316)))) -> 53.58337701 | I301: =IF(MAX(C305:C316)-MIN(C305:C316)<5,AVERAGEIF(C305:C316,">0",I305:I316), IF(FORECAST($C301,I$305:I$316,$C$305:$C$316)<0,0, IF(FORECAST($C301,I$305:I$316,$C$305:$C$316)>100,100, FORECAST($C301,I$305:I$316,$C$305:$C$316)))) -> 33.7495361 | M301: =IF(MAX(C305:C316)-MIN(C305:C316)<5,AVERAGEIF(C305:C316,">0",M305:M316), IF(FORECAST($C301,M$305:M$316,$C$305:$C$316)<0,0, IF(FORECAST($C301,M$305:M$316,$C$305:$C$316)>100,100, FORECAST($C301,M$305:M$316,$C$305:$C$316)))) -> 53.77485024 | N301: =IF(MAX(C305:C316)-MIN(C305:C316)<5,AVERAGEIF(C305:C316,">0",N305:N316), IF(FORECAST($C301,N$305:N$316,$C$305:$C$316)<0,0, IF(FORECAST($C301,N$305:N$316,$C$305:$C$316)>100,100, FORECAST($C301,N$305:N$316,$C$305:$C$316)))) -> 32.9671398 | R301: =IF(MAX(C305:C316)-MIN(C305:C316)<5,AVERAGEIF(C305:C316,">0",R305:R316), IF(FORECAST($C301,R$305:R$316,$C$305:$C$316)<0,0, IF(FORECAST($C301,R$305:R$316,$C$305:$C$316)>100,100, FORECAST($C301,R$305:R$316,$C$305:$C$316)))) -> 51.17829707 | S301: =IF(MAX(C305:C316)-MIN(C305:C316)<5,AVERAGEIF(C305:C316,">0",S305:S316), IF(FORECAST($C301,S$305:S$316,$C$305:$C$316)<0,0, IF(FORECAST($C301,S$305:S$316,$C$305:$C$316)>100,100, FORECAST($C301,S$305:S$316,$C$305:$C$316)))) -> 54.26964082 | W301: =IF(MAX(C305:C316)-MIN(C305:C316)<5,AVERAGEIF(C305:C316,">0",W305:W316), IF(FORECAST($C301,W$305:W$316,$C$305:$C$316)<0,0, IF(FORECAST($C301,W$305:W$316,$C$305:$C$316)>100,100, FORECAST($C301,W$305:W$316,$C$305:$C$316)))) -> 29.95973309 | X301: =IF(MAX(C305:C316)-MIN(C305:C316)<5,AVERAGEIF(C305:C316,">0",X305:X316), IF(FORECAST($C301,X$305:X$316,$C$305:$C$316)<0,0, IF(FORECAST($C301,X$305:X$316,$C$305:$C$316)>100,100, FORECAST($C301,X$305:X$316,$C$305:$C$316)))) -> 62.12381098 | AB301: =IF(MAX(C305:C316)-MIN(C305:C316)<5,AVERAGEIF(C305:C316,">0",AB305:AB316), IF(FORECAST($C301,AB$305:AB$316,$C$305:$C$316)<0,0, IF(FORECAST($C301,AB$305:AB$316,$C$305:$C$316)>100,100, FORECAST($C301,AB$305:AB$316,$C$305:$C$316)))) -> 22.77196422
C302: =MaxRegYear(C300,C305:C316) -> 2018 | D302: =IF(MAX(C305:C316)-MIN(C305:C316)<5,AVERAGEIF(C305:C316,">0",D305:D316), IF(FORECAST($C302,D$305:D$316,$C$305:$C$316)<0,0, IF(FORECAST($C302,D$305:D$316,$C$305:$C$316)>100,100, FORECAST($C302,D$305:D$316,$C$305:$C$316)))) -> 22.7120434 | H302: =IF(MAX(C305:C316)-MIN(C305:C316)<5,AVERAGEIF(C305:C316,">0",H305:H316), IF(FORECAST($C302,H$305:H$316,$C$305:$C$316)<0,0, IF(FORECAST($C302,H$305:H$316,$C$305:$C$316)>100,100, FORECAST($C302,H$305:H$316,$C$305:$C$316)))) -> 56.70641535 | I302: =IF(MAX(C305:C316)-MIN(C305:C316)<5,AVERAGEIF(C305:C316,">0",I305:I316), IF(FORECAST($C302,I$305:I$316,$C$305:$C$316)<0,0, IF(FORECAST($C302,I$305:I$316,$C$305:$C$316)>100,100, FORECAST($C302,I$305:I$316,$C$305:$C$316)))) -> 26.52681263 | M302: =IF(MAX(C305:C316)-MIN(C305:C316)<5,AVERAGEIF(C305:C316,">0",M305:M316), IF(FORECAST($C302,M$305:M$316,$C$305:$C$316)<0,0, IF(FORECAST($C302,M$305:M$316,$C$305:$C$316)>100,100, FORECAST($C302,M$305:M$316,$C$305:$C$316)))) -> 53.26606201 | N302: =IF(MAX(C305:C316)-MIN(C305:C316)<5,AVERAGEIF(C305:C316,">0",N305:N316), IF(FORECAST($C302,N$305:N$316,$C$305:$C$316)<0,0, IF(FORECAST($C302,N$305:N$316,$C$305:$C$316)>100,100, FORECAST($C302,N$305:N$316,$C$305:$C$316)))) -> 30.81953856 | R302: =IF(MAX(C305:C316)-MIN(C305:C316)<5,AVERAGEIF(C305:C316,">0",R305:R316), IF(FORECAST($C302,R$305:R$316,$C$305:$C$316)<0,0, IF(FORECAST($C302,R$305:R$316,$C$305:$C$316)>100,100, FORECAST($C302,R$305:R$316,$C$305:$C$316)))) -> 46.58571948 | S302: =IF(MAX(C305:C316)-MIN(C305:C316)<5,AVERAGEIF(C305:C316,">0",S305:S316), IF(FORECAST($C302,S$305:S$316,$C$305:$C$316)<0,0, IF(FORECAST($C302,S$305:S$316,$C$305:$C$316)>100,100, FORECAST($C302,S$305:S$316,$C$305:$C$316)))) -> 38.59876277 | W302: =IF(MAX(C305:C316)-MIN(C305:C316)<5,AVERAGEIF(C305:C316,">0",W305:W316), IF(FORECAST($C302,W$305:W$316,$C$305:$C$316)<0,0, IF(FORECAST($C302,W$305:W$316,$C$305:$C$316)>100,100, FORECAST($C302,W$305:W$316,$C$305:$C$316)))) -> 36.68095037 | X302: =IF(MAX(C305:C316)-MIN(C305:C316)<5,AVERAGEIF(C305:C316,">0",X305:X316), IF(FORECAST($C302,X$305:X$316,$C$305:$C$316)<0,0, IF(FORECAST($C302,X$305:X$316,$C$305:$C$316)>100,100, FORECAST($C302,X$305:X$316,$C$305:$C$316)))) -> 59.53085124 | AB302: =IF(MAX(C305:C316)-MIN(C305:C316)<5,AVERAGEIF(C305:C316,">0",AB305:AB316), IF(FORECAST($C302,AB$305:AB$316,$C$305:$C$316)<0,0, IF(FORECAST($C302,AB$305:AB$316,$C$305:$C$316)>100,100, FORECAST($C302,AB$305:AB$316,$C$305:$C$316)))) -> 20.39517184
B304: Survey | C304: Year | D304: Improved | E304: % Improved < = 30min | H304: Surface water | I304: Improved | J304: % Improved < = 30min | M304: Surface water | N304: Improved | O304: % Improved < = 30min | R304: Surface water | S304: Improved | T304: % Improved < = 30min | W304: Surface water | X304: Improved | Y304: % Improved < = 30min | AB304: Surface water
B305: MICS00 | C305: 2000 | D305: =IF(ISERROR(INDIRECT(CONCATENATE($B305,"!M16"))),"",INDIRECT(CONCATENATE($B305,"!M16"))) -> 33.96971592 | E305: =IF(ISERROR(INDIRECT(CONCATENATE($B305,"!M23"))),"",INDIRECT(CONCATENATE($B305,"!M23"))) -> 65.35918695 | H305: =IF(ISERROR(INDIRECT(CONCATENATE($B305,"!M21"))),"",INDIRECT(CONCATENATE($B305,"!M21"))) -> 47.39801959 | I305: =IF(ISERROR(INDIRECT(CONCATENATE($B305,"!N16"))),"",INDIRECT(CONCATENATE($B305,"!N16"))) -> 34.62022675 | J305: =IF(ISERROR(INDIRECT(CONCATENATE($B305,"!N23"))),"",INDIRECT(CONCATENATE($B305,"!N23"))) -> 64.01714008 | M305: =IF(ISERROR(INDIRECT(CONCATENATE($B305,"!N21"))),"",INDIRECT(CONCATENATE($B305,"!N21"))) -> 50.90358853 | N305: =IF(ISERROR(INDIRECT(CONCATENATE($B305,"!O16"))),"",INDIRECT(CONCATENATE($B305,"!O16"))) -> 31.07474517 | O305: =IF(ISERROR(INDIRECT(CONCATENATE($B305,"!O23"))),"",INDIRECT(CONCATENATE($B305,"!O23"))) -> 70.45345155 | R305: =IF(ISERROR(INDIRECT(CONCATENATE($B305,"!O21"))),"",INDIRECT(CONCATENATE($B305,"!O21"))) -> 50.40782316 | S305: =IF(ISERROR(INDIRECT(CONCATENATE($B305,"!P16"))),"",INDIRECT(CONCATENATE($B305,"!P16"))) -> 47.32919226 | T305: =IF(ISERROR(INDIRECT(CONCATENATE($B305,"!P23"))),"",INDIRECT(CONCATENATE($B305,"!P23"))) -> 60.26936082 | W305: =IF(ISERROR(INDIRECT(CONCATENATE($B305,"!P21"))),"",INDIRECT(CONCATENATE($B305,"!P21"))) -> 33.64818265 | X305: =IF(ISERROR(INDIRECT(CONCATENATE($B305,"!Q16"))),"",INDIRECT(CONCATENATE($B305,"!Q16"))) -> 57.18820213 | Y305: =IF(ISERROR(INDIRECT(CONCATENATE($B305,"!Q23"))),"",INDIRECT(CONCATENATE($B305,"!Q23"))) -> 74.25030819 | AB305: =IF(ISERROR(INDIRECT(CONCATENATE($B305,"!Q221"))),"",INDIRECT(CONCATENATE($B305,"!Q21"))) -> 29.51314189
B306: MIS07 | C306: 2007 | D306: 18.66246606 | E306: N/A | H306: 57.37198374 | I306: 32.26283903 | J306: N/A | M306: 52.91559875 | N306: 35.71055776 | O306: N/A | R306: 44.36270534 | S306: 58.92768287 | T306: N/A | W306: 22.24268035 | X306: 67.00779306 | Y306: N/A | AB306: 10.98476925
B307: MIS11 | C307: 2011 | D307: 24.51303064 | E307: N/A | H307: 70.65167889 | I307: 24.16958775 | J307: N/A | M307: 63.84246252 | N307: 31.26890644 | O307: N/A | R307: 59.89049916 | S307: 47.54833819 | T307: N/A | W307: 40.8596521 | X307: 65.72693323 | Y307: N/A | AB307: 19.30090774
B308: DHS16 | C308: 2016 | D308: 27.45153211 | E308: 60.90870428 | H308: 44.81089823 | I308: 30.30256876 | J308: 71.93780754 | M308: 46.47670674 | N308: 29.7577697 | O308: 74.79642393 | R308: 41.37729183 | S308: 33.67280254 | T308: 77.16186571 | W308: 35.78404991 | X308: 53.67450266 | Y308: 85.09473411 | AB308: 26.79954129
B318: =CONCATENATE("Rural use of drinking water sources, ",C299,"–",C300) -> Rural use of drinking water sources, 2000–2020 | S318: Data points used for regression

Sheet Sanitation
B4: Summary of trends in use of sanitation facilities by wealth quintile (%)
B5: =IF(ISERROR(INDIRECT(CONCATENATE($B105,"!A2"))),"",INDIRECT(CONCATENATE($B105,"!A2"))) -> Angola
B7: =B118 -> National use of sanitation facilities, 2000–2020 | J7: =B218 -> Urban use of sanitation facilities, 2000–2020 | R7: =B318 -> Rural use of sanitation facilities, 2000–2020
B31: =IF(ISERROR(INDIRECT(CONCATENATE($B105,"!A2"))),"",INDIRECT(CONCATENATE($B105,"!A2"))) -> Angola | F31: Poorest | J31: Poor | N31: Middle | R31: Rich | V31: Richest
F32: Basic | G32: Limited | H32: Unimproved | I32: Open defecation | J32: Basic | K32: Limited | L32: Unimproved | M32: Open defecation | N32: Basic | O32: Limited | P32: Unimproved | Q32: Open defecation | R32: Basic | S32: Limited | T32: Unimproved | U32: Open defecation | V32: Basic | W32: Limited | X32: Unimproved | Y32: Open defecation
B33: NATIONAL | D33: Estimate | E33: =C99 -> 2000 | F33: =E99 -> 1.431618734 | G33: =F99 -> 0.5421617813 | H33: 30.99713541 | I33: 67.02908408 | J33: =J99 -> 7.181970521 | K33: =K99 -> 3.753343648 | L33: 38.05373854 | M33: 51.0109473 | N33: =O99 -> 22.29847445 | O33: =P99 -> 15.35656182 | P33: 30.77967652 | Q33: 31.56528721 | R33: =T99 -> 36.62087068 | S33: =U99 -> 18.84480768 | T33: 20.69305699 | U33: 23.84126466 | V33: =Y99 -> 70.67351409 | W33: =Z99 -> 9.820312338 | X33: 11.79172423 | Y33: 7.714449339
E34: =C100 -> 2020 | F34: =E100 -> 12.59295174 | G34: 4.76901914 | H34: 7.037827102 | I34: 75.60020202 | J34: =J100 -> 24.8608841 | K34: 12.99245676 | L34: 11.13077784 | M34: 51.0158813 | N34: =O100 -> 42.03658733 | O34: 28.94984828 | P34: 11.61023934 | Q34: 17.40332505 | R34: =T100 -> 66.02438078 | S34: 33.97561922 | T34: 0 | U34: 0 | V34: =Y100 -> 87.79991861 | W34: 12.20008139 | X34: 0 | Y34: 0
B36: URBAN | D36: Estimate | E36: =C199 -> 2000 | F36: =E199 -> 17.94307363 | G36: =F199 -> 16.65801621 | H36: 36.14087904 | I36: 29.25803112 | J36: =J199 -> 32.08279047 | K36: =K199 -> 23.61595488 | L36: 23.8176332 | M36: 20.48362145 | N36: =O199 -> 37.39933148 | O36: =P199 -> 22.72476801 | P36: 19.62757696 | Q36: 20.24832354 | R36: =T199 -> 52.83135166 | S36: =U199 -> 17.94920658 | T36: 13.44424966 | U36: 15.7751921 | V36: =Y199 -> 76.77608758 | W36: =Z199 -> 5.510568311 | X36: 12.86078281 | Y36: 4.8525613
E37: =C200 -> 2020 | F37: =E200 -> 37.46578234 | G37: 34.78253628 | H37: 11.80550114 | I37: 15.94618024 | J37: =J200 -> 56.12824583 | K37: 41.31567427 | L37: 2.556079894 | M37: 0 | N37: =O200 -> 62.20356196 | O37: 37.79643804 | P37: 0 | Q37: 0 | R37: =T200 -> 74.6410497 | S37: 25.3589503 | T37: 0 | U37: 0 | V37: =Y200 -> 93.30320542 | W37: 6.69679458 | X37: 0 | Y37: 0
B39: RURAL | D39: Estimate | E39: =C299 -> 2000 | F39: =E299 -> 0.6698855618 | G39: =F299 -> 0.1879972771 | H39: 26.29847118 | I39: 72.84364598 | J39: =J299 -> 1.01109099 | K39: =K299 -> 0.3006049152 | L39: 20.35452448 | M39: 78.33377962 | N39: =O299 -> 2.660770654 | O39: =P299 -> 0.5422988472 | P39: 23.79523655 | Q39: 73.00169395 | R39: =T299 -> 6.57456437 | S39: =U299 -> 1.763013853 | T39: 29.56362216 | U39: 62.09879962 | V39: =Y299 -> 20.6368236 | W39: =Z299 -> 5.335822687 | X39: 25.78079044 | Y39: 48.24656327
E40: =C300 -> 2020 | F40: =E300 -> 7.615105662 | G40: 2.137109994 | H40: 5.986857633 | I40: 84.26092671 | J40: =J300 -> 15.13239807 | K40: 4.498975151 | L40: 12.58264573 | M40: 67.78598106 | N40: =O300 -> 22.8125971 | O40: 4.649496974 | P40: 16.00672243 | Q40: 56.5311835 | R40: =T300 -> 27.83285898 | S40: 7.463569169 | T40: 17.11109838 | U40: 47.59247348 | V40: =Y300 -> 48.79076089 | W40: 12.61525775 | X40: 14.35790802 | Y40: 24.23607335
A97: NATIONAL | D97: Poorest | I97: Poor | N97: Middle | S97: Rich | X97: Richest
D98: Improved | E98: Basic | F98: Limited | G98: Unimproved | H98: Open defecation | I98: Improved | J98: Basic | K98: Limited | L98: Unimproved | M98: Open defecation | N98: Improved | O98: Basic | P98: Limited | Q98: Unimproved | R98: Open defecation | S98: Improved | T98: Basic | U98: Limited | V98: Unimproved | W98: Open defecation | X98: Improved | Y98: Basic | Z98: Limited | AA98: Unimproved | AB98: Open defecation
A99: Forecast period: | C99: 2000 | D99: =IF((D101+H101)>100,D101*100/(D101+H101),D101) -> 1.973780516 | E99: =D99*AVERAGEIF(E105:E116,">0")/100 -> 1.431618734 | F99: =D99*(100-AVERAGEIF(E105:E116,">0"))/100 -> 0.5421617813 | G99: =100-(E99+F99+H99) -> 30.99713541 | H99: =IF((D101+H101)>100,H101*100/(D101+H101),H101) -> 67.02908408 | I99: =IF((I101+M101)>100,I101*100/(I101+M101),I101) -> 10.93531417 | J99: =I99*AVERAGEIF(J105:J116,">0")/100 -> 7.181970521 | K99: =I99*(100-AVERAGEIF(J105:J116,">0"))/100 -> 3.753343648 | L99: =100-(J99+K99+M99) -> 38.05373854 | M99: =IF((I101+M101)>100,M101*100/(I101+M101),M101) -> 51.0109473 | N99: =IF((N101+R101)>100,N101*100/(N101+R101),N101) -> 37.65503627 | O99: =N99*AVERAGEIF(O105:O116,">0")/100 -> 22.29847445 | P99: =N99*(100-AVERAGEIF(O105:O116,">0"))/100 -> 15.35656182 | Q99: =100-(O99+P99+R99) -> 30.77967652 | R99: =IF((N101+R101)>100,R101*100/(N101+R101),R101) -> 31.56528721 | S99: =IF((S101+W101)>100,S101*100/(S101+W101),S101) -> 55.46567835 | T99: =S99*AVERAGEIF(T105:T116,">0")/100 -> 36.62087068 | U99: =S99*(100-AVERAGEIF(T105:T116,">0"))/100 -> 18.84480768 | V99: =100-(T99+U99+W99) -> 20.69305699 | W99: =IF((S101+W101)>100,W101*100/(S101+W101),W101) -> 23.84126466 | X99: =IF((X101+AB101)>100,X101*100/(X101+AB101),X101) -> 80.49382643 | Y99: =X99*AVERAGEIF(Y105:Y116,">0")/100 -> 70.67351409 | Z99: =X99*(100-AVERAGEIF(Y105:Y116,">0"))/100 -> 9.820312338 | AA99: =100-(Y99+Z99+AB99) -> 11.79172423 | AB99: =IF((X101+AB101)>100,AB101*100/(X101+AB101),AB101) -> 7.714449339
C100: 2020 | D100: =IF((D102+H102)>100,D102*100/(D102+H102),D102) -> 17.36197088 | E100: =D100*AVERAGEIF(E105:E116,">0")/100 -> 12.59295174 | F100: =D100*(100-AVERAGEIF(E105:E116,">0"))/100 -> 4.76901914 | G100: =100-(E100+F100+H100) -> 7.037827102 | H100: =IF((D102+H102)>100,H102*100/(D102+H102),H102) -> 75.60020202 | I100: =IF((I102+M102)>100,I102*100/(I102+M102),I102) -> 37.85334086 | J100: =I100*AVERAGEIF(J105:J116,">0")/100 -> 24.8608841 | K100: =I100*(100-AVERAGEIF(J105:J116,">0"))/100 -> 12.99245676 | L100: =100-(J100+K100+M100) -> 11.13077784 | M100: =IF((I102+M102)>100,M102*100/(I102+M102),M102) -> 51.0158813 | N100: =IF((N102+R102)>100,N102*100/(N102+R102),N102) -> 70.98643561 | O100: =N100*AVERAGEIF(O105:O116,">0")/100 -> 42.03658733 | P100: =N100*(100-AVERAGEIF(O105:O116,">0"))/100 -> 28.94984828 | Q100: =100-(O100+P100+R100) -> 11.61023934 | R100: =IF((N102+R102)>100,R102*100/(N102+R102),R102) -> 17.40332505 | S100: =IF((S102+W102)>100,S102*100/(S102+W102),S102) -> 100 | T100: =S100*AVERAGEIF(T105:T116,">0")/100 -> 66.02438078 | U100: =S100*(100-AVERAGEIF(T105:T116,">0"))/100 -> 33.97561922 | V100: =100-(T100+U100+W100) -> 0 | W100: =IF((S102+W102)>100,W102*100/(S102+W102),W102) -> 0 | X100: =IF((X102+AB102)>100,X102*100/(X102+AB102),X102) -> 100 | Y100: =X100*AVERAGEIF(Y105:Y116,">0")/100 -> 87.79991861 | Z100: =X100*(100-AVERAGEIF(Y105:Y116,">0"))/100 -> 12.20008139 | AA100: =100-(Y100+Z100+AB100) -> 0 | AB100: =IF((X102+AB102)>100,AB102*100/(X102+AB102),AB102) -> 0
A101: Regression period: | C101: =MinRegYear(C99,C105:C116) -> 2000 | D101: =IF(MAX(C105:C116)-MIN(C105:C116)<5,AVERAGEIF(C105:C116,">0",D105:D116), IF(FORECAST($C101,D$105:D$116,$C$105:$C$116)<0,0, IF(FORECAST($C101,D$105:D$116,$C$105:$C$116)>100,100, FORECAST($C101,D$105:D$116,$C$105:$C$116)))) -> 1.973780516 | H101: =IF(MAX(C105:C116)-MIN(C105:C116)<5,AVERAGEIF(C105:C116,">0",H105:H116), IF(FORECAST($C101,H$105:H$116,$C$105:$C$116)<0,0, IF(FORECAST($C101,H$105:H$116,$C$105:$C$116)>100,100, FORECAST($C101,H$105:H$116,$C$105:$C$116)))) -> 67.02908408 | I101: =IF(MAX(C105:C116)-MIN(C105:C116)<5,AVERAGEIF(C105:C116,">0",I105:I116), IF(FORECAST($C101,I$105:I$116,$C$105:$C$116)<0,0, IF(FORECAST($C101,I$105:I$116,$C$105:$C$116)>100,100, FORECAST($C101,I$105:I$116,$C$105:$C$116)))) -> 10.93531417 | M101: =IF(MAX(C105:C116)-MIN(C105:C116)<5,AVERAGEIF(C105:C116,">0",M105:M116), IF(FORECAST($C101,M$105:M$116,$C$105:$C$116)<0,0, IF(FORECAST($C101,M$105:M$116,$C$105:$C$116)>100,100, FORECAST($C101,M$105:M$116,$C$105:$C$116)))) -> 51.0109473 | N101: =IF(MAX(C105:C116)-MIN(C105:C116)<5,AVERAGEIF(C105:C116,">0",N105:N116), IF(FORECAST($C101,N$105:N$116,$C$105:$C$116)<0,0, IF(FORECAST($C101,N$105:N$116,$C$105:$C$116)>100,100, FORECAST($C101,N$105:N$116,$C$105:$C$116)))) -> 37.65503627 | R101: =IF(MAX(C105:C116)-MIN(C105:C116)<5,AVERAGEIF(C105:C116,">0",R105:R116), IF(FORECAST($C101,R$105:R$116,$C$105:$C$116)<0,0, IF(FORECAST($C101,R$105:R$116,$C$105:$C$116)>100,100, FORECAST($C101,R$105:R$116,$C$105:$C$116)))) -> 31.56528721 | S101: =IF(MAX(C105:C116)-MIN(C105:C116)<5,AVERAGEIF(C105:C116,">0",S105:S116), IF(FORECAST($C101,S$105:S$116,$C$105:$C$116)<0,0, IF(FORECAST($C101,S$105:S$116,$C$105:$C$116)>100,100, FORECAST($C101,S$105:S$116,$C$105:$C$116)))) -> 55.46567835 | W101: =IF(MAX(C105:C116)-MIN(C105:C116)<5,AVERAGEIF(C105:C116,">0",W105:W116), IF(FORECAST($C101,W$105:W$116,$C$105:$C$116)<0,0, IF(FORECAST($C101,W$105:W$116,$C$105:$C$116)>100,100, FORECAST($C101,W$105:W$116,$C$105:$C$116)))) -> 23.84126466 | X101: =IF(MAX(C105:C116)-MIN(C105:C116)<5,AVERAGEIF(C105:C116,">0",X105:X116), IF(FORECAST($C101,X$105:X$116,$C$105:$C$116)<0,0, IF(FORECAST($C101,X$105:X$116,$C$105:$C$116)>100,100, FORECAST($C101,X$105:X$116,$C$105:$C$116)))) -> 80.49382643 | AB101: =IF(MAX(C105:C116)-MIN(C105:C116)<5,AVERAGEIF(C105:C116,">0",AB105:AB116), IF(FORECAST($C101,AB$105:AB$116,$C$105:$C$116)<0,0, IF(FORECAST($C101,AB$105:AB$116,$C$105:$C$116)>100,100, FORECAST($C101,AB$105:AB$116,$C$105:$C$116)))) -> 7.714449339
C102: =MaxRegYear(C100,C105:C116) -> 2018 | D102: =IF(MAX(C105:C116)-MIN(C105:C116)<5,AVERAGEIF(C105:C116,">0",D105:D116), IF(FORECAST($C102,D$105:D$116,$C$105:$C$116)<0,0, IF(FORECAST($C102,D$105:D$116,$C$105:$C$116)>100,100, FORECAST($C102,D$105:D$116,$C$105:$C$116)))) -> 17.36197088 | H102: =IF(MAX(C105:C116)-MIN(C105:C116)<5,AVERAGEIF(C105:C116,">0",H105:H116), IF(FORECAST($C102,H$105:H$116,$C$105:$C$116)<0,0, IF(FORECAST($C102,H$105:H$116,$C$105:$C$116)>100,100, FORECAST($C102,H$105:H$116,$C$105:$C$116)))) -> 75.60020202 | I102: =IF(MAX(C105:C116)-MIN(C105:C116)<5,AVERAGEIF(C105:C116,">0",I105:I116), IF(FORECAST($C102,I$105:I$116,$C$105:$C$116)<0,0, IF(FORECAST($C102,I$105:I$116,$C$105:$C$116)>100,100, FORECAST($C102,I$105:I$116,$C$105:$C$116)))) -> 37.85334086 | M102: =IF(MAX(C105:C116)-MIN(C105:C116)<5,AVERAGEIF(C105:C116,">0",M105:M116), IF(FORECAST($C102,M$105:M$116,$C$105:$C$116)<0,0, IF(FORECAST($C102,M$105:M$116,$C$105:$C$116)>100,100, FORECAST($C102,M$105:M$116,$C$105:$C$116)))) -> 51.0158813 | N102: =IF(MAX(C105:C116)-MIN(C105:C116)<5,AVERAGEIF(C105:C116,">0",N105:N116), IF(FORECAST($C102,N$105:N$116,$C$105:$C$116)<0,0, IF(FORECAST($C102,N$105:N$116,$C$105:$C$116)>100,100, FORECAST($C102,N$105:N$116,$C$105:$C$116)))) -> 70.98643561 | R102: =IF(MAX(C105:C116)-MIN(C105:C116)<5,AVERAGEIF(C105:C116,">0",R105:R116), IF(FORECAST($C102,R$105:R$116,$C$105:$C$116)<0,0, IF(FORECAST($C102,R$105:R$116,$C$105:$C$116)>100,100, FORECAST($C102,R$105:R$116,$C$105:$C$116)))) -> 17.40332505 | S102: =IF(MAX(C105:C116)-MIN(C105:C116)<5,AVERAGEIF(C105:C116,">0",S105:S116), IF(FORECAST($C102,S$105:S$116,$C$105:$C$116)<0,0, IF(FORECAST($C102,S$105:S$116,$C$105:$C$116)>100,100, FORECAST($C102,S$105:S$116,$C$105:$C$116)))) -> 100 | W102: =IF(MAX(C105:C116)-MIN(C105:C116)<5,AVERAGEIF(C105:C116,">0",W105:W116), IF(FORECAST($C102,W$105:W$116,$C$105:$C$116)<0,0, IF(FORECAST($C102,W$105:W$116,$C$105:$C$116)>100,100, FORECAST($C102,W$105:W$116,$C$105:$C$116)))) -> 0 | X102: =IF(MAX(C105:C116)-MIN(C105:C116)<5,AVERAGEIF(C105:C116,">0",X105:X116), IF(FORECAST($C102,X$105:X$116,$C$105:$C$116)<0,0, IF(FORECAST($C102,X$105:X$116,$C$105:$C$116)>100,100, FORECAST($C102,X$105:X$116,$C$105:$C$116)))) -> 100 | AB102: =IF(MAX(C105:C116)-MIN(C105:C116)<5,AVERAGEIF(C105:C116,">0",AB105:AB116), IF(FORECAST($C102,AB$105:AB$116,$C$105:$C$116)<0,0, IF(FORECAST($C102,AB$105:AB$116,$C$105:$C$116)>100,100, FORECAST($C102,AB$105:AB$116,$C$105:$C$116)))) -> 0
B104: Survey | C104: Year | D104: Improved | E104: Not shared | H104: Open defecation | I104: Improved | J104: Not shared | M104: Open defecation | N104: Improved | O104: Not shared | R104: Open defecation | S104: Improved | T104: Not shared | W104: Open defecation | X104: Improved | Y104: Not shared | AB104: Open defecation
B105: MICS00 | C105: 2000 | D105: =IF(ISERROR(INDIRECT(CONCATENATE($B105,"!C122"))),"",INDIRECT(CONCATENATE($B105,"!C122"))) -> 5.363407016 | E105: =IF(ISERROR(INDIRECT(CONCATENATE($B105,"!C129"))),"",INDIRECT(CONCATENATE($B105,"!C129"))) -> N/A | H105: =IF(ISERROR(INDIRECT(CONCATENATE($B105,"!C127"))),"",INDIRECT(CONCATENATE($B105,"!C127"))) -> 67.98548906 | I105: =IF(ISERROR(INDIRECT(CONCATENATE($B105,"!D122"))),"",INDIRECT(CONCATENATE($B105,"!D122"))) -> 13.18115021 | J105: =IF(ISERROR(INDIRECT(CONCATENATE($B105,"!D129"))),"",INDIRECT(CONCATENATE($B105,"!D129"))) -> N/A | M105: =IF(ISERROR(INDIRECT(CONCATENATE($B105,"!D127"))),"",INDIRECT(CONCATENATE($B105,"!D127"))) -> 52.93707171 | N105: =IF(ISERROR(INDIRECT(CONCATENATE($B105,"!E122"))),"",INDIRECT(CONCATENATE($B105,"!E122"))) -> 38.66048583 | O105: =IF(ISERROR(INDIRECT(CONCATENATE($B105,"!E129"))),"",INDIRECT(CONCATENATE($B105,"!E129"))) -> N/A | R105: =IF(ISERROR(INDIRECT(CONCATENATE($B105,"!E127"))),"",INDIRECT(CONCATENATE($B105,"!E127"))) -> 33.68642819 | S105: =IF(ISERROR(INDIRECT(CONCATENATE($B105,"!F122"))),"",INDIRECT(CONCATENATE($B105,"!F122"))) -> 49.22280954 | T105: =IF(ISERROR(INDIRECT(CONCATENATE($B105,"!F129"))),"",INDIRECT(CONCATENATE($B105,"!F129"))) -> N/A | W105: =IF(ISERROR(INDIRECT(CONCATENATE($B105,"!F127"))),"",INDIRECT(CONCATENATE($B105,"!F127"))) -> 30.19451622 | X105: =IF(ISERROR(INDIRECT(CONCATENATE($B105,"!G122"))),"",INDIRECT(CONCATENATE($B105,"!G122"))) -> 76.23615489 | Y105: =IF(ISERROR(INDIRECT(CONCATENATE($B105,"!G129"))),"",INDIRECT(CONCATENATE($B105,"!G129"))) -> N/A | AB105: =IF(ISERROR(INDIRECT(CONCATENATE($B105,"!G2127"))),"",INDIRECT(CONCATENATE($B105,"!G127"))) -> 9.831257506
B106: MIS07 | C106: 2007 | D106: 4.719303643 | E106: N/A | H106: 63.96447459 | I106: 24.01387591 | J106: N/A | M106: 42.15740163 | N106: 60.69278684 | O106: N/A | R106: 14.69923863 | S106: 86.45841865 | T106: N/A | W106: 1.31021368 | X106: 97.16077027 | Y106: N/A | AB106: 0.1616561585
B107: MIS11 | C107: 2011 | D107: 6.360661448 | E107: N/A | H107: 80.72257318 | I107: 15.49975158 | J107: N/A | M107: 60.79020037 | N107: 36.67081466 | O107: N/A | R107: 36.56861759 | S107: 83.07681467 | T107: N/A | W107: 4.045080781 | X107: 97.52905313 | Y107: N/A | AB107: 0.2991424031
B108: DHS16 | C108: 2016 | D108: 20.51833175 | E108: 72.53181005 | H108: 71.63368893 | I108: 41.8916405 | J108: 65.67685583 | M108: 48.16843525 | N108: 77.5553676 | O108: 59.21777445 | R108: 14.55649147 | S108: 94.47374743 | T108: 66.02438078 | W108: 2.156908901 | X108: 99.18407348 | Y108: 87.79991861 | AB108: 0.05545951336
B118: =CONCATENATE("National use of sanitation facilities, ",C99,"–",C100) -> National use of sanitation facilities, 2000–2020 | S118: Data points used for regression
A197: URBAN | D197: Poorest | I197: Poor | N197: Middle | S197: Rich | X197: Richest
D198: Improved | E198: Basic | F198: Limited | G198: Unimproved | H198: Open defecation | I198: Improved | J198: Basic | K198: Limited | L198: Unimproved | M198: Open defecation | N198: Improved | O198: Basic | P198: Limited | Q198: Unimproved | R198: Open defecation | S198: Improved | T198: Basic | U198: Limited | V198: Unimproved | W198: Open defecation | X198: Improved | Y198: Basic | Z198: Limited | AA198: Unimproved | AB198: Open defecation
A199: Forecast period: | C199: 2000 | D199: =IF((D201+H201)>100,D201*100/(D201+H201),D201) -> 34.60108984 | E199: =D199*AVERAGEIF(E205:E216,">0")/100 -> 17.94307363 | F199: =D199*(100-AVERAGEIF(E205:E216,">0"))/100 -> 16.65801621 | G199: =100-(E199+F199+H199) -> 36.14087904 | H199: =IF((D201+H201)>100,H201*100/(D201+H201),H201) -> 29.25803112 | I199: =IF((I201+M201)>100,I201*100/(I201+M201),I201) -> 55.69874535 | J199: =I199*AVERAGEIF(J205:J216,">0")/100 -> 32.08279047 | K199: =I199*(100-AVERAGEIF(J205:J216,">0"))/100 -> 23.61595488 | L199: =100-(J199+K199+M199) -> 23.8176332 | M199: =IF((I201+M201)>100,M201*100/(I201+M201),M201) -> 20.48362145 | N199: =IF((N201+R201)>100,N201*100/(N201+R201),N201) -> 60.1240995 | O199: =N199*AVERAGEIF(O205:O216,">0")/100 -> 37.39933148 | P199: =N199*(100-AVERAGEIF(O205:O216,">0"))/100 -> 22.72476801 | Q199: =100-(O199+P199+R199) -> 19.62757696 | R199: =IF((N201+R201)>100,R201*100/(N201+R201),R201) -> 20.24832354 | S199: =IF((S201+W201)>100,S201*100/(S201+W201),S201) -> 70.78055824 | T199: =S199*AVERAGEIF(T205:T216,">0")/100 -> 52.83135166 | U199: =S199*(100-AVERAGEIF(T205:T216,">0"))/100 -> 17.94920658 | V199: =100-(T199+U199+W199) -> 13.44424966 | W199: =IF((S201+W201)>100,W201*100/(S201+W201),W201) -> 15.7751921 | X199: =IF((X201+AB201)>100,X201*100/(X201+AB201),X201) -> 82.28665589 | Y199: =X199*AVERAGEIF(Y205:Y216,">0")/100 -> 76.77608758 | Z199: =X199*(100-AVERAGEIF(Y205:Y216,">0"))/100 -> 5.510568311 | AA199: =100-(Y199+Z199+AB199) -> 12.86078281 | AB199: =IF((X201+AB201)>100,AB201*100/(X201+AB201),AB201) -> 4.8525613
C200: 2020 | D200: =IF((D202+H202)>100,D202*100/(D202+H202),D202) -> 72.24831862 | E200: =D200*AVERAGEIF(E205:E216,">0")/100 -> 37.46578234 | F200: =D200*(100-AVERAGEIF(E205:E216,">0"))/100 -> 34.78253628 | G200: =100-(E200+F200+H200) -> 11.80550114 | H200: =IF((D202+H202)>100,H202*100/(D202+H202),H202) -> 15.94618024 | I200: =IF((I202+M202)>100,I202*100/(I202+M202),I202) -> 97.44392011 | J200: =I200*AVERAGEIF(J205:J216,">0")/100 -> 56.12824583 | K200: =I200*(100-AVERAGEIF(J205:J216,">0"))/100 -> 41.31567427 | L200: =100-(J200+K200+M200) -> 2.556079894 | M200: =IF((I202+M202)>100,M202*100/(I202+M202),M202) -> 0 | N200: =IF((N202+R202)>100,N202*100/(N202+R202),N202) -> 100 | O200: =N200*AVERAGEIF(O205:O216,">0")/100 -> 62.20356196 | P200: =N200*(100-AVERAGEIF(O205:O216,">0"))/100 -> 37.79643804 | Q200: =100-(O200+P200+R200) -> 0 | R200: =IF((N202+R202)>100,R202*100/(N202+R202),R202) -> 0 | S200: =IF((S202+W202)>100,S202*100/(S202+W202),S202) -> 100 | T200: =S200*AVERAGEIF(T205:T216,">0")/100 -> 74.6410497 | U200: =S200*(100-AVERAGEIF(T205:T216,">0"))/100 -> 25.3589503 | V200: =100-(T200+U200+W200) -> 0 | W200: =IF((S202+W202)>100,W202*100/(S202+W202),W202) -> 0 | X200: =IF((X202+AB202)>100,X202*100/(X202+AB202),X202) -> 100 | Y200: =X200*AVERAGEIF(Y205:Y216,">0")/100 -> 93.30320542 | Z200: =X200*(100-AVERAGEIF(Y205:Y216,">0"))/100 -> 6.69679458 | AA200: =100-(Y200+Z200+AB200) -> 0 | AB200: =IF((X202+AB202)>100,AB202*100/(X202+AB202),AB202) -> 0
A201: Regression period: | C201: =MinRegYear(C199,C205:C216) -> 2000 | D201: =IF(MAX(C205:C216)-MIN(C205:C216)<5,AVERAGEIF(C205:C216,">0",D205:D216), IF(FORECAST($C201,D$205:D$216,$C$205:$C$216)<0,0, IF(FORECAST($C201,D$205:D$216,$C$205:$C$216)>100,100, FORECAST($C201,D$205:D$216,$C$205:$C$216)))) -> 34.60108984 | H201: =IF(MAX(C205:C216)-MIN(C205:C216)<5,AVERAGEIF(C205:C216,">0",H205:H216), IF(FORECAST($C201,H$205:H$216,$C$205:$C$216)<0,0, IF(FORECAST($C201,H$205:H$216,$C$205:$C$216)>100,100, FORECAST($C201,H$205:H$216,$C$205:$C$216)))) -> 29.25803112 | I201: =IF(MAX(C205:C216)-MIN(C205:C216)<5,AVERAGEIF(C205:C216,">0",I205:I216), IF(FORECAST($C201,I$205:I$216,$C$205:$C$216)<0,0, IF(FORECAST($C201,I$205:I$216,$C$205:$C$216)>100,100, FORECAST($C201,I$205:I$216,$C$205:$C$216)))) -> 55.69874535 | M201: =IF(MAX(C205:C216)-MIN(C205:C216)<5,AVERAGEIF(C205:C216,">0",M205:M216), IF(FORECAST($C201,M$205:M$216,$C$205:$C$216)<0,0, IF(FORECAST($C201,M$205:M$216,$C$205:$C$216)>100,100, FORECAST($C201,M$205:M$216,$C$205:$C$216)))) -> 20.48362145 | N201: =IF(MAX(C205:C216)-MIN(C205:C216)<5,AVERAGEIF(C205:C216,">0",N205:N216), IF(FORECAST($C201,N$205:N$216,$C$205:$C$216)<0,0, IF(FORECAST($C201,N$205:N$216,$C$205:$C$216)>100,100, FORECAST($C201,N$205:N$216,$C$205:$C$216)))) -> 60.1240995 | R201: =IF(MAX(C205:C216)-MIN(C205:C216)<5,AVERAGEIF(C205:C216,">0",R205:R216), IF(FORECAST($C201,R$205:R$216,$C$205:$C$216)<0,0, IF(FORECAST($C201,R$205:R$216,$C$205:$C$216)>100,100, FORECAST($C201,R$205:R$216,$C$205:$C$216)))) -> 20.24832354 | S201: =IF(MAX(C205:C216)-MIN(C205:C216)<5,AVERAGEIF(C205:C216,">0",S205:S216), IF(FORECAST($C201,S$205:S$216,$C$205:$C$216)<0,0, IF(FORECAST($C201,S$205:S$216,$C$205:$C$216)>100,100, FORECAST($C201,S$205:S$216,$C$205:$C$216)))) -> 70.78055824 | W201: =IF(MAX(C205:C216)-MIN(C205:C216)<5,AVERAGEIF(C205:C216,">0",W205:W216), IF(FORECAST($C201,W$205:W$216,$C$205:$C$216)<0,0, IF(FORECAST($C201,W$205:W$216,$C$205:$C$216)>100,100, FORECAST($C201,W$205:W$216,$C$205:$C$216)))) -> 15.7751921 | X201: =IF(MAX(C205:C216)-MIN(C205:C216)<5,AVERAGEIF(C205:C216,">0",X205:X216), IF(FORECAST($C201,X$205:X$216,$C$205:$C$216)<0,0, IF(FORECAST($C201,X$205:X$216,$C$205:$C$216)>100,100, FORECAST($C201,X$205:X$216,$C$205:$C$216)))) -> 82.28665589 | AB201: =IF(MAX(C205:C216)-MIN(C205:C216)<5,AVERAGEIF(C205:C216,">0",AB205:AB216), IF(FORECAST($C201,AB$205:AB$216,$C$205:$C$216)<0,0, IF(FORECAST($C201,AB$205:AB$216,$C$205:$C$216)>100,100, FORECAST($C201,AB$205:AB$216,$C$205:$C$216)))) -> 4.8525613
C202: =MaxRegYear(C200,C205:C216) -> 2018 | D202: =IF(MAX(C205:C216)-MIN(C205:C216)<5,AVERAGEIF(C205:C216,">0",D205:D216), IF(FORECAST($C202,D$205:D$216,$C$205:$C$216)<0,0, IF(FORECAST($C202,D$205:D$216,$C$205:$C$216)>100,100, FORECAST($C202,D$205:D$216,$C$205:$C$216)))) -> 72.24831862 | H202: =IF(MAX(C205:C216)-MIN(C205:C216)<5,AVERAGEIF(C205:C216,">0",H205:H216), IF(FORECAST($C202,H$205:H$216,$C$205:$C$216)<0,0, IF(FORECAST($C202,H$205:H$216,$C$205:$C$216)>100,100, FORECAST($C202,H$205:H$216,$C$205:$C$216)))) -> 15.94618024 | I202: =IF(MAX(C205:C216)-MIN(C205:C216)<5,AVERAGEIF(C205:C216,">0",I205:I216), IF(FORECAST($C202,I$205:I$216,$C$205:$C$216)<0,0, IF(FORECAST($C202,I$205:I$216,$C$205:$C$216)>100,100, FORECAST($C202,I$205:I$216,$C$205:$C$216)))) -> 97.44392011 | M202: =IF(MAX(C205:C216)-MIN(C205:C216)<5,AVERAGEIF(C205:C216,">0",M205:M216), IF(FORECAST($C202,M$205:M$216,$C$205:$C$216)<0,0, IF(FORECAST($C202,M$205:M$216,$C$205:$C$216)>100,100, FORECAST($C202,M$205:M$216,$C$205:$C$216)))) -> 0 | N202: =IF(MAX(C205:C216)-MIN(C205:C216)<5,AVERAGEIF(C205:C216,">0",N205:N216), IF(FORECAST($C202,N$205:N$216,$C$205:$C$216)<0,0, IF(FORECAST($C202,N$205:N$216,$C$205:$C$216)>100,100, FORECAST($C202,N$205:N$216,$C$205:$C$216)))) -> 100 | R202: =IF(MAX(C205:C216)-MIN(C205:C216)<5,AVERAGEIF(C205:C216,">0",R205:R216), IF(FORECAST($C202,R$205:R$216,$C$205:$C$216)<0,0, IF(FORECAST($C202,R$205:R$216,$C$205:$C$216)>100,100, FORECAST($C202,R$205:R$216,$C$205:$C$216)))) -> 0 | S202: =IF(MAX(C205:C216)-MIN(C205:C216)<5,AVERAGEIF(C205:C216,">0",S205:S216), IF(FORECAST($C202,S$205:S$216,$C$205:$C$216)<0,0, IF(FORECAST($C202,S$205:S$216,$C$205:$C$216)>100,100, FORECAST($C202,S$205:S$216,$C$205:$C$216)))) -> 100 | W202: =IF(MAX(C205:C216)-MIN(C205:C216)<5,AVERAGEIF(C205:C216,">0",W205:W216), IF(FORECAST($C202,W$205:W$216,$C$205:$C$216)<0,0, IF(FORECAST($C202,W$205:W$216,$C$205:$C$216)>100,100, FORECAST($C202,W$205:W$216,$C$205:$C$216)))) -> 0 | X202: =IF(MAX(C205:C216)-MIN(C205:C216)<5,AVERAGEIF(C205:C216,">0",X205:X216), IF(FORECAST($C202,X$205:X$216,$C$205:$C$216)<0,0, IF(FORECAST($C202,X$205:X$216,$C$205:$C$216)>100,100, FORECAST($C202,X$205:X$216,$C$205:$C$216)))) -> 100 | AB202: =IF(MAX(C205:C216)-MIN(C205:C216)<5,AVERAGEIF(C205:C216,">0",AB205:AB216), IF(FORECAST($C202,AB$205:AB$216,$C$205:$C$216)<0,0, IF(FORECAST($C202,AB$205:AB$216,$C$205:$C$216)>100,100, FORECAST($C202,AB$205:AB$216,$C$205:$C$216)))) -> 0
B204: Survey | C204: Year | D204: Improved | E204: Not shared | H204: Open defecation | I204: Improved | J204: Not shared | M204: Open defecation | N204: Improved | O204: Not shared | R204: Open defecation | S204: Improved | T204: Not shared | W204: Open defecation | X204: Improved | Y204: Not shared | AB204: Open defecation
B205: MICS00 | C205: 2000 | D205: =IF(ISERROR(INDIRECT(CONCATENATE($B205,"!H122"))),"",INDIRECT(CONCATENATE($B205,"!H122"))) -> 29.52057082 | E205: =IF(ISERROR(INDIRECT(CONCATENATE($B205,"!H129"))),"",INDIRECT(CONCATENATE($B205,"!H129"))) -> N/A | H205: =IF(ISERROR(INDIRECT(CONCATENATE($B205,"!H127"))),"",INDIRECT(CONCATENATE($B205,"!H127"))) -> 37.83970073 | I205: =IF(ISERROR(INDIRECT(CONCATENATE($B205,"!I122"))),"",INDIRECT(CONCATENATE($B205,"!I122"))) -> 47.82121527 | J205: =IF(ISERROR(INDIRECT(CONCATENATE($B205,"!I129"))),"",INDIRECT(CONCATENATE($B205,"!I129"))) -> N/A | M205: =IF(ISERROR(INDIRECT(CONCATENATE($B205,"!I127"))),"",INDIRECT(CONCATENATE($B205,"!I127"))) -> 28.21370738 | N205: =IF(ISERROR(INDIRECT(CONCATENATE($B205,"!J122"))),"",INDIRECT(CONCATENATE($B205,"!J122"))) -> 52.51216642 | O205: =IF(ISERROR(INDIRECT(CONCATENATE($B205,"!J129"))),"",INDIRECT(CONCATENATE($B205,"!J129"))) -> N/A | R205: =IF(ISERROR(INDIRECT(CONCATENATE($B205,"!J127"))),"",INDIRECT(CONCATENATE($B205,"!J127"))) -> 26.11582151 | S205: =IF(ISERROR(INDIRECT(CONCATENATE($B205,"!K122"))),"",INDIRECT(CONCATENATE($B205,"!K122"))) -> 63.29556012 | T205: =IF(ISERROR(INDIRECT(CONCATENATE($B205,"!K129"))),"",INDIRECT(CONCATENATE($B205,"!K129"))) -> N/A | W205: =IF(ISERROR(INDIRECT(CONCATENATE($B205,"!K127"))),"",INDIRECT(CONCATENATE($B205,"!K127"))) -> 20.40004969 | X205: =IF(ISERROR(INDIRECT(CONCATENATE($B205,"!L122"))),"",INDIRECT(CONCATENATE($B205,"!L122"))) -> 78.60537092 | Y205: =IF(ISERROR(INDIRECT(CONCATENATE($B205,"!L129"))),"",INDIRECT(CONCATENATE($B205,"!L129"))) -> N/A | AB205: =IF(ISERROR(INDIRECT(CONCATENATE($B205,"!L2127"))),"",INDIRECT(CONCATENATE($B205,"!L127"))) -> 6.246399024
B206: MIS07 | C206: 2007 | D206: 54.79705078 | E206: N/A | H206: 11.91705973 | I206: 82.1838268 | J206: N/A | M206: 1.495782318 | N206: 89.27174367 | O206: N/A | R206: 1.131115962 | S206: 97.0138151 | T206: N/A | W206: 0 | X206: 96.79238623 | Y206: N/A | AB206: 0
B207: MIS11 | C207: 2011 | D207: 63.865721 | E207: N/A | H207: 15.55712128 | I207: 87.96625743 | J207: N/A | M207: 0.9027615525 | N207: 95.38125574 | O207: N/A | R207: 0.5985004517 | S207: 97.71898494 | T207: N/A | W207: 0 | X207: 99.1670045 | Y207: N/A | AB207: 0
B208: DHS16 | C208: 2016 | D208: 61.33244892 | E208: 51.8569609 | H208: 26.57363553 | I208: 83.67567865 | J208: 57.60056222 | M208: 9.509876801 | N208: 94.61940236 | O208: 62.20356196 | R208: 2.313817677 | S208: 97.42497585 | T208: 74.6410497 | W208: 0.3865753928 | X208: 99.54621552 | Y208: 93.30320542 | AB208: 0.01493552436
B218: =CONCATENATE("Urban use of sanitation facilities, ",C199,"–",C200) -> Urban use of sanitation facilities, 2000–2020 | S218: Data points used for regression
A297: RURAL | D297: Poorest | I297: Poor | N297: Middle | S297: Rich | X297: Richest
D298: Improved | E298: Basic | F298: Limited | G298: Unimproved | H298: Open defecation | I298: Improved | J298: Basic | K298: Limited | L298: Unimproved | M298: Open defecation | N298: Improved | O298: Basic | P298: Limited | Q298: Unimproved | R298: Open defecation | S298: Improved | T298: Basic | U298: Limited | V298: Unimproved | W298: Open defecation | X298: Improved | Y298: Basic | Z298: Limited | AA298: Unimproved | AB298: Open defecation
A299: Forecast period: | C299: 2000 | D299: =IF((D301+H301)>100,D301*100/(D301+H301),D301) -> 0.8578828389 | E299: =D299*AVERAGEIF(E305:E316,">0")/100 -> 0.6698855618 | F299: =D299*(100-AVERAGEIF(E305:E316,">0"))/100 -> 0.1879972771 | G299: =100-(E299+F299+H299) -> 26.29847118 | H299: =IF((D301+H301)>100,H301*100/(D301+H301),H301) -> 72.84364598 | I299: =IF((I301+M301)>100,I301*100/(I301+M301),I301) -> 1.311695905 | J299: =I299*AVERAGEIF(J305:J316,">0")/100 -> 1.01109099 | K299: =I299*(100-AVERAGEIF(J305:J316,">0"))/100 -> 0.3006049152 | L299: =100-(J299+K299+M299) -> 20.35452448 | M299: =IF((I301+M301)>100,M301*100/(I301+M301),M301) -> 78.33377962 | N299: =IF((N301+R301)>100,N301*100/(N301+R301),N301) -> 3.203069502 | O299: =N299*AVERAGEIF(O305:O316,">0")/100 -> 2.660770654 | P299: =N299*(100-AVERAGEIF(O305:O316,">0"))/100 -> 0.5422988472 | Q299: =100-(O299+P299+R299) -> 23.79523655 | R299: =IF((N301+R301)>100,R301*100/(N301+R301),R301) -> 73.00169395 | S299: =IF((S301+W301)>100,S301*100/(S301+W301),S301) -> 8.337578222 | T299: =S299*AVERAGEIF(T305:T316,">0")/100 -> 6.57456437 | U299: =S299*(100-AVERAGEIF(T305:T316,">0"))/100 -> 1.763013853 | V299: =100-(T299+U299+W299) -> 29.56362216 | W299: =IF((S301+W301)>100,W301*100/(S301+W301),W301) -> 62.09879962 | X299: =IF((X301+AB301)>100,X301*100/(X301+AB301),X301) -> 25.97264629 | Y299: =X299*AVERAGEIF(Y305:Y316,">0")/100 -> 20.6368236 | Z299: =X299*(100-AVERAGEIF(Y305:Y316,">0"))/100 -> 5.335822687 | AA299: =100-(Y299+Z299+AB299) -> 25.78079044 | AB299: =IF((X301+AB301)>100,AB301*100/(X301+AB301),AB301) -> 48.24656327
C300: 2020 | D300: =IF((D302+H302)>100,D302*100/(D302+H302),D302) -> 9.752215656 | E300: =D300*AVERAGEIF(E305:E316,">0")/100 -> 7.615105662 | F300: =D300*(100-AVERAGEIF(E305:E316,">0"))/100 -> 2.137109994 | G300: =100-(E300+F300+H300) -> 5.986857633 | H300: =IF((D302+H302)>100,H302*100/(D302+H302),H302) -> 84.26092671 | I300: =IF((I302+M302)>100,I302*100/(I302+M302),I302) -> 19.63137322 | J300: =I300*AVERAGEIF(J305:J316,">0")/100 -> 15.13239807 | K300: =I300*(100-AVERAGEIF(J305:J316,">0"))/100 -> 4.498975151 | L300: =100-(J300+K300+M300) -> 12.58264573 | M300: =IF((I302+M302)>100,M302*100/(I302+M302),M302) -> 67.78598106 | N300: =IF((N302+R302)>100,N302*100/(N302+R302),N302) -> 27.46209407 | O300: =N300*AVERAGEIF(O305:O316,">0")/100 -> 22.8125971 | P300: =N300*(100-AVERAGEIF(O305:O316,">0"))/100 -> 4.649496974 | Q300: =100-(O300+P300+R300) -> 16.00672243 | R300: =IF((N302+R302)>100,R302*100/(N302+R302),R302) -> 56.5311835 | S300: =IF((S302+W302)>100,S302*100/(S302+W302),S302) -> 35.29642814 | T300: =S300*AVERAGEIF(T305:T316,">0")/100 -> 27.83285898 | U300: =S300*(100-AVERAGEIF(T305:T316,">0"))/100 -> 7.463569169 | V300: =100-(T300+U300+W300) -> 17.11109838 | W300: =IF((S302+W302)>100,W302*100/(S302+W302),W302) -> 47.59247348 | X300: =IF((X302+AB302)>100,X302*100/(X302+AB302),X302) -> 61.40601864 | Y300: =X300*AVERAGEIF(Y305:Y316,">0")/100 -> 48.79076089 | Z300: =X300*(100-AVERAGEIF(Y305:Y316,">0"))/100 -> 12.61525775 | AA300: =100-(Y300+Z300+AB300) -> 14.35790802 | AB300: =IF((X302+AB302)>100,AB302*100/(X302+AB302),AB302) -> 24.23607335
A301: Regression period: | C301: =MinRegYear(C299,C305:C316) -> 2000 | D301: =IF(MAX(C305:C316)-MIN(C305:C316)<5,AVERAGEIF(C305:C316,">0",D305:D316), IF(FORECAST($C301,D$305:D$316,$C$305:$C$316)<0,0, IF(FORECAST($C301,D$305:D$316,$C$305:$C$316)>100,100, FORECAST($C301,D$305:D$316,$C$305:$C$316)))) -> 0.8578828389 | H301: =IF(MAX(C305:C316)-MIN(C305:C316)<5,AVERAGEIF(C305:C316,">0",H305:H316), IF(FORECAST($C301,H$305:H$316,$C$305:$C$316)<0,0, IF(FORECAST($C301,H$305:H$316,$C$305:$C$316)>100,100, FORECAST($C301,H$305:H$316,$C$305:$C$316)))) -> 72.84364598 | I301: =IF(MAX(C305:C316)-MIN(C305:C316)<5,AVERAGEIF(C305:C316,">0",I305:I316), IF(FORECAST($C301,I$305:I$316,$C$305:$C$316)<0,0, IF(FORECAST($C301,I$305:I$316,$C$305:$C$316)>100,100, FORECAST($C301,I$305:I$316,$C$305:$C$316)))) -> 1.311695905 | M301: =IF(MAX(C305:C316)-MIN(C305:C316)<5,AVERAGEIF(C305:C316,">0",M305:M316), IF(FORECAST($C301,M$305:M$316,$C$305:$C$316)<0,0, IF(FORECAST($C301,M$305:M$316,$C$305:$C$316)>100,100, FORECAST($C301,M$305:M$316,$C$305:$C$316)))) -> 78.33377962 | N301: =IF(MAX(C305:C316)-MIN(C305:C316)<5,AVERAGEIF(C305:C316,">0",N305:N316), IF(FORECAST($C301,N$305:N$316,$C$305:$C$316)<0,0, IF(FORECAST($C301,N$305:N$316,$C$305:$C$316)>100,100, FORECAST($C301,N$305:N$316,$C$305:$C$316)))) -> 3.203069502 | R301: =IF(MAX(C305:C316)-MIN(C305:C316)<5,AVERAGEIF(C305:C316,">0",R305:R316), IF(FORECAST($C301,R$305:R$316,$C$305:$C$316)<0,0, IF(FORECAST($C301,R$305:R$316,$C$305:$C$316)>100,100, FORECAST($C301,R$305:R$316,$C$305:$C$316)))) -> 73.00169395 | S301: =IF(MAX(C305:C316)-MIN(C305:C316)<5,AVERAGEIF(C305:C316,">0",S305:S316), IF(FORECAST($C301,S$305:S$316,$C$305:$C$316)<0,0, IF(FORECAST($C301,S$305:S$316,$C$305:$C$316)>100,100, FORECAST($C301,S$305:S$316,$C$305:$C$316)))) -> 8.337578222 | W301: =IF(MAX(C305:C316)-MIN(C305:C316)<5,AVERAGEIF(C305:C316,">0",W305:W316), IF(FORECAST($C301,W$305:W$316,$C$305:$C$316)<0,0, IF(FORECAST($C301,W$305:W$316,$C$305:$C$316)>100,100, FORECAST($C301,W$305:W$316,$C$305:$C$316)))) -> 62.09879962 | X301: =IF(MAX(C305:C316)-MIN(C305:C316)<5,AVERAGEIF(C305:C316,">0",X305:X316), IF(FORECAST($C301,X$305:X$316,$C$305:$C$316)<0,0, IF(FORECAST($C301,X$305:X$316,$C$305:$C$316)>100,100, FORECAST($C301,X$305:X$316,$C$305:$C$316)))) -> 25.97264629 | AB301: =IF(MAX(C305:C316)-MIN(C305:C316)<5,AVERAGEIF(C305:C316,">0",AB305:AB316), IF(FORECAST($C301,AB$305:AB$316,$C$305:$C$316)<0,0, IF(FORECAST($C301,AB$305:AB$316,$C$305:$C$316)>100,100, FORECAST($C301,AB$305:AB$316,$C$305:$C$316)))) -> 48.24656327
C302: =MaxRegYear(C300,C305:C316) -> 2018 | D302: =IF(MAX(C305:C316)-MIN(C305:C316)<5,AVERAGEIF(C305:C316,">0",D305:D316), IF(FORECAST($C302,D$305:D$316,$C$305:$C$316)<0,0, IF(FORECAST($C302,D$305:D$316,$C$305:$C$316)>100,100, FORECAST($C302,D$305:D$316,$C$305:$C$316)))) -> 9.752215656 | H302: =IF(MAX(C305:C316)-MIN(C305:C316)<5,AVERAGEIF(C305:C316,">0",H305:H316), IF(FORECAST($C302,H$305:H$316,$C$305:$C$316)<0,0, IF(FORECAST($C302,H$305:H$316,$C$305:$C$316)>100,100, FORECAST($C302,H$305:H$316,$C$305:$C$316)))) -> 84.26092671 | I302: =IF(MAX(C305:C316)-MIN(C305:C316)<5,AVERAGEIF(C305:C316,">0",I305:I316), IF(FORECAST($C302,I$305:I$316,$C$305:$C$316)<0,0, IF(FORECAST($C302,I$305:I$316,$C$305:$C$316)>100,100, FORECAST($C302,I$305:I$316,$C$305:$C$316)))) -> 19.63137322 | M302: =IF(MAX(C305:C316)-MIN(C305:C316)<5,AVERAGEIF(C305:C316,">0",M305:M316), IF(FORECAST($C302,M$305:M$316,$C$305:$C$316)<0,0, IF(FORECAST($C302,M$305:M$316,$C$305:$C$316)>100,100, FORECAST($C302,M$305:M$316,$C$305:$C$316)))) -> 67.78598106 | N302: =IF(MAX(C305:C316)-MIN(C305:C316)<5,AVERAGEIF(C305:C316,">0",N305:N316), IF(FORECAST($C302,N$305:N$316,$C$305:$C$316)<0,0, IF(FORECAST($C302,N$305:N$316,$C$305:$C$316)>100,100, FORECAST($C302,N$305:N$316,$C$305:$C$316)))) -> 27.46209407 | R302: =IF(MAX(C305:C316)-MIN(C305:C316)<5,AVERAGEIF(C305:C316,">0",R305:R316), IF(FORECAST($C302,R$305:R$316,$C$305:$C$316)<0,0, IF(FORECAST($C302,R$305:R$316,$C$305:$C$316)>100,100, FORECAST($C302,R$305:R$316,$C$305:$C$316)))) -> 56.5311835 | S302: =IF(MAX(C305:C316)-MIN(C305:C316)<5,AVERAGEIF(C305:C316,">0",S305:S316), IF(FORECAST($C302,S$305:S$316,$C$305:$C$316)<0,0, IF(FORECAST($C302,S$305:S$316,$C$305:$C$316)>100,100, FORECAST($C302,S$305:S$316,$C$305:$C$316)))) -> 35.29642814 | W302: =IF(MAX(C305:C316)-MIN(C305:C316)<5,AVERAGEIF(C305:C316,">0",W305:W316), IF(FORECAST($C302,W$305:W$316,$C$305:$C$316)<0,0, IF(FORECAST($C302,W$305:W$316,$C$305:$C$316)>100,100, FORECAST($C302,W$305:W$316,$C$305:$C$316)))) -> 47.59247348 | X302: =IF(MAX(C305:C316)-MIN(C305:C316)<5,AVERAGEIF(C305:C316,">0",X305:X316), IF(FORECAST($C302,X$305:X$316,$C$305:$C$316)<0,0, IF(FORECAST($C302,X$305:X$316,$C$305:$C$316)>100,100, FORECAST($C302,X$305:X$316,$C$305:$C$316)))) -> 61.40601864 | AB302: =IF(MAX(C305:C316)-MIN(C305:C316)<5,AVERAGEIF(C305:C316,">0",AB305:AB316), IF(FORECAST($C302,AB$305:AB$316,$C$305:$C$316)<0,0, IF(FORECAST($C302,AB$305:AB$316,$C$305:$C$316)>100,100, FORECAST($C302,AB$305:AB$316,$C$305:$C$316)))) -> 24.23607335
B304: Survey | C304: Year | D304: Improved | E304: Not shared | H304: Open defecation | I304: Improved | J304: Not shared | M304: Open defecation | N304: Improved | O304: Not shared | R304: Open defecation | S304: Improved | T304: Not shared | W304: Open defecation | X304: Improved | Y304: Not shared | AB304: Open defecation
B305: MICS00 | C305: 2000 | D305: =IF(ISERROR(INDIRECT(CONCATENATE($B305,"!M122"))),"",INDIRECT(CONCATENATE($B305,"!M122"))) -> 0.9434442114 | E305: =IF(ISERROR(INDIRECT(CONCATENATE($B305,"!M129"))),"",INDIRECT(CONCATENATE($B305,"!M129"))) -> N/A | H305: =IF(ISERROR(INDIRECT(CONCATENATE($B305,"!M127"))),"",INDIRECT(CONCATENATE($B305,"!M127"))) -> 78.6657354 | I305: =IF(ISERROR(INDIRECT(CONCATENATE($B305,"!N122"))),"",INDIRECT(CONCATENATE($B305,"!N122"))) -> 3.829249318 | J305: =IF(ISERROR(INDIRECT(CONCATENATE($B305,"!N129"))),"",INDIRECT(CONCATENATE($B305,"!N129"))) -> N/A | M305: =IF(ISERROR(INDIRECT(CONCATENATE($B305,"!N127"))),"",INDIRECT(CONCATENATE($B305,"!N127"))) -> 81.65416167 | N305: =IF(ISERROR(INDIRECT(CONCATENATE($B305,"!O122"))),"",INDIRECT(CONCATENATE($B305,"!O122"))) -> 5.534942146 | O305: =IF(ISERROR(INDIRECT(CONCATENATE($B305,"!O129"))),"",INDIRECT(CONCATENATE($B305,"!O129"))) -> N/A | R305: =IF(ISERROR(INDIRECT(CONCATENATE($B305,"!O127"))),"",INDIRECT(CONCATENATE($B305,"!O127"))) -> 77.70947649 | S305: =IF(ISERROR(INDIRECT(CONCATENATE($B305,"!P122"))),"",INDIRECT(CONCATENATE($B305,"!P122"))) -> 6.107854352 | T305: =IF(ISERROR(INDIRECT(CONCATENATE($B305,"!P129"))),"",INDIRECT(CONCATENATE($B305,"!P129"))) -> N/A | W305: =IF(ISERROR(INDIRECT(CONCATENATE($B305,"!P127"))),"",INDIRECT(CONCATENATE($B305,"!P127"))) -> 73.6762107 | X305: =IF(ISERROR(INDIRECT(CONCATENATE($B305,"!Q122"))),"",INDIRECT(CONCATENATE($B305,"!Q122"))) -> 23.00630986 | Y305: =IF(ISERROR(INDIRECT(CONCATENATE($B305,"!Q129"))),"",INDIRECT(CONCATENATE($B305,"!Q129"))) -> N/A | AB305: =IF(ISERROR(INDIRECT(CONCATENATE($B305,"!Q2127"))),"",INDIRECT(CONCATENATE($B305,"!Q127"))) -> 56.42349293
B306: MIS07 | C306: 2007 | D306: 3.995884912 | E306: N/A | H306: 65.44630539 | I306: 6.282587698 | J306: N/A | M306: 66.56406771 | N306: 10.87002313 | O306: N/A | R306: 58.62749474 | S306: 25.69451627 | T306: N/A | W306: 37.35217941 | X306: 45.25913195 | Y306: N/A | AB306: 27.4674791
B307: MIS11 | C307: 2011 | D307: 6.597141299 | E307: N/A | H307: 82.49749653 | I307: 8.32705223 | J307: N/A | M307: 75.06470258 | N307: 13.74683716 | O307: N/A | R307: 62.21567914 | S307: 19.57625381 | T307: N/A | W307: 50.57559516 | X307: 47.20633686 | Y307: N/A | AB307: 28.00231972
B308: DHS16 | C308: 2016 | D308: 8.695467367 | E308: 78.08590304 | H308: 86.33102132 | I308: 21.41172929 | J308: 77.08272824 | M308: 70.128567 | N308: 28.48307753 | O308: 83.06940118 | R308: 62.34316124 | S308: 32.89396054 | T308: 78.85460495 | W308: 59.39037495 | X308: 55.3485098 | Y308: 79.4559914 | AB308: 35.73981369
B318: =CONCATENATE("Rural use of sanitation facilities, ",C299,"–",C300) -> Rural use of sanitation facilities, 2000–2020 | S318: Data points used for regression

Sheet Hygiene
B4: Access to hygiene facilities by wealth quintile (%)
B5: =IF(ISERROR(INDIRECT(CONCATENATE($E$32,"!A2"))),"",INDIRECT(CONCATENATE($E$32,"!A2"))) -> Angola
B7: =CONCATENATE("National ",IF(ISERROR(INDIRECT(CONCATENATE($E$32,"!A2"))),"",INDIRECT(CONCATENATE($E$32,"!A210")))) -> National Access to hygiene facilities | K7: =CONCATENATE("Urban ",IF(ISERROR(INDIRECT(CONCATENATE($E$32,"!A2"))),"",INDIRECT(CONCATENATE($E$32,"!A210")))) -> Urban Access to hygiene facilities | S7: =CONCATENATE("Rural ",IF(ISERROR(INDIRECT(CONCATENATE($E$32,"!A2"))),"",INDIRECT(CONCATENATE($E$32,"!A210")))) -> Rural Access to hygiene facilities
E32: =INDEX(B88:B100,A88) -> DHS16 | G32: =IF(ISERROR(INDIRECT(CONCATENATE($E$32,"!A2"))),"",INDIRECT(CONCATENATE($E$32,"!A2"))) -> Angola | K32: Poorest | N32: Poor | Q32: Middle | T32: Rich | W32: Richest
K33: Basic | L33: Limited | M33: No facility | N33: Basic | O33: Limited | P33: No facility | Q33: Basic | R33: Limited | S33: No facility | T33: Basic | U33: Limited | V33: No facility | W33: Basic | X33: Limited | Y33: No facility
B34: >>> Select Survey : | G34: NATIONAL | J34: =IF(ISERROR(INDIRECT(CONCATENATE(#REF!,"!A2"))),"",INDIRECT(CONCATENATE(#REF!,"!A210"))) ->  | K34: =IF(ISERROR(INDIRECT(CONCATENATE($E$32,"!C222"))),"",INDIRECT(CONCATENATE($E$32,"!C222"))) -> 9.150887168 | L34: =IF(ISERROR(INDIRECT(CONCATENATE($E$32,"!C223"))),"",INDIRECT(CONCATENATE($E$32,"!C223"))) -> 13.63376425 | M34: =IF(ISERROR(INDIRECT(CONCATENATE($E$32,"!C224"))),"",INDIRECT(CONCATENATE($E$32,"!C224"))) -> 77.21534858 | N34: =IF(ISERROR(INDIRECT(CONCATENATE($E$32,"!D222"))),"",INDIRECT(CONCATENATE($E$32,"!D222"))) -> 16.08014329 | O34: =IF(ISERROR(INDIRECT(CONCATENATE($E$32,"!D223"))),"",INDIRECT(CONCATENATE($E$32,"!D223"))) -> 14.19749557 | P34: =IF(ISERROR(INDIRECT(CONCATENATE($E$32,"!D224"))),"",INDIRECT(CONCATENATE($E$32,"!D224"))) -> 69.72236114 | Q34: =IF(ISERROR(INDIRECT(CONCATENATE($E$32,"!E222"))),"",INDIRECT(CONCATENATE($E$32,"!E222"))) -> 18.20186535 | R34: =IF(ISERROR(INDIRECT(CONCATENATE($E$32,"!E223"))),"",INDIRECT(CONCATENATE($E$32,"!E223"))) -> 20.33324705 | S34: =IF(ISERROR(INDIRECT(CONCATENATE($E$32,"!E224"))),"",INDIRECT(CONCATENATE($E$32,"!E224"))) -> 61.4648876 | T34: =IF(ISERROR(INDIRECT(CONCATENATE($E$32,"!F222"))),"",INDIRECT(CONCATENATE($E$32,"!F222"))) -> 33.81642535 | U34: =IF(ISERROR(INDIRECT(CONCATENATE($E$32,"!F223"))),"",INDIRECT(CONCATENATE($E$32,"!F223"))) -> 16.04591053 | V34: =IF(ISERROR(INDIRECT(CONCATENATE($E$32,"!F224"))),"",INDIRECT(CONCATENATE($E$32,"!F224"))) -> 50.13766412 | W34: =IF(ISERROR(INDIRECT(CONCATENATE($E$32,"!G222"))),"",INDIRECT(CONCATENATE($E$32,"!G222"))) -> 56.61844749 | X34: =IF(ISERROR(INDIRECT(CONCATENATE($E$32,"!G223"))),"",INDIRECT(CONCATENATE($E$32,"!G223"))) -> 10.81260601 | Y34: =IF(ISERROR(INDIRECT(CONCATENATE($E$32,"!G224"))),"",INDIRECT(CONCATENATE($E$32,"!G224"))) -> 32.56894651
G37: URBAN | J37: =IF(ISERROR(INDIRECT(CONCATENATE(#REF!,"!A2"))),"",INDIRECT(CONCATENATE(#REF!,"!A210"))) ->  | K37: =IF(ISERROR(INDIRECT(CONCATENATE($E$32,"!H222"))),"",INDIRECT(CONCATENATE($E$32,"!H222"))) -> 16.93044531 | L37: =IF(ISERROR(INDIRECT(CONCATENATE($E$32,"!H223"))),"",INDIRECT(CONCATENATE($E$32,"!H223"))) -> 16.43875711 | M37: =IF(ISERROR(INDIRECT(CONCATENATE($E$32,"!H224"))),"",INDIRECT(CONCATENATE($E$32,"!H224"))) -> 66.63079758 | N37: =IF(ISERROR(INDIRECT(CONCATENATE($E$32,"!I222"))),"",INDIRECT(CONCATENATE($E$32,"!I222"))) -> 18.27013873 | O37: =IF(ISERROR(INDIRECT(CONCATENATE($E$32,"!I223"))),"",INDIRECT(CONCATENATE($E$32,"!I223"))) -> 21.47479923 | P37: =IF(ISERROR(INDIRECT(CONCATENATE($E$32,"!I224"))),"",INDIRECT(CONCATENATE($E$32,"!I224"))) -> 60.25506204 | Q37: =IF(ISERROR(INDIRECT(CONCATENATE($E$32,"!J222"))),"",INDIRECT(CONCATENATE($E$32,"!J222"))) -> 30.65951244 | R37: =IF(ISERROR(INDIRECT(CONCATENATE($E$32,"!J223"))),"",INDIRECT(CONCATENATE($E$32,"!J223"))) -> 18.16700874 | S37: =IF(ISERROR(INDIRECT(CONCATENATE($E$32,"!J224"))),"",INDIRECT(CONCATENATE($E$32,"!J224"))) -> 51.17347881 | T37: =IF(ISERROR(INDIRECT(CONCATENATE($E$32,"!K222"))),"",INDIRECT(CONCATENATE($E$32,"!K222"))) -> 41.48565642 | U37: =IF(ISERROR(INDIRECT(CONCATENATE($E$32,"!K223"))),"",INDIRECT(CONCATENATE($E$32,"!K223"))) -> 14.1727407 | V37: =IF(ISERROR(INDIRECT(CONCATENATE($E$32,"!K224"))),"",INDIRECT(CONCATENATE($E$32,"!K224"))) -> 44.34160288 | W37: =IF(ISERROR(INDIRECT(CONCATENATE($E$32,"!L222"))),"",INDIRECT(CONCATENATE($E$32,"!L222"))) -> 64.01995907 | X37: =IF(ISERROR(INDIRECT(CONCATENATE($E$32,"!L223"))),"",INDIRECT(CONCATENATE($E$32,"!L223"))) -> 8.286524329 | Y37: =IF(ISERROR(INDIRECT(CONCATENATE($E$32,"!L224"))),"",INDIRECT(CONCATENATE($E$32,"!L224"))) -> 27.6935166
G40: RURAL | J40: =IF(ISERROR(INDIRECT(CONCATENATE(#REF!,"!A2"))),"",INDIRECT(CONCATENATE(#REF!,"!A210"))) ->  | K40: =IF(ISERROR(INDIRECT(CONCATENATE($E$32,"!M222"))),"",INDIRECT(CONCATENATE($E$32,"!M222"))) -> 7.233880239 | L40: =IF(ISERROR(INDIRECT(CONCATENATE($E$32,"!M223"))),"",INDIRECT(CONCATENATE($E$32,"!M223"))) -> 14.8710615 | M40: =IF(ISERROR(INDIRECT(CONCATENATE($E$32,"!M224"))),"",INDIRECT(CONCATENATE($E$32,"!M224"))) -> 77.89505826 | N40: =IF(ISERROR(INDIRECT(CONCATENATE($E$32,"!N222"))),"",INDIRECT(CONCATENATE($E$32,"!N222"))) -> 6.951091737 | O40: =IF(ISERROR(INDIRECT(CONCATENATE($E$32,"!N223"))),"",INDIRECT(CONCATENATE($E$32,"!N223"))) -> 13.58323611 | P40: =IF(ISERROR(INDIRECT(CONCATENATE($E$32,"!N224"))),"",INDIRECT(CONCATENATE($E$32,"!N224"))) -> 79.46567215 | Q40: =IF(ISERROR(INDIRECT(CONCATENATE($E$32,"!O222"))),"",INDIRECT(CONCATENATE($E$32,"!O222"))) -> 14.57033653 | R40: =IF(ISERROR(INDIRECT(CONCATENATE($E$32,"!O223"))),"",INDIRECT(CONCATENATE($E$32,"!O223"))) -> 12.28032895 | S40: =IF(ISERROR(INDIRECT(CONCATENATE($E$32,"!O224"))),"",INDIRECT(CONCATENATE($E$32,"!O224"))) -> 73.14933451 | T40: =IF(ISERROR(INDIRECT(CONCATENATE($E$32,"!P222"))),"",INDIRECT(CONCATENATE($E$32,"!P222"))) -> 16.50675236 | U40: =IF(ISERROR(INDIRECT(CONCATENATE($E$32,"!P223"))),"",INDIRECT(CONCATENATE($E$32,"!P223"))) -> 13.67009058 | V40: =IF(ISERROR(INDIRECT(CONCATENATE($E$32,"!P224"))),"",INDIRECT(CONCATENATE($E$32,"!P224"))) -> 69.82315707 | W40: =IF(ISERROR(INDIRECT(CONCATENATE($E$32,"!Q222"))),"",INDIRECT(CONCATENATE($E$32,"!Q222"))) -> 21.06820329 | X40: =IF(ISERROR(INDIRECT(CONCATENATE($E$32,"!Q223"))),"",INDIRECT(CONCATENATE($E$32,"!Q223"))) -> 14.23276869 | Y40: =IF(ISERROR(INDIRECT(CONCATENATE($E$32,"!Q224"))),"",INDIRECT(CONCATENATE($E$32,"!Q224"))) -> 64.69902801
A88: 4 | B88: MICS00
B89: MIS07
B90: MIS11
B91: DHS16
B92: Template

Sheet MICS00
A2: =A1026 -> Angola
A3: =A1034 -> 2000
A4: Use of drinking water sources
A5: by wealth quintile and sub-national region
A6: Notes:
A7: WHO/UNICEF JMP customised wealth index excludes water,
A8: sanitation and hygiene assets.
A9: Survey used for analysis: | B9: =A1025 -> MICS00
A10: =B1028 -> 
A11: =B1027 -> 
A14: Use of drinking water sources | C14: NATIONAL wealth index quintile | H14: URBAN wealth index quintile | M14: RURAL wealth index quintile | R14: SUB-REGIONS: | BA14: Raw numbers of respondents: | BB14: Use of drinking water sources | BC14: NATIONAL wealth index quintile | BH14: URBAN wealth index quintile | BM14: RURAL wealth index quintile | BR14: SUB-REGIONS:
A15: Weighted percentage (used in graphs) | C15: Poorest | D15: Poor | E15: Middle | F15: Rich | G15: Richest | H15: Poorest | I15: Poor | J15: Middle | K15: Rich | L15: Richest | M15: Poorest | N15: Poor | O15: Middle | P15: Rich | Q15: Richest | R15: capital | S15: centro sul | T15: este | U15: norte | V15: oeste | W15: sul | BA15: Water data, raw numbers (weighted) | BC15: Poorest | BD15: Poor | BE15: Middle | BF15: Rich | BG15: Richest | BH15: Poorest | BI15: Poor | BJ15: Middle | BK15: Rich | BL15: Richest | BM15: Poorest | BN15: Poor | BO15: Middle | BP15: Rich | BQ15: Richest | BR15: capital | BS15: centro sul | BT15: este | BU15: norte | BV15: oeste | BW15: sul
A16: Water | B16: Improved | C16: 43.73087999 | D16: 56.97836283 | E16: 65.987926 | F16: 76.974644 | G16: 87.48649661 | H16: 67.68603291 | I16: 72.66222879 | J16: 74.49182641 | K16: 81.6417932 | L16: 90.34956497 | M16: 33.96971592 | N16: 34.62022675 | O16: 31.07474517 | P16: 47.32919226 | Q16: 57.18820213 | R16: 67.36528224 | S16: 73.44678002 | T16: 55.55510074 | U16: 68.49963902 | V16: 73.36428954 | W16: 61.33098082 | BA16: Water | BB16: Improved | BC16: N/A | BD16: N/A | BE16: N/A | BF16: N/A | BG16: N/A | BH16: N/A | BI16: N/A | BJ16: N/A | BK16: N/A | BL16: N/A | BM16: N/A | BN16: N/A | BO16: N/A | BP16: N/A | BQ16: N/A | BR16: N/A | BS16: N/A | BT16: N/A | BU16: N/A | BV16: N/A | BW16: N/A
B17: Not Improved | C17: 56.26912001 | D17: 43.02163717 | E17: 34.012074 | F17: 23.025356 | G17: 12.51350339 | H17: 32.31396709 | I17: 27.33777121 | J17: 25.50817359 | K17: 18.3582068 | L17: 9.650435032 | M17: 66.03028408 | N17: 65.37977325 | O17: 68.92525483 | P17: 52.67080774 | Q17: 42.81179787 | R17: 32.63471776 | S17: 26.55321998 | T17: 44.44489926 | U17: 31.50036098 | V17: 26.63571046 | W17: 38.66901918 | BB17: Not Improved | BC17: N/A | BD17: N/A | BE17: N/A | BF17: N/A | BG17: N/A | BH17: N/A | BI17: N/A | BJ17: N/A | BK17: N/A | BL17: N/A | BM17: N/A | BN17: N/A | BO17: N/A | BP17: N/A | BQ17: N/A | BR17: N/A | BS17: N/A | BT17: N/A | BU17: N/A | BV17: N/A | BW17: N/A
A18: Water ladder | B18: Basic | C18: =C16*C23/100 -> 32.20039314 | D18: =D16*D23/100 -> 44.03084502 | E18: =E16*E23/100 -> 56.98633698 | F18: 67.90502591 | G18: 84.07925431 | H18: 56.30897434 | I18: 63.03458159 | J18: 67.26708836 | K18: 74.71696291 | L18: 88.63601573 | M18: 22.20233014 | N18: 22.16287906 | O18: 21.89323053 | P18: 28.52500166 | Q18: 42.46241633 | R18: 64.25799754 | S18: 68.13070508 | T18: 40.36586649 | U18: 63.28441039 | V18: 55.96797254 | W18: 53.10611895 | BA18: Water ladder | BB18: Basic | BC18: N/A | BD18: N/A | BE18: N/A | BF18: N/A | BG18: N/A | BH18: N/A | BI18: N/A | BJ18: N/A | BK18: N/A | BL18: N/A | BM18: N/A | BN18: N/A | BO18: N/A | BP18: N/A | BQ18: N/A | BR18: N/A | BS18: N/A | BT18: N/A | BU18: N/A | BV18: N/A | BW18: N/A
B19: Limited | C19: =C16*C22/100 -> 11.53048684 | D19: =D16*D22/100 -> 12.94751781 | E19: =E16*E22/100 -> 9.001589021 | F19: 9.069618089 | G19: 3.40724229 | H19: 11.37705857 | I19: 9.627647204 | J19: 7.224738056 | K19: 6.924830284 | L19: 1.713549234 | M19: 11.76738579 | N19: 12.4573477 | O19: 9.181514635 | P19: 18.8041906 | Q19: 14.7257858 | R19: 3.107284704 | S19: 5.316074942 | T19: 15.18923425 | U19: 5.215228627 | V19: 17.396317 | W19: 8.224861866 | BB19: Limited | BC19: N/A | BD19: N/A | BE19: N/A | BF19: N/A | BG19: N/A | BH19: N/A | BI19: N/A | BJ19: N/A | BK19: N/A | BL19: N/A | BM19: N/A | BN19: N/A | BO19: N/A | BP19: N/A | BQ19: N/A | BR19: N/A | BS19: N/A | BT19: N/A | BU19: N/A | BV19: N/A | BW19: N/A
B20: Unimproved | C20: =100-C18-C19-C21 -> 16.12125411 | D20: =100-D18-D19-D21 -> 15.14301777 | E20: =100-E18-E19-E21 -> 11.86549335 | F20: 10.26830734 | G20: 9.085649911 | H20: 13.85664346 | I20: 10.4656493 | J20: 9.990784759 | K20: 11.92744102 | L20: 6.752477906 | M20: 18.63226449 | N20: 14.47618472 | O20: 18.51743167 | P20: 19.02262508 | Q20: 13.29865598 | R20: 16.74859253 | S20: 15.40899801 | T20: 0.795701541 | U20: 14.29366325 | V20: 8.487599245 | W20: 20.04627438 | BB20: Unimproved | BC20: N/A | BD20: N/A | BE20: N/A | BF20: N/A | BG20: N/A | BH20: N/A | BI20: N/A | BJ20: N/A | BK20: N/A | BL20: N/A | BM20: N/A | BN20: N/A | BO20: N/A | BP20: N/A | BQ20: N/A | BR20: N/A | BS20: N/A | BT20: N/A | BU20: N/A | BV20: N/A | BW20: N/A
B21: Surface water | C21: 40.1478659 | D21: 27.87861941 | E21: 22.14658065 | F21: 12.75704866 | G21: 3.427853484 | H21: 18.45732363 | I21: 16.87212191 | J21: 15.51738883 | K21: 6.430765779 | L21: 2.897957126 | M21: 47.39801959 | N21: 50.90358853 | O21: 50.40782316 | P21: 33.64818265 | Q21: 29.51314189 | R21: 15.88612522 | S21: 11.14422196 | T21: 43.64919772 | U21: 17.20669773 | V21: 18.14811122 | W21: 18.6227448 | BB21: Surface water | BC21: N/A | BD21: N/A | BE21: N/A | BF21: N/A | BG21: N/A | BH21: N/A | BI21: N/A | BJ21: N/A | BK21: N/A | BL21: N/A | BM21: N/A | BN21: N/A | BO21: N/A | BP21: N/A | BQ21: N/A | BR21: N/A | BS21: N/A | BT21: N/A | BU21: N/A | BV21: N/A | BW21: N/A
A22: Improved water point at more than 30 minutes | B22: Yes | C22: 26.36692161 | D22: 22.72356938 | E22: 13.64126677 | F22: 11.78260479 | G22: 3.89459222 | H22: 16.80857642 | I22: 13.24986498 | J22: 9.698699043 | K22: 8.481967401 | L22: 1.896577183 | M22: 34.64081305 | N22: 35.98285992 | O22: 29.54654845 | P22: 39.73063918 | Q22: 25.74969181 | R22: 4.612590641 | S22: 7.237995921 | T22: 27.34084548 | U22: 7.61351257 | V22: 23.7122408 | W22: 13.41061525 | BA22: Improved water point at more than 30 minutes | BB22: Yes | BC22: N/A | BD22: N/A | BE22: N/A | BF22: N/A | BG22: N/A | BH22: N/A | BI22: N/A | BJ22: N/A | BK22: N/A | BL22: N/A | BM22: N/A | BN22: N/A | BO22: N/A | BP22: N/A | BQ22: N/A | BR22: N/A | BS22: N/A | BT22: N/A | BU22: N/A | BV22: N/A | BW22: N/A
B23: No | C23: 73.63307839 | D23: 77.27643062 | E23: 86.35873323 | F23: 88.21739521 | G23: 96.10540778 | H23: 83.19142358 | I23: 86.75013502 | J23: 90.30130096 | K23: 91.5180326 | L23: 98.10342282 | M23: 65.35918695 | N23: 64.01714008 | O23: 70.45345155 | P23: 60.26936082 | Q23: 74.25030819 | R23: 95.38740936 | S23: 92.76200408 | T23: 72.65915452 | U23: 92.38648743 | V23: 76.2877592 | W23: 86.58938475 | BB23: No | BC23: N/A | BD23: N/A | BE23: N/A | BF23: N/A | BG23: N/A | BH23: N/A | BI23: N/A | BJ23: N/A | BK23: N/A | BL23: N/A | BM23: N/A | BN23: N/A | BO23: N/A | BP23: N/A | BQ23: N/A | BR23: N/A | BS23: N/A | BT23: N/A | BU23: N/A | BV23: N/A | BW23: N/A
A24: Manually calculated ratios | B24: Improved wells
B25: Improved sources
B26: Other
C27: NATIONAL wealth index quintile | H27: URBAN wealth index quintile | M27: RURAL wealth index quintile | R27: SUB-REGIONS: | BA27: Raw numbers of respondents: | BB27: Use of drinking water sources | BC27: NATIONAL wealth index quintile | BH27: URBAN wealth index quintile | BM27: RURAL wealth index quintile | BR27: SUB-REGIONS:
A28: Percentage based on weighted population | C28: Poorest | D28: Poor | E28: Middle | F28: Rich | G28: Richest | H28: Poorest | I28: Poor | J28: Middle | K28: Rich | L28: Richest | M28: Poorest | N28: Poor | O28: Middle | P28: Rich | Q28: Richest | R28: capital | S28: centro sul | T28: este | U28: norte | V28: oeste | W28: sul | BA28: Water data, raw numbers (weighted) | BC28: Poorest | BD28: Poor | BE28: Middle | BF28: Rich | BG28: Richest | BH28: Poorest | BI28: Poor | BJ28: Middle | BK28: Rich | BL28: Richest | BM28: Poorest | BN28: Poor | BO28: Middle | BP28: Rich | BQ28: Richest | BR28: capital | BS28: centro sul | BT28: este | BU28: norte | BV28: oeste | BW28: sul
A29: Piped water | B29: Yes | C29: 16.98982593 | D29: 23.2980374 | E29: 22.95022394 | F29: 38.45512113 | G29: 65.60816414 | H29: 32.28769433 | I29: 26.36225812 | J29: 34.26123115 | K29: 47.54188102 | L29: 71.99275076 | M29: 9.974799707 | N29: 10.64631449 | O29: 11.90309808 | P29: 16.92186688 | Q29: 14.42892089 | R29: 56.99159076 | S29: 18.65635452 | T29: 21.45444306 | U29: 12.80444013 | V29: 56.88916769 | W29: 34.28459669 | BA29: Piped water | BB29: Yes | BC29: N/A | BD29: N/A | BE29: N/A | BF29: N/A | BG29: N/A | BH29: N/A | BI29: N/A | BJ29: N/A | BK29: N/A | BL29: N/A | BM29: N/A | BN29: N/A | BO29: N/A | BP29: N/A | BQ29: N/A | BR29: N/A | BS29: N/A | BT29: N/A | BU29: N/A | BV29: N/A | BW29: N/A
B30: No | C30: 83.01017407 | D30: 76.7019626 | E30: 77.04977606 | F30: 61.54487887 | G30: 34.39183586 | H30: 67.71230567 | I30: 73.63774188 | J30: 65.73876885 | K30: 52.45811898 | L30: 28.00724924 | M30: 90.02520029 | N30: 89.35368551 | O30: 88.09690192 | P30: 83.07813312 | Q30: 85.57107911 | R30: 43.00840924 | S30: 81.34364548 | T30: 78.54555694 | U30: 87.19555987 | V30: 43.11083231 | W30: 65.71540331 | BB30: No | BC30: N/A | BD30: N/A | BE30: N/A | BF30: N/A | BG30: N/A | BH30: N/A | BI30: N/A | BJ30: N/A | BK30: N/A | BL30: N/A | BM30: N/A | BN30: N/A | BO30: N/A | BP30: N/A | BQ30: N/A | BR30: N/A | BS30: N/A | BT30: N/A | BU30: N/A | BV30: N/A | BW30: N/A
A31: Piped water on premises | B31: Yes | C31: 0.9572582338 | D31: 1.671563086 | E31: 2.764853297 | F31: 5.987124773 | G31: 30.70495027 | H31: 3.161997195 | I31: 2.521967437 | J31: 3.66489011 | K31: 12.27195976 | L31: 37.09183948 | M31: 0.2788803497 | N31: 0.268040051 | O31: 0.2077575781 | P31: 0 | Q31: 3.244496503 | R31: 18.07206781 | S31: 3.689041848 | T31: 3.637074423 | U31: 0.6776280138 | V31: 13.02860972 | W31: 11.33070113 | BA31: Piped water on premises | BB31: Yes | BC31: N/A | BD31: N/A | BE31: N/A | BF31: N/A | BG31: N/A | BH31: N/A | BI31: N/A | BJ31: N/A | BK31: N/A | BL31: N/A | BM31: N/A | BN31: N/A | BO31: N/A | BP31: N/A | BQ31: N/A | BR31: N/A | BS31: N/A | BT31: N/A | BU31: N/A | BV31: N/A | BW31: N/A
B32: No | C32: 99.04274177 | D32: 98.32843691 | E32: 97.2351467 | F32: 94.01287523 | G32: 69.29504973 | H32: 96.83800281 | I32: 97.47803256 | J32: 96.33510989 | K32: 87.72804024 | L32: 62.90816052 | M32: 99.72111965 | N32: 99.73195995 | O32: 99.79224242 | P32: 100 | Q32: 96.7555035 | R32: 81.92793219 | S32: 96.31095815 | T32: 96.36292558 | U32: 99.32237199 | V32: 86.97139028 | W32: 88.66929887 | BB32: No | BC32: N/A | BD32: N/A | BE32: N/A | BF32: N/A | BG32: N/A | BH32: N/A | BI32: N/A | BJ32: N/A | BK32: N/A | BL32: N/A | BM32: N/A | BN32: N/A | BO32: N/A | BP32: N/A | BQ32: N/A | BR32: N/A | BS32: N/A | BT32: N/A | BU32: N/A | BV32: N/A | BW32: N/A
A33: Piped water into dwelling | B33: Yes | C33: N/A | D33: N/A | E33: N/A | F33: N/A | G33: N/A | H33: N/A | I33: N/A | J33: N/A | K33: N/A | L33: N/A | M33: N/A | N33: N/A | O33: N/A | P33: N/A | Q33: N/A | R33: N/A | S33: N/A | T33: N/A | U33: N/A | V33: N/A | W33: N/A | BA33: Piped water into dwelling | BB33: Yes | BC33: N/A | BD33: N/A | BE33: N/A | BF33: N/A | BG33: N/A | BH33: N/A | BI33: N/A | BJ33: N/A | BK33: N/A | BL33: N/A | BM33: N/A | BN33: N/A | BO33: N/A | BP33: N/A | BQ33: N/A | BR33: N/A | BS33: N/A | BT33: N/A | BU33: N/A | BV33: N/A | BW33: N/A
B34: No | C34: N/A | D34: N/A | E34: N/A | F34: N/A | G34: N/A | H34: N/A | I34: N/A | J34: N/A | K34: N/A | L34: N/A | M34: N/A | N34: N/A | O34: N/A | P34: N/A | Q34: N/A | R34: N/A | S34: N/A | T34: N/A | U34: N/A | V34: N/A | W34: N/A | BB34: No | BC34: N/A | BD34: N/A | BE34: N/A | BF34: N/A | BG34: N/A | BH34: N/A | BI34: N/A | BJ34: N/A | BK34: N/A | BL34: N/A | BM34: N/A | BN34: N/A | BO34: N/A | BP34: N/A | BQ34: N/A | BR34: N/A | BS34: N/A | BT34: N/A | BU34: N/A | BV34: N/A | BW34: N/A
A35: Water source on premises | B35: Yes | C35: 83.33121122 | D35: 87.09112378 | E35: 94.09363732 | F35: 95.59771848 | G35: 97.8794579 | H35: 87.45751185 | I35: 93.77716972 | J35: 94.9337828 | K35: 97.38294847 | L35: 97.93289571 | M35: 78.21728214 | N35: 78.4995668 | O35: 76.69435887 | P35: 85.50390693 | Q35: 92.08104899 | R35: 95.01174596 | S35: 88.26268337 | T35: 94.00029141 | U35: 95.5152191 | V35: 94.20838636 | W35: 95.04556533 | BA35: Water source on premises | BB35: Yes | BC35: N/A | BD35: N/A | BE35: N/A | BF35: N/A | BG35: N/A | BH35: N/A | BI35: N/A | BJ35: N/A | BK35: N/A | BL35: N/A | BM35: N/A | BN35: N/A | BO35: N/A | BP35: N/A | BQ35: N/A | BR35: N/A | BS35: N/A | BT35: N/A | BU35: N/A | BV35: N/A | BW35: N/A
B36: No | C36: 16.66878878 | D36: 12.90887622 | E36: 5.906362677 | F36: 4.402281522 | G36: 2.120542096 | H36: 12.54248815 | I36: 6.222830281 | J36: 5.066217202 | K36: 2.617051528 | L36: 2.067104292 | M36: 21.78271786 | N36: 21.5004332 | O36: 23.30564113 | P36: 14.49609307 | Q36: 7.918951012 | R36: 4.988254042 | S36: 11.73731663 | T36: 5.999708595 | U36: 4.484780897 | V36: 5.791613643 | W36: 4.954434674 | BB36: No | BC36: N/A | BD36: N/A | BE36: N/A | BF36: N/A | BG36: N/A | BH36: N/A | BI36: N/A | BJ36: N/A | BK36: N/A | BL36: N/A | BM36: N/A | BN36: N/A | BO36: N/A | BP36: N/A | BQ36: N/A | BR36: N/A | BS36: N/A | BT36: N/A | BU36: N/A | BV36: N/A | BW36: N/A
A37: Improved Water source on premises | B37: Yes | C37: 81.78642046 | D37: 87.20199232 | E37: 93.93100715 | F37: 95.98851242 | G37: 97.84056454 | H37: 85.90542812 | I37: 93.82216548 | J37: 95.59387298 | K37: 96.98006885 | L37: 98.05967091 | M37: 76.60034393 | N37: 80.8506032 | O37: 79.81221423 | P37: 82.91681394 | Q37: 92.00504663 | R37: 94.55345427 | S37: 90.14801305 | T37: 93.94147377 | U37: 95.4122949 | V37: 94.43631422 | W37: 95.06343094 | BA37: Improved water source on premises | BB37: Yes | BC37: N/A | BD37: N/A | BE37: N/A | BF37: N/A | BG37: N/A | BH37: N/A | BI37: N/A | BJ37: N/A | BK37: N/A | BL37: N/A | BM37: N/A | BN37: N/A | BO37: N/A | BP37: N/A | BQ37: N/A | BR37: N/A | BS37: N/A | BT37: N/A | BU37: N/A | BV37: N/A | BW37: N/A
B38: No | C38: 18.21357954 | D38: 12.79800768 | E38: 6.068992855 | F38: 4.011487584 | G38: 2.159435456 | H38: 14.09457188 | I38: 6.177834524 | J38: 4.406127024 | K38: 3.01993115 | L38: 1.940329094 | M38: 23.39965607 | N38: 19.1493968 | O38: 20.18778577 | P38: 17.08318606 | Q38: 7.994953375 | R38: 5.44654573 | S38: 9.85198695 | T38: 6.058526232 | U38: 4.587705104 | V38: 5.563685781 | W38: 4.93656906 | BB38: No | BC38: N/A | BD38: N/A | BE38: N/A | BF38: N/A | BG38: N/A | BH38: N/A | BI38: N/A | BJ38: N/A | BK38: N/A | BL38: N/A | BM38: N/A | BN38: N/A | BO38: N/A | BP38: N/A | BQ38: N/A | BR38: N/A | BS38: N/A | BT38: N/A | BU38: N/A | BV38: N/A | BW38: N/A
A39: Piped water on premises available when needed | B39: Yes | C39: N/A | D39: N/A | E39: N/A | F39: N/A | G39: N/A | H39: N/A | I39: N/A | J39: N/A | K39: N/A | L39: N/A | M39: N/A | N39: N/A | O39: N/A | P39: N/A | Q39: N/A | R39: N/A | S39: N/A | T39: N/A | U39: N/A | V39: N/A | W39: N/A | BA39: Piped water on premises available when needed | BB39: Yes | BC39: N/A | BD39: N/A | BE39: N/A | BF39: N/A | BG39: N/A | BH39: N/A | BI39: N/A | BJ39: N/A | BK39: N/A | BL39: N/A | BM39: N/A | BN39: N/A | BO39: N/A | BP39: N/A | BQ39: N/A | BR39: N/A | BS39: N/A | BT39: N/A | BU39: N/A | BV39: N/A | BW39: N/A
B40: No | C40: N/A | D40: N/A | E40: N/A | F40: N/A | G40: N/A | H40: N/A | I40: N/A | J40: N/A | K40: N/A | L40: N/A | M40: N/A | N40: N/A | O40: N/A | P40: N/A | Q40: N/A | R40: N/A | S40: N/A | T40: N/A | U40: N/A | V40: N/A | W40: N/A | BB40: No | BC40: N/A | BD40: N/A | BE40: N/A | BF40: N/A | BG40: N/A | BH40: N/A | BI40: N/A | BJ40: N/A | BK40: N/A | BL40: N/A | BM40: N/A | BN40: N/A | BO40: N/A | BP40: N/A | BQ40: N/A | BR40: N/A | BS40: N/A | BT40: N/A | BU40: N/A | BV40: N/A | BW40: N/A
A41: Water point at more than 30 minutes | B41: Yes | C41: 40.03483496 | D41: 32.56003629 | E41: 18.29319167 | F41: 14.24927626 | G41: 4.276713746 | H41: 20.62191183 | I41: 15.23969806 | J41: 12.97204191 | K41: 8.26609353 | L41: 2.203299194 | M41: 48.97509452 | N41: 48.06357473 | O41: 49.29767815 | P41: 45.07627471 | Q41: 32.34753495 | R41: 11.88838119 | S41: 11.775617 | T41: 32.47159557 | U41: 14.20416489 | V41: 34.45914468 | W41: 24.64553419 | BA41: Water point at more than 30 minutes | BB41: Yes | BC41: N/A | BD41: N/A | BE41: N/A | BF41: N/A | BG41: N/A | BH41: N/A | BI41: N/A | BJ41: N/A | BK41: N/A | BL41: N/A | BM41: N/A | BN41: N/A | BO41: N/A | BP41: N/A | BQ41: N/A | BR41: N/A | BS41: N/A | BT41: N/A | BU41: N/A | BV41: N/A | BW41: N/A
B42: No | C42: 59.96516504 | D42: 67.43996371 | E42: 81.70680833 | F42: 85.75072374 | G42: 95.72328625 | H42: 79.37808817 | I42: 84.76030194 | J42: 87.02795809 | K42: 91.73390647 | L42: 97.79670081 | M42: 51.02490548 | N42: 51.93642527 | O42: 50.70232185 | P42: 54.92372529 | Q42: 67.65246505 | R42: 88.11161881 | S42: 88.224383 | T42: 67.52840443 | U42: 85.79583511 | V42: 65.54085532 | W42: 75.35446581 | BB42: No | BC42: N/A | BD42: N/A | BE42: N/A | BF42: N/A | BG42: N/A | BH42: N/A | BI42: N/A | BJ42: N/A | BK42: N/A | BL42: N/A | BM42: N/A | BN42: N/A | BO42: N/A | BP42: N/A | BQ42: N/A | BR42: N/A | BS42: N/A | BT42: N/A | BU42: N/A | BV42: N/A | BW42: N/A
A43: Water source available when needed | B43: Yes | C43: N/A | D43: N/A | E43: N/A | F43: N/A | G43: N/A | H43: N/A | I43: N/A | J43: N/A | K43: N/A | L43: N/A | M43: N/A | N43: N/A | O43: N/A | P43: N/A | Q43: N/A | R43: N/A | S43: N/A | T43: N/A | U43: N/A | V43: N/A | W43: N/A | BA43: Water source available when needed | BB43: Yes | BC43: N/A | BD43: N/A | BE43: N/A | BF43: N/A | BG43: N/A | BH43: N/A | BI43: N/A | BJ43: N/A | BK43: N/A | BL43: N/A | BM43: N/A | BN43: N/A | BO43: N/A | BP43: N/A | BQ43: N/A | BR43: N/A | BS43: N/A | BT43: N/A | BU43: N/A | BV43: N/A | BW43: N/A
B44: No | C44: N/A | D44: N/A | E44: N/A | F44: N/A | G44: N/A | H44: N/A | I44: N/A | J44: N/A | K44: N/A | L44: N/A | M44: N/A | N44: N/A | O44: N/A | P44: N/A | Q44: N/A | R44: N/A | S44: N/A | T44: N/A | U44: N/A | V44: N/A | W44: N/A | BB44: No | BC44: N/A | BD44: N/A | BE44: N/A | BF44: N/A | BG44: N/A | BH44: N/A | BI44: N/A | BJ44: N/A | BK44: N/A | BL44: N/A | BM44: N/A | BN44: N/A | BO44: N/A | BP44: N/A | BQ44: N/A | BR44: N/A | BS44: N/A | BT44: N/A | BU44: N/A | BV44: N/A | BW44: N/A
A45: Improved water source available when needed | B45: Yes | C45: N/A | D45: N/A | E45: N/A | F45: N/A | G45: N/A | H45: N/A | I45: N/A | J45: N/A | K45: N/A | L45: N/A | M45: N/A | N45: N/A | O45: N/A | P45: N/A | Q45: N/A | R45: N/A | S45: N/A | T45: N/A | U45: N/A | V45: N/A | W45: N/A | BA45: Improved water source available when needed | BB45: Yes | BC45: N/A | BD45: N/A | BE45: N/A | BF45: N/A | BG45: N/A | BH45: N/A | BI45: N/A | BJ45: N/A | BK45: N/A | BL45: N/A | BM45: N/A | BN45: N/A | BO45: N/A | BP45: N/A | BQ45: N/A | BR45: N/A | BS45: N/A | BT45: N/A | BU45: N/A | BV45: N/A | BW45: N/A
B46: No | C46: N/A | D46: N/A | E46: N/A | F46: N/A | G46: N/A | H46: N/A | I46: N/A | J46: N/A | K46: N/A | L46: N/A | M46: N/A | N46: N/A | O46: N/A | P46: N/A | Q46: N/A | R46: N/A | S46: N/A | T46: N/A | U46: N/A | V46: N/A | W46: N/A | BB46: No | BC46: N/A | BD46: N/A | BE46: N/A | BF46: N/A | BG46: N/A | BH46: N/A | BI46: N/A | BJ46: N/A | BK46: N/A | BL46: N/A | BM46: N/A | BN46: N/A | BO46: N/A | BP46: N/A | BQ46: N/A | BR46: N/A | BS46: N/A | BT46: N/A | BU46: N/A | BV46: N/A | BW46: N/A
A47: Microbiological quality at point of collection | B47: Not contaminated (No E. coli in 100 mL) | C47: N/A | D47: N/A | E47: N/A | F47: N/A | G47: N/A | H47: N/A | I47: N/A | J47: N/A | K47: N/A | L47: N/A | M47: N/A | N47: N/A | O47: N/A | P47: N/A | Q47: N/A | R47: N/A | S47: N/A | T47: N/A | U47: N/A | V47: N/A | W47: N/A | BA47: Microbiological quality at point of collection | BB47: Not contaminated (No E. coli in 100 mL) | BC47: N/A | BD47: N/A | BE47: N/A | BF47: N/A | BG47: N/A | BH47: N/A | BI47: N/A | BJ47: N/A | BK47: N/A | BL47: N/A | BM47: N/A | BN47: N/A | BO47: N/A | BP47: N/A | BQ47: N/A | BR47: N/A | BS47: N/A | BT47: N/A | BU47: N/A | BV47: N/A | BW47: N/A
B48: Contaminated (E. coli detected in 100 mL) | C48: N/A | D48: N/A | E48: N/A | F48: N/A | G48: N/A | H48: N/A | I48: N/A | J48: N/A | K48: N/A | L48: N/A | M48: N/A | N48: N/A | O48: N/A | P48: N/A | Q48: N/A | R48: N/A | S48: N/A | T48: N/A | U48: N/A | V48: N/A | W48: N/A | BB48: Contaminated (E. coli detected in 100 mL) | BC48: N/A | BD48: N/A | BE48: N/A | BF48: N/A | BG48: N/A | BH48: N/A | BI48: N/A | BJ48: N/A | BK48: N/A | BL48: N/A | BM48: N/A | BN48: N/A | BO48: N/A | BP48: N/A | BQ48: N/A | BR48: N/A | BS48: N/A | BT48: N/A | BU48: N/A | BV48: N/A | BW48: N/A
B49: Highly contaminated (>100 CFU/100 mL) | C49: N/A | D49: N/A | E49: N/A | F49: N/A | G49: N/A | H49: N/A | I49: N/A | J49: N/A | K49: N/A | L49: N/A | M49: N/A | N49: N/A | O49: N/A | P49: N/A | Q49: N/A | R49: N/A | S49: N/A | T49: N/A | U49: N/A | V49: N/A | W49: N/A | BB49: Highly contaminated (>100 CFU/100 mL) | BC49: N/A | BD49: N/A | BE49: N/A | BF49: N/A | BG49: N/A | BH49: N/A | BI49: N/A | BJ49: N/A | BK49: N/A | BL49: N/A | BM49: N/A | BN49: N/A | BO49: N/A | BP49: N/A | BQ49: N/A | BR49: N/A | BS49: N/A | BT49: N/A | BU49: N/A | BV49: N/A | BW49: N/A
A50: Microbiological quality of improved water sources at point of collection | B50: Not contaminated (No E. coli in 100 mL) | C50: N/A | D50: N/A | E50: N/A | F50: N/A | G50: N/A | H50: N/A | I50: N/A | J50: N/A | K50: N/A | L50: N/A | M50: N/A | N50: N/A | O50: N/A | P50: N/A | Q50: N/A | R50: N/A | S50: N/A | T50: N/A | U50: N/A | V50: N/A | W50: N/A | BA50: Microbiological quality of improved water sources at point of collection | BB50: Not contaminated (No E. coli in 100 mL) | BC50: N/A | BD50: N/A | BE50: N/A | BF50: N/A | BG50: N/A | BH50: N/A | BI50: N/A | BJ50: N/A | BK50: N/A | BL50: N/A | BM50: N/A | BN50: N/A | BO50: N/A | BP50: N/A | BQ50: N/A | BR50: N/A | BS50: N/A | BT50: N/A | BU50: N/A | BV50: N/A | BW50: N/A
B51: Contaminated (E. coli detected in 100 mL) | C51: N/A | D51: N/A | E51: N/A | F51: N/A | G51: N/A | H51: N/A | I51: N/A | J51: N/A | K51: N/A | L51: N/A | M51: N/A | N51: N/A | O51: N/A | P51: N/A | Q51: N/A | R51: N/A | S51: N/A | T51: N/A | U51: N/A | V51: N/A | W51: N/A | BB51: Contaminated (E. coli detected in 100 mL) | BC51: N/A | BD51: N/A | BE51: N/A | BF51: N/A | BG51: N/A | BH51: N/A | BI51: N/A | BJ51: N/A | BK51: N/A | BL51: N/A | BM51: N/A | BN51: N/A | BO51: N/A | BP51: N/A | BQ51: N/A | BR51: N/A | BS51: N/A | BT51: N/A | BU51: N/A | BV51: N/A | BW51: N/A
B52: Highly contaminated (>100 CFU/100 mL) | C52: N/A | D52: N/A | E52: N/A | F52: N/A | G52: N/A | H52: N/A | I52: N/A | J52: N/A | K52: N/A | L52: N/A | M52: N/A | N52: N/A | O52: N/A | P52: N/A | Q52: N/A | R52: N/A | S52: N/A | T52: N/A | U52: N/A | V52: N/A | W52: N/A | BB52: Highly contaminated (>100 CFU/100 mL) | BC52: N/A | BD52: N/A | BE52: N/A | BF52: N/A | BG52: N/A | BH52: N/A | BI52: N/A | BJ52: N/A | BK52: N/A | BL52: N/A | BM52: N/A | BN52: N/A | BO52: N/A | BP52: N/A | BQ52: N/A | BR52: N/A | BS52: N/A | BT52: N/A | BU52: N/A | BV52: N/A | BW52: N/A
A53: Microbiological quality of piped on premises at point of collection | B53: Not contaminated (No E. coli in 100 mL) | C53: N/A | D53: N/A | E53: N/A | F53: N/A | G53: N/A | H53: N/A | I53: N/A | J53: N/A | K53: N/A | L53: N/A | M53: N/A | N53: N/A | O53: N/A | P53: N/A | Q53: N/A | R53: N/A | S53: N/A | T53: N/A | U53: N/A | V53: N/A | W53: N/A | BA53: Microbiological quality of piped on premises at point of collection | BB53: Not contaminated (No E. coli in 100 mL) | BC53: N/A | BD53: N/A | BE53: N/A | BF53: N/A | BG53: N/A | BH53: N/A | BI53: N/A | BJ53: N/A | BK53: N/A | BL53: N/A | BM53: N/A | BN53: N/A | BO53: N/A | BP53: N/A | BQ53: N/A | BR53: N/A | BS53: N/A | BT53: N/A | BU53: N/A | BV53: N/A | BW53: N/A
B54: Contaminated (E. coli detected in 100 mL) | C54: N/A | D54: N/A | E54: N/A | F54: N/A | G54: N/A | H54: N/A | I54: N/A | J54: N/A | K54: N/A | L54: N/A | M54: N/A | N54: N/A | O54: N/A | P54: N/A | Q54: N/A | R54: N/A | S54: N/A | T54: N/A | U54: N/A | V54: N/A | W54: N/A | BB54: Contaminated (E. coli detected in 100 mL) | BC54: N/A | BD54: N/A | BE54: N/A | BF54: N/A | BG54: N/A | BH54: N/A | BI54: N/A | BJ54: N/A | BK54: N/A | BL54: N/A | BM54: N/A | BN54: N/A | BO54: N/A | BP54: N/A | BQ54: N/A | BR54: N/A | BS54: N/A | BT54: N/A | BU54: N/A | BV54: N/A | BW54: N/A
B55: Highly contaminated (>100 CFU/100 mL) | C55: N/A | D55: N/A | E55: N/A | F55: N/A | G55: N/A | H55: N/A | I55: N/A | J55: N/A | K55: N/A | L55: N/A | M55: N/A | N55: N/A | O55: N/A | P55: N/A | Q55: N/A | R55: N/A | S55: N/A | T55: N/A | U55: N/A | V55: N/A | W55: N/A | BB55: Highly contaminated (>100 CFU/100 mL) | BC55: N/A | BD55: N/A | BE55: N/A | BF55: N/A | BG55: N/A | BH55: N/A | BI55: N/A | BJ55: N/A | BK55: N/A | BL55: N/A | BM55: N/A | BN55: N/A | BO55: N/A | BP55: N/A | BQ55: N/A | BR55: N/A | BS55: N/A | BT55: N/A | BU55: N/A | BV55: N/A | BW55: N/A
C56: NATIONAL wealth index quintile | H56: URBAN wealth index quintile | M56: RURAL wealth index quintile | R56: SUB-REGIONS: | BA56: Raw numbers of respondents: | BB56: Use of drinking water sources | BC56: NATIONAL wealth index quintile | BH56: URBAN wealth index quintile | BM56: RURAL wealth index quintile | BR56: SUB-REGIONS:
A57: Percentage based on weighted population | C57: Poorest | D57: Poor | E57: Middle | F57: Rich | G57: Richest | H57: Poorest | I57: Poor | J57: Middle | K57: Rich | L57: Richest | M57: Poorest | N57: Poor | O57: Middle | P57: Rich | Q57: Richest | R57: capital | S57: centro sul | T57: este | U57: norte | V57: oeste | W57: sul | BA57: Water data, raw numbers (weighted) | BC57: Poorest | BD57: Poor | BE57: Middle | BF57: Rich | BG57: Richest | BH57: Poorest | BI57: Poor | BJ57: Middle | BK57: Rich | BL57: Richest | BM57: Poorest | BN57: Poor | BO57: Middle | BP57: Rich | BQ57: Richest | BR57: capital | BS57: centro sul | BT57: este | BU57: norte | BV57: oeste | BW57: sul
A58: principal fonte de água | B58: agua canalizada dentro de casa | C58: 0 | D58: 0.5539832057 | E58: 0.2954903488 | F58: 2.088781689 | G58: 19.55974694 | H58: 0.7888213115 | I58: 0 | J58: 1.16808974 | K58: 4.999053056 | L58: 24.94744708 | M58: 0 | N58: 0 | O58: 0 | P58: 0 | Q58: 0.9192302956 | R58: 11.25734141 | S58: 1.12444811 | T58: 0.5312580618 | U58: 0.4317958581 | V58: 7.988065197 | W58: 5.752175862
B59: agua canalizada no quintal | C59: 0.9572582338 | D59: 1.117579881 | E59: 2.469362949 | F59: 3.898343084 | G59: 11.14520333 | H59: 2.373175883 | I59: 2.521967437 | J59: 2.49680037 | K59: 7.272906705 | L59: 12.1443924 | M59: 0.2788803497 | N59: 0.268040051 | O59: 0.2077575781 | P59: 0 | Q59: 2.325266208 | R59: 6.814726399 | S59: 2.564593738 | T59: 3.105816361 | U59: 0.2458321557 | V59: 5.040544524 | W59: 5.57852527
B60: chafariz, fontenário | C60: 12.29213723 | D60: 14.94038725 | E60: 14.40472555 | F60: 19.69962006 | G60: 13.03627392 | H60: 16.16023605 | I60: 16.32421814 | J60: 19.10333355 | K60: 17.71599249 | L60: 12.22229424 | M60: 9.695919357 | N60: 10.37827444 | O60: 11.45425131 | P60: 16.07230409 | Q60: 10.37834845 | R60: 21.60554053 | S60: 14.78093541 | T60: 5.312371184 | U60: 11.05347442 | V60: 31.25306907 | W60: 7.064866389
B61: torneira do vizinho | C61: 3.740430475 | D61: 6.686087072 | E61: 5.780645094 | F61: 12.7683763 | G61: 21.86693995 | H61: 12.96546108 | I61: 7.516072546 | J61: 11.49300749 | K61: 17.55392877 | L61: 22.67861704 | M61: 0 | N61: 0 | O61: 0.2410891922 | P61: 0.8495627904 | Q61: 0.8060759294 | R61: 17.31398242 | S61: 0.1863772623 | T61: 12.50499745 | U61: 1.07333769 | V61: 12.6074889 | W61: 15.88902917
B62: furo com bomba | C62: 7.712201076 | D62: 6.724946348 | E62: 6.881708041 | F62: 9.080192563 | G62: 4.911049728 | H62: 6.180514114 | I62: 6.436704046 | J62: 6.802302192 | K62: 9.575132043 | L62: 3.987083233 | M62: 7.264627459 | N62: 9.690891401 | O62: 5.819969706 | P62: 8.429447528 | Q62: 9.688640512 | R62: 1.718699891 | S62: 16.99562133 | T62: 0 | U62: 6.25863209 | V62: 1.156320287 | W62: 16.85036019
B63: poço protegido | C63: 12.99143537 | D63: 15.52464585 | E63: 17.54621728 | F63: 16.86696184 | G63: 4.159908581 | H63: 19.80540966 | I63: 18.99940546 | J63: 18.31913987 | K63: 10.35018352 | L63: 3.374715432 | M63: 11.7430015 | N63: 8.74692274 | O63: 8.784536062 | P63: 12.19110775 | Q63: 17.09313511 | R63: 3.772675428 | S63: 33.57752334 | T63: 0.8628235893 | U63: 28.86127507 | V63: 8.021469892 | W63: 8.577693984
B64: nascente protegido | C64: 5.507354143 | D64: 8.981574644 | E64: 12.57954801 | F64: 6.69250887 | G64: 3.629857785 | H64: 7.379024486 | I64: 14.09331727 | J64: 8.822389053 | K64: 6.277331344 | L64: 1.891428626 | M64: 4.987287256 | N64: 4.987560514 | O64: 3.968805527 | P64: 9.506506003 | Q64: 11.64757894 | R64: 0.5326441973 | S64: 4.217280826 | T64: 18.24001034 | U64: 20.44947167 | V64: 0.3106079019 | W64: 0.3473011841
B65: rcolha de agua da chuva | C65: 0.1578884036 | D65: 0.05625629726 | E65: 0.07393716007 | F65: 0 | G65: 0 | H65: 0.08010381133 | I65: 0.1069138792 | J65: 0 | K65: 0 | L65: 0 | M65: 0 | N65: 0.5485376067 | O65: 0 | P65: 0 | Q65: 0 | R65: 0.06806240387 | S65: 0 | T65: 0.1430310166 | U65: 0.125820066 | V65: 0 | W65: 0
B66: poço não protegido | C66: 12.56193879 | D66: 10.69824536 | E66: 8.470376285 | F66: 5.213202196 | G66: 2.069283851 | H66: 10.85345157 | I66: 7.332071513 | J66: 6.706789747 | K66: 3.293519464 | L66: 1.223797968 | M66: 15.22789545 | N66: 9.860839359 | O66: 13.00646696 | P66: 12.44602235 | Q66: 10.25325296 | R66: 2.022462522 | S66: 13.68595406 | T66: 0.530665286 | U66: 7.087375948 | V66: 7.329652338 | W66: 16.6953577
B67: nascente não protegido | C67: 1.499532977 | D67: 2.682109095 | E67: 2.231574826 | F67: 0.9546095652 | G67: 0 | H67: 1.989234365 | I67: 2.256553777 | J67: 1.256982996 | K67: 0.6990658684 | L67: 0 | M67: 0.5637756936 | N67: 2.201808204 | O67: 2.458020726 | P67: 3.588531938 | Q67: 1.196291032 | R67: 0.04594833228 | S67: 1.723043954 | T67: 0.2481075491 | U67: 5.773394917 | V67: 0.3494338897 | W67: 0.9268959854
B68: lagoa, rio ou riacho | C68: 40.1478659 | D68: 27.87861941 | E68: 22.14658065 | F68: 12.75704866 | G68: 3.427853484 | H68: 18.45732363 | I68: 16.87212191 | J68: 15.51738883 | K68: 6.430765779 | L68: 2.897957126 | M68: 47.39801959 | N68: 50.90358853 | O68: 50.40782316 | P68: 33.64818265 | Q68: 29.51314189 | R68: 15.88612522 | S68: 11.14422196 | T68: 43.64919772 | U68: 17.20669773 | V68: 18.14811122 | W68: 18.6227448
B69: camião cisterna de distribuição | C69: 0.3721750615 | D69: 2.392902288 | E69: 5.956291566 | F69: 5.8798596 | G69: 9.177516371 | H69: 1.953286512 | I69: 6.663630018 | J69: 6.286764156 | K69: 7.897265277 | L69: 9.103586915 | M69: 0 | N69: 0 | O69: 0.5983357909 | P69: 0.2802641009 | Q69: 4.329926681 | R69: 4.281609558 | S69: 0 | T69: 14.85479273 | U69: 0 | V69: 6.986723768 | W69: 1.271028765
B70: outro | C70: 2.059782348 | D70: 1.762663309 | E70: 1.163542234 | F70: 4.100495583 | G70: 7.01636606 | H70: 1.013957526 | I70: 0.8770240084 | J70: 2.027012016 | K70: 7.934855691 | L70: 5.528679939 | M70: 2.840593339 | N70: 2.413537159 | O70: 3.05294399 | P70: 2.988070792 | Q70: 1.849111994 | R70: 14.68018168 | S70: 0 | T70: 0.01692870601 | U70: 1.432892389 | V70: 0.8085130166 | W70: 2.424020698
A108: =A1026 -> Angola
A109: =A1034 -> 2000
A110: Use of sanitation facilities
A111: by wealth quintile and sub-national region
A112: Notes:
A113: WHO/UNICEF JMP customised wealth index excludes water,
A114: sanitation and hygiene assets.
A115: Survey used for analysis: | B115: =A1025 -> MICS00
A116: =B1030 -> Ratio of Improved latrines based on: | B116: MIS07
A117: Rtio of shared based on: | B117: DHS16
A120: Use of sanitation facilities | C120: NATIONAL wealth index quintile | H120: URBAN wealth index quintile | M120: RURAL wealth index quintile | R120: SUB-REGIONS: | BA120: Raw numbers of respondents: | BB120: Use of sanitation facilities | BC120: NATIONAL wealth index quintile | BH120: URBAN wealth index quintile | BM120: RURAL wealth index quintile | BR120: SUB-REGIONS:
A121: Weighted percentage (used in graphs) | C121: Poorest | D121: Poor | E121: Middle | F121: Rich | G121: Richest | H121: Poorest | I121: Poor | J121: Middle | K121: Rich | L121: Richest | M121: Poorest | N121: Poor | O121: Middle | P121: Rich | Q121: Richest | R121: capital | S121: centro sul | T121: este | U121: norte | V121: oeste | W121: sul | BA121: Sanitation data, raw numbers (weighted) | BC121: Poorest | BD121: Poor | BE121: Middle | BF121: Rich | BG121: Richest | BH121: Poorest | BI121: Poor | BJ121: Middle | BK121: Rich | BL121: Richest | BM121: Poorest | BN121: Poor | BO121: Middle | BP121: Rich | BQ121: Richest | BR121: capital | BS121: centro sul | BT121: este | BU121: norte | BV121: oeste | BW121: sul
A122: Sanitation | B122: Improved | C122: =C135+C136+C137 -> 5.363407016 | D122: =D135+D136+D137 -> 13.18115021 | E122: 38.66048583 | F122: 49.22280954 | G122: 76.23615489 | H122: 29.52057082 | I122: 47.82121527 | J122: 52.51216642 | K122: 63.29556012 | L122: 78.60537092 | M122: 0.9434442114 | N122: 3.829249318 | O122: 5.534942146 | P122: 6.107854352 | Q122: 23.00630986 | R122: N/A | S122: N/A | T122: N/A | U122: N/A | V122: N/A | W122: N/A | BA122: Sanitation | BB122: Improved | BC122: N/A | BD122: N/A | BE122: N/A | BF122: N/A | BG122: N/A | BH122: N/A | BI122: N/A | BJ122: N/A | BK122: N/A | BL122: N/A | BM122: N/A | BN122: N/A | BO122: N/A | BP122: N/A | BQ122: N/A | BR122: N/A | BS122: N/A | BT122: N/A | BU122: N/A | BV122: N/A | BW122: N/A
B123: Not Improved | C123: =100-C122 -> 94.63659298 | D123: =100-D122 -> 86.81884979 | E123: 61.33951417 | F123: 50.77719046 | G123: 23.76384511 | H123: 70.47942918 | I123: 52.17878473 | J123: 47.48783358 | K123: 36.70443988 | L123: 21.39462908 | M123: 99.05655579 | N123: 96.17075068 | O123: 94.46505785 | P123: 93.89214565 | Q123: 76.99369014 | R123: N/A | S123: N/A | T123: N/A | U123: N/A | V123: N/A | W123: N/A | BB123: Not Improved | BC123: N/A | BD123: N/A | BE123: N/A | BF123: N/A | BG123: N/A | BH123: N/A | BI123: N/A | BJ123: N/A | BK123: N/A | BL123: N/A | BM123: N/A | BN123: N/A | BO123: N/A | BP123: N/A | BQ123: N/A | BR123: N/A | BS123: N/A | BT123: N/A | BU123: N/A | BV123: N/A | BW123: N/A
A124: Sanitation ladder | B124: Basic | C124: =C122*'DHS16'!C129/100 -> 3.890176189 | D124: =D122*'DHS16'!D129/100 -> 8.656965022 | E124: =E122*'DHS16'!E129/100 -> 22.8938793 | F124: =F122*'DHS16'!F129/100 -> 32.4990552 | G124: =G122*'DHS16'!G129/100 -> 66.93528194 | H124: =H122*'DHS16'!H129/100 -> 15.30847087 | I124: =I122*'DHS16'!I129/100 -> 27.54528886 | J124: =J122*'DHS16'!J129/100 -> 32.66443797 | K124: =K122*'DHS16'!K129/100 -> 47.24447049 | L124: =L122*'DHS16'!L129/100 -> 73.3413307 | M124: =M122*'DHS16'!M129/100 -> 0.7366969322 | N124: =N122*'DHS16'!N129/100 -> 2.951689845 | O124: =O122*'DHS16'!O129/100 -> 4.597843296 | P124: =P122*'DHS16'!P129/100 -> 4.81632442 | Q124: =Q122*'DHS16'!Q129/100 -> 18.27989158 | R124: N/A | S124: N/A | T124: N/A | U124: N/A | V124: N/A | W124: N/A | BA124: Sanitation ladder | BB124: Basic | BC124: N/A | BD124: N/A | BE124: N/A | BF124: N/A | BG124: N/A | BH124: N/A | BI124: N/A | BJ124: N/A | BK124: N/A | BL124: N/A | BM124: N/A | BN124: N/A | BO124: N/A | BP124: N/A | BQ124: N/A | BR124: N/A | BS124: N/A | BT124: N/A | BU124: N/A | BV124: N/A | BW124: N/A
B125: Limited | C125: =C122*'DHS16'!C128/100 -> 1.473230827 | D125: =D122*'DHS16'!D128/100 -> 4.524185192 | E125: =E122*'DHS16'!E128/100 -> 15.76660653 | F125: =F122*'DHS16'!F128/100 -> 16.72375434 | G125: =G122*'DHS16'!G128/100 -> 9.300872945 | H125: =H122*'DHS16'!H128/100 -> 14.21209995 | I125: =I122*'DHS16'!I128/100 -> 20.27592641 | J125: =J122*'DHS16'!J128/100 -> 19.84772845 | K125: =K122*'DHS16'!K128/100 -> 16.05108963 | L125: =L122*'DHS16'!L128/100 -> 5.264040219 | M125: =M122*'DHS16'!M128/100 -> 0.2067472792 | N125: =N122*'DHS16'!N128/100 -> 0.8775594727 | O125: =O122*'DHS16'!O128/100 -> 0.9370988496 | P125: =P122*'DHS16'!P128/100 -> 1.291529932 | Q125: =Q122*'DHS16'!Q128/100 -> 4.726418275 | R125: N/A | S125: N/A | T125: N/A | U125: N/A | V125: N/A | W125: N/A | BB125: Limited | BC125: N/A | BD125: N/A | BE125: N/A | BF125: N/A | BG125: N/A | BH125: N/A | BI125: N/A | BJ125: N/A | BK125: N/A | BL125: N/A | BM125: N/A | BN125: N/A | BO125: N/A | BP125: N/A | BQ125: N/A | BR125: N/A | BS125: N/A | BT125: N/A | BU125: N/A | BV125: N/A | BW125: N/A
B126: Unimproved | C126: =100-C124-C125-C127 -> 26.65110392 | D126: =100-D124-D125-D127 -> 33.88177807 | E126: 27.65308598 | F126: 20.58267423 | G126: 13.93258761 | H126: 32.63972845 | I126: 23.96507735 | J126: 21.37201207 | K126: 16.30439019 | L126: 15.14823006 | M126: 20.39082039 | N126: 14.51658901 | O126: 16.75558136 | P126: 20.21593495 | Q126: 20.57019721 | R126: N/A | S126: N/A | T126: N/A | U126: N/A | V126: N/A | W126: N/A | BB126: Unimproved | BC126: N/A | BD126: N/A | BE126: N/A | BF126: N/A | BG126: N/A | BH126: N/A | BI126: N/A | BJ126: N/A | BK126: N/A | BL126: N/A | BM126: N/A | BN126: N/A | BO126: N/A | BP126: N/A | BQ126: N/A | BR126: N/A | BS126: N/A | BT126: N/A | BU126: N/A | BV126: N/A | BW126: N/A
B127: Open defecation | C127: =C160 -> 67.98548906 | D127: =D160 -> 52.93707171 | E127: 33.68642819 | F127: 30.19451622 | G127: 9.831257506 | H127: 37.83970073 | I127: 28.21370738 | J127: 26.11582151 | K127: 20.40004969 | L127: 6.246399024 | M127: 78.6657354 | N127: 81.65416167 | O127: 77.70947649 | P127: 73.6762107 | Q127: 56.42349293 | R127: N/A | S127: N/A | T127: N/A | U127: N/A | V127: N/A | W127: N/A | BB127: Open defecation | BC127: N/A | BD127: N/A | BE127: N/A | BF127: N/A | BG127: N/A | BH127: N/A | BI127: N/A | BJ127: N/A | BK127: N/A | BL127: N/A | BM127: N/A | BN127: N/A | BO127: N/A | BP127: N/A | BQ127: N/A | BR127: N/A | BS127: N/A | BT127: N/A | BU127: N/A | BV127: N/A | BW127: N/A
A128: Shared among Improved Sanitation | B128: Yes | C128: N/A | D128: N/A | E128: N/A | F128: N/A | G128: N/A | H128: N/A | I128: N/A | J128: N/A | K128: N/A | L128: N/A | M128: N/A | N128: N/A | O128: N/A | P128: N/A | Q128: N/A | R128: N/A | S128: N/A | T128: N/A | U128: N/A | V128: N/A | W128: N/A | BA128: Shared among improved sanitation facilities | BB128: Yes | BC128: N/A | BD128: N/A | BE128: N/A | BF128: N/A | BG128: N/A | BH128: N/A | BI128: N/A | BJ128: N/A | BK128: N/A | BL128: N/A | BM128: N/A | BN128: N/A | BO128: N/A | BP128: N/A | BQ128: N/A | BR128: N/A | BS128: N/A | BT128: N/A | BU128: N/A | BV128: N/A | BW128: N/A
B129: No | C129: N/A | D129: N/A | E129: N/A | F129: N/A | G129: N/A | H129: N/A | I129: N/A | J129: N/A | K129: N/A | L129: N/A | M129: N/A | N129: N/A | O129: N/A | P129: N/A | Q129: N/A | R129: N/A | S129: N/A | T129: N/A | U129: N/A | V129: N/A | W129: N/A | BB129: No | BC129: N/A | BD129: N/A | BE129: N/A | BF129: N/A | BG129: N/A | BH129: N/A | BI129: N/A | BJ129: N/A | BK129: N/A | BL129: N/A | BM129: N/A | BN129: N/A | BO129: N/A | BP129: N/A | BQ129: N/A | BR129: N/A | BS129: N/A | BT129: N/A | BU129: N/A | BV129: N/A | BW129: N/A
A130: Manually calculated ratios | B130: Improved latrines
B131: Other
B132: Other
C133: NATIONAL wealth index quintile | H133: URBAN wealth index quintile | M133: RURAL wealth index quintile | R133: SUB-REGIONS: | BA133: Raw numbers of respondents: | BB133: Use of sanitation facilities | BC133: NATIONAL wealth index quintile | BH133: URBAN wealth index quintile | BM133: RURAL wealth index quintile | BR133: SUB-REGIONS:
A134: Percentage based on weighted population | C134: Poorest | D134: Poor | E134: Middle | F134: Rich | G134: Richest | H134: Poorest | I134: Poor | J134: Middle | K134: Rich | L134: Richest | M134: Poorest | N134: Poor | O134: Middle | P134: Rich | Q134: Richest | R134: capital | S134: centro sul | T134: este | U134: norte | V134: oeste | W134: sul | BA134: Sanitation data, raw numbers (weighted) | BC134: Poorest | BD134: Poor | BE134: Middle | BF134: Rich | BG134: Richest | BH134: Poorest | BI134: Poor | BJ134: Middle | BK134: Rich | BL134: Richest | BM134: Poorest | BN134: Poor | BO134: Middle | BP134: Rich | BQ134: Richest | BR134: capital | BS134: centro sul | BT134: este | BU134: norte | BV134: oeste | BW134: sul
A135: Sanitation type | B135: Sewer connection | C135: 1.753689006 | D135: 3.132230441 | E135: 6.098222114 | F135: 14.24527694 | G135: 43.09591385 | H135: 4.80662656 | I135: 7.611546761 | J135: 9.73256439 | K135: 20.28411208 | L135: 51.56481106 | M135: 0.6548438043 | N135: 0.291459906 | O135: 1.375994058 | P135: 1.502106039 | Q135: 5.681780653 | R135: 27.58847106 | S135: 12.26002414 | T135: 6.190014168 | U135: 9.361316106 | V135: 14.64227377 | W135: 12.62026782 | BA135: Sanitation type | BB135: Sewer connection | BC135: N/A | BD135: N/A | BE135: N/A | BF135: N/A | BG135: N/A | BH135: N/A | BI135: N/A | BJ135: N/A | BK135: N/A | BL135: N/A | BM135: N/A | BN135: N/A | BO135: N/A | BP135: N/A | BQ135: N/A | BR135: N/A | BS135: N/A | BT135: N/A | BU135: N/A | BV135: N/A | BW135: N/A
B136: Septic tank connection | C136: 2.326476297 | D136: 2.801167935 | E136: 4.589559612 | F136: 10.81811578 | G136: 21.72932819 | H136: 4.634953275 | I136: 5.878926142 | J136: 6.830497579 | K136: 19.16072244 | L136: 21.21731722 | M136: 0.2886004071 | N136: 1.795638914 | O136: 1.639276896 | P136: 0.9570063379 | Q136: 2.24798715 | R136: 19.02930403 | S136: 3.748005237 | T136: 3.412311397 | U136: 6.188661191 | V136: 5.755788401 | W136: 12.3965344 | BB136: Septic tank connection | BC136: N/A | BD136: N/A | BE136: N/A | BF136: N/A | BG136: N/A | BH136: N/A | BI136: N/A | BJ136: N/A | BK136: N/A | BL136: N/A | BM136: N/A | BN136: N/A | BO136: N/A | BP136: N/A | BQ136: N/A | BR136: N/A | BS136: N/A | BT136: N/A | BU136: N/A | BV136: N/A | BW136: N/A
B137: Improved latrines | C137: =C156*'MIS07'!C130/100 -> 1.283241713 | D137: =D156*'MIS07'!D130/100 -> 7.247751838 | E137: =E156*'MIS07'!E130/100 -> 27.97270411 | F137: =F156*'MIS07'!F130/100 -> 24.15941682 | G137: =G156*'MIS07'!G130/100 -> 11.41091285 | H137: =H156*'MIS07'!H130/100 -> 20.07899098 | I137: =I156*'MIS07'!I130/100 -> 34.33074237 | J137: =J156*'MIS07'!J130/100 -> 35.94910445 | K137: =K156*'MIS07'!K130/100 -> 23.8507256 | L137: =L156*'MIS07'!L130/100 -> 5.823242644 | M137: =M156*'MIS07'!M130/100 -> 0 | N137: =N156*'MIS07'!N130/100 -> 1.742150498 | O137: =O156*'MIS07'!O130/100 -> 2.519671192 | P137: =P156*'MIS07'!P130/100 -> 3.648741975 | Q137: =Q156*'MIS07'!Q130/100 -> 15.07654206 | R137: N/A | S137: N/A | T137: N/A | U137: N/A | V137: N/A | W137: N/A | BB137: Improved latrines | BC137: N/A | BD137: N/A | BE137: N/A | BF137: N/A | BG137: N/A | BH137: N/A | BI137: N/A | BJ137: N/A | BK137: N/A | BL137: N/A | BM137: N/A | BN137: N/A | BO137: N/A | BP137: N/A | BQ137: N/A | BR137: N/A | BS137: N/A | BT137: N/A | BU137: N/A | BV137: N/A | BW137: N/A
B138: Unimproved facilities | C138: =100-(C135+C136+C137+C139) -> 26.65110392 | D138: =100-(D135+D136+D137+D139) -> 33.88177807 | E138: 27.65308598 | F138: 20.58267423 | G138: 13.93258761 | H138: 32.63972845 | I138: 23.96507735 | J138: 21.37201207 | K138: 16.30439019 | L138: 15.14823006 | M138: 20.39082039 | N138: 14.51658901 | O138: 16.75558136 | P138: 20.21593495 | Q138: 20.57019721 | R138: 31.89753229 | S138: 69.14154938 | T138: 41.26749913 | U138: 58.11640233 | V138: 20.63795957 | W138: 16.17915994 | BB138: Unimproved facilities | BC138: N/A | BD138: N/A | BE138: N/A | BF138: N/A | BG138: N/A | BH138: N/A | BI138: N/A | BJ138: N/A | BK138: N/A | BL138: N/A | BM138: N/A | BN138: N/A | BO138: N/A | BP138: N/A | BQ138: N/A | BR138: N/A | BS138: N/A | BT138: N/A | BU138: N/A | BV138: N/A | BW138: N/A
B139: Open defecation | C139: =C160 -> 67.98548906 | D139: =D160 -> 52.93707171 | E139: 33.68642819 | F139: 30.19451622 | G139: 9.831257506 | H139: 37.83970073 | I139: 28.21370738 | J139: 26.11582151 | K139: 20.40004969 | L139: 6.246399024 | M139: 78.6657354 | N139: 81.65416167 | O139: 77.70947649 | P139: 73.6762107 | Q139: 56.42349293 | R139: 21.48469262 | S139: 14.86993456 | T139: 49.13849381 | U139: 26.33362037 | V139: 58.96397826 | W139: 58.89137573 | BB139: Open defecation | BC139: N/A | BD139: N/A | BE139: N/A | BF139: N/A | BG139: N/A | BH139: N/A | BI139: N/A | BJ139: N/A | BK139: N/A | BL139: N/A | BM139: N/A | BN139: N/A | BO139: N/A | BP139: N/A | BQ139: N/A | BR139: N/A | BS139: N/A | BT139: N/A | BU139: N/A | BV139: N/A | BW139: N/A
A140: Septic tank emptying practices | B140: Not emptied/treated and disposed in situ | C140: N/A | D140: N/A | E140: N/A | F140: N/A | G140: N/A | H140: N/A | I140: N/A | J140: N/A | K140: N/A | L140: N/A | M140: N/A | N140: N/A | O140: N/A | P140: N/A | Q140: N/A | R140: N/A | S140: N/A | T140: N/A | U140: N/A | V140: N/A | W140: N/A | BA140: Septic tank emptying practices | BB140: Not emptied/treated and disposed in situ | BC140: N/A | BD140: N/A | BE140: N/A | BF140: N/A | BG140: N/A | BH140: N/A | BI140: N/A | BJ140: N/A | BK140: N/A | BL140: N/A | BM140: N/A | BN140: N/A | BO140: N/A | BP140: N/A | BQ140: N/A | BR140: N/A | BS140: N/A | BT140: N/A | BU140: N/A | BV140: N/A | BW140: N/A
B141: Emptied and buried on site | C141: N/A | D141: N/A | E141: N/A | F141: N/A | G141: N/A | H141: N/A | I141: N/A | J141: N/A | K141: N/A | L141: N/A | M141: N/A | N141: N/A | O141: N/A | P141: N/A | Q141: N/A | R141: N/A | S141: N/A | T141: N/A | U141: N/A | V141: N/A | W141: N/A | BB141: Emptied and buried on site | BC141: N/A | BD141: N/A | BE141: N/A | BF141: N/A | BG141: N/A | BH141: N/A | BI141: N/A | BJ141: N/A | BK141: N/A | BL141: N/A | BM141: N/A | BN141: N/A | BO141: N/A | BP141: N/A | BQ141: N/A | BR141: N/A | BS141: N/A | BT141: N/A | BU141: N/A | BV141: N/A | BW141: N/A
B142: Emptied and discharged locally | C142: N/A | D142: N/A | E142: N/A | F142: N/A | G142: N/A | H142: N/A | I142: N/A | J142: N/A | K142: N/A | L142: N/A | M142: N/A | N142: N/A | O142: N/A | P142: N/A | Q142: N/A | R142: N/A | S142: N/A | T142: N/A | U142: N/A | V142: N/A | W142: N/A | BB142: Emptied and discharged locally | BC142: N/A | BD142: N/A | BE142: N/A | BF142: N/A | BG142: N/A | BH142: N/A | BI142: N/A | BJ142: N/A | BK142: N/A | BL142: N/A | BM142: N/A | BN142: N/A | BO142: N/A | BP142: N/A | BQ142: N/A | BR142: N/A | BS142: N/A | BT142: N/A | BU142: N/A | BV142: N/A | BW142: N/A
B143: Emptied and removed offsite | C143: N/A | D143: N/A | E143: N/A | F143: N/A | G143: N/A | H143: N/A | I143: N/A | J143: N/A | K143: N/A | L143: N/A | M143: N/A | N143: N/A | O143: N/A | P143: N/A | Q143: N/A | R143: N/A | S143: N/A | T143: N/A | U143: N/A | V143: N/A | W143: N/A | BB143: Emptied and removed offsite | BC143: N/A | BD143: N/A | BE143: N/A | BF143: N/A | BG143: N/A | BH143: N/A | BI143: N/A | BJ143: N/A | BK143: N/A | BL143: N/A | BM143: N/A | BN143: N/A | BO143: N/A | BP143: N/A | BQ143: N/A | BR143: N/A | BS143: N/A | BT143: N/A | BU143: N/A | BV143: N/A | BW143: N/A
A144: Latrine emptying practices | B144: Not emptied/treated and disposed in situ | C144: N/A | D144: N/A | E144: N/A | F144: N/A | G144: N/A | H144: N/A | I144: N/A | J144: N/A | K144: N/A | L144: N/A | M144: N/A | N144: N/A | O144: N/A | P144: N/A | Q144: N/A | R144: N/A | S144: N/A | T144: N/A | U144: N/A | V144: N/A | W144: N/A | BA144: Latrine emptying practices | BB144: Not emptied/treated and disposed in situ | BC144: N/A | BD144: N/A | BE144: N/A | BF144: N/A | BG144: N/A | BH144: N/A | BI144: N/A | BJ144: N/A | BK144: N/A | BL144: N/A | BM144: N/A | BN144: N/A | BO144: N/A | BP144: N/A | BQ144: N/A | BR144: N/A | BS144: N/A | BT144: N/A | BU144: N/A | BV144: N/A | BW144: N/A
B145: Emptied and buried on site | C145: N/A | D145: N/A | E145: N/A | F145: N/A | G145: N/A | H145: N/A | I145: N/A | J145: N/A | K145: N/A | L145: N/A | M145: N/A | N145: N/A | O145: N/A | P145: N/A | Q145: N/A | R145: N/A | S145: N/A | T145: N/A | U145: N/A | V145: N/A | W145: N/A | BB145: Emptied and buried on site | BC145: N/A | BD145: N/A | BE145: N/A | BF145: N/A | BG145: N/A | BH145: N/A | BI145: N/A | BJ145: N/A | BK145: N/A | BL145: N/A | BM145: N/A | BN145: N/A | BO145: N/A | BP145: N/A | BQ145: N/A | BR145: N/A | BS145: N/A | BT145: N/A | BU145: N/A | BV145: N/A | BW145: N/A
B146: Emptied and discharged locally | C146: N/A | D146: N/A | E146: N/A | F146: N/A | G146: N/A | H146: N/A | I146: N/A | J146: N/A | K146: N/A | L146: N/A | M146: N/A | N146: N/A | O146: N/A | P146: N/A | Q146: N/A | R146: N/A | S146: N/A | T146: N/A | U146: N/A | V146: N/A | W146: N/A | BB146: Emptied and discharged locally | BC146: N/A | BD146: N/A | BE146: N/A | BF146: N/A | BG146: N/A | BH146: N/A | BI146: N/A | BJ146: N/A | BK146: N/A | BL146: N/A | BM146: N/A | BN146: N/A | BO146: N/A | BP146: N/A | BQ146: N/A | BR146: N/A | BS146: N/A | BT146: N/A | BU146: N/A | BV146: N/A | BW146: N/A
B147: Emptied and removed offsite | C147: N/A | D147: N/A | E147: N/A | F147: N/A | G147: N/A | H147: N/A | I147: N/A | J147: N/A | K147: N/A | L147: N/A | M147: N/A | N147: N/A | O147: N/A | P147: N/A | Q147: N/A | R147: N/A | S147: N/A | T147: N/A | U147: N/A | V147: N/A | W147: N/A | BB147: Emptied and removed offsite | BC147: N/A | BD147: N/A | BE147: N/A | BF147: N/A | BG147: N/A | BH147: N/A | BI147: N/A | BJ147: N/A | BK147: N/A | BL147: N/A | BM147: N/A | BN147: N/A | BO147: N/A | BP147: N/A | BQ147: N/A | BR147: N/A | BS147: N/A | BT147: N/A | BU147: N/A | BV147: N/A | BW147: N/A
A148: Shared among improved sanitation facilities | B148: Yes | C148: N/A | D148: N/A | E148: N/A | F148: N/A | G148: N/A | H148: N/A | I148: N/A | J148: N/A | K148: N/A | L148: N/A | M148: N/A | N148: N/A | O148: N/A | P148: N/A | Q148: N/A | R148: N/A | S148: N/A | T148: N/A | U148: N/A | V148: N/A | W148: N/A | BA148: Shared among improved sanitation facilities | BB148: Yes | BC148: N/A | BD148: N/A | BE148: N/A | BF148: N/A | BG148: N/A | BH148: N/A | BI148: N/A | BJ148: N/A | BK148: N/A | BL148: N/A | BM148: N/A | BN148: N/A | BO148: N/A | BP148: N/A | BQ148: N/A | BR148: N/A | BS148: N/A | BT148: N/A | BU148: N/A | BV148: N/A | BW148: N/A
B149: No | C149: N/A | D149: N/A | E149: N/A | F149: N/A | G149: N/A | H149: N/A | I149: N/A | J149: N/A | K149: N/A | L149: N/A | M149: N/A | N149: N/A | O149: N/A | P149: N/A | Q149: N/A | R149: N/A | S149: N/A | T149: N/A | U149: N/A | V149: N/A | W149: N/A | BB149: No | BC149: N/A | BD149: N/A | BE149: N/A | BF149: N/A | BG149: N/A | BH149: N/A | BI149: N/A | BJ149: N/A | BK149: N/A | BL149: N/A | BM149: N/A | BN149: N/A | BO149: N/A | BP149: N/A | BQ149: N/A | BR149: N/A | BS149: N/A | BT149: N/A | BU149: N/A | BV149: N/A | BW149: N/A
B150: DK/missing | C150: N/A | D150: N/A | E150: N/A | F150: N/A | G150: N/A | H150: N/A | I150: N/A | J150: N/A | K150: N/A | L150: N/A | M150: N/A | N150: N/A | O150: N/A | P150: N/A | Q150: N/A | R150: N/A | S150: N/A | T150: N/A | U150: N/A | V150: N/A | W150: N/A | BB150: DK/missing | BC150: N/A | BD150: N/A | BE150: N/A | BF150: N/A | BG150: N/A | BH150: N/A | BI150: N/A | BJ150: N/A | BK150: N/A | BL150: N/A | BM150: N/A | BN150: N/A | BO150: N/A | BP150: N/A | BQ150: N/A | BR150: N/A | BS150: N/A | BT150: N/A | BU150: N/A | BV150: N/A | BW150: N/A
A151: Shared among all sanitation facilities | B151: Yes | C151: N/A | D151: N/A | E151: N/A | F151: N/A | G151: N/A | H151: N/A | I151: N/A | J151: N/A | K151: N/A | L151: N/A | M151: N/A | N151: N/A | O151: N/A | P151: N/A | Q151: N/A | R151: N/A | S151: N/A | T151: N/A | U151: N/A | V151: N/A | W151: N/A | BA151: Shared among all sanitation facilities | BB151: Yes | BC151: N/A | BD151: N/A | BE151: N/A | BF151: N/A | BG151: N/A | BH151: N/A | BI151: N/A | BJ151: N/A | BK151: N/A | BL151: N/A | BM151: N/A | BN151: N/A | BO151: N/A | BP151: N/A | BQ151: N/A | BR151: N/A | BS151: N/A | BT151: N/A | BU151: N/A | BV151: N/A | BW151: N/A
B152: No | C152: N/A | D152: N/A | E152: N/A | F152: N/A | G152: N/A | H152: N/A | I152: N/A | J152: N/A | K152: N/A | L152: N/A | M152: N/A | N152: N/A | O152: N/A | P152: N/A | Q152: N/A | R152: N/A | S152: N/A | T152: N/A | U152: N/A | V152: N/A | W152: N/A | BB152: No | BC152: N/A | BD152: N/A | BE152: N/A | BF152: N/A | BG152: N/A | BH152: N/A | BI152: N/A | BJ152: N/A | BK152: N/A | BL152: N/A | BM152: N/A | BN152: N/A | BO152: N/A | BP152: N/A | BQ152: N/A | BR152: N/A | BS152: N/A | BT152: N/A | BU152: N/A | BV152: N/A | BW152: N/A
A153: que utiliza para fazer as suas necessidades | B153: com fosse de esgotos (pia,sanita) | C153: 1.75774747 | D153: 3.132717142 | E153: 6.098222114 | F153: 14.24527694 | G153: 43.09591385 | H153: 4.80662656 | I153: 7.611546761 | J153: 9.73256439 | K153: 20.28411208 | L153: 51.56481106 | M153: 0.6570332169 | N153: 0.291459906 | O153: 1.381563221 | P153: 1.502874617 | Q153: 5.681780653 | R153: 27.58847106 | S153: 12.2761337 | T153: 6.191062235 | U153: 9.361316106 | V153: 14.64227377 | W153: 12.6390119 | BA153: que utiliza para fazer as suas necessidades | BB153: com fosse de esgotos (pia,sanita) | BC153: 100.4300474 | BD153: 177.5017437 | BE153: 350.5897958 | BF153: 814.4214398 | BG153: 2462.267956 | BH153: 191.2966053 | BI153: 302.6200024 | BJ153: 386.9732261 | BK153: 805.6611224 | BL153: 2052.373008 | BM153: 11.32954401 | BN153: 4.804340005 | BO153: 25.45560402 | BP153: 25.85983455 | BQ153: 98.8376956 | BR153: 1303.83223 | BS153: 538.622275 | BT153: 321.927639 | BU153: 433.4164978 | BV153: 672.8071384 | BW153: 634.6052028
B154: com fossa septica e poco roto | C154: 2.331860331 | D154: 2.801603195 | E154: 4.589559612 | F154: 10.81811578 | G154: 21.72932819 | H154: 4.634953275 | I154: 5.878926142 | J154: 6.830497579 | K154: 19.16072244 | L154: 21.21731722 | M154: 0.2895653171 | N154: 1.795638914 | O154: 1.645911664 | P154: 0.9574960064 | Q154: 2.24798715 | R154: 19.02930403 | S154: 3.752930081 | T154: 3.412889155 | U154: 6.188661191 | V154: 5.755788401 | W154: 12.41494618 | BB154: com fossa septica e poco roto | BC154: 133.2323599 | BD154: 158.740617 | BE154: 263.8560448 | BF154: 618.4860751 | BG154: 1241.496553 | BH154: 184.4642633 | BI154: 233.7344431 | BJ154: 271.5851216 | BK154: 761.0414046 | BL154: 844.4877092 | BM154: 4.993115902 | BN154: 29.59878767 | BO154: 30.32628179 | BP154: 16.47555161 | BQ154: 39.10497135 | BR154: 899.3256586 | BS154: 164.6619195 | BT154: 177.466048 | BU154: 286.5267906 | BV154: 264.4763775 | BW154: 623.354856
B155: poco roto somente | C155: 3.511261747 | D155: 6.967158002 | E155: 7.892673136 | F155: 10.21356295 | G155: 9.844426161 | H155: 6.740722507 | I155: 11.76314053 | J155: 8.579209872 | K155: 11.60496596 | L155: 9.46898898 | M155: 3.19648688 | N155: 1.409944508 | O155: 1.442936907 | P155: 5.535497641 | Q155: 4.624020534 | R155: 6.876892334 | S155: 5.124518732 | T155: 1.491861726 | U155: 15.9257864 | V155: 11.96653501 | W155: 5.594437197 | BB155: poco roto somente | BC155: 200.6182286 | BD155: 394.763599 | BE155: 453.7536697 | BF155: 583.9229857 | BG155: 562.4573867 | BH155: 268.2707543 | BI155: 467.6791365 | BJ155: 341.1150842 | BK155: 460.9356259 | BL155: 376.8829362 | BM155: 55.1185813 | BN155: 23.24111366 | BO155: 26.58642757 | BP155: 95.24883282 | BQ155: 80.43737727 | BR155: 325.0022027 | BS155: 224.8411435 | BT155: 77.57497907 | BU155: 737.3427504 | BV155: 549.8579185 | BW155: 280.8968756
B156: latrina seca/latrina com descarga manual | C156: 22.54296755 | D156: 31.66280327 | E156: 46.04938864 | F156: 32.7663438 | G156: 14.40077278 | H156: 42.22705829 | I156: 45.401041 | J156: 46.24842759 | K156: 26.91109971 | L156: 10.68673119 | M156: 15.28563148 | N156: 13.29517129 | O156: 16.50719594 | P156: 17.24368457 | Q156: 30.07692751 | R156: 23.3299506 | S156: 62.23545277 | T156: 39.25478152 | U156: 41.21917845 | V156: 5.009852789 | W156: 8.216230408 | BB156: latrina seca/latrina com descarga manual | BC156: 1288.007144 | BD156: 1794.03455 | BE156: 2647.402056 | BF156: 1873.295479 | BG156: 822.7824447 | BH156: 1680.574266 | BI156: 1805.055341 | BJ156: 1838.868206 | BK156: 1068.877292 | BL156: 425.351285 | BM156: 263.5775941 | BN156: 219.1537223 | BO156: 304.1486895 | BP156: 296.7106005 | BQ156: 523.204676 | BR156: 1102.574385 | BS156: 2730.615517 | BT156: 2041.200468 | BU156: 1908.393196 | BV156: 230.2009082 | BW156: 412.5371989
B157: vala negra, aberta | C157: 1.509747673 | D157: 1.5390482 | E157: 0.7978595664 | F157: 0.7890887673 | G157: 0.4371836451 | H157: 2.413677737 | I157: 0.398029997 | J157: 1.373780568 | K157: 0.4356144277 | L157: 0.4668051647 | M157: 1.615982391 | N157: 0.8750103798 | O157: 1.009362687 | P157: 0.8768733094 | Q157: 0.635811248 | R157: 0.8406452038 | S157: 1.671046846 | T157: 0.10218231 | U157: 0.4317958581 | V157: 2.860216576 | W157: 0.3912941345 | BB157: vala negra, aberta | BC157: 86.26041734 | BD157: 87.20344889 | BE157: 45.86933982 | BF157: 45.1132549 | BG157: 24.97831428 | BH157: 96.06079268 | BI157: 15.82488322 | BJ157: 54.62242806 | BK157: 17.30209374 | BL157: 18.57969224 | BM157: 27.86517203 | BN157: 14.42341566 | BO157: 18.59772789 | BP157: 15.08828378 | BQ157: 11.06028593 | BR157: 39.72892547 | BS157: 73.31812084 | BT157: 5.313354731 | BU157: 19.99157453 | BV157: 131.4259083 | BW157: 19.64689136
B158: directo ao rio mar ou lago | C158: 0.2831713545 | D158: 0.4056037213 | E158: 0.2625290359 | F158: 0.6282707174 | G158: 0.265700411 | H158: 0.4369191162 | I158: 0.1639994776 | J158: 0.7386724964 | K158: 0.7119700641 | L158: 0.02742322171 | M158: 0.2895653171 | N158: 0.6786133288 | O158: 0.3035530921 | P158: 0 | Q158: 0.05358681023 | R158: 0.1148708307 | S158: 0 | T158: 0 | U158: 0.1078457709 | V158: 0.2552970662 | W158: 1.657057387 | BB158: directo ao rio mar ou lago | BC158: 16.17917991 | BD158: 22.98176455 | BE158: 15.0929237 | BF158: 35.91907299 | BG158: 15.18068767 | BH158: 17.38873255 | BI158: 6.520293951 | BJ158: 29.3701092 | BK158: 28.27861524 | BL158: 1.091493964 | BM158: 4.993115902 | BN158: 11.186064 | BO158: 5.593032002 | BP158: 0 | BQ158: 0.9321720004 | BR158: 5.428799987 | BS158: 0 | BT158: 0 | BU158: 4.993115902 | BV158: 11.73080707 | BW158: 83.20090586
B159: balde | C159: 0 | D159: 0.2684401032 | E159: 0.2904259673 | F159: 0.0189913368 | G159: 0.09501772379 | H159: 0.3821747199 | I159: 0.2755955413 | J159: 0.05461478146 | K159: 0.1640169312 | L159: 0 | M159: 0 | N159: 0 | O159: 0 | P159: 0.2073631514 | Q159: 0 | R159: 0.5054316551 | S159: 0 | T159: 0 | U159: 0.09595463513 | V159: 0.1008607997 | W159: 0.1086928151 | BB159: balde | BC159: 0 | BD159: 15.20998681 | BE159: 16.69673204 | BF159: 1.085759997 | BG159: 5.428799987 | BH159: 15.20998681 | BI159: 10.9571321 | BJ159: 2.171519995 | BK159: 6.514559984 | BL159: 0 | BM159: 0 | BN159: 0 | BO159: 0 | BP159: 3.568079948 | BQ159: 0 | BR159: 23.88671994 | BS159: 0 | BT159: 0 | BU159: 4.442572117 | BV159: 4.634516954 | BW159: 5.457469821
B160: capim, mato, ar livre | C160: 67.98548906 | D160: 52.93707171 | E160: 33.68642819 | F160: 30.19451622 | G160: 9.831257506 | H160: 37.83970073 | I160: 28.21370738 | J160: 26.11582151 | K160: 20.40004969 | L160: 6.246399024 | M160: 78.6657354 | N160: 81.65416167 | O160: 77.70947649 | P160: 73.6762107 | Q160: 56.42349293 | R160: 21.48469262 | S160: 14.86993456 | T160: 49.13849381 | U160: 26.33362037 | V160: 58.96397826 | W160: 58.89137573 | BB160: capim, mato, ar livre | BC160: 3884.39523 | BD160: 2999.448118 | BE160: 1936.649364 | BF160: 1726.260674 | BG160: 561.7050008 | BH160: 1505.963945 | BI160: 1121.721046 | BJ160: 1038.382414 | BK160: 810.266028 | BL160: 248.6180109 | BM160: 1356.471618 | BN160: 1345.963364 | BO160: 1431.814072 | BP160: 1267.740234 | BQ160: 981.5176543 | BR160: 1015.36742 | BS160: 652.4267477 | BT160: 2555.141379 | BU160: 1219.211635 | BV160: 2709.373293 | BW160: 2956.937912
B161: outros | C161: 0.07775481643 | D161: 0.2855546539 | E161: 0.3329137429 | F161: 0.3258334848 | G161: 0.3003997374 | H161: 0.5181670618 | I161: 0.2940131679 | J161: 0.3264112189 | K161: 0.3274486932 | L161: 0.321524143 | M161: 0 | N161: 0 | O161: 0 | P161: 0 | Q161: 0.2563931643 | R161: 0.2297416614 | S161: 0.0699833101 | T161: 0.4087292401 | U161: 0.335841223 | V161: 0.4451973323 | W161: 0.0869542521 | BB161: outros | BC161: 4.442572117 | BD161: 16.17970812 | BE161: 19.13937521 | BF161: 18.62833393 | BG161: 17.16321993 | BH161: 20.62228024 | BI161: 11.68938041 | BJ161: 12.97832692 | BK161: 13.00587773 | BL161: 12.79724407 | BM161: 0 | BN161: 0 | BO161: 0 | BP161: 0 | BQ161: 4.460099936 | BR161: 10.85759997 | BS161: 3.070557117 | BT161: 21.25341892 | BU161: 15.54900241 | BV161: 20.45665503 | BW161: 4.365975857
BB162: Total | BC162: 5713.565179 | BD162: 5666.063536 | BE162: 5749.049301 | BF162: 5717.133075 | BG162: 5713.460364 | BH162: 3979.851627 | BI162: 3975.801659 | BJ162: 3976.066436 | BK162: 3971.88262 | BL162: 3980.18138 | BM162: 1724.348742 | BN162: 1648.370807 | BO162: 1842.521835 | BP162: 1720.691417 | BQ162: 1739.554932 | BR162: 4726.003941 | BS162: 4387.55628 | BT162: 5199.877287 | BU162: 4629.867135 | BV162: 4594.963523 | BW162: 5021.003288
A208: =A1026 -> Angola
A209: =A1034 -> 2000
A210: Access to hygiene facilities
A211: by wealth quintile and sub-national region
A212: Notes:
A213: WHO/UNICEF JMP customised wealth index excludes water,
A214: sanitation and hygiene assets.
A215: Survey used for analysis: | B215: =A1025 -> MICS00
A220: Access to handwashing | C220: NATIONAL wealth index quintile | H220: URBAN wealth index quintile | M220: RURAL wealth index quintile | R220: SUB-REGIONS: | BA220: Raw numbers of respondents: | BB220: Access to handwashing | BC220: NATIONAL wealth index quintile | BH220: URBAN wealth index quintile | BM220: RURAL wealth index quintile | BR220: SUB-REGIONS:
A221: Weighted percentage (used in graphs) | C221: Poorest | D221: Poor | E221: Middle | F221: Rich | G221: Richest | H221: Poorest | I221: Poor | J221: Middle | K221: Rich | L221: Richest | M221: Poorest | N221: Poor | O221: Middle | P221: Rich | Q221: Richest | R221: capital | S221: centro sul | T221: este | U221: norte | V221: oeste | W221: sul | BA221: Hygiene data, raw numbers (weighted) | BC221: Poorest | BD221: Poor | BE221: Middle | BF221: Rich | BG221: Richest | BH221: Poorest | BI221: Poor | BJ221: Middle | BK221: Rich | BL221: Richest | BM221: Poorest | BN221: Poor | BO221: Middle | BP221: Rich | BQ221: Richest | BR221: capital | BS221: centro sul | BT221: este | BU221: norte | BV221: oeste | BW221: sul
A222: Hygiene ladder | B222: Basic | C222: N/A | D222: N/A | E222: N/A | F222: N/A | G222: N/A | H222: N/A | I222: N/A | J222: N/A | K222: N/A | L222: N/A | M222: N/A | N222: N/A | O222: N/A | P222: N/A | Q222: N/A | R222: N/A | S222: N/A | T222: N/A | U222: N/A | V222: N/A | W222: N/A | BA222: Hygiene ladder | BB222: Basic | BC222: N/A | BD222: N/A | BE222: N/A | BF222: N/A | BG222: N/A | BH222: N/A | BI222: N/A | BJ222: N/A | BK222: N/A | BL222: N/A | BM222: N/A | BN222: N/A | BO222: N/A | BP222: N/A | BQ222: N/A | BR222: N/A | BS222: N/A | BT222: N/A | BU222: N/A | BV222: N/A | BW222: N/A
B223: Limited | C223: N/A | D223: N/A | E223: N/A | F223: N/A | G223: N/A | H223: N/A | I223: N/A | J223: N/A | K223: N/A | L223: N/A | M223: N/A | N223: N/A | O223: N/A | P223: N/A | Q223: N/A | R223: N/A | S223: N/A | T223: N/A | U223: N/A | V223: N/A | W223: N/A | BB223: Limited | BC223: N/A | BD223: N/A | BE223: N/A | BF223: N/A | BG223: N/A | BH223: N/A | BI223: N/A | BJ223: N/A | BK223: N/A | BL223: N/A | BM223: N/A | BN223: N/A | BO223: N/A | BP223: N/A | BQ223: N/A | BR223: N/A | BS223: N/A | BT223: N/A | BU223: N/A | BV223: N/A | BW223: N/A
B224: No facility | C224: N/A | D224: N/A | E224: N/A | F224: N/A | G224: N/A | H224: N/A | I224: N/A | J224: N/A | K224: N/A | L224: N/A | M224: N/A | N224: N/A | O224: N/A | P224: N/A | Q224: N/A | R224: N/A | S224: N/A | T224: N/A | U224: N/A | V224: N/A | W224: N/A | BB224: No facility | BC224: N/A | BD224: N/A | BE224: N/A | BF224: N/A | BG224: N/A | BH224: N/A | BI224: N/A | BJ224: N/A | BK224: N/A | BL224: N/A | BM224: N/A | BN224: N/A | BO224: N/A | BP224: N/A | BQ224: N/A | BR224: N/A | BS224: N/A | BT224: N/A | BU224: N/A | BV224: N/A | BW224: N/A
BA225: Observed handwashing place | BB225: Fixed | BC225: N/A | BD225: N/A | BE225: N/A | BF225: N/A | BG225: N/A | BH225: N/A | BI225: N/A | BJ225: N/A | BK225: N/A | BL225: N/A | BM225: N/A | BN225: N/A | BO225: N/A | BP225: N/A | BQ225: N/A | BR225: N/A | BS225: N/A | BT225: N/A | BU225: N/A | BV225: N/A | BW225: N/A
BB226: Mobile | BC226: N/A | BD226: N/A | BE226: N/A | BF226: N/A | BG226: N/A | BH226: N/A | BI226: N/A | BJ226: N/A | BK226: N/A | BL226: N/A | BM226: N/A | BN226: N/A | BO226: N/A | BP226: N/A | BQ226: N/A | BR226: N/A | BS226: N/A | BT226: N/A | BU226: N/A | BV226: N/A | BW226: N/A
BA227: Water / Soap | BB227: Water and soap | BC227: N/A | BD227: N/A | BE227: N/A | BF227: N/A | BG227: N/A | BH227: N/A | BI227: N/A | BJ227: N/A | BK227: N/A | BL227: N/A | BM227: N/A | BN227: N/A | BO227: N/A | BP227: N/A | BQ227: N/A | BR227: N/A | BS227: N/A | BT227: N/A | BU227: N/A | BV227: N/A | BW227: N/A
BB228: Water only | BC228: N/A | BD228: N/A | BE228: N/A | BF228: N/A | BG228: N/A | BH228: N/A | BI228: N/A | BJ228: N/A | BK228: N/A | BL228: N/A | BM228: N/A | BN228: N/A | BO228: N/A | BP228: N/A | BQ228: N/A | BR228: N/A | BS228: N/A | BT228: N/A | BU228: N/A | BV228: N/A | BW228: N/A
BB229: Soap only | BC229: N/A | BD229: N/A | BE229: N/A | BF229: N/A | BG229: N/A | BH229: N/A | BI229: N/A | BJ229: N/A | BK229: N/A | BL229: N/A | BM229: N/A | BN229: N/A | BO229: N/A | BP229: N/A | BQ229: N/A | BR229: N/A | BS229: N/A | BT229: N/A | BU229: N/A | BV229: N/A | BW229: N/A
BB230: Neither | BC230: N/A | BD230: N/A | BE230: N/A | BF230: N/A | BG230: N/A | BH230: N/A | BI230: N/A | BJ230: N/A | BK230: N/A | BL230: N/A | BM230: N/A | BN230: N/A | BO230: N/A | BP230: N/A | BQ230: N/A | BR230: N/A | BS230: N/A | BT230: N/A | BU230: N/A | BV230: N/A | BW230: N/A
BA259: Raw numbers of respondents: | BB259: Menstrual health and hygiene | BC259: NATIONAL wealth index quintile | BH259: URBAN wealth index quintile | BM259: RURAL wealth index quintile | BR259: SUB-REGIONS:
BA260: MHH data, raw numbers (weighted) | BC260: Poorest | BD260: Poor | BE260: Middle | BF260: Rich | BG260: Richest | BH260: Poorest | BI260: Poor | BJ260: Middle | BK260: Rich | BL260: Richest | BM260: Poorest | BN260: Poor | BO260: Middle | BP260: Rich | BQ260: Richest | BR260: capital | BS260: centro sul | BT260: este | BU260: norte | BV260: oeste | BW260: sul
BA261: Private place to wash and change | BB261: Yes | BC261: N/A | BD261: N/A | BE261: N/A | BF261: N/A | BG261: N/A | BH261: N/A | BI261: N/A | BJ261: N/A | BK261: N/A | BL261: N/A | BM261: N/A | BN261: N/A | BO261: N/A | BP261: N/A | BQ261: N/A | BR261: N/A | BS261: N/A | BT261: N/A | BU261: N/A | BV261: N/A | BW261: N/A
BB262: No | BC262: N/A | BD262: N/A | BE262: N/A | BF262: N/A | BG262: N/A | BH262: N/A | BI262: N/A | BJ262: N/A | BK262: N/A | BL262: N/A | BM262: N/A | BN262: N/A | BO262: N/A | BP262: N/A | BQ262: N/A | BR262: N/A | BS262: N/A | BT262: N/A | BU262: N/A | BV262: N/A | BW262: N/A
BB263: DK/not sure/missing | BC263: N/A | BD263: N/A | BE263: N/A | BF263: N/A | BG263: N/A | BH263: N/A | BI263: N/A | BJ263: N/A | BK263: N/A | BL263: N/A | BM263: N/A | BN263: N/A | BO263: N/A | BP263: N/A | BQ263: N/A | BR263: N/A | BS263: N/A | BT263: N/A | BU263: N/A | BV263: N/A | BW263: N/A
BA264: Use of menstrual materials | BB264: Materials reusable | BC264: N/A | BD264: N/A | BE264: N/A | BF264: N/A | BG264: N/A | BH264: N/A | BI264: N/A | BJ264: N/A | BK264: N/A | BL264: N/A | BM264: N/A | BN264: N/A | BO264: N/A | BP264: N/A | BQ264: N/A | BR264: N/A | BS264: N/A | BT264: N/A | BU264: N/A | BV264: N/A | BW264: N/A
BB265: Materials not reusable | BC265: N/A | BD265: N/A | BE265: N/A | BF265: N/A | BG265: N/A | BH265: N/A | BI265: N/A | BJ265: N/A | BK265: N/A | BL265: N/A | BM265: N/A | BN265: N/A | BO265: N/A | BP265: N/A | BQ265: N/A | BR265: N/A | BS265: N/A | BT265: N/A | BU265: N/A | BV265: N/A | BW265: N/A
BB266: No materials used | BC266: N/A | BD266: N/A | BE266: N/A | BF266: N/A | BG266: N/A | BH266: N/A | BI266: N/A | BJ266: N/A | BK266: N/A | BL266: N/A | BM266: N/A | BN266: N/A | BO266: N/A | BP266: N/A | BQ266: N/A | BR266: N/A | BS266: N/A | BT266: N/A | BU266: N/A | BV266: N/A | BW266: N/A
BB267: DK/not sure/missing | BC267: N/A | BD267: N/A | BE267: N/A | BF267: N/A | BG267: N/A | BH267: N/A | BI267: N/A | BJ267: N/A | BK267: N/A | BL267: N/A | BM267: N/A | BN267: N/A | BO267: N/A | BP267: N/A | BQ267: N/A | BR267: N/A | BS267: N/A | BT267: N/A | BU267: N/A | BV267: N/A | BW267: N/A
BA268: Use of menstrual materials with private place to wash and change | BB268: Materials reusable | BC268: N/A | BD268: N/A | BE268: N/A | BF268: N/A | BG268: N/A | BH268: N/A | BI268: N/A | BJ268: N/A | BK268: N/A | BL268: N/A | BM268: N/A | BN268: N/A | BO268: N/A | BP268: N/A | BQ268: N/A | BR268: N/A | BS268: N/A | BT268: N/A | BU268: N/A | BV268: N/A | BW268: N/A
BB269: Materials not reusable | BC269: N/A | BD269: N/A | BE269: N/A | BF269: N/A | BG269: N/A | BH269: N/A | BI269: N/A | BJ269: N/A | BK269: N/A | BL269: N/A | BM269: N/A | BN269: N/A | BO269: N/A | BP269: N/A | BQ269: N/A | BR269: N/A | BS269: N/A | BT269: N/A | BU269: N/A | BV269: N/A | BW269: N/A
BB270: No materials used | BC270: N/A | BD270: N/A | BE270: N/A | BF270: N/A | BG270: N/A | BH270: N/A | BI270: N/A | BJ270: N/A | BK270: N/A | BL270: N/A | BM270: N/A | BN270: N/A | BO270: N/A | BP270: N/A | BQ270: N/A | BR270: N/A | BS270: N/A | BT270: N/A | BU270: N/A | BV270: N/A | BW270: N/A
BA271: Awareness of menstruation before menarche | BB271: Yes | BC271: N/A | BD271: N/A | BE271: N/A | BF271: N/A | BG271: N/A | BH271: N/A | BI271: N/A | BJ271: N/A | BK271: N/A | BL271: N/A | BM271: N/A | BN271: N/A | BO271: N/A | BP271: N/A | BQ271: N/A | BR271: N/A | BS271: N/A | BT271: N/A | BU271: N/A | BV271: N/A | BW271: N/A
BB272: No | BC272: N/A | BD272: N/A | BE272: N/A | BF272: N/A | BG272: N/A | BH272: N/A | BI272: N/A | BJ272: N/A | BK272: N/A | BL272: N/A | BM272: N/A | BN272: N/A | BO272: N/A | BP272: N/A | BQ272: N/A | BR272: N/A | BS272: N/A | BT272: N/A | BU272: N/A | BV272: N/A | BW272: N/A
BB273: DK/not sure/missing | BC273: N/A | BD273: N/A | BE273: N/A | BF273: N/A | BG273: N/A | BH273: N/A | BI273: N/A | BJ273: N/A | BK273: N/A | BL273: N/A | BM273: N/A | BN273: N/A | BO273: N/A | BP273: N/A | BQ273: N/A | BR273: N/A | BS273: N/A | BT273: N/A | BU273: N/A | BV273: N/A | BW273: N/A
BA274: Participation in (all) activities during menstruation | BB274: Yes | BC274: N/A | BD274: N/A | BE274: N/A | BF274: N/A | BG274: N/A | BH274: N/A | BI274: N/A | BJ274: N/A | BK274: N/A | BL274: N/A | BM274: N/A | BN274: N/A | BO274: N/A | BP274: N/A | BQ274: N/A | BR274: N/A | BS274: N/A | BT274: N/A | BU274: N/A | BV274: N/A | BW274: N/A
BB275: No | BC275: N/A | BD275: N/A | BE275: N/A | BF275: N/A | BG275: N/A | BH275: N/A | BI275: N/A | BJ275: N/A | BK275: N/A | BL275: N/A | BM275: N/A | BN275: N/A | BO275: N/A | BP275: N/A | BQ275: N/A | BR275: N/A | BS275: N/A | BT275: N/A | BU275: N/A | BV275: N/A | BW275: N/A
BB276: DK/not sure/missing/no such activity | BC276: N/A | BD276: N/A | BE276: N/A | BF276: N/A | BG276: N/A | BH276: N/A | BI276: N/A | BJ276: N/A | BK276: N/A | BL276: N/A | BM276: N/A | BN276: N/A | BO276: N/A | BP276: N/A | BQ276: N/A | BR276: N/A | BS276: N/A | BT276: N/A | BU276: N/A | BV276: N/A | BW276: N/A
BA277: Participation in specific activities during menstruation | BB277: Did not go to school (amongst those usually attending school) | BC277: N/A | BD277: N/A | BE277: N/A | BF277: N/A | BG277: N/A | BH277: N/A | BI277: N/A | BJ277: N/A | BK277: N/A | BL277: N/A | BM277: N/A | BN277: N/A | BO277: N/A | BP277: N/A | BQ277: N/A | BR277: N/A | BS277: N/A | BT277: N/A | BU277: N/A | BV277: N/A | BW277: N/A
BB278: Did not go to work (amongst those who usually work) | BC278: N/A | BD278: N/A | BE278: N/A | BF278: N/A | BG278: N/A | BH278: N/A | BI278: N/A | BJ278: N/A | BK278: N/A | BL278: N/A | BM278: N/A | BN278: N/A | BO278: N/A | BP278: N/A | BQ278: N/A | BR278: N/A | BS278: N/A | BT278: N/A | BU278: N/A | BV278: N/A | BW278: N/A
BB279: Did not participate in social activities | BC279: N/A | BD279: N/A | BE279: N/A | BF279: N/A | BG279: N/A | BH279: N/A | BI279: N/A | BJ279: N/A | BK279: N/A | BL279: N/A | BM279: N/A | BN279: N/A | BO279: N/A | BP279: N/A | BQ279: N/A | BR279: N/A | BS279: N/A | BT279: N/A | BU279: N/A | BV279: N/A | BW279: N/A
BB280: Did not cook food | BC280: N/A | BD280: N/A | BE280: N/A | BF280: N/A | BG280: N/A | BH280: N/A | BI280: N/A | BJ280: N/A | BK280: N/A | BL280: N/A | BM280: N/A | BN280: N/A | BO280: N/A | BP280: N/A | BQ280: N/A | BR280: N/A | BS280: N/A | BT280: N/A | BU280: N/A | BV280: N/A | BW280: N/A
BB281: Did not eat with others | BC281: N/A | BD281: N/A | BE281: N/A | BF281: N/A | BG281: N/A | BH281: N/A | BI281: N/A | BJ281: N/A | BK281: N/A | BL281: N/A | BM281: N/A | BN281: N/A | BO281: N/A | BP281: N/A | BQ281: N/A | BR281: N/A | BS281: N/A | BT281: N/A | BU281: N/A | BV281: N/A | BW281: N/A
BB282: Did not bathe in regular place | BC282: N/A | BD282: N/A | BE282: N/A | BF282: N/A | BG282: N/A | BH282: N/A | BI282: N/A | BJ282: N/A | BK282: N/A | BL282: N/A | BM282: N/A | BN282: N/A | BO282: N/A | BP282: N/A | BQ282: N/A | BR282: N/A | BS282: N/A | BT282: N/A | BU282: N/A | BV282: N/A | BW282: N/A
BB283: Did not participate in other activities | BC283: N/A | BD283: N/A | BE283: N/A | BF283: N/A | BG283: N/A | BH283: N/A | BI283: N/A | BJ283: N/A | BK283: N/A | BL283: N/A | BM283: N/A | BN283: N/A | BO283: N/A | BP283: N/A | BQ283: N/A | BR283: N/A | BS283: N/A | BT283: N/A | BU283: N/A | BV283: N/A | BW283: N/A
BB284: DK/not sure/missing/no such activity | BC284: N/A | BD284: N/A | BE284: N/A | BF284: N/A | BG284: N/A | BH284: N/A | BI284: N/A | BJ284: N/A | BK284: N/A | BL284: N/A | BM284: N/A | BN284: N/A | BO284: N/A | BP284: N/A | BQ284: N/A | BR284: N/A | BS284: N/A | BT284: N/A | BU284: N/A | BV284: N/A | BW284: N/A
BA339: Raw numbers of respondents: | BB339: Basic water, sanitation and hygiene | BC339: NATIONAL wealth index quintile | BH339: URBAN wealth index quintile | BM339: RURAL wealth index quintile | BR339: SUB-REGIONS:
BA340: WatSan data, raw numbers (weighted) | BC340: Poorest | BD340: Poor | BE340: Middle | BF340: Rich | BG340: Richest | BH340: Poorest | BI340: Poor | BJ340: Middle | BK340: Rich | BL340: Richest | BM340: Poorest | BN340: Poor | BO340: Middle | BP340: Rich | BQ340: Richest | BR340: capital | BS340: centro sul | BT340: este | BU340: norte | BV340: oeste | BW340: sul
BA341: Use of Basic Water Sanitation and Hygiene | BB341: Yes | BC341: N/A | BD341: N/A | BE341: N/A | BF341: N/A | BG341: N/A | BH341: N/A | BI341: N/A | BJ341: N/A | BK341: N/A | BL341: N/A | BM341: N/A | BN341: N/A | BO341: N/A | BP341: N/A | BQ341: N/A | BR341: N/A | BS341: N/A | BT341: N/A | BU341: N/A | BV341: N/A | BW341: N/A
BB342: No | BC342: N/A | BD342: N/A | BE342: N/A | BF342: N/A | BG342: N/A | BH342: N/A | BI342: N/A | BJ342: N/A | BK342: N/A | BL342: N/A | BM342: N/A | BN342: N/A | BO342: N/A | BP342: N/A | BQ342: N/A | BR342: N/A | BS342: N/A | BT342: N/A | BU342: N/A | BV342: N/A | BW342: N/A
BA343: Use of Basic Water and Sanitation | BB343: Yes | BC343: N/A | BD343: N/A | BE343: N/A | BF343: N/A | BG343: N/A | BH343: N/A | BI343: N/A | BJ343: N/A | BK343: N/A | BL343: N/A | BM343: N/A | BN343: N/A | BO343: N/A | BP343: N/A | BQ343: N/A | BR343: N/A | BS343: N/A | BT343: N/A | BU343: N/A | BV343: N/A | BW343: N/A
BB344: No | BC344: N/A | BD344: N/A | BE344: N/A | BF344: N/A | BG344: N/A | BH344: N/A | BI344: N/A | BJ344: N/A | BK344: N/A | BL344: N/A | BM344: N/A | BN344: N/A | BO344: N/A | BP344: N/A | BQ344: N/A | BR344: N/A | BS344: N/A | BT344: N/A | BU344: N/A | BV344: N/A | BW344: N/A
BA345: Use of Basic Water and Hygiene | BB345: Yes | BC345: N/A | BD345: N/A | BE345: N/A | BF345: N/A | BG345: N/A | BH345: N/A | BI345: N/A | BJ345: N/A | BK345: N/A | BL345: N/A | BM345: N/A | BN345: N/A | BO345: N/A | BP345: N/A | BQ345: N/A | BR345: N/A | BS345: N/A | BT345: N/A | BU345: N/A | BV345: N/A | BW345: N/A
BB346: No | BC346: N/A | BD346: N/A | BE346: N/A | BF346: N/A | BG346: N/A | BH346: N/A | BI346: N/A | BJ346: N/A | BK346: N/A | BL346: N/A | BM346: N/A | BN346: N/A | BO346: N/A | BP346: N/A | BQ346: N/A | BR346: N/A | BS346: N/A | BT346: N/A | BU346: N/A | BV346: N/A | BW346: N/A
BA347: Use of Basic Sanitation and Hygiene | BB347: Yes | BC347: N/A | BD347: N/A | BE347: N/A | BF347: N/A | BG347: N/A | BH347: N/A | BI347: N/A | BJ347: N/A | BK347: N/A | BL347: N/A | BM347: N/A | BN347: N/A | BO347: N/A | BP347: N/A | BQ347: N/A | BR347: N/A | BS347: N/A | BT347: N/A | BU347: N/A | BV347: N/A | BW347: N/A
BB348: No | BC348: N/A | BD348: N/A | BE348: N/A | BF348: N/A | BG348: N/A | BH348: N/A | BI348: N/A | BJ348: N/A | BK348: N/A | BL348: N/A | BM348: N/A | BN348: N/A | BO348: N/A | BP348: N/A | BQ348: N/A | BR348: N/A | BS348: N/A | BT348: N/A | BU348: N/A | BV348: N/A | BW348: N/A
BA349: Use of Basic Water | BB349: Yes | BC349: N/A | BD349: N/A | BE349: N/A | BF349: N/A | BG349: N/A | BH349: N/A | BI349: N/A | BJ349: N/A | BK349: N/A | BL349: N/A | BM349: N/A | BN349: N/A | BO349: N/A | BP349: N/A | BQ349: N/A | BR349: N/A | BS349: N/A | BT349: N/A | BU349: N/A | BV349: N/A | BW349: N/A
BB350: No | BC350: N/A | BD350: N/A | BE350: N/A | BF350: N/A | BG350: N/A | BH350: N/A | BI350: N/A | BJ350: N/A | BK350: N/A | BL350: N/A | BM350: N/A | BN350: N/A | BO350: N/A | BP350: N/A | BQ350: N/A | BR350: N/A | BS350: N/A | BT350: N/A | BU350: N/A | BV350: N/A | BW350: N/A
BA351: Use of Basic Sanitation | BB351: Yes | BC351: N/A | BD351: N/A | BE351: N/A | BF351: N/A | BG351: N/A | BH351: N/A | BI351: N/A | BJ351: N/A | BK351: N/A | BL351: N/A | BM351: N/A | BN351: N/A | BO351: N/A | BP351: N/A | BQ351: N/A | BR351: N/A | BS351: N/A | BT351: N/A | BU351: N/A | BV351: N/A | BW351: N/A
BB352: No | BC352: N/A | BD352: N/A | BE352: N/A | BF352: N/A | BG352: N/A | BH352: N/A | BI352: N/A | BJ352: N/A | BK352: N/A | BL352: N/A | BM352: N/A | BN352: N/A | BO352: N/A | BP352: N/A | BQ352: N/A | BR352: N/A | BS352: N/A | BT352: N/A | BU352: N/A | BV352: N/A | BW352: N/A
BA353: Access to Basic Hygiene | BB353: Yes | BC353: N/A | BD353: N/A | BE353: N/A | BF353: N/A | BG353: N/A | BH353: N/A | BI353: N/A | BJ353: N/A | BK353: N/A | BL353: N/A | BM353: N/A | BN353: N/A | BO353: N/A | BP353: N/A | BQ353: N/A | BR353: N/A | BS353: N/A | BT353: N/A | BU353: N/A | BV353: N/A | BW353: N/A
BB354: No | BC354: N/A | BD354: N/A | BE354: N/A | BF354: N/A | BG354: N/A | BH354: N/A | BI354: N/A | BJ354: N/A | BK354: N/A | BL354: N/A | BM354: N/A | BN354: N/A | BO354: N/A | BP354: N/A | BQ354: N/A | BR354: N/A | BS354: N/A | BT354: N/A | BU354: N/A | BV354: N/A | BW354: N/A
C399: INITIAL (national) Wealth Index | H399: URBAN Wealth Index | M399: RURAL Wealth Index
C400: Component Matrix | H400: Component Matrix | M400: Component Matrix
E401: Component | J401: Component | O401: Component
B402: Note: The INITIAL (national) Wealth Index is based on the first component of the Principal Component Analysis (PCA) which has been obtained at national level. The final national-level (NATIONAL) Wealth Index is based on the URBAN and RURAL specific wealth indexes. Regression procedures are used to establish the relationships between the two sets of scores (urban and rural) and the initial (national) wealth factors. This allows best use of the available information for each area and a better precision of the FINAL (NATIONAL) Wealth Index. For dependency reasons, all WASH variables (contained in the generic MICS and DHS scripts) have been excluded from the sets of asset variables used in the PCAs. The PCA can extracts as many components as there are asset variables in the input. Only the first of the components is used to represent the Wealth Index. The scores represent the weights of the asset variables on the Wealth Index (correlations between the variables and the component). The communalities are the proportion of each variable's variance that can be explained by the component. Proportion of explained variance is the part of the model's total variance that is explained by the component. For more information on the procedure used: The DHS Wealth Index, DHS Comparative Reports No. 6, Shea Oscar Rutstein, Kiersten Johnson, ORC Macro International Inc., 2004. The DHS Wealth Index: Approaches for Rural and Urban Areas, Shea O. Rutstein, ORC Macro International Inc., 2008. MICS Methodological Paper No. 4, Review of options for reporting water, sanitation and hygiene coverage by wealth quintile, UNICEF, 2016. | E402: 1 | J402: 1 | O402: 1
C403: televisão | E403: 0.8137382895 | H403: televisão | J403: 0.8102855918 | M403: ventoinha | O403: 0.6859667116
C404: electricidade | E404: 0.7584457674 | H404: Household fuel type: LPG | J404: 0.7508314266 | M404: televisão | O404: 0.6616020019
C405: ventoinha | E405: 0.7462022798 | H405: electricidade | J405: 0.7417471498 | M405: electricidade | O405: 0.6444109493
C406: Household fuel type: LPG | E406: 0.7392492945 | H406: ventoinha | J406: 0.7406671807 | M406: video | O406: 0.5679819308
C407: Has earth/sand floor | E407: -0.6915258595 | H407: Has earth/sand floor | J407: -0.6689381537 | M407: geleira | O407: 0.5546143012
C408: geleira | E408: 0.6572349075 | H408: geleira | J408: 0.6571644686 | M408: Has earth/sand floor | O408: -0.550630244
C409: video | E409: 0.6496189674 | H409: video | J409: 0.6478397619 | M409: arca | O409: 0.5498501245
C410: arca | E410: 0.6308115913 | H410: arca | J410: 0.6309333012 | M410: Household fuel type: LPG | O410: 0.545320784
C411: Has wood floor | E411: 0.5663298829 | H411: rádio cassete | J411: 0.5467207456 | M411: Has wood floor | O411: 0.5291981267
C412: rádio cassete | E412: 0.564954207 | H412: Has wood floor | J412: 0.5203981445 | M412: Household fuel type: biogas | O412: -0.4400296025
C413: Household fuel type: biogas | E413: -0.4722928714 | H413: viatura | J413: 0.452842258 | M413: viatura | O413: 0.4054543928
C414: viatura | E414: 0.4582106432 | H414: rádio | J414: 0.4327567034 | M414: rádio cassete | O414: 0.3735241216
C415: rádio | E415: 0.4359215752 | H415: Household fuel type: kerosene | J415: -0.406930404 | M415: rádio | O415: 0.3052607871
C416: Has ceramic tile floor | E416: 0.4019904444 | H416: Has ceramic tile floor | J416: 0.390067113 | M416: Household fuel type: kerosene | O416: 0.2241354151
C417: outros | E417: 0.2901301142 | H417: Household fuel type: biogas | J417: -0.3049289561 | M417: Has ceramic tile floor | O417: 0.21272599
... 118 more rows

Sheet MIS07
A2: =A1026 -> Angola
A3: =A1034 -> 2007
A4: Use of drinking water sources
A5: by wealth quintile and sub-national region
A6: Notes:
A7: WHO/UNICEF JMP customised wealth index excludes water,
A8: sanitation and hygiene assets.
A9: Survey used for analysis: | B9: =A1025 -> MIS07
A10: =B1028 -> 
A11: =B1027 -> Time to improved source based on: | B11: MICS00
A14: Use of drinking water sources | C14: NATIONAL wealth index quintile | H14: URBAN wealth index quintile | M14: RURAL wealth index quintile | R14: SUB-REGIONS: | BA14: Raw numbers of respondents: | BB14: Use of drinking water sources | BC14: NATIONAL wealth index quintile | BH14: URBAN wealth index quintile | BM14: RURAL wealth index quintile | BR14: SUB-REGIONS:
A15: Weighted percentage (used in graphs) | C15: Poorest | D15: Poor | E15: Middle | F15: Rich | G15: Richest | H15: Poorest | I15: Poor | J15: Middle | K15: Rich | L15: Richest | M15: Poorest | N15: Poor | O15: Middle | P15: Rich | Q15: Richest | R15: Hyperendemic (Cabinda, Uige, K. Norte, Malange, L. Norte, L. | S15: Instable mesoendemic (Moxico, K. Kubango, Kunene, Huila, Nam | T15: Luanda | U15: Stable mesoendemic (Zaire, Luanda, Bengo, Benguela, K. Sul, | BA15: Water data, raw numbers (weighted) | BC15: Poorest | BD15: Poor | BE15: Middle | BF15: Rich | BG15: Richest | BH15: Poorest | BI15: Poor | BJ15: Middle | BK15: Rich | BL15: Richest | BM15: Poorest | BN15: Poor | BO15: Middle | BP15: Rich | BQ15: Richest | BR15: Hyperendemic (Cabinda, Uige, K. Norte, Malange, L. Norte, L. | BS15: Instable mesoendemic (Moxico, K. Kubango, Kunene, Huila, Nam | BT15: Luanda | BU15: Stable mesoendemic (Zaire, Luanda, Bengo, Benguela, K. Sul,
A16: Water | B16: Improved | C16: 24.62091154 | D16: 56.16990962 | E16: 79.42719861 | F16: 96.39238715 | G16: 99.39915138 | H16: 86.69723007 | I16: 90.34066529 | J16: 98.01803937 | K16: 99.27499478 | L16: 100 | M16: 18.66246606 | N16: 32.26283903 | O16: 35.71055776 | P16: 58.92768287 | Q16: 67.00779306 | R16: 46.46129574 | S16: 52.98281316 | T16: 100 | U16: 60.51296346 | BA16: Water | BB16: Improved | BC16: N/A | BD16: N/A | BE16: N/A | BF16: N/A | BG16: N/A | BH16: N/A | BI16: N/A | BJ16: N/A | BK16: N/A | BL16: N/A | BM16: N/A | BN16: N/A | BO16: N/A | BP16: N/A | BQ16: N/A | BR16: N/A | BS16: N/A | BT16: N/A | BU16: N/A
B17: Not Improved | C17: 75.37908846 | D17: 43.83009038 | E17: 20.57280139 | F17: 3.607612851 | G17: 0.6008486199 | H17: 13.30276993 | I17: 9.659334714 | J17: 1.981960633 | K17: 0.7250052233 | L17: 0 | M17: 81.33753394 | N17: 67.73716097 | O17: 64.28944224 | P17: 41.07231713 | Q17: 32.99220694 | R17: 53.53870426 | S17: 47.01718684 | T17: 0 | U17: 39.48703654 | BB17: Not Improved | BC17: N/A | BD17: N/A | BE17: N/A | BF17: N/A | BG17: N/A | BH17: N/A | BI17: N/A | BJ17: N/A | BK17: N/A | BL17: N/A | BM17: N/A | BN17: N/A | BO17: N/A | BP17: N/A | BQ17: N/A | BR17: N/A | BS17: N/A | BT17: N/A | BU17: N/A
A18: Water ladder | B18: Basic | C18: =C16*MICS00!C23/100 -> 18.12913509 | D18: =D16*MICS00!D23/100 -> 43.40610124 | E18: =E16*MICS00!E23/100 -> 68.59232256 | F18: =F16*MICS00!F23/100 -> 85.03485313 | G18: =G16*MICS00!G23/100 -> 95.52795976 | H18: =H16*MICS00!H23/100 -> 72.1246599 | I18: =I16*MICS00!I23/100 -> 78.37064912 | J18: =J16*MICS00!J23/100 -> 88.51156472 | K18: =K16*MICS00!K23/100 -> 90.85452208 | L18: =L16*MICS00!L23/100 -> 98.10342282 | M18: =M16*MICS00!M23/100 -> 12.19763608 | N18: =N16*MICS00!N23/100 -> 20.65374686 | O18: =O16*MICS00!O23/100 -> 25.15932051 | P18: =P16*MICS00!P23/100 -> 35.51533782 | Q18: =Q16*MICS00!Q23/100 -> 49.75349286 | R18: =R16*MICS00!R23/100 -> 44.31822636 | S18: =S16*MICS00!S23/100 -> 49.1479193 | T18: =T16*MICS00!T23/100 -> 72.65915452 | U18: =U16*MICS00!U23/100 -> 55.90580138 | BA18: Water ladder | BB18: Basic | BC18: N/A | BD18: N/A | BE18: N/A | BF18: N/A | BG18: N/A | BH18: N/A | BI18: N/A | BJ18: N/A | BK18: N/A | BL18: N/A | BM18: N/A | BN18: N/A | BO18: N/A | BP18: N/A | BQ18: N/A | BR18: N/A | BS18: N/A | BT18: N/A | BU18: N/A
B19: Limited | C19: =C16*MICS00!C22/100 -> 6.491776444 | D19: =D16*MICS00!D22/100 -> 12.76380838 | E19: =E16*MICS00!E22/100 -> 10.83487605 | F19: =F16*MICS00!F22/100 -> 11.35753402 | G19: =G16*MICS00!G22/100 -> 3.871191616 | H19: =H16*MICS00!H22/100 -> 14.57257017 | I19: =I16*MICS00!I22/100 -> 11.97001617 | J19: =J16*MICS00!J22/100 -> 9.506474646 | K19: =K16*MICS00!K22/100 -> 8.420472694 | L19: =L16*MICS00!L22/100 -> 1.896577183 | M19: =M16*MICS00!M22/100 -> 6.464829979 | N19: =N16*MICS00!N22/100 -> 11.60909217 | O19: =O16*MICS00!O22/100 -> 10.55123725 | P19: =P16*MICS00!P22/100 -> 23.41234506 | Q19: =Q16*MICS00!Q22/100 -> 17.2543002 | R19: =R16*MICS00!R22/100 -> 2.143069379 | S19: =S16*MICS00!S22/100 -> 3.834893855 | T19: =T16*MICS00!T22/100 -> 27.34084548 | U19: =U16*MICS00!U22/100 -> 4.607162079 | BB19: Limited | BC19: N/A | BD19: N/A | BE19: N/A | BF19: N/A | BG19: N/A | BH19: N/A | BI19: N/A | BJ19: N/A | BK19: N/A | BL19: N/A | BM19: N/A | BN19: N/A | BO19: N/A | BP19: N/A | BQ19: N/A | BR19: N/A | BS19: N/A | BT19: N/A | BU19: N/A
B20: Unimproved | C20: =100-(C18+C19+C21) -> 21.20741209 | D20: =100-(D18+D19+D21) -> 17.14922631 | E20: 11.96587832 | F20: 2.153154776 | G20: 0.397672633 | H20: 7.491043682 | I20: 3.451544829 | J20: 1.981960633 | K20: 0.7250052233 | L20: 0 | M20: 23.9655502 | N20: 14.82156222 | O20: 19.9267369 | P20: 18.82963678 | Q20: 22.00743769 | R20: 7.376018389 | S20: 27.31296885 | T20: 0 | U20: 16.82504037 | BB20: Unimproved | BC20: N/A | BD20: N/A | BE20: N/A | BF20: N/A | BG20: N/A | BH20: N/A | BI20: N/A | BJ20: N/A | BK20: N/A | BL20: N/A | BM20: N/A | BN20: N/A | BO20: N/A | BP20: N/A | BQ20: N/A | BR20: N/A | BS20: N/A | BT20: N/A | BU20: N/A
B21: Surface water | C21: =C66 -> 54.17167637 | D21: 26.68086407 | E21: 8.606923069 | F21: 1.454458075 | G21: 0.2031759869 | H21: 5.811726248 | I21: 6.207789886 | J21: 0 | K21: 0 | L21: 0 | M21: 57.37198374 | N21: 52.91559875 | O21: 44.36270534 | P21: 22.24268035 | Q21: 10.98476925 | R21: 46.16268587 | S21: 19.70421799 | T21: 0 | U21: 22.66199617 | BB21: Surface water | BC21: N/A | BD21: N/A | BE21: N/A | BF21: N/A | BG21: N/A | BH21: N/A | BI21: N/A | BJ21: N/A | BK21: N/A | BL21: N/A | BM21: N/A | BN21: N/A | BO21: N/A | BP21: N/A | BQ21: N/A | BR21: N/A | BS21: N/A | BT21: N/A | BU21: N/A
A22: Improved water point at more than 30 minutes | B22: Yes | C22: N/A | D22: N/A | E22: N/A | F22: N/A | G22: N/A | H22: N/A | I22: N/A | J22: N/A | K22: N/A | L22: N/A | M22: N/A | N22: N/A | O22: N/A | P22: N/A | Q22: N/A | R22: N/A | S22: N/A | T22: N/A | U22: N/A | BA22: Improved water point at more than 30 minutes | BB22: Yes | BC22: N/A | BD22: N/A | BE22: N/A | BF22: N/A | BG22: N/A | BH22: N/A | BI22: N/A | BJ22: N/A | BK22: N/A | BL22: N/A | BM22: N/A | BN22: N/A | BO22: N/A | BP22: N/A | BQ22: N/A | BR22: N/A | BS22: N/A | BT22: N/A | BU22: N/A
B23: No | C23: N/A | D23: N/A | E23: N/A | F23: N/A | G23: N/A | H23: N/A | I23: N/A | J23: N/A | K23: N/A | L23: N/A | M23: N/A | N23: N/A | O23: N/A | P23: N/A | Q23: N/A | R23: N/A | S23: N/A | T23: N/A | U23: N/A | BB23: No | BC23: N/A | BD23: N/A | BE23: N/A | BF23: N/A | BG23: N/A | BH23: N/A | BI23: N/A | BJ23: N/A | BK23: N/A | BL23: N/A | BM23: N/A | BN23: N/A | BO23: N/A | BP23: N/A | BQ23: N/A | BR23: N/A | BS23: N/A | BT23: N/A | BU23: N/A
A24: Manually calculated ratios | B24: Improved wells
B25: Improved sources
B26: Other
C27: NATIONAL wealth index quintile | H27: URBAN wealth index quintile | M27: RURAL wealth index quintile | R27: SUB-REGIONS: | BA27: Raw numbers of respondents: | BB27: Use of drinking water sources | BC27: NATIONAL wealth index quintile | BH27: URBAN wealth index quintile | BM27: RURAL wealth index quintile | BR27: SUB-REGIONS:
A28: Percentage based on weighted population | C28: Poorest | D28: Poor | E28: Middle | F28: Rich | G28: Richest | H28: Poorest | I28: Poor | J28: Middle | K28: Rich | L28: Richest | M28: Poorest | N28: Poor | O28: Middle | P28: Rich | Q28: Richest | R28: Hyperendemic (Cabinda, Uige, K. Norte, Malange, L. Norte, L. | S28: Instable mesoendemic (Moxico, K. Kubango, Kunene, Huila, Nam | T28: Luanda | U28: Stable mesoendemic (Zaire, Luanda, Bengo, Benguela, K. Sul, | BA28: Water data, raw numbers (weighted) | BC28: Poorest | BD28: Poor | BE28: Middle | BF28: Rich | BG28: Richest | BH28: Poorest | BI28: Poor | BJ28: Middle | BK28: Rich | BL28: Richest | BM28: Poorest | BN28: Poor | BO28: Middle | BP28: Rich | BQ28: Richest | BR28: Hyperendemic (Cabinda, Uige, K. Norte, Malange, L. Norte, L. | BS28: Instable mesoendemic (Moxico, K. Kubango, Kunene, Huila, Nam | BT28: Luanda | BU28: Stable mesoendemic (Zaire, Luanda, Bengo, Benguela, K. Sul,
A29: Piped water | B29: Yes | C29: 6.261471465 | D29: 9.721949625 | E29: 25.26846087 | F29: 42.09378529 | G29: 57.13469844 | H29: 19.31337851 | I29: 34.78838022 | J29: 47.12086265 | K29: 49.10781009 | L29: 65.04670642 | M29: 4.101540745 | N29: 10.20683127 | O29: 8.065860996 | P29: 12.37188093 | Q29: 14.78065303 | R29: 14.94369485 | S29: 27.00135722 | T29: 49.64982136 | U29: 11.78216551 | BA29: Piped water | BB29: Yes | BC29: N/A | BD29: N/A | BE29: N/A | BF29: N/A | BG29: N/A | BH29: N/A | BI29: N/A | BJ29: N/A | BK29: N/A | BL29: N/A | BM29: N/A | BN29: N/A | BO29: N/A | BP29: N/A | BQ29: N/A | BR29: N/A | BS29: N/A | BT29: N/A | BU29: N/A
B30: No | C30: 93.73852854 | D30: 90.27805037 | E30: 74.73153913 | F30: 57.90621471 | G30: 42.86530156 | H30: 80.68662149 | I30: 65.21161978 | J30: 52.87913735 | K30: 50.89218991 | L30: 34.95329358 | M30: 95.89845925 | N30: 89.79316873 | O30: 91.934139 | P30: 87.62811907 | Q30: 85.21934697 | R30: 85.05630515 | S30: 72.99864278 | T30: 50.35017864 | U30: 88.21783449 | BB30: No | BC30: N/A | BD30: N/A | BE30: N/A | BF30: N/A | BG30: N/A | BH30: N/A | BI30: N/A | BJ30: N/A | BK30: N/A | BL30: N/A | BM30: N/A | BN30: N/A | BO30: N/A | BP30: N/A | BQ30: N/A | BR30: N/A | BS30: N/A | BT30: N/A | BU30: N/A
A31: Piped water on premises | B31: Yes | C31: 0.02801483055 | D31: 0 | E31: 8.257126504 | F31: 31.0624614 | G31: 49.9790384 | H31: 4.785452331 | I31: 17.53681366 | J31: 36.33788988 | K31: 37.51934318 | L31: 60.50748564 | M31: 0.0530414173 | N31: 0 | O31: 0 | P31: 0 | Q31: 6.456956376 | R31: 2.952672636 | S31: 12.38455117 | T31: 35.8402043 | U31: 8.32175702 | BA31: Piped water on premises | BB31: Yes | BC31: N/A | BD31: N/A | BE31: N/A | BF31: N/A | BG31: N/A | BH31: N/A | BI31: N/A | BJ31: N/A | BK31: N/A | BL31: N/A | BM31: N/A | BN31: N/A | BO31: N/A | BP31: N/A | BQ31: N/A | BR31: N/A | BS31: N/A | BT31: N/A | BU31: N/A
B32: No | C32: 99.97198517 | D32: 100 | E32: 91.7428735 | F32: 68.9375386 | G32: 50.0209616 | H32: 95.21454767 | I32: 82.46318634 | J32: 63.66211012 | K32: 62.48065682 | L32: 39.49251436 | M32: 99.94695858 | N32: 100 | O32: 100 | P32: 100 | Q32: 93.54304362 | R32: 97.04732736 | S32: 87.61544883 | T32: 64.1597957 | U32: 91.67824298 | BB32: No | BC32: N/A | BD32: N/A | BE32: N/A | BF32: N/A | BG32: N/A | BH32: N/A | BI32: N/A | BJ32: N/A | BK32: N/A | BL32: N/A | BM32: N/A | BN32: N/A | BO32: N/A | BP32: N/A | BQ32: N/A | BR32: N/A | BS32: N/A | BT32: N/A | BU32: N/A
A33: Piped water into dwelling | B33: Yes | C33: N/A | D33: N/A | E33: N/A | F33: N/A | G33: N/A | H33: N/A | I33: N/A | J33: N/A | K33: N/A | L33: N/A | M33: N/A | N33: N/A | O33: N/A | P33: N/A | Q33: N/A | R33: N/A | S33: N/A | T33: N/A | U33: N/A | BA33: Piped water into dwelling | BB33: Yes | BC33: N/A | BD33: N/A | BE33: N/A | BF33: N/A | BG33: N/A | BH33: N/A | BI33: N/A | BJ33: N/A | BK33: N/A | BL33: N/A | BM33: N/A | BN33: N/A | BO33: N/A | BP33: N/A | BQ33: N/A | BR33: N/A | BS33: N/A | BT33: N/A | BU33: N/A
B34: No | C34: N/A | D34: N/A | E34: N/A | F34: N/A | G34: N/A | H34: N/A | I34: N/A | J34: N/A | K34: N/A | L34: N/A | M34: N/A | N34: N/A | O34: N/A | P34: N/A | Q34: N/A | R34: N/A | S34: N/A | T34: N/A | U34: N/A | BB34: No | BC34: N/A | BD34: N/A | BE34: N/A | BF34: N/A | BG34: N/A | BH34: N/A | BI34: N/A | BJ34: N/A | BK34: N/A | BL34: N/A | BM34: N/A | BN34: N/A | BO34: N/A | BP34: N/A | BQ34: N/A | BR34: N/A | BS34: N/A | BT34: N/A | BU34: N/A
A35: Water source on premises | B35: Yes | C35: N/A | D35: N/A | E35: N/A | F35: N/A | G35: N/A | H35: N/A | I35: N/A | J35: N/A | K35: N/A | L35: N/A | M35: N/A | N35: N/A | O35: N/A | P35: N/A | Q35: N/A | R35: N/A | S35: N/A | T35: N/A | U35: N/A | BA35: Water source on premises | BB35: Yes | BC35: N/A | BD35: N/A | BE35: N/A | BF35: N/A | BG35: N/A | BH35: N/A | BI35: N/A | BJ35: N/A | BK35: N/A | BL35: N/A | BM35: N/A | BN35: N/A | BO35: N/A | BP35: N/A | BQ35: N/A | BR35: N/A | BS35: N/A | BT35: N/A | BU35: N/A
B36: No | C36: N/A | D36: N/A | E36: N/A | F36: N/A | G36: N/A | H36: N/A | I36: N/A | J36: N/A | K36: N/A | L36: N/A | M36: N/A | N36: N/A | O36: N/A | P36: N/A | Q36: N/A | R36: N/A | S36: N/A | T36: N/A | U36: N/A | BB36: No | BC36: N/A | BD36: N/A | BE36: N/A | BF36: N/A | BG36: N/A | BH36: N/A | BI36: N/A | BJ36: N/A | BK36: N/A | BL36: N/A | BM36: N/A | BN36: N/A | BO36: N/A | BP36: N/A | BQ36: N/A | BR36: N/A | BS36: N/A | BT36: N/A | BU36: N/A
A37: Improved Water source on premises | B37: Yes | C37: N/A | D37: N/A | E37: N/A | F37: N/A | G37: N/A | H37: N/A | I37: N/A | J37: N/A | K37: N/A | L37: N/A | M37: N/A | N37: N/A | O37: N/A | P37: N/A | Q37: N/A | R37: N/A | S37: N/A | T37: N/A | U37: N/A | BA37: Improved water source on premises | BB37: Yes | BC37: N/A | BD37: N/A | BE37: N/A | BF37: N/A | BG37: N/A | BH37: N/A | BI37: N/A | BJ37: N/A | BK37: N/A | BL37: N/A | BM37: N/A | BN37: N/A | BO37: N/A | BP37: N/A | BQ37: N/A | BR37: N/A | BS37: N/A | BT37: N/A | BU37: N/A
B38: No | C38: N/A | D38: N/A | E38: N/A | F38: N/A | G38: N/A | H38: N/A | I38: N/A | J38: N/A | K38: N/A | L38: N/A | M38: N/A | N38: N/A | O38: N/A | P38: N/A | Q38: N/A | R38: N/A | S38: N/A | T38: N/A | U38: N/A | BB38: No | BC38: N/A | BD38: N/A | BE38: N/A | BF38: N/A | BG38: N/A | BH38: N/A | BI38: N/A | BJ38: N/A | BK38: N/A | BL38: N/A | BM38: N/A | BN38: N/A | BO38: N/A | BP38: N/A | BQ38: N/A | BR38: N/A | BS38: N/A | BT38: N/A | BU38: N/A
A39: Piped water on premises available when needed | B39: Yes | C39: N/A | D39: N/A | E39: N/A | F39: N/A | G39: N/A | H39: N/A | I39: N/A | J39: N/A | K39: N/A | L39: N/A | M39: N/A | N39: N/A | O39: N/A | P39: N/A | Q39: N/A | R39: N/A | S39: N/A | T39: N/A | U39: N/A | BA39: Piped water on premises available when needed | BB39: Yes | BC39: N/A | BD39: N/A | BE39: N/A | BF39: N/A | BG39: N/A | BH39: N/A | BI39: N/A | BJ39: N/A | BK39: N/A | BL39: N/A | BM39: N/A | BN39: N/A | BO39: N/A | BP39: N/A | BQ39: N/A | BR39: N/A | BS39: N/A | BT39: N/A | BU39: N/A
B40: No | C40: N/A | D40: N/A | E40: N/A | F40: N/A | G40: N/A | H40: N/A | I40: N/A | J40: N/A | K40: N/A | L40: N/A | M40: N/A | N40: N/A | O40: N/A | P40: N/A | Q40: N/A | R40: N/A | S40: N/A | T40: N/A | U40: N/A | BB40: No | BC40: N/A | BD40: N/A | BE40: N/A | BF40: N/A | BG40: N/A | BH40: N/A | BI40: N/A | BJ40: N/A | BK40: N/A | BL40: N/A | BM40: N/A | BN40: N/A | BO40: N/A | BP40: N/A | BQ40: N/A | BR40: N/A | BS40: N/A | BT40: N/A | BU40: N/A
A41: Water point at more than 30 minutes | B41: Yes | C41: N/A | D41: N/A | E41: N/A | F41: N/A | G41: N/A | H41: N/A | I41: N/A | J41: N/A | K41: N/A | L41: N/A | M41: N/A | N41: N/A | O41: N/A | P41: N/A | Q41: N/A | R41: N/A | S41: N/A | T41: N/A | U41: N/A | BA41: Water point at more than 30 minutes | BB41: Yes | BC41: N/A | BD41: N/A | BE41: N/A | BF41: N/A | BG41: N/A | BH41: N/A | BI41: N/A | BJ41: N/A | BK41: N/A | BL41: N/A | BM41: N/A | BN41: N/A | BO41: N/A | BP41: N/A | BQ41: N/A | BR41: N/A | BS41: N/A | BT41: N/A | BU41: N/A
B42: No | C42: N/A | D42: N/A | E42: N/A | F42: N/A | G42: N/A | H42: N/A | I42: N/A | J42: N/A | K42: N/A | L42: N/A | M42: N/A | N42: N/A | O42: N/A | P42: N/A | Q42: N/A | R42: N/A | S42: N/A | T42: N/A | U42: N/A | BB42: No | BC42: N/A | BD42: N/A | BE42: N/A | BF42: N/A | BG42: N/A | BH42: N/A | BI42: N/A | BJ42: N/A | BK42: N/A | BL42: N/A | BM42: N/A | BN42: N/A | BO42: N/A | BP42: N/A | BQ42: N/A | BR42: N/A | BS42: N/A | BT42: N/A | BU42: N/A
A43: Water source available when needed | B43: Yes | C43: N/A | D43: N/A | E43: N/A | F43: N/A | G43: N/A | H43: N/A | I43: N/A | J43: N/A | K43: N/A | L43: N/A | M43: N/A | N43: N/A | O43: N/A | P43: N/A | Q43: N/A | R43: N/A | S43: N/A | T43: N/A | U43: N/A | BA43: Water source available when needed | BB43: Yes | BC43: N/A | BD43: N/A | BE43: N/A | BF43: N/A | BG43: N/A | BH43: N/A | BI43: N/A | BJ43: N/A | BK43: N/A | BL43: N/A | BM43: N/A | BN43: N/A | BO43: N/A | BP43: N/A | BQ43: N/A | BR43: N/A | BS43: N/A | BT43: N/A | BU43: N/A
B44: No | C44: N/A | D44: N/A | E44: N/A | F44: N/A | G44: N/A | H44: N/A | I44: N/A | J44: N/A | K44: N/A | L44: N/A | M44: N/A | N44: N/A | O44: N/A | P44: N/A | Q44: N/A | R44: N/A | S44: N/A | T44: N/A | U44: N/A | BB44: No | BC44: N/A | BD44: N/A | BE44: N/A | BF44: N/A | BG44: N/A | BH44: N/A | BI44: N/A | BJ44: N/A | BK44: N/A | BL44: N/A | BM44: N/A | BN44: N/A | BO44: N/A | BP44: N/A | BQ44: N/A | BR44: N/A | BS44: N/A | BT44: N/A | BU44: N/A
A45: Improved water source available when needed | B45: Yes | C45: N/A | D45: N/A | E45: N/A | F45: N/A | G45: N/A | H45: N/A | I45: N/A | J45: N/A | K45: N/A | L45: N/A | M45: N/A | N45: N/A | O45: N/A | P45: N/A | Q45: N/A | R45: N/A | S45: N/A | T45: N/A | U45: N/A | BA45: Improved water source available when needed | BB45: Yes | BC45: N/A | BD45: N/A | BE45: N/A | BF45: N/A | BG45: N/A | BH45: N/A | BI45: N/A | BJ45: N/A | BK45: N/A | BL45: N/A | BM45: N/A | BN45: N/A | BO45: N/A | BP45: N/A | BQ45: N/A | BR45: N/A | BS45: N/A | BT45: N/A | BU45: N/A
B46: No | C46: N/A | D46: N/A | E46: N/A | F46: N/A | G46: N/A | H46: N/A | I46: N/A | J46: N/A | K46: N/A | L46: N/A | M46: N/A | N46: N/A | O46: N/A | P46: N/A | Q46: N/A | R46: N/A | S46: N/A | T46: N/A | U46: N/A | BB46: No | BC46: N/A | BD46: N/A | BE46: N/A | BF46: N/A | BG46: N/A | BH46: N/A | BI46: N/A | BJ46: N/A | BK46: N/A | BL46: N/A | BM46: N/A | BN46: N/A | BO46: N/A | BP46: N/A | BQ46: N/A | BR46: N/A | BS46: N/A | BT46: N/A | BU46: N/A
A47: Microbiological quality at point of collection | B47: Not contaminated (No E. coli in 100 mL) | C47: N/A | D47: N/A | E47: N/A | F47: N/A | G47: N/A | H47: N/A | I47: N/A | J47: N/A | K47: N/A | L47: N/A | M47: N/A | N47: N/A | O47: N/A | P47: N/A | Q47: N/A | R47: N/A | S47: N/A | T47: N/A | U47: N/A | BA47: Microbiological quality at point of collection | BB47: Not contaminated (No E. coli in 100 mL) | BC47: N/A | BD47: N/A | BE47: N/A | BF47: N/A | BG47: N/A | BH47: N/A | BI47: N/A | BJ47: N/A | BK47: N/A | BL47: N/A | BM47: N/A | BN47: N/A | BO47: N/A | BP47: N/A | BQ47: N/A | BR47: N/A | BS47: N/A | BT47: N/A | BU47: N/A
B48: Contaminated (E. coli detected in 100 mL) | C48: N/A | D48: N/A | E48: N/A | F48: N/A | G48: N/A | H48: N/A | I48: N/A | J48: N/A | K48: N/A | L48: N/A | M48: N/A | N48: N/A | O48: N/A | P48: N/A | Q48: N/A | R48: N/A | S48: N/A | T48: N/A | U48: N/A | BB48: Contaminated (E. coli detected in 100 mL) | BC48: N/A | BD48: N/A | BE48: N/A | BF48: N/A | BG48: N/A | BH48: N/A | BI48: N/A | BJ48: N/A | BK48: N/A | BL48: N/A | BM48: N/A | BN48: N/A | BO48: N/A | BP48: N/A | BQ48: N/A | BR48: N/A | BS48: N/A | BT48: N/A | BU48: N/A
B49: Highly contaminated (>100 CFU/100 mL) | C49: N/A | D49: N/A | E49: N/A | F49: N/A | G49: N/A | H49: N/A | I49: N/A | J49: N/A | K49: N/A | L49: N/A | M49: N/A | N49: N/A | O49: N/A | P49: N/A | Q49: N/A | R49: N/A | S49: N/A | T49: N/A | U49: N/A | BB49: Highly contaminated (>100 CFU/100 mL) | BC49: N/A | BD49: N/A | BE49: N/A | BF49: N/A | BG49: N/A | BH49: N/A | BI49: N/A | BJ49: N/A | BK49: N/A | BL49: N/A | BM49: N/A | BN49: N/A | BO49: N/A | BP49: N/A | BQ49: N/A | BR49: N/A | BS49: N/A | BT49: N/A | BU49: N/A
A50: Microbiological quality of improved water sources at point of collection | B50: Not contaminated (No E. coli in 100 mL) | C50: N/A | D50: N/A | E50: N/A | F50: N/A | G50: N/A | H50: N/A | I50: N/A | J50: N/A | K50: N/A | L50: N/A | M50: N/A | N50: N/A | O50: N/A | P50: N/A | Q50: N/A | R50: N/A | S50: N/A | T50: N/A | U50: N/A | BA50: Microbiological quality of improved water sources at point of collection | BB50: Not contaminated (No E. coli in 100 mL) | BC50: N/A | BD50: N/A | BE50: N/A | BF50: N/A | BG50: N/A | BH50: N/A | BI50: N/A | BJ50: N/A | BK50: N/A | BL50: N/A | BM50: N/A | BN50: N/A | BO50: N/A | BP50: N/A | BQ50: N/A | BR50: N/A | BS50: N/A | BT50: N/A | BU50: N/A
B51: Contaminated (E. coli detected in 100 mL) | C51: N/A | D51: N/A | E51: N/A | F51: N/A | G51: N/A | H51: N/A | I51: N/A | J51: N/A | K51: N/A | L51: N/A | M51: N/A | N51: N/A | O51: N/A | P51: N/A | Q51: N/A | R51: N/A | S51: N/A | T51: N/A | U51: N/A | BB51: Contaminated (E. coli detected in 100 mL) | BC51: N/A | BD51: N/A | BE51: N/A | BF51: N/A | BG51: N/A | BH51: N/A | BI51: N/A | BJ51: N/A | BK51: N/A | BL51: N/A | BM51: N/A | BN51: N/A | BO51: N/A | BP51: N/A | BQ51: N/A | BR51: N/A | BS51: N/A | BT51: N/A | BU51: N/A
B52: Highly contaminated (>100 CFU/100 mL) | C52: N/A | D52: N/A | E52: N/A | F52: N/A | G52: N/A | H52: N/A | I52: N/A | J52: N/A | K52: N/A | L52: N/A | M52: N/A | N52: N/A | O52: N/A | P52: N/A | Q52: N/A | R52: N/A | S52: N/A | T52: N/A | U52: N/A | BB52: Highly contaminated (>100 CFU/100 mL) | BC52: N/A | BD52: N/A | BE52: N/A | BF52: N/A | BG52: N/A | BH52: N/A | BI52: N/A | BJ52: N/A | BK52: N/A | BL52: N/A | BM52: N/A | BN52: N/A | BO52: N/A | BP52: N/A | BQ52: N/A | BR52: N/A | BS52: N/A | BT52: N/A | BU52: N/A
A53: Microbiological quality of piped on premises at point of collection | B53: Not contaminated (No E. coli in 100 mL) | C53: N/A | D53: N/A | E53: N/A | F53: N/A | G53: N/A | H53: N/A | I53: N/A | J53: N/A | K53: N/A | L53: N/A | M53: N/A | N53: N/A | O53: N/A | P53: N/A | Q53: N/A | R53: N/A | S53: N/A | T53: N/A | U53: N/A | BA53: Microbiological quality of piped on premises at point of collection | BB53: Not contaminated (No E. coli in 100 mL) | BC53: N/A | BD53: N/A | BE53: N/A | BF53: N/A | BG53: N/A | BH53: N/A | BI53: N/A | BJ53: N/A | BK53: N/A | BL53: N/A | BM53: N/A | BN53: N/A | BO53: N/A | BP53: N/A | BQ53: N/A | BR53: N/A | BS53: N/A | BT53: N/A | BU53: N/A
B54: Contaminated (E. coli detected in 100 mL) | C54: N/A | D54: N/A | E54: N/A | F54: N/A | G54: N/A | H54: N/A | I54: N/A | J54: N/A | K54: N/A | L54: N/A | M54: N/A | N54: N/A | O54: N/A | P54: N/A | Q54: N/A | R54: N/A | S54: N/A | T54: N/A | U54: N/A | BB54: Contaminated (E. coli detected in 100 mL) | BC54: N/A | BD54: N/A | BE54: N/A | BF54: N/A | BG54: N/A | BH54: N/A | BI54: N/A | BJ54: N/A | BK54: N/A | BL54: N/A | BM54: N/A | BN54: N/A | BO54: N/A | BP54: N/A | BQ54: N/A | BR54: N/A | BS54: N/A | BT54: N/A | BU54: N/A
B55: Highly contaminated (>100 CFU/100 mL) | C55: N/A | D55: N/A | E55: N/A | F55: N/A | G55: N/A | H55: N/A | I55: N/A | J55: N/A | K55: N/A | L55: N/A | M55: N/A | N55: N/A | O55: N/A | P55: N/A | Q55: N/A | R55: N/A | S55: N/A | T55: N/A | U55: N/A | BB55: Highly contaminated (>100 CFU/100 mL) | BC55: N/A | BD55: N/A | BE55: N/A | BF55: N/A | BG55: N/A | BH55: N/A | BI55: N/A | BJ55: N/A | BK55: N/A | BL55: N/A | BM55: N/A | BN55: N/A | BO55: N/A | BP55: N/A | BQ55: N/A | BR55: N/A | BS55: N/A | BT55: N/A | BU55: N/A
C56: NATIONAL wealth index quintile | H56: URBAN wealth index quintile | M56: RURAL wealth index quintile | R56: SUB-REGIONS: | BA56: Raw numbers of respondents: | BB56: Use of drinking water sources | BC56: NATIONAL wealth index quintile | BH56: URBAN wealth index quintile | BM56: RURAL wealth index quintile | BR56: SUB-REGIONS:
A57: Percentage based on weighted population | C57: Poorest | D57: Poor | E57: Middle | F57: Rich | G57: Richest | H57: Poorest | I57: Poor | J57: Middle | K57: Rich | L57: Richest | M57: Poorest | N57: Poor | O57: Middle | P57: Rich | Q57: Richest | R57: Hyperendemic (Cabinda, Uige, K. Norte, Malange, L. Norte, L. | S57: Instable mesoendemic (Moxico, K. Kubango, Kunene, Huila, Nam | T57: Luanda | U57: Stable mesoendemic (Zaire, Luanda, Bengo, Benguela, K. Sul, | BA57: Water data, raw numbers (weighted) | BC57: Poorest | BD57: Poor | BE57: Middle | BF57: Rich | BG57: Richest | BH57: Poorest | BI57: Poor | BJ57: Middle | BK57: Rich | BL57: Richest | BM57: Poorest | BN57: Poor | BO57: Middle | BP57: Rich | BQ57: Richest | BR57: Hyperendemic (Cabinda, Uige, K. Norte, Malange, L. Norte, L. | BS57: Instable mesoendemic (Moxico, K. Kubango, Kunene, Huila, Nam | BT57: Luanda | BU57: Stable mesoendemic (Zaire, Luanda, Bengo, Benguela, K. Sul,
A58: Source of drinking water | B58: Piped into dwelling | C58: 0.02801483055 | D58: 0 | E58: 1.274521656 | F58: 7.370901782 | G58: 21.83972295 | H58: 1.351644512 | I58: 2.610850344 | J58: 8.579778758 | K58: 8.523852021 | L58: 32.00203145 | M58: 0.0530414173 | N58: 0 | O58: 0 | P58: 0 | Q58: 3.033882951 | R58: 0.4486470072 | S58: 3.506793073 | T58: 11.38323697 | U58: 4.415917527
B59: Piped to yard/plot | C59: 0 | D59: 0 | E59: 6.982604848 | F59: 23.69155962 | G59: 28.13931545 | H59: 3.433807819 | I59: 14.92596332 | J59: 27.75811113 | K59: 28.99549116 | L59: 28.50545419 | M59: 0 | N59: 0 | O59: 0 | P59: 0 | Q59: 3.423073424 | R59: 2.504025628 | S59: 8.877758096 | T59: 24.45696733 | U59: 3.905839493
B60: Public tap/standpipe | C60: 6.233456634 | D60: 9.721949625 | E60: 17.01133437 | F60: 11.03132389 | G60: 7.155660043 | H60: 14.52792618 | I60: 17.25156656 | J60: 10.78297276 | K60: 11.58846691 | L60: 4.539220784 | M60: 4.048499328 | N60: 10.20683127 | O60: 8.065860996 | P60: 12.37188093 | Q60: 8.323696654 | R60: 11.99102222 | S60: 14.61680605 | T60: 13.80961707 | U60: 3.460408487
B61: Tube well or borehole | C61: 0.6448434967 | D61: 1.311840129 | E61: 1.129269938 | F61: 1.864885207 | G61: 0.8909902253 | H61: 1.423501603 | I61: 1.42687312 | J61: 1.887357777 | K61: 1.043517421 | L61: 0.5859909041 | M61: 0.4936354312 | N61: 0.5264864851 | O61: 1.422664498 | P61: 1.61596477 | Q61: 1.080178139 | R61: 0.4474807311 | S61: 4.558525564 | T61: 1.254376021 | U61: 0
B62: Protected well | C62: 11.62147696 | D62: 25.13031038 | E62: 17.46155233 | F62: 9.33039979 | G62: 2.593878279 | H62: 32.30514136 | I62: 6.666985357 | J62: 8.69158725 | K62: 3.09665778 | L62: 0 | M62: 8.564487437 | N62: 15.92007844 | O62: 15.64597759 | P62: 21.67235024 | Q62: 24.61147073 | R62: 26.16470642 | S62: 16.42778282 | T62: 0 | U62: 19.53486148
B63: Unprotected well | C63: 13.74371125 | D63: 12.30395829 | E63: 9.502227907 | F63: 2.153154776 | G63: 0.397672633 | H63: 6.866104088 | I63: 2.983789896 | J63: 1.981960633 | K63: 0.7250052233 | L63: 0 | M63: 14.39483213 | N63: 10.28224558 | O63: 16.03670005 | P63: 11.29029586 | Q63: 16.71136328 | R63: 5.994538814 | S63: 20.68048196 | T63: 0 | U63: 11.33108858
B64: Protected spring | C64: 5.579047703 | D64: 16.43274412 | E64: 8.081821602 | F64: 0.682567119 | G64: 0.9189944959 | H64: 13.32466918 | I64: 0.3440430987 | J64: 0 | K64: 0.3130790987 | L64: 1.484924913 | M64: 5.066310235 | N64: 4.81158251 | O64: 9.17678211 | P64: 19.37196263 | Q64: 13.37018244 | R64: 2.180841293 | S64: 3.118666887 | T64: 0.2749800413 | U64: 16.69927693
B65: Unprotected spring | C65: 7.463700846 | D65: 4.845268014 | E65: 2.463650416 | F65: 0 | G65: 0 | H65: 0.6249395931 | I65: 0.4677549327 | J65: 0 | K65: 0 | L65: 0 | M65: 9.570718075 | N65: 4.539316639 | O65: 3.890036853 | P65: 7.53934092 | Q65: 5.296074405 | R65: 1.381479575 | S65: 6.632486889 | T65: 0 | U65: 5.493951789
B66: River/dam/lake/ponds/stream/canal/irirgation channel | C66: 54.17167637 | D66: 26.68086407 | E66: 8.606923069 | F66: 1.454458075 | G66: 0.2031759869 | H66: 5.811726248 | I66: 6.207789886 | J66: 0 | K66: 0 | L66: 0 | M66: 57.37198374 | N66: 52.91559875 | O66: 44.36270534 | P66: 22.24268035 | Q66: 10.98476925 | R66: 46.16268587 | S66: 19.70421799 | T66: 0 | U66: 22.66199617
B67: Rainwater | C67: 0.2185157714 | D67: 0.09124011768 | E67: 0.1095127901 | F67: 0 | G67: 0 | H67: 0 | I67: 0.1984885389 | J67: 0 | K67: 0 | L67: 0 | M67: 0.4137232312 | N67: 0 | O67: 0.1960252649 | P67: 0 | Q67: 0 | R67: 0 | S67: 0.1301883578 | T67: 0.06134914537 | U67: 0.1343678725
B68: Tanker truck | C68: 0.2835302714 | D68: 3.404008542 | E68: 27.1708296 | F68: 41.77024572 | G68: 36.64717068 | H68: 20.33053941 | I68: 46.12193697 | J68: 39.90806775 | K68: 44.02074269 | L68: 32.35877578 | M68: 0 | N68: 0.7978603195 | O68: 1.14846715 | P68: 3.777339901 | Q68: 12.7586577 | R68: 2.486378878 | S68: 1.729113037 | T68: 48.4776226 | U68: 11.48172438
B69: Cart with small tank | C69: 0.01202586843 | D69: 0.07781671219 | E69: 0.2057514764 | F69: 0.650504018 | G69: 1.179906081 | H69: 0 | I69: 0.7939579772 | J69: 0.4101639447 | K69: 1.693187699 | L69: 0.4619642722 | M69: 0.02276897961 | N69: 0 | O69: 0.0547801537 | P69: 0.1181844013 | Q69: 0.4066510262 | R69: 0.2381935621 | S69: 0.0171792692 | T69: 0.2818508355 | U69: 0.8599136162
B70: Bottled water | C70: 0 | D70: 0 | E70: 0 | F70: 0 | G70: 0.03351317701 | H70: 0 | I70: 0 | J70: 0 | K70: 0 | L70: 0.06163770323 | M70: 0 | N70: 0 | O70: 0 | P70: 0 | Q70: 0 | R70: 0 | S70: 0 | T70: 0 | U70: 0.02065367716
A108: =A1026 -> Angola
A109: =A1034 -> 2007
A110: Use of sanitation facilities
A111: by wealth quintile and sub-national region
A112: Notes:
A113: WHO/UNICEF JMP customised wealth index excludes water,
A114: sanitation and hygiene assets.
A115: Survey used for analysis: | B115: =A1025 -> MIS07
A116: =B1030 -> 
A117: =B1029 -> Ratio of Shared improved based on: | B117: DHS16
A120: Use of sanitation facilities | C120: NATIONAL wealth index quintile | H120: URBAN wealth index quintile | M120: RURAL wealth index quintile | R120: SUB-REGIONS: | BA120: Raw numbers of respondents: | BB120: Use of sanitation facilities | BC120: NATIONAL wealth index quintile | BH120: URBAN wealth index quintile | BM120: RURAL wealth index quintile | BR120: SUB-REGIONS:
A121: Weighted percentage (used in graphs) | C121: Poorest | D121: Poor | E121: Middle | F121: Rich | G121: Richest | H121: Poorest | I121: Poor | J121: Middle | K121: Rich | L121: Richest | M121: Poorest | N121: Poor | O121: Middle | P121: Rich | Q121: Richest | R121: Hyperendemic (Cabinda, Uige, K. Norte, Malange, L. Norte, L. | S121: Instable mesoendemic (Moxico, K. Kubango, Kunene, Huila, Nam | T121: Luanda | U121: Stable mesoendemic (Zaire, Luanda, Bengo, Benguela, K. Sul, | BA121: Sanitation data, raw numbers (weighted) | BC121: Poorest | BD121: Poor | BE121: Middle | BF121: Rich | BG121: Richest | BH121: Poorest | BI121: Poor | BJ121: Middle | BK121: Rich | BL121: Richest | BM121: Poorest | BN121: Poor | BO121: Middle | BP121: Rich | BQ121: Richest | BR121: Hyperendemic (Cabinda, Uige, K. Norte, Malange, L. Norte, L. | BS121: Instable mesoendemic (Moxico, K. Kubango, Kunene, Huila, Nam | BT121: Luanda | BU121: Stable mesoendemic (Zaire, Luanda, Bengo, Benguela, K. Sul,
A122: Sanitation | B122: Improved | C122: 4.719303643 | D122: 24.01387591 | E122: 60.69278684 | F122: 86.45841865 | G122: 97.16077027 | H122: 54.79705078 | I122: 82.1838268 | J122: 89.27174367 | K122: 97.0138151 | L122: 96.79238623 | M122: 3.995884912 | N122: 6.282587698 | O122: 10.87002313 | P122: 25.69451627 | Q122: 45.25913195 | R122: 27.68652167 | S122: 31.4272173 | T122: 93.82453232 | U122: 35.69180262 | BA122: Sanitation | BB122: Improved | BC122: 141.937769 | BD122: 721.407064 | BE122: 1842.268169 | BF122: 2587.607133 | BG122: 2928.735379 | BH122: 911.163295 | BI122: 1376.3584 | BJ122: 1509.702867 | BK122: 1604.010982 | BL122: 1586.351903 | BM122: 63.475467 | BN122: 67.147706 | BO122: 151.992579 | BP122: 341.71173 | BQ122: 610.040585 | BR122: 730.76539 | BS122: 661.664364 | BT122: 5083.800552 | BU122: 1745.725208
B123: Not Improved | C123: 95.28069636 | D123: 75.98612409 | E123: 39.30721316 | F123: 13.54158135 | G123: 2.839229732 | H123: 45.20294922 | I123: 17.8161732 | J123: 10.72825633 | K123: 2.986184902 | L123: 3.207613766 | M123: 96.00411509 | N123: 93.7174123 | O123: 89.12997687 | P123: 74.30548373 | Q123: 54.74086805 | R123: 72.31347833 | S123: 68.5727827 | T123: 6.175467685 | U123: 64.30819738 | BB123: Not Improved | BC123: 2865.662075 | BD123: 2282.718829 | BE123: 1193.130706 | BF123: 405.284911 | BG123: 85.583436 | BH123: 751.632936 | BI123: 298.373057 | BJ123: 181.428957 | BK123: 49.373106 | BL123: 52.570294 | BM123: 1525.045434 | BN123: 1001.642882 | BO123: 1246.280241 | BP123: 988.189664 | BQ123: 737.843386 | BR123: 1908.66111 | BS123: 1443.722052 | BT123: 334.612337 | BU123: 3145.384458
A124: Sanitation ladder | B124: Basic | C124: =C122*'DHS16'!C129/100 -> 3.422996354 | D124: =D122*'DHS16'!D129/100 -> 15.77155866 | E124: =E122*'DHS16'!E129/100 -> 35.94091762 | F124: =F122*'DHS16'!F129/100 -> 57.08363554 | G124: =G122*'DHS16'!G129/100 -> 85.30707722 | H124: =H122*'DHS16'!H129/100 -> 28.4160852 | I124: =I122*'DHS16'!I129/100 -> 47.33834629 | J124: =J122*'DHS16'!J129/100 -> 55.53020438 | K124: =K122*'DHS16'!K129/100 -> 72.41212995 | L124: =L122*'DHS16'!L129/100 -> 90.31039896 | M124: =M122*'DHS16'!M129/100 -> 3.120222818 | N124: =N122*'DHS16'!N129/100 -> 4.842790002 | O124: =O122*'DHS16'!O129/100 -> 9.029663125 | P124: =P122*'DHS16'!P129/100 -> 20.2613093 | Q124: =Q122*'DHS16'!Q129/100 -> 35.96109199 | R124: =R122*'DHS16'!R129/100 -> 21.41474138 | S124: =S122*'DHS16'!S129/100 -> 19.30903934 | T124: =T122*'DHS16'!T129/100 -> 62.15976258 | U124: =U122*'DHS16'!U129/100 -> 18.9862079 | BA124: Sanitation ladder | BB124: Basic | BC124: 0 | BD124: 0 | BE124: 68.890757 | BF124: 318.074189 | BG124: 851.972203 | BH124: 43.198083 | BI124: 73.291102 | BJ124: 233.923451 | BK124: 242.920691 | BL124: 633.82969 | BM124: 0 | BN124: 0 | BO124: 0 | BP124: 0 | BQ124: 11.774132 | BR124: 36.511933 | BS124: 14.30549 | BT124: 886.056709 | BU124: 302.063017
B125: Limited | C125: =C122*'DHS16'!C128/100 -> 1.296307289 | D125: =D122*'DHS16'!D128/100 -> 8.242317249 | E125: =E122*'DHS16'!E128/100 -> 24.75186922 | F125: =F122*'DHS16'!F128/100 -> 29.3747831 | G125: =G122*'DHS16'!G128/100 -> 11.85369305 | H125: =H122*'DHS16'!H128/100 -> 26.38096558 | I125: =I122*'DHS16'!I128/100 -> 34.84548051 | J125: =J122*'DHS16'!J128/100 -> 33.74153928 | K125: =K122*'DHS16'!K128/100 -> 24.60168515 | L125: =L122*'DHS16'!L128/100 -> 6.481987275 | M125: =M122*'DHS16'!M128/100 -> 0.8756620938 | N125: =N122*'DHS16'!N128/100 -> 1.439797697 | O125: =O122*'DHS16'!O128/100 -> 1.840360008 | P125: =P122*'DHS16'!P128/100 -> 5.43320697 | Q125: =Q122*'DHS16'!Q128/100 -> 9.29803996 | R125: =R122*'DHS16'!R128/100 -> 6.271780295 | S125: =S122*'DHS16'!S128/100 -> 12.11817796 | T125: =T122*'DHS16'!T128/100 -> 31.66476974 | U125: =U122*'DHS16'!U128/100 -> 16.70559473 | BB125: Limited | BC125: 5.576582 | BD125: 181.762955 | BE125: 484.815565 | BF125: 1097.049396 | BG125: 1417.674599 | BH125: 283.744548 | BI125: 403.434908 | BJ125: 606.925666 | BK125: 914.090862 | BL125: 709.184618 | BM125: 0 | BN125: 5.576582 | BO125: 19.972629 | BP125: 60.141495 | BQ125: 183.807789 | BR125: 328.685082 | BS125: 352.432749 | BT125: 2154.195125 | BU125: 351.566141
B126: Unimproved | C126: =100-(C124+C125+C127) -> 31.31622177 | D126: =100-(D124+D125+D127) -> 33.82872246 | E126: 24.60797453 | F126: 12.23136767 | G126: 2.677573573 | H126: 33.2858895 | I126: 16.32039088 | J126: 9.597140371 | K126: 2.986184902 | L126: 3.207613766 | M126: 30.5578097 | N126: 27.15334459 | O126: 30.50248213 | P126: 36.95330432 | Q126: 27.27338895 | R126: 32.48721914 | S126: 10.86228106 | T126: 6.042384822 | U126: 35.59274038 | BB126: Unimproved | BC126: 2.715768 | BD126: 11.047393 | BE126: 32.184676 | BF126: 60.831867 | BG126: 71.723228 | BH126: 6.622024 | BI126: 24.040397 | BJ126: 48.108125 | BK126: 33.943088 | BL126: 46.885423 | BM126: 0 | BN126: 2.715768 | BO126: 3.143861 | BP126: 1.281508 | BQ126: 11.762738 | BR126: 3.143861 | BS126: 2.715768 | BT126: 88.581727 | BU126: 84.061576
B127: Open defecation | C127: =C160 -> 63.96447459 | D127: =D160 -> 42.15740163 | E127: 14.69923863 | F127: 1.31021368 | G127: 0.1616561585 | H127: 11.91705973 | I127: 1.495782318 | J127: 1.131115962 | K127: 0 | L127: 0 | M127: 65.44630539 | N127: 66.56406771 | O127: 58.62749474 | P127: 37.35217941 | Q127: 27.4674791 | R127: 39.82625919 | S127: 57.71050163 | T127: 0.133082863 | U127: 28.715457 | BB127: Open defecation | BC127: 0 | BD127: 10.920426 | BE127: 4.55584 | BF127: 0 | BG127: 0 | BH127: 10.920426 | BI127: 0 | BJ127: 0 | BK127: 0 | BL127: 0 | BM127: 0 | BN127: 0 | BO127: 0 | BP127: 0 | BQ127: 4.55584 | BR127: 12.69577 | BS127: 0 | BT127: 0 | BU127: 2.780496
A128: Shared among Improved Sanitation | B128: Yes | C128: N/A | D128: N/A | E128: N/A | F128: N/A | G128: N/A | H128: N/A | I128: N/A | J128: N/A | K128: N/A | L128: N/A | M128: N/A | N128: N/A | O128: N/A | P128: N/A | Q128: N/A | R128: N/A | S128: N/A | T128: N/A | U128: N/A | BA128: Shared among improved sanitation facilities | BB128: Yes | BC128: N/A | BD128: N/A | BE128: N/A | BF128: N/A | BG128: N/A | BH128: N/A | BI128: N/A | BJ128: N/A | BK128: N/A | BL128: N/A | BM128: N/A | BN128: N/A | BO128: N/A | BP128: N/A | BQ128: N/A | BR128: N/A | BS128: N/A | BT128: N/A | BU128: N/A
B129: No | C129: N/A | D129: N/A | E129: N/A | F129: N/A | G129: N/A | H129: N/A | I129: N/A | J129: N/A | K129: N/A | L129: N/A | M129: N/A | N129: N/A | O129: N/A | P129: N/A | Q129: N/A | R129: N/A | S129: N/A | T129: N/A | U129: N/A | BB129: No | BC129: N/A | BD129: N/A | BE129: N/A | BF129: N/A | BG129: N/A | BH129: N/A | BI129: N/A | BJ129: N/A | BK129: N/A | BL129: N/A | BM129: N/A | BN129: N/A | BO129: N/A | BP129: N/A | BQ129: N/A | BR129: N/A | BS129: N/A | BT129: N/A | BU129: N/A
A130: Manually calculated ratios | B130: Improved latrines | C130: =C157+C158/(C157+C158+C159)*100 -> 5.692425856 | D130: =D157+D158/(D157+D158+D159)*100 -> 22.89043006 | E130: 60.74500646 | F130: 73.73241572 | G130: 79.23819801 | H130: 47.55005865 | I130: 75.61664141 | J130: 77.7304361 | K130: 88.62783702 | L130: 54.49040067 | M130: 0 | N130: 13.10363334 | O130: 15.26407756 | P130: 21.15987427 | Q130: 50.12660303 | R130: 24.86469109 | S130: 47.02460439 | T130: 83.61359937 | U130: 29.15143469
B131: Other
B132: Other
C133: NATIONAL wealth index quintile | H133: URBAN wealth index quintile | M133: RURAL wealth index quintile | R133: SUB-REGIONS: | BA133: Raw numbers of respondents: | BB133: Use of sanitation facilities | BC133: NATIONAL wealth index quintile | BH133: URBAN wealth index quintile | BM133: RURAL wealth index quintile | BR133: SUB-REGIONS:
A134: Percentage based on weighted population | C134: Poorest | D134: Poor | E134: Middle | F134: Rich | G134: Richest | H134: Poorest | I134: Poor | J134: Middle | K134: Rich | L134: Richest | M134: Poorest | N134: Poor | O134: Middle | P134: Rich | Q134: Richest | R134: Hyperendemic (Cabinda, Uige, K. Norte, Malange, L. Norte, L. | S134: Instable mesoendemic (Moxico, K. Kubango, Kunene, Huila, Nam | T134: Luanda | U134: Stable mesoendemic (Zaire, Luanda, Bengo, Benguela, K. Sul, | BA134: Sanitation data, raw numbers (weighted) | BC134: Poorest | BD134: Poor | BE134: Middle | BF134: Rich | BG134: Richest | BH134: Poorest | BI134: Poor | BJ134: Middle | BK134: Rich | BL134: Richest | BM134: Poorest | BN134: Poor | BO134: Middle | BP134: Rich | BQ134: Richest | BR134: Hyperendemic (Cabinda, Uige, K. Norte, Malange, L. Norte, L. | BS134: Instable mesoendemic (Moxico, K. Kubango, Kunene, Huila, Nam | BT134: Luanda | BU134: Stable mesoendemic (Zaire, Luanda, Bengo, Benguela, K. Sul,
A135: Sanitation type | B135: Sewer connection | C135: 0 | D135: 0 | E135: 2.269578393 | F135: 10.62765326 | G135: 28.26417029 | H135: 2.597918025 | I135: 4.376289804 | J135: 13.83236053 | K135: 14.6923327 | L135: 38.67356798 | M135: 0 | N135: 0 | O135: 0 | P135: 0 | Q135: 0.8735271176 | R135: 1.383328272 | S135: 0.6794709936 | T135: 16.35269824 | U135: 6.175756375 | BA135: Sanitation type | BB135: Sewer connection | BC135: N/A | BD135: N/A | BE135: N/A | BF135: N/A | BG135: N/A | BH135: N/A | BI135: N/A | BJ135: N/A | BK135: N/A | BL135: N/A | BM135: N/A | BN135: N/A | BO135: N/A | BP135: N/A | BQ135: N/A | BR135: N/A | BS135: N/A | BT135: N/A | BU135: N/A
B136: Septic tank connection | C136: 0.1854163549 | D136: 6.050444005 | E136: 15.97205458 | F136: 36.65516096 | G136: 47.03134227 | H136: 17.06430065 | I136: 24.08952828 | J136: 35.88872596 | K136: 55.28605656 | L136: 43.27140235 | M136: 0 | N136: 0.5217656352 | O136: 1.428378548 | P136: 4.522252196 | Q136: 13.63676644 | R136: 12.4528977 | S136: 16.73957552 | T136: 39.75693933 | U136: 7.187860527 | BB136: Septic tank connection | BC136: N/A | BD136: N/A | BE136: N/A | BF136: N/A | BG136: N/A | BH136: N/A | BI136: N/A | BJ136: N/A | BK136: N/A | BL136: N/A | BM136: N/A | BN136: N/A | BO136: N/A | BP136: N/A | BQ136: N/A | BR136: N/A | BS136: N/A | BT136: N/A | BU136: N/A
B137: Improved latrines | C137: 4.533887288 | D137: 17.9634319 | E137: 42.45115387 | F137: 39.17560442 | G137: 21.86525771 | H137: 35.1348321 | I137: 53.71800871 | J137: 39.55065717 | K137: 27.03542584 | L137: 14.84741591 | M137: 3.995884912 | N137: 5.760822063 | O137: 9.441644585 | P137: 21.17226407 | Q137: 30.7488384 | R137: 13.8502957 | S137: 14.00817079 | T137: 37.71489475 | U137: 22.32818572 | BB137: Improved latrines | BC137: N/A | BD137: N/A | BE137: N/A | BF137: N/A | BG137: N/A | BH137: N/A | BI137: N/A | BJ137: N/A | BK137: N/A | BL137: N/A | BM137: N/A | BN137: N/A | BO137: N/A | BP137: N/A | BQ137: N/A | BR137: N/A | BS137: N/A | BT137: N/A | BU137: N/A
B138: Unimproved facilities | C138: 31.39278714 | D138: 33.96706311 | E138: 24.60797453 | F138: 12.23136767 | G138: 2.677573573 | H138: 33.2858895 | I138: 16.32039088 | J138: 9.597140371 | K138: 2.986184902 | L138: 3.207613766 | M138: 30.5578097 | N138: 27.37755761 | O138: 30.50248213 | P138: 37.2301837 | Q138: 27.27338895 | R138: 32.48721914 | S138: 10.86228106 | T138: 6.042384822 | U138: 35.67175286 | BB138: Unimproved facilities | BC138: N/A | BD138: N/A | BE138: N/A | BF138: N/A | BG138: N/A | BH138: N/A | BI138: N/A | BJ138: N/A | BK138: N/A | BL138: N/A | BM138: N/A | BN138: N/A | BO138: N/A | BP138: N/A | BQ138: N/A | BR138: N/A | BS138: N/A | BT138: N/A | BU138: N/A
B139: Open defecation | C139: 63.88790922 | D139: 42.01906098 | E139: 14.69923863 | F139: 1.31021368 | G139: 0.1616561585 | H139: 11.91705973 | I139: 1.495782318 | J139: 1.131115962 | K139: 0 | L139: 0 | M139: 65.44630539 | N139: 66.33985469 | O139: 58.62749474 | P139: 37.07530004 | Q139: 27.4674791 | R139: 39.82625919 | S139: 57.71050163 | T139: 0.133082863 | U139: 28.63644452 | BB139: Open defecation | BC139: N/A | BD139: N/A | BE139: N/A | BF139: N/A | BG139: N/A | BH139: N/A | BI139: N/A | BJ139: N/A | BK139: N/A | BL139: N/A | BM139: N/A | BN139: N/A | BO139: N/A | BP139: N/A | BQ139: N/A | BR139: N/A | BS139: N/A | BT139: N/A | BU139: N/A
A140: Septic tank emptying practices | B140: Not emptied/treated and disposed in situ | C140: N/A | D140: N/A | E140: N/A | F140: N/A | G140: N/A | H140: N/A | I140: N/A | J140: N/A | K140: N/A | L140: N/A | M140: N/A | N140: N/A | O140: N/A | P140: N/A | Q140: N/A | R140: N/A | S140: N/A | T140: N/A | U140: N/A | BA140: Septic tank emptying practices | BB140: Not emptied/treated and disposed in situ | BC140: N/A | BD140: N/A | BE140: N/A | BF140: N/A | BG140: N/A | BH140: N/A | BI140: N/A | BJ140: N/A | BK140: N/A | BL140: N/A | BM140: N/A | BN140: N/A | BO140: N/A | BP140: N/A | BQ140: N/A | BR140: N/A | BS140: N/A | BT140: N/A | BU140: N/A
B141: Emptied and buried on site | C141: N/A | D141: N/A | E141: N/A | F141: N/A | G141: N/A | H141: N/A | I141: N/A | J141: N/A | K141: N/A | L141: N/A | M141: N/A | N141: N/A | O141: N/A | P141: N/A | Q141: N/A | R141: N/A | S141: N/A | T141: N/A | U141: N/A | BB141: Emptied and buried on site | BC141: N/A | BD141: N/A | BE141: N/A | BF141: N/A | BG141: N/A | BH141: N/A | BI141: N/A | BJ141: N/A | BK141: N/A | BL141: N/A | BM141: N/A | BN141: N/A | BO141: N/A | BP141: N/A | BQ141: N/A | BR141: N/A | BS141: N/A | BT141: N/A | BU141: N/A
B142: Emptied and discharged locally | C142: N/A | D142: N/A | E142: N/A | F142: N/A | G142: N/A | H142: N/A | I142: N/A | J142: N/A | K142: N/A | L142: N/A | M142: N/A | N142: N/A | O142: N/A | P142: N/A | Q142: N/A | R142: N/A | S142: N/A | T142: N/A | U142: N/A | BB142: Emptied and discharged locally | BC142: N/A | BD142: N/A | BE142: N/A | BF142: N/A | BG142: N/A | BH142: N/A | BI142: N/A | BJ142: N/A | BK142: N/A | BL142: N/A | BM142: N/A | BN142: N/A | BO142: N/A | BP142: N/A | BQ142: N/A | BR142: N/A | BS142: N/A | BT142: N/A | BU142: N/A
B143: Emptied and removed offsite | C143: N/A | D143: N/A | E143: N/A | F143: N/A | G143: N/A | H143: N/A | I143: N/A | J143: N/A | K143: N/A | L143: N/A | M143: N/A | N143: N/A | O143: N/A | P143: N/A | Q143: N/A | R143: N/A | S143: N/A | T143: N/A | U143: N/A | BB143: Emptied and removed offsite | BC143: N/A | BD143: N/A | BE143: N/A | BF143: N/A | BG143: N/A | BH143: N/A | BI143: N/A | BJ143: N/A | BK143: N/A | BL143: N/A | BM143: N/A | BN143: N/A | BO143: N/A | BP143: N/A | BQ143: N/A | BR143: N/A | BS143: N/A | BT143: N/A | BU143: N/A
A144: Latrine emptying practices | B144: Not emptied/treated and disposed in situ | C144: N/A | D144: N/A | E144: N/A | F144: N/A | G144: N/A | H144: N/A | I144: N/A | J144: N/A | K144: N/A | L144: N/A | M144: N/A | N144: N/A | O144: N/A | P144: N/A | Q144: N/A | R144: N/A | S144: N/A | T144: N/A | U144: N/A | BA144: Latrine emptying practices | BB144: Not emptied/treated and disposed in situ | BC144: N/A | BD144: N/A | BE144: N/A | BF144: N/A | BG144: N/A | BH144: N/A | BI144: N/A | BJ144: N/A | BK144: N/A | BL144: N/A | BM144: N/A | BN144: N/A | BO144: N/A | BP144: N/A | BQ144: N/A | BR144: N/A | BS144: N/A | BT144: N/A | BU144: N/A
B145: Emptied and buried on site | C145: N/A | D145: N/A | E145: N/A | F145: N/A | G145: N/A | H145: N/A | I145: N/A | J145: N/A | K145: N/A | L145: N/A | M145: N/A | N145: N/A | O145: N/A | P145: N/A | Q145: N/A | R145: N/A | S145: N/A | T145: N/A | U145: N/A | BB145: Emptied and buried on site | BC145: N/A | BD145: N/A | BE145: N/A | BF145: N/A | BG145: N/A | BH145: N/A | BI145: N/A | BJ145: N/A | BK145: N/A | BL145: N/A | BM145: N/A | BN145: N/A | BO145: N/A | BP145: N/A | BQ145: N/A | BR145: N/A | BS145: N/A | BT145: N/A | BU145: N/A
B146: Emptied and discharged locally | C146: N/A | D146: N/A | E146: N/A | F146: N/A | G146: N/A | H146: N/A | I146: N/A | J146: N/A | K146: N/A | L146: N/A | M146: N/A | N146: N/A | O146: N/A | P146: N/A | Q146: N/A | R146: N/A | S146: N/A | T146: N/A | U146: N/A | BB146: Emptied and discharged locally | BC146: N/A | BD146: N/A | BE146: N/A | BF146: N/A | BG146: N/A | BH146: N/A | BI146: N/A | BJ146: N/A | BK146: N/A | BL146: N/A | BM146: N/A | BN146: N/A | BO146: N/A | BP146: N/A | BQ146: N/A | BR146: N/A | BS146: N/A | BT146: N/A | BU146: N/A
B147: Emptied and removed offsite | C147: N/A | D147: N/A | E147: N/A | F147: N/A | G147: N/A | H147: N/A | I147: N/A | J147: N/A | K147: N/A | L147: N/A | M147: N/A | N147: N/A | O147: N/A | P147: N/A | Q147: N/A | R147: N/A | S147: N/A | T147: N/A | U147: N/A | BB147: Emptied and removed offsite | BC147: N/A | BD147: N/A | BE147: N/A | BF147: N/A | BG147: N/A | BH147: N/A | BI147: N/A | BJ147: N/A | BK147: N/A | BL147: N/A | BM147: N/A | BN147: N/A | BO147: N/A | BP147: N/A | BQ147: N/A | BR147: N/A | BS147: N/A | BT147: N/A | BU147: N/A
A148: Shared among improved sanitation facilities | B148: Yes | C148: N/A | D148: N/A | E148: N/A | F148: N/A | G148: N/A | H148: N/A | I148: N/A | J148: N/A | K148: N/A | L148: N/A | M148: N/A | N148: N/A | O148: N/A | P148: N/A | Q148: N/A | R148: N/A | S148: N/A | T148: N/A | U148: N/A | BA148: Shared among improved sanitation facilities | BB148: Yes | BC148: N/A | BD148: N/A | BE148: N/A | BF148: N/A | BG148: N/A | BH148: N/A | BI148: N/A | BJ148: N/A | BK148: N/A | BL148: N/A | BM148: N/A | BN148: N/A | BO148: N/A | BP148: N/A | BQ148: N/A | BR148: N/A | BS148: N/A | BT148: N/A | BU148: N/A
B149: No | C149: N/A | D149: N/A | E149: N/A | F149: N/A | G149: N/A | H149: N/A | I149: N/A | J149: N/A | K149: N/A | L149: N/A | M149: N/A | N149: N/A | O149: N/A | P149: N/A | Q149: N/A | R149: N/A | S149: N/A | T149: N/A | U149: N/A | BB149: No | BC149: N/A | BD149: N/A | BE149: N/A | BF149: N/A | BG149: N/A | BH149: N/A | BI149: N/A | BJ149: N/A | BK149: N/A | BL149: N/A | BM149: N/A | BN149: N/A | BO149: N/A | BP149: N/A | BQ149: N/A | BR149: N/A | BS149: N/A | BT149: N/A | BU149: N/A
B150: DK/missing | C150: N/A | D150: N/A | E150: N/A | F150: N/A | G150: N/A | H150: N/A | I150: N/A | J150: N/A | K150: N/A | L150: N/A | M150: N/A | N150: N/A | O150: N/A | P150: N/A | Q150: N/A | R150: N/A | S150: N/A | T150: N/A | U150: N/A | BB150: DK/missing | BC150: N/A | BD150: N/A | BE150: N/A | BF150: N/A | BG150: N/A | BH150: N/A | BI150: N/A | BJ150: N/A | BK150: N/A | BL150: N/A | BM150: N/A | BN150: N/A | BO150: N/A | BP150: N/A | BQ150: N/A | BR150: N/A | BS150: N/A | BT150: N/A | BU150: N/A
A151: Shared among all sanitation facilities | B151: Yes | C151: N/A | D151: N/A | E151: N/A | F151: N/A | G151: N/A | H151: N/A | I151: N/A | J151: N/A | K151: N/A | L151: N/A | M151: N/A | N151: N/A | O151: N/A | P151: N/A | Q151: N/A | R151: N/A | S151: N/A | T151: N/A | U151: N/A | BA151: Shared among all sanitation facilities | BB151: Yes | BC151: N/A | BD151: N/A | BE151: N/A | BF151: N/A | BG151: N/A | BH151: N/A | BI151: N/A | BJ151: N/A | BK151: N/A | BL151: N/A | BM151: N/A | BN151: N/A | BO151: N/A | BP151: N/A | BQ151: N/A | BR151: N/A | BS151: N/A | BT151: N/A | BU151: N/A
B152: No | C152: N/A | D152: N/A | E152: N/A | F152: N/A | G152: N/A | H152: N/A | I152: N/A | J152: N/A | K152: N/A | L152: N/A | M152: N/A | N152: N/A | O152: N/A | P152: N/A | Q152: N/A | R152: N/A | S152: N/A | T152: N/A | U152: N/A | BB152: No | BC152: N/A | BD152: N/A | BE152: N/A | BF152: N/A | BG152: N/A | BH152: N/A | BI152: N/A | BJ152: N/A | BK152: N/A | BL152: N/A | BM152: N/A | BN152: N/A | BO152: N/A | BP152: N/A | BQ152: N/A | BR152: N/A | BS152: N/A | BT152: N/A | BU152: N/A
A153: Type of toilet facility | B153: Flush - to piped sewer system | C153: 0 | D153: 0 | E153: 2.269578393 | F153: 10.62765326 | G153: 28.26417029 | H153: 2.597918025 | I153: 4.376289804 | J153: 13.83236053 | K153: 14.6923327 | L153: 38.67356798 | M153: 0 | N153: 0 | O153: 0 | P153: 0 | Q153: 0.8735271176 | R153: 1.383328272 | S153: 0.6794709936 | T153: 16.35269824 | U153: 6.192796264 | BA153: Shared among improved sanitation facilities | BB153: Yes | BC153: N/A | BD153: N/A | BE153: N/A | BF153: N/A | BG153: N/A | BH153: N/A | BI153: N/A | BJ153: N/A | BK153: N/A | BL153: N/A | BM153: N/A | BN153: N/A | BO153: N/A | BP153: N/A | BQ153: N/A | BR153: N/A | BS153: N/A | BT153: N/A | BU153: N/A
B154: Flush - to septic tank | C154: 0.1856385639 | D154: 6.070364068 | E154: 15.97205458 | F154: 36.65516096 | G154: 47.03134227 | H154: 17.06430065 | I154: 24.08952828 | J154: 35.88872596 | K154: 55.28605656 | L154: 43.27140235 | M154: 0 | N154: 0.5235290796 | O154: 1.428378548 | P154: 4.556024502 | Q154: 13.63676644 | R154: 12.4528977 | S154: 16.73957552 | T154: 39.75693933 | U154: 7.207692971 | BB154: No | BC154: N/A | BD154: N/A | BE154: N/A | BF154: N/A | BG154: N/A | BH154: N/A | BI154: N/A | BJ154: N/A | BK154: N/A | BL154: N/A | BM154: N/A | BN154: N/A | BO154: N/A | BP154: N/A | BQ154: N/A | BR154: N/A | BS154: N/A | BT154: N/A | BU154: N/A
B155: Flush - to pit latrine | C155: 0.09040506738 | D155: 0.3689514044 | E155: 1.060311258 | F155: 2.032544646 | G155: 2.379417454 | H155: 0.3982462719 | I155: 1.435477724 | J155: 2.844729448 | K155: 2.052946333 | L155: 2.860747331 | M155: 0 | N155: 0.2549560863 | O155: 0.2248388837 | P155: 0.09708075676 | Q155: 0.8726817926 | R155: 0.1191115191 | S155: 0.1289914279 | T155: 1.634827925 | U155: 1.723402682
B156: Flush - to somewhere else | C156: 0 | D156: 0.3647110689 | E156: 0.1500903238 | F156: 0 | G156: 0 | H156: 0.6567507068 | I156: 0 | J156: 0 | K156: 0 | L156: 0 | M156: 0 | N156: 0 | O156: 0 | P156: 0 | Q156: 0.3379994197 | R156: 0.4810048698 | S156: 0 | T156: 0 | U156: 0.05700481115
B157: Pit latrine - ventilated improved pit (VIP) | C157: 0 | D157: 1.146831199 | E157: 0.9410890027 | F157: 1.373401459 | G157: 2.800425044 | H157: 1.559983089 | I157: 0.2457675816 | J157: 1.330338515 | K157: 1.04201777 | L157: 4.37145437 | M157: 0 | N157: 0 | O157: 1.745796003 | P157: 0 | Q157: 1.675649869 | R157: 0.2758282528 | S157: 3.012665776 | T157: 1.497613114 | U157: 0.7497001855
B158: Pit latrine - with slab | C158: 1.807220256 | D158: 9.533623164 | E158: 37.21118718 | F158: 35.39499131 | G158: 16.64124244 | H158: 28.57569118 | I158: 49.77797679 | J158: 35.37558921 | K158: 23.94046174 | L158: 7.615214208 | M158: 0 | N158: 4.076055519 | O158: 4.782167617 | P158: 9.831120658 | Q158: 26.89151817 | R158: 10.38487509 | S158: 10.86651359 | T158: 34.11715845 | U158: 13.91491962
B159: Pit latrine - without slab / open pit | C159: 29.94058466 | D159: 33.16519982 | E159: 24.06971321 | F159: 12.14740808 | G159: 2.329299663 | H159: 31.99879896 | I159: 16.02030456 | J159: 9.597140371 | K159: 2.351239514 | L159: 3.207613766 | M159: 29.26331669 | N159: 27.03024464 | O159: 28.84759499 | P159: 36.63002808 | Q159: 26.93538953 | R159: 31.57335667 | S159: 10.81074326 | T159: 5.932751649 | U159: 34.32858382
B160: No facility | C160: 63.96447459 | D160: 42.15740163 | E160: 14.69923863 | F160: 1.31021368 | G160: 0.1616561585 | H160: 11.91705973 | I160: 1.495782318 | J160: 1.131115962 | K160: 0 | L160: 0 | M160: 65.44630539 | N160: 66.56406771 | O160: 58.62749474 | P160: 37.35217941 | Q160: 27.4674791 | R160: 39.82625919 | S160: 57.71050163 | T160: 0.133082863 | U160: 28.715457
B161: Composting toilet | C161: 2.641695524 | D161: 6.973167693 | E161: 3.238566431 | F161: 0.3746670055 | G161: 0.04417276611 | H161: 4.600911559 | I161: 2.258786616 | J161: 0 | K161: 0 | L161: 0 | M161: 3.995884912 | N161: 1.449280674 | O161: 2.688842082 | P161: 11.40217771 | Q161: 1.308988561 | R161: 3.070480841 | S161: 0 | T161: 0.4652952537 | U161: 6.001770232
B162: Bucket toilet | C162: 0.07624431388 | D162: 0 | E162: 0 | F162: 0.0839595937 | G162: 0 | H162: 0 | I162: 0.15004316 | J162: 0 | K162: 0 | L162: 0 | M162: 0 | N162: 0 | O162: 0.1638005808 | P162: 0 | Q162: 0 | R162: 0 | S162: 0 | T162: 0.04637557254 | U162: 0.04695659421
B163: Hanging toilet/latrine | C163: 1.257616182 | D163: 0.1792876725 | E163: 0.03013567698 | F163: 0 | G163: 0.3482739101 | H163: 0.05501203232 | I163: 0 | J163: 0 | K163: 0.6349453872 | L163: 0 | M163: 1.294493008 | N163: 0 | O163: 1.491086553 | P163: 0.1313888745 | Q163: 0 | R163: 0.4328575924 | S163: 0 | T163: 0.01688202835 | U163: 0.8655859977
B164: OTHER | C164: 0.03612084186 | D164: 0.04046227966 | E164: 0.3580353175 | F164: 0 | G164: 0 | H164: 0.5753278015 | I164: 0.15004316 | J164: 0 | K164: 0 | L164: 0 | M164: 0 | N164: 0.1018662863 | O164: 0 | P164: 0 | Q164: 0 | R164: 0 | S164: 0.05153780759 | T164: 0.04637557254 | U164: 0.1961298197
A208: =A1026 -> Angola
A209: =A1034 -> 2007
A210: Access to hygiene facilities
A211: by wealth quintile and sub-national region
A212: Notes:
A213: WHO/UNICEF JMP customised wealth index excludes water,
A214: sanitation and hygiene assets.
A215: Survey used for analysis: | B215: =A1025 -> MIS07
A220: Access to handwashing | C220: NATIONAL wealth index quintile | H220: URBAN wealth index quintile | M220: RURAL wealth index quintile | R220: SUB-REGIONS: | BA220: Raw numbers of respondents: | BB220: Access to handwashing | BC220: NATIONAL wealth index quintile | BH220: URBAN wealth index quintile | BM220: RURAL wealth index quintile | BR220: SUB-REGIONS:
A221: Weighted percentage (used in graphs) | C221: Poorest | D221: Poor | E221: Middle | F221: Rich | G221: Richest | H221: Poorest | I221: Poor | J221: Middle | K221: Rich | L221: Richest | M221: Poorest | N221: Poor | O221: Middle | P221: Rich | Q221: Richest | R221: Hyperendemic (Cabinda, Uige, K. Norte, Malange, L. Norte, L. | S221: Instable mesoendemic (Moxico, K. Kubango, Kunene, Huila, Nam | T221: Luanda | U221: Stable mesoendemic (Zaire, Luanda, Bengo, Benguela, K. Sul, | BA221: Hygiene data, raw numbers (weighted) | BC221: Poorest | BD221: Poor | BE221: Middle | BF221: Rich | BG221: Richest | BH221: Poorest | BI221: Poor | BJ221: Middle | BK221: Rich | BL221: Richest | BM221: Poorest | BN221: Poor | BO221: Middle | BP221: Rich | BQ221: Richest | BR221: Hyperendemic (Cabinda, Uige, K. Norte, Malange, L. Norte, L. | BS221: Instable mesoendemic (Moxico, K. Kubango, Kunene, Huila, Nam | BT221: Luanda | BU221: Stable mesoendemic (Zaire, Luanda, Bengo, Benguela, K. Sul,
A222: Hygiene ladder | B222: Basic | C222: N/A | D222: N/A | E222: N/A | F222: N/A | G222: N/A | H222: N/A | I222: N/A | J222: N/A | K222: N/A | L222: N/A | M222: N/A | N222: N/A | O222: N/A | P222: N/A | Q222: N/A | R222: N/A | S222: N/A | T222: N/A | U222: N/A | BA222: Hygiene ladder | BB222: Basic | BC222: N/A | BD222: N/A | BE222: N/A | BF222: N/A | BG222: N/A | BH222: N/A | BI222: N/A | BJ222: N/A | BK222: N/A | BL222: N/A | BM222: N/A | BN222: N/A | BO222: N/A | BP222: N/A | BQ222: N/A | BR222: N/A | BS222: N/A | BT222: N/A | BU222: N/A
B223: Limited | C223: N/A | D223: N/A | E223: N/A | F223: N/A | G223: N/A | H223: N/A | I223: N/A | J223: N/A | K223: N/A | L223: N/A | M223: N/A | N223: N/A | O223: N/A | P223: N/A | Q223: N/A | R223: N/A | S223: N/A | T223: N/A | U223: N/A | BB223: Limited | BC223: N/A | BD223: N/A | BE223: N/A | BF223: N/A | BG223: N/A | BH223: N/A | BI223: N/A | BJ223: N/A | BK223: N/A | BL223: N/A | BM223: N/A | BN223: N/A | BO223: N/A | BP223: N/A | BQ223: N/A | BR223: N/A | BS223: N/A | BT223: N/A | BU223: N/A
B224: No facility | C224: N/A | D224: N/A | E224: N/A | F224: N/A | G224: N/A | H224: N/A | I224: N/A | J224: N/A | K224: N/A | L224: N/A | M224: N/A | N224: N/A | O224: N/A | P224: N/A | Q224: N/A | R224: N/A | S224: N/A | T224: N/A | U224: N/A | BB224: No facility | BC224: N/A | BD224: N/A | BE224: N/A | BF224: N/A | BG224: N/A | BH224: N/A | BI224: N/A | BJ224: N/A | BK224: N/A | BL224: N/A | BM224: N/A | BN224: N/A | BO224: N/A | BP224: N/A | BQ224: N/A | BR224: N/A | BS224: N/A | BT224: N/A | BU224: N/A
BA225: Observed handwashing place | BB225: Fixed | BC225: N/A | BD225: N/A | BE225: N/A | BF225: N/A | BG225: N/A | BH225: N/A | BI225: N/A | BJ225: N/A | BK225: N/A | BL225: N/A | BM225: N/A | BN225: N/A | BO225: N/A | BP225: N/A | BQ225: N/A | BR225: N/A | BS225: N/A | BT225: N/A | BU225: N/A
BB226: Mobile | BC226: N/A | BD226: N/A | BE226: N/A | BF226: N/A | BG226: N/A | BH226: N/A | BI226: N/A | BJ226: N/A | BK226: N/A | BL226: N/A | BM226: N/A | BN226: N/A | BO226: N/A | BP226: N/A | BQ226: N/A | BR226: N/A | BS226: N/A | BT226: N/A | BU226: N/A
BA227: Water / Soap | BB227: Water and soap | BC227: N/A | BD227: N/A | BE227: N/A | BF227: N/A | BG227: N/A | BH227: N/A | BI227: N/A | BJ227: N/A | BK227: N/A | BL227: N/A | BM227: N/A | BN227: N/A | BO227: N/A | BP227: N/A | BQ227: N/A | BR227: N/A | BS227: N/A | BT227: N/A | BU227: N/A
BB228: Water only | BC228: N/A | BD228: N/A | BE228: N/A | BF228: N/A | BG228: N/A | BH228: N/A | BI228: N/A | BJ228: N/A | BK228: N/A | BL228: N/A | BM228: N/A | BN228: N/A | BO228: N/A | BP228: N/A | BQ228: N/A | BR228: N/A | BS228: N/A | BT228: N/A | BU228: N/A
BB229: Soap only | BC229: N/A | BD229: N/A | BE229: N/A | BF229: N/A | BG229: N/A | BH229: N/A | BI229: N/A | BJ229: N/A | BK229: N/A | BL229: N/A | BM229: N/A | BN229: N/A | BO229: N/A | BP229: N/A | BQ229: N/A | BR229: N/A | BS229: N/A | BT229: N/A | BU229: N/A
BB230: Neither | BC230: N/A | BD230: N/A | BE230: N/A | BF230: N/A | BG230: N/A | BH230: N/A | BI230: N/A | BJ230: N/A | BK230: N/A | BL230: N/A | BM230: N/A | BN230: N/A | BO230: N/A | BP230: N/A | BQ230: N/A | BR230: N/A | BS230: N/A | BT230: N/A | BU230: N/A
BA259: Raw numbers of respondents: | BB259: Menstrual health and hygiene | BC259: NATIONAL wealth index quintile | BH259: URBAN wealth index quintile | BM259: RURAL wealth index quintile | BR259: SUB-REGIONS:
BA260: MHH data, raw numbers (weighted) | BC260: Poorest | BD260: Poor | BE260: Middle | BF260: Rich | BG260: Richest | BH260: Poorest | BI260: Poor | BJ260: Middle | BK260: Rich | BL260: Richest | BM260: Poorest | BN260: Poor | BO260: Middle | BP260: Rich | BQ260: Richest | BR260: Hyperendemic (Cabinda, Uige, K. Norte, Malange, L. Norte, L. | BS260: Instable mesoendemic (Moxico, K. Kubango, Kunene, Huila, Nam | BT260: Luanda | BU260: Stable mesoendemic (Zaire, Luanda, Bengo, Benguela, K. Sul,
BA261: Private place to wash and change | BB261: Yes | BC261: N/A | BD261: N/A | BE261: N/A | BF261: N/A | BG261: N/A | BH261: N/A | BI261: N/A | BJ261: N/A | BK261: N/A | BL261: N/A | BM261: N/A | BN261: N/A | BO261: N/A | BP261: N/A | BQ261: N/A | BR261: N/A | BS261: N/A | BT261: N/A | BU261: N/A
BB262: No | BC262: N/A | BD262: N/A | BE262: N/A | BF262: N/A | BG262: N/A | BH262: N/A | BI262: N/A | BJ262: N/A | BK262: N/A | BL262: N/A | BM262: N/A | BN262: N/A | BO262: N/A | BP262: N/A | BQ262: N/A | BR262: N/A | BS262: N/A | BT262: N/A | BU262: N/A
BB263: DK/not sure/missing | BC263: N/A | BD263: N/A | BE263: N/A | BF263: N/A | BG263: N/A | BH263: N/A | BI263: N/A | BJ263: N/A | BK263: N/A | BL263: N/A | BM263: N/A | BN263: N/A | BO263: N/A | BP263: N/A | BQ263: N/A | BR263: N/A | BS263: N/A | BT263: N/A | BU263: N/A
BA264: Use of menstrual materials | BB264: Materials reusable | BC264: N/A | BD264: N/A | BE264: N/A | BF264: N/A | BG264: N/A | BH264: N/A | BI264: N/A | BJ264: N/A | BK264: N/A | BL264: N/A | BM264: N/A | BN264: N/A | BO264: N/A | BP264: N/A | BQ264: N/A | BR264: N/A | BS264: N/A | BT264: N/A | BU264: N/A
BB265: Materials not reusable | BC265: N/A | BD265: N/A | BE265: N/A | BF265: N/A | BG265: N/A | BH265: N/A | BI265: N/A | BJ265: N/A | BK265: N/A | BL265: N/A | BM265: N/A | BN265: N/A | BO265: N/A | BP265: N/A | BQ265: N/A | BR265: N/A | BS265: N/A | BT265: N/A | BU265: N/A
BB266: No materials used | BC266: N/A | BD266: N/A | BE266: N/A | BF266: N/A | BG266: N/A | BH266: N/A | BI266: N/A | BJ266: N/A | BK266: N/A | BL266: N/A | BM266: N/A | BN266: N/A | BO266: N/A | BP266: N/A | BQ266: N/A | BR266: N/A | BS266: N/A | BT266: N/A | BU266: N/A
BB267: DK/not sure/missing | BC267: N/A | BD267: N/A | BE267: N/A | BF267: N/A | BG267: N/A | BH267: N/A | BI267: N/A | BJ267: N/A | BK267: N/A | BL267: N/A | BM267: N/A | BN267: N/A | BO267: N/A | BP267: N/A | BQ267: N/A | BR267: N/A | BS267: N/A | BT267: N/A | BU267: N/A
BA268: Use of menstrual materials with private place to wash and change | BB268: Materials reusable | BC268: N/A | BD268: N/A | BE268: N/A | BF268: N/A | BG268: N/A | BH268: N/A | BI268: N/A | BJ268: N/A | BK268: N/A | BL268: N/A | BM268: N/A | BN268: N/A | BO268: N/A | BP268: N/A | BQ268: N/A | BR268: N/A | BS268: N/A | BT268: N/A | BU268: N/A
BB269: Materials not reusable | BC269: N/A | BD269: N/A | BE269: N/A | BF269: N/A | BG269: N/A | BH269: N/A | BI269: N/A | BJ269: N/A | BK269: N/A | BL269: N/A | BM269: N/A | BN269: N/A | BO269: N/A | BP269: N/A | BQ269: N/A | BR269: N/A | BS269: N/A | BT269: N/A | BU269: N/A
BB270: No materials used | BC270: N/A | BD270: N/A | BE270: N/A | BF270: N/A | BG270: N/A | BH270: N/A | BI270: N/A | BJ270: N/A | BK270: N/A | BL270: N/A | BM270: N/A | BN270: N/A | BO270: N/A | BP270: N/A | BQ270: N/A | BR270: N/A | BS270: N/A | BT270: N/A | BU270: N/A
BA271: Awareness of menstruation before menarche | BB271: Yes | BC271: N/A | BD271: N/A | BE271: N/A | BF271: N/A | BG271: N/A | BH271: N/A | BI271: N/A | BJ271: N/A | BK271: N/A | BL271: N/A | BM271: N/A | BN271: N/A | BO271: N/A | BP271: N/A | BQ271: N/A | BR271: N/A | BS271: N/A | BT271: N/A | BU271: N/A
BB272: No | BC272: N/A | BD272: N/A | BE272: N/A | BF272: N/A | BG272: N/A | BH272: N/A | BI272: N/A | BJ272: N/A | BK272: N/A | BL272: N/A | BM272: N/A | BN272: N/A | BO272: N/A | BP272: N/A | BQ272: N/A | BR272: N/A | BS272: N/A | BT272: N/A | BU272: N/A
BB273: DK/not sure/missing | BC273: N/A | BD273: N/A | BE273: N/A | BF273: N/A | BG273: N/A | BH273: N/A | BI273: N/A | BJ273: N/A | BK273: N/A | BL273: N/A | BM273: N/A | BN273: N/A | BO273: N/A | BP273: N/A | BQ273: N/A | BR273: N/A | BS273: N/A | BT273: N/A | BU273: N/A
BA274: Participation in (all) activities during menstruation | BB274: Yes | BC274: N/A | BD274: N/A | BE274: N/A | BF274: N/A | BG274: N/A | BH274: N/A | BI274: N/A | BJ274: N/A | BK274: N/A | BL274: N/A | BM274: N/A | BN274: N/A | BO274: N/A | BP274: N/A | BQ274: N/A | BR274: N/A | BS274: N/A | BT274: N/A | BU274: N/A
BB275: No | BC275: N/A | BD275: N/A | BE275: N/A | BF275: N/A | BG275: N/A | BH275: N/A | BI275: N/A | BJ275: N/A | BK275: N/A | BL275: N/A | BM275: N/A | BN275: N/A | BO275: N/A | BP275: N/A | BQ275: N/A | BR275: N/A | BS275: N/A | BT275: N/A | BU275: N/A
BB276: DK/not sure/missing/no such activity | BC276: N/A | BD276: N/A | BE276: N/A | BF276: N/A | BG276: N/A | BH276: N/A | BI276: N/A | BJ276: N/A | BK276: N/A | BL276: N/A | BM276: N/A | BN276: N/A | BO276: N/A | BP276: N/A | BQ276: N/A | BR276: N/A | BS276: N/A | BT276: N/A | BU276: N/A
BA277: Participation in specific activities during menstruation | BB277: Did not go to school (amongst those usually attending school) | BC277: N/A | BD277: N/A | BE277: N/A | BF277: N/A | BG277: N/A | BH277: N/A | BI277: N/A | BJ277: N/A | BK277: N/A | BL277: N/A | BM277: N/A | BN277: N/A | BO277: N/A | BP277: N/A | BQ277: N/A | BR277: N/A | BS277: N/A | BT277: N/A | BU277: N/A
BB278: Did not go to work (amongst those who usually work) | BC278: N/A | BD278: N/A | BE278: N/A | BF278: N/A | BG278: N/A | BH278: N/A | BI278: N/A | BJ278: N/A | BK278: N/A | BL278: N/A | BM278: N/A | BN278: N/A | BO278: N/A | BP278: N/A | BQ278: N/A | BR278: N/A | BS278: N/A | BT278: N/A | BU278: N/A
BB279: Did not participate in social activities | BC279: N/A | BD279: N/A | BE279: N/A | BF279: N/A | BG279: N/A | BH279: N/A | BI279: N/A | BJ279: N/A | BK279: N/A | BL279: N/A | BM279: N/A | BN279: N/A | BO279: N/A | BP279: N/A | BQ279: N/A | BR279: N/A | BS279: N/A | BT279: N/A | BU279: N/A
BB280: Did not cook food | BC280: N/A | BD280: N/A | BE280: N/A | BF280: N/A | BG280: N/A | BH280: N/A | BI280: N/A | BJ280: N/A | BK280: N/A | BL280: N/A | BM280: N/A | BN280: N/A | BO280: N/A | BP280: N/A | BQ280: N/A | BR280: N/A | BS280: N/A | BT280: N/A | BU280: N/A
BB281: Did not eat with others | BC281: N/A | BD281: N/A | BE281: N/A | BF281: N/A | BG281: N/A | BH281: N/A | BI281: N/A | BJ281: N/A | BK281: N/A | BL281: N/A | BM281: N/A | BN281: N/A | BO281: N/A | BP281: N/A | BQ281: N/A | BR281: N/A | BS281: N/A | BT281: N/A | BU281: N/A
BB282: Did not bathe in regular place | BC282: N/A | BD282: N/A | BE282: N/A | BF282: N/A | BG282: N/A | BH282: N/A | BI282: N/A | BJ282: N/A | BK282: N/A | BL282: N/A | BM282: N/A | BN282: N/A | BO282: N/A | BP282: N/A | BQ282: N/A | BR282: N/A | BS282: N/A | BT282: N/A | BU282: N/A
BB283: Did not participate in other activities | BC283: N/A | BD283: N/A | BE283: N/A | BF283: N/A | BG283: N/A | BH283: N/A | BI283: N/A | BJ283: N/A | BK283: N/A | BL283: N/A | BM283: N/A | BN283: N/A | BO283: N/A | BP283: N/A | BQ283: N/A | BR283: N/A | BS283: N/A | BT283: N/A | BU283: N/A
BB284: DK/not sure/missing/no such activity | BC284: N/A | BD284: N/A | BE284: N/A | BF284: N/A | BG284: N/A | BH284: N/A | BI284: N/A | BJ284: N/A | BK284: N/A | BL284: N/A | BM284: N/A | BN284: N/A | BO284: N/A | BP284: N/A | BQ284: N/A | BR284: N/A | BS284: N/A | BT284: N/A | BU284: N/A
BA339: Raw numbers of respondents: | BB339: Basic water, sanitation and hygiene | BC339: NATIONAL wealth index quintile | BH339: URBAN wealth index quintile | BM339: RURAL wealth index quintile | BR339: SUB-REGIONS:
BA340: WatSan data, raw numbers (weighted) | BC340: Poorest | BD340: Poor | BE340: Middle | BF340: Rich | BG340: Richest | BH340: Poorest | BI340: Poor | BJ340: Middle | BK340: Rich | BL340: Richest | BM340: Poorest | BN340: Poor | BO340: Middle | BP340: Rich | BQ340: Richest | BR340: Hyperendemic (Cabinda, Uige, K. Norte, Malange, L. Norte, L. | BS340: Instable mesoendemic (Moxico, K. Kubango, Kunene, Huila, Nam | BT340: Luanda | BU340: Stable mesoendemic (Zaire, Luanda, Bengo, Benguela, K. Sul,
BA341: Use of Basic Water Sanitation and Hygiene | BB341: Yes | BC341: N/A | BD341: N/A | BE341: N/A | BF341: N/A | BG341: N/A | BH341: N/A | BI341: N/A | BJ341: N/A | BK341: N/A | BL341: N/A | BM341: N/A | BN341: N/A | BO341: N/A | BP341: N/A | BQ341: N/A | BR341: N/A | BS341: N/A | BT341: N/A | BU341: N/A
BB342: No | BC342: N/A | BD342: N/A | BE342: N/A | BF342: N/A | BG342: N/A | BH342: N/A | BI342: N/A | BJ342: N/A | BK342: N/A | BL342: N/A | BM342: N/A | BN342: N/A | BO342: N/A | BP342: N/A | BQ342: N/A | BR342: N/A | BS342: N/A | BT342: N/A | BU342: N/A
BA343: Use of Basic Water and Sanitation | BB343: Yes | BC343: N/A | BD343: N/A | BE343: N/A | BF343: N/A | BG343: N/A | BH343: N/A | BI343: N/A | BJ343: N/A | BK343: N/A | BL343: N/A | BM343: N/A | BN343: N/A | BO343: N/A | BP343: N/A | BQ343: N/A | BR343: N/A | BS343: N/A | BT343: N/A | BU343: N/A
BB344: No | BC344: N/A | BD344: N/A | BE344: N/A | BF344: N/A | BG344: N/A | BH344: N/A | BI344: N/A | BJ344: N/A | BK344: N/A | BL344: N/A | BM344: N/A | BN344: N/A | BO344: N/A | BP344: N/A | BQ344: N/A | BR344: N/A | BS344: N/A | BT344: N/A | BU344: N/A
BA345: Use of Basic Water and Hygiene | BB345: Yes | BC345: N/A | BD345: N/A | BE345: N/A | BF345: N/A | BG345: N/A | BH345: N/A | BI345: N/A | BJ345: N/A | BK345: N/A | BL345: N/A | BM345: N/A | BN345: N/A | BO345: N/A | BP345: N/A | BQ345: N/A | BR345: N/A | BS345: N/A | BT345: N/A | BU345: N/A
BB346: No | BC346: N/A | BD346: N/A | BE346: N/A | BF346: N/A | BG346: N/A | BH346: N/A | BI346: N/A | BJ346: N/A | BK346: N/A | BL346: N/A | BM346: N/A | BN346: N/A | BO346: N/A | BP346: N/A | BQ346: N/A | BR346: N/A | BS346: N/A | BT346: N/A | BU346: N/A
BA347: Use of Basic Sanitation and Hygiene | BB347: Yes | BC347: N/A | BD347: N/A | BE347: N/A | BF347: N/A | BG347: N/A | BH347: N/A | BI347: N/A | BJ347: N/A | BK347: N/A | BL347: N/A | BM347: N/A | BN347: N/A | BO347: N/A | BP347: N/A | BQ347: N/A | BR347: N/A | BS347: N/A | BT347: N/A | BU347: N/A
BB348: No | BC348: N/A | BD348: N/A | BE348: N/A | BF348: N/A | BG348: N/A | BH348: N/A | BI348: N/A | BJ348: N/A | BK348: N/A | BL348: N/A | BM348: N/A | BN348: N/A | BO348: N/A | BP348: N/A | BQ348: N/A | BR348: N/A | BS348: N/A | BT348: N/A | BU348: N/A
BA349: Use of Basic Water | BB349: Yes | BC349: N/A | BD349: N/A | BE349: N/A | BF349: N/A | BG349: N/A | BH349: N/A | BI349: N/A | BJ349: N/A | BK349: N/A | BL349: N/A | BM349: N/A | BN349: N/A | BO349: N/A | BP349: N/A | BQ349: N/A | BR349: N/A | BS349: N/A | BT349: N/A | BU349: N/A
BB350: No | BC350: N/A | BD350: N/A | BE350: N/A | BF350: N/A | BG350: N/A | BH350: N/A | BI350: N/A | BJ350: N/A | BK350: N/A | BL350: N/A | BM350: N/A | BN350: N/A | BO350: N/A | BP350: N/A | BQ350: N/A | BR350: N/A | BS350: N/A | BT350: N/A | BU350: N/A
BA351: Use of Basic Sanitation | BB351: Yes | BC351: N/A | BD351: N/A | BE351: N/A | BF351: N/A | BG351: N/A | BH351: N/A | BI351: N/A | BJ351: N/A | BK351: N/A | BL351: N/A | BM351: N/A | BN351: N/A | BO351: N/A | BP351: N/A | BQ351: N/A | BR351: N/A | BS351: N/A | BT351: N/A | BU351: N/A
BB352: No | BC352: N/A | BD352: N/A | BE352: N/A | BF352: N/A | BG352: N/A | BH352: N/A | BI352: N/A | BJ352: N/A | BK352: N/A | BL352: N/A | BM352: N/A | BN352: N/A | BO352: N/A | BP352: N/A | BQ352: N/A | BR352: N/A | BS352: N/A | BT352: N/A | BU352: N/A
BA353: Access to Basic Hygiene | BB353: Yes | BC353: N/A | BD353: N/A | BE353: N/A | BF353: N/A | BG353: N/A | BH353: N/A | BI353: N/A | BJ353: N/A | BK353: N/A | BL353: N/A | BM353: N/A | BN353: N/A | BO353: N/A | BP353: N/A | BQ353: N/A | BR353: N/A | BS353: N/A | BT353: N/A | BU353: N/A
BB354: No | BC354: N/A | BD354: N/A | BE354: N/A | BF354: N/A | BG354: N/A | BH354: N/A | BI354: N/A | BJ354: N/A | BK354: N/A | BL354: N/A | BM354: N/A | BN354: N/A | BO354: N/A | BP354: N/A | BQ354: N/A | BR354: N/A | BS354: N/A | BT354: N/A | BU354: N/A
C399: INITIAL (national) Wealth Index | H399: URBAN Wealth Index | M399: RURAL Wealth Index
C400: Component Matrix | H400: Component Matrix | M400: Component Matrix
E401: Component | J401: Component | O401: Component
B402: Note: The INITIAL (national) Wealth Index is based on the first component of the Principal Component Analysis (PCA) which has been obtained at national level. The final national-level (NATIONAL) Wealth Index is based on the URBAN and RURAL specific wealth indexes. Regression procedures are used to establish the relationships between the two sets of scores (urban and rural) and the initial (national) wealth factors. This allows best use of the available information for each area and a better precision of the FINAL (NATIONAL) Wealth Index. For dependency reasons, all WASH variables (contained in the generic MICS and DHS scripts) have been excluded from the sets of asset variables used in the PCAs. The PCA can extracts as many components as there are asset variables in the input. Only the first of the components is used to represent the Wealth Index. The scores represent the weights of the asset variables on the Wealth Index (correlations between the variables and the component). The communalities are the proportion of each variable's variance that can be explained by the component. Proportion of explained variance is the part of the model's total variance that is explained by the component. For more information on the procedure used: The DHS Wealth Index, DHS Comparative Reports No. 6, Shea Oscar Rutstein, Kiersten Johnson, ORC Macro International Inc., 2004. The DHS Wealth Index: Approaches for Rural and Urban Areas, Shea O. Rutstein, ORC Macro International Inc., 2008. MICS Methodological Paper No. 4, Review of options for reporting water, sanitation and hygiene coverage by wealth quintile, UNICEF, 2016. | E402: 1 | J402: 1 | O402: 1
C403: Has earth/sand floor | E403: -0.8905937017 | H403: Household fuel type: LPG, natural gas | J403: 0.7688997776 | M403: Has earth/sand floor | O403: -0.7798041251
C404: Household fuel type: LPG, natural gas | E404: 0.872285194 | H404: Has television | J404: 0.7146079917 | M404: Has television | O404: 0.7504344655
C405: Has television | E405: 0.8691492552 | H405: Has refrigerator | J405: 0.68587722 | M405: Has carpet floor | O405: 0.7473469467
C406: Has electricity | E406: 0.7762443934 | H406: Household fuel type: charcoal | J406: -0.6632614498 | M406: Household fuel type: LPG, natural gas | O406: 0.7046058697
C407: Has refrigerator | E407: 0.7411665629 | H407: Has earth/sand floor | J407: -0.6541563668 | M407: Has a mobile telephone | O407: 0.6292931038
C408: Household fuel type: wood, straw | E408: -0.7366940325 | H408: Has electricity | J408: 0.5922052754 | M408: Household fuel type: wood, straw | O408: -0.6127091745
C409: Has telephone | E409: 0.6090734353 | H409: Has car/truck | J409: 0.5344665183 | M409: Has refrigerator | O409: 0.5930506162
C410: Has radio | E410: 0.6038588419 | H410: Has cement floor | J410: 0.5179334393 | M410: Has electricity | O410: 0.5858700094
C411: Has carpet floor | E411: 0.5950169633 | H411: Has radio | J411: 0.5102053978 | M411: Has motorcycle/scooter | O411: 0.4986892289
C412: Has a mobile telephone | E412: 0.5802676463 | H412: Has telephone | J412: 0.4622613998 | M412: Has radio | O412: 0.4792502009
C413: Has car/truck | E413: 0.5690272857 | H413: Alternative Electricity | J413: 0.3528012314 | M413: Alternative Electricity | O413: 0.4516315201
C414: Alternative Electricity | E414: 0.5277210787 | H414: Household fuel type: wood, straw | J414: -0.2845763956 | M414: Has car/truck | O414: 0.2851639188
C415: Has cement floor | E415: 0.5048060504 | H415: Has a mobile telephone | J415: 0.2385498627 | M415: Has telephone | O415: 0.2780968898
... 120 more rows

Sheet MIS11
A2: =A1026 -> Angola
A3: =A1034 -> 2011
A4: Use of drinking water sources
A5: by wealth quintile and sub-national region
A6: Notes:
A7: WHO/UNICEF JMP customised wealth index excludes water,
A8: sanitation and hygiene assets.
A9: Survey used for analysis: | B9: =A1025 -> MIS11
A10: =B1028 -> 
A11: =B1027 -> Time to improved source based on: | B11: DHS16
A14: Use of drinking water sources | C14: NATIONAL wealth index quintile | H14: URBAN wealth index quintile | M14: RURAL wealth index quintile | R14: SUB-REGIONS: | BA14: Raw numbers of respondents: | BB14: Use of drinking water sources | BC14: NATIONAL wealth index quintile | BH14: URBAN wealth index quintile | BM14: RURAL wealth index quintile | BR14: SUB-REGIONS:
A15: Weighted percentage (used in graphs) | C15: Poorest | D15: Poor | E15: Middle | F15: Rich | G15: Richest | H15: Poorest | I15: Poor | J15: Middle | K15: Rich | L15: Richest | M15: Poorest | N15: Poor | O15: Middle | P15: Rich | Q15: Richest | R15: Hiperendemica | S15: Luanda | T15: Mesoendemica Estavel | U15: Mesoendemica Instavel | BA15: Water data, raw numbers (weighted) | BC15: Poorest | BD15: Poor | BE15: Middle | BF15: Rich | BG15: Richest | BH15: Poorest | BI15: Poor | BJ15: Middle | BK15: Rich | BL15: Richest | BM15: Poorest | BN15: Poor | BO15: Middle | BP15: Rich | BQ15: Richest | BR15: Hiperendemica | BS15: Luanda | BT15: Mesoendemica Estavel | BU15: Mesoendemica Instavel
A16: Water | B16: Improved | C16: 24.26489517 | D16: 34.34978667 | E16: 61.43888909 | F16: 92.1598442 | G16: 98.98546139 | H16: 83.55680732 | I16: 98.41675889 | J16: 98.60196859 | K16: 99.38195655 | L16: 99.54899639 | M16: 24.51303064 | N16: 24.16958775 | O16: 31.26890644 | P16: 47.54833819 | Q16: 65.72693323 | R16: 33.40242349 | S16: 97.98433301 | T16: 54.17243176 | U16: 61.9204829 | BA16: Water | BB16: Improved | BC16: N/A | BD16: N/A | BE16: N/A | BF16: N/A | BG16: N/A | BH16: N/A | BI16: N/A | BJ16: N/A | BK16: N/A | BL16: N/A | BM16: N/A | BN16: N/A | BO16: N/A | BP16: N/A | BQ16: N/A | BR16: N/A | BS16: N/A | BT16: N/A | BU16: N/A
B17: Not Improved | C17: 75.73510483 | D17: 65.65021333 | E17: 38.56111091 | F17: 7.840155801 | G17: 1.014538607 | H17: 16.44319268 | I17: 1.583241107 | J17: 1.398031408 | K17: 0.6180434498 | L17: 0.4510036113 | M17: 75.48696936 | N17: 75.83041225 | O17: 68.73109356 | P17: 52.45166181 | Q17: 34.27306677 | R17: 66.59757651 | S17: 2.015666991 | T17: 45.82756824 | U17: 38.0795171 | BB17: Not Improved | BC17: N/A | BD17: N/A | BE17: N/A | BF17: N/A | BG17: N/A | BH17: N/A | BI17: N/A | BJ17: N/A | BK17: N/A | BL17: N/A | BM17: N/A | BN17: N/A | BO17: N/A | BP17: N/A | BQ17: N/A | BR17: N/A | BS17: N/A | BT17: N/A | BU17: N/A
A18: Water ladder | B18: Basic | C18: =C16*'DHS16'!C23/100 -> 16.88453122 | D18: =D16*'DHS16'!D23/100 -> 28.51008402 | E18: =E16*'DHS16'!E23/100 -> 54.74421042 | F18: =F16*'DHS16'!F23/100 -> 84.43005162 | G18: =G16*'DHS16'!G23/100 -> 90.83954591 | H18: =H16*'DHS16'!H23/100 -> 71.6892996 | I18: =I16*'DHS16'!I23/100 -> 88.96584693 | J18: =J16*'DHS16'!J23/100 -> 90.79000478 | K18: =K16*'DHS16'!K23/100 -> 90.80910791 | L18: =L16*'DHS16'!L23/100 -> 91.91177426 | M18: =M16*'DHS16'!M23/100 -> 14.93056934 | N18: =N16*'DHS16'!N23/100 -> 17.38707152 | O18: =O16*'DHS16'!O23/100 -> 23.38802382 | P18: =P16*'DHS16'!P23/100 -> 36.68918486 | Q18: =Q16*'DHS16'!Q23/100 -> 55.93015907 | R18: =R16*'DHS16'!R23/100 -> 29.65615798 | S18: =S16*'DHS16'!S23/100 -> 90.4118521 | T18: =T16*'DHS16'!T23/100 -> 49.60366553 | U18: =U16*'DHS16'!U23/100 -> 56.47063036 | BA18: Water ladder | BB18: Basic | BC18: N/A | BD18: N/A | BE18: N/A | BF18: N/A | BG18: N/A | BH18: N/A | BI18: N/A | BJ18: N/A | BK18: N/A | BL18: N/A | BM18: N/A | BN18: N/A | BO18: N/A | BP18: N/A | BQ18: N/A | BR18: N/A | BS18: N/A | BT18: N/A | BU18: N/A
B19: Limited | C19: =C16*'DHS16'!C22/100 -> 7.380363948 | D19: =D16*'DHS16'!D22/100 -> 5.839702653 | E19: =E16*'DHS16'!E22/100 -> 6.694678673 | F19: =F16*'DHS16'!F22/100 -> 7.72979258 | G19: =G16*'DHS16'!G22/100 -> 8.145915487 | H19: =H16*'DHS16'!H22/100 -> 11.86750773 | I19: =I16*'DHS16'!I22/100 -> 9.450911958 | J19: =J16*'DHS16'!J22/100 -> 7.811963815 | K19: =K16*'DHS16'!K22/100 -> 8.572848643 | L19: =L16*'DHS16'!L22/100 -> 7.637222128 | M19: =M16*'DHS16'!M22/100 -> 9.582461299 | N19: =N16*'DHS16'!N22/100 -> 6.782516232 | O19: =O16*'DHS16'!O22/100 -> 7.880882621 | P19: =P16*'DHS16'!P22/100 -> 10.85915333 | Q19: =Q16*'DHS16'!Q22/100 -> 9.79677416 | R19: =R16*'DHS16'!R22/100 -> 3.746265502 | S19: =S16*'DHS16'!S22/100 -> 7.572480914 | T19: =T16*'DHS16'!T22/100 -> 4.568766224 | U19: =U16*'DHS16'!U22/100 -> 5.449852539 | BB19: Limited | BC19: N/A | BD19: N/A | BE19: N/A | BF19: N/A | BG19: N/A | BH19: N/A | BI19: N/A | BJ19: N/A | BK19: N/A | BL19: N/A | BM19: N/A | BN19: N/A | BO19: N/A | BP19: N/A | BQ19: N/A | BR19: N/A | BS19: N/A | BT19: N/A | BU19: N/A
B20: Unimproved | C20: =100-(C18+C19+C21) -> 7.596500715 | D20: =100-(D18+D19+D21) -> 9.696734089 | E20: 12.11589397 | F20: 4.333356333 | G20: 0.8564224008 | H20: 6.294416483 | I20: 0.9273719049 | J20: 1.186411522 | K20: 0.587686564 | L20: 0.4510036113 | M20: 4.835290473 | N20: 11.98794972 | O20: 8.840594391 | P20: 11.59200971 | Q20: 14.97215904 | R20: 8.565324549 | S20: 0.8563302467 | T20: 9.74695007 | U20: 7.639761131 | BB20: Unimproved | BC20: N/A | BD20: N/A | BE20: N/A | BF20: N/A | BG20: N/A | BH20: N/A | BI20: N/A | BJ20: N/A | BK20: N/A | BL20: N/A | BM20: N/A | BN20: N/A | BO20: N/A | BP20: N/A | BQ20: N/A | BR20: N/A | BS20: N/A | BT20: N/A | BU20: N/A
B21: Surface water | C21: =C66 -> 68.13860411 | D21: 55.95347924 | E21: 26.44521694 | F21: 3.506799468 | G21: 0.1581162067 | H21: 10.14877619 | I21: 0.6558692017 | J21: 0.2116198858 | K21: 0.03035688588 | L21: 0 | M21: 70.65167889 | N21: 63.84246252 | O21: 59.89049916 | P21: 40.8596521 | Q21: 19.30090774 | R21: 58.03225196 | S21: 1.159336744 | T21: 36.08061817 | U21: 30.43975597 | BB21: Surface water | BC21: N/A | BD21: N/A | BE21: N/A | BF21: N/A | BG21: N/A | BH21: N/A | BI21: N/A | BJ21: N/A | BK21: N/A | BL21: N/A | BM21: N/A | BN21: N/A | BO21: N/A | BP21: N/A | BQ21: N/A | BR21: N/A | BS21: N/A | BT21: N/A | BU21: N/A
A22: Improved water point at more than 30 minutes | B22: Yes | C22: N/A | D22: N/A | E22: N/A | F22: N/A | G22: N/A | H22: N/A | I22: N/A | J22: N/A | K22: N/A | L22: N/A | M22: N/A | N22: N/A | O22: N/A | P22: N/A | Q22: N/A | R22: N/A | S22: N/A | T22: N/A | U22: N/A | BA22: Improved water point at more than 30 minutes | BB22: Yes | BC22: N/A | BD22: N/A | BE22: N/A | BF22: N/A | BG22: N/A | BH22: N/A | BI22: N/A | BJ22: N/A | BK22: N/A | BL22: N/A | BM22: N/A | BN22: N/A | BO22: N/A | BP22: N/A | BQ22: N/A | BR22: N/A | BS22: N/A | BT22: N/A | BU22: N/A
B23: No | C23: N/A | D23: N/A | E23: N/A | F23: N/A | G23: N/A | H23: N/A | I23: N/A | J23: N/A | K23: N/A | L23: N/A | M23: N/A | N23: N/A | O23: N/A | P23: N/A | Q23: N/A | R23: N/A | S23: N/A | T23: N/A | U23: N/A | BB23: No | BC23: N/A | BD23: N/A | BE23: N/A | BF23: N/A | BG23: N/A | BH23: N/A | BI23: N/A | BJ23: N/A | BK23: N/A | BL23: N/A | BM23: N/A | BN23: N/A | BO23: N/A | BP23: N/A | BQ23: N/A | BR23: N/A | BS23: N/A | BT23: N/A | BU23: N/A
A24: Manually calculated ratios | B24: Improved wells
B25: Improved sources
B26: Other
C27: NATIONAL wealth index quintile | H27: URBAN wealth index quintile | M27: RURAL wealth index quintile | R27: SUB-REGIONS: | BA27: Raw numbers of respondents: | BB27: Use of drinking water sources | BC27: NATIONAL wealth index quintile | BH27: URBAN wealth index quintile | BM27: RURAL wealth index quintile | BR27: SUB-REGIONS:
A28: Percentage based on weighted population | C28: Poorest | D28: Poor | E28: Middle | F28: Rich | G28: Richest | H28: Poorest | I28: Poor | J28: Middle | K28: Rich | L28: Richest | M28: Poorest | N28: Poor | O28: Middle | P28: Rich | Q28: Richest | R28: Hiperendemica | S28: Luanda | T28: Mesoendemica Estavel | U28: Mesoendemica Instavel | BA28: Water data, raw numbers (weighted) | BC28: Poorest | BD28: Poor | BE28: Middle | BF28: Rich | BG28: Richest | BH28: Poorest | BI28: Poor | BJ28: Middle | BK28: Rich | BL28: Richest | BM28: Poorest | BN28: Poor | BO28: Middle | BP28: Rich | BQ28: Richest | BR28: Hiperendemica | BS28: Luanda | BT28: Mesoendemica Estavel | BU28: Mesoendemica Instavel
A29: Piped water | B29: Yes | C29: 4.627695918 | D29: 6.922158245 | E29: 21.39649833 | F29: 55.31954336 | G29: 70.97432881 | H29: 43.91421247 | I29: 60.44760613 | J29: 59.70307129 | K29: 68.5101882 | L29: 77.05768329 | M29: 5.467976297 | N29: 3.746681362 | O29: 5.227656056 | P29: 11.66664231 | Q29: 27.69563284 | R29: 12.06185664 | S29: 55.05254005 | T29: 27.8600941 | U29: 30.18314064 | BA29: Piped water | BB29: Yes | BC29: N/A | BD29: N/A | BE29: N/A | BF29: N/A | BG29: N/A | BH29: N/A | BI29: N/A | BJ29: N/A | BK29: N/A | BL29: N/A | BM29: N/A | BN29: N/A | BO29: N/A | BP29: N/A | BQ29: N/A | BR29: N/A | BS29: N/A | BT29: N/A | BU29: N/A
B30: No | C30: 95.37230408 | D30: 93.07784176 | E30: 78.60350167 | F30: 44.68045664 | G30: 29.02567119 | H30: 56.08578753 | I30: 39.55239387 | J30: 40.29692871 | K30: 31.4898118 | L30: 22.94231671 | M30: 94.5320237 | N30: 96.25331864 | O30: 94.77234394 | P30: 88.33335769 | Q30: 72.30436716 | R30: 87.93814336 | S30: 44.94745995 | T30: 72.1399059 | U30: 69.81685936 | BB30: No | BC30: N/A | BD30: N/A | BE30: N/A | BF30: N/A | BG30: N/A | BH30: N/A | BI30: N/A | BJ30: N/A | BK30: N/A | BL30: N/A | BM30: N/A | BN30: N/A | BO30: N/A | BP30: N/A | BQ30: N/A | BR30: N/A | BS30: N/A | BT30: N/A | BU30: N/A
A31: Piped water on premises | B31: Yes | C31: 0 | D31: 0.04631722039 | E31: 2.479218204 | F31: 19.86587696 | G31: 49.44003367 | H31: 12.48952971 | I31: 20.88494226 | J31: 29.33758223 | K31: 40.84072204 | L31: 66.30626315 | M31: 0 | N31: 0 | O31: 0 | P31: 0.1015689072 | Q31: 3.024165653 | R31: 6.021511198 | S31: 28.28888772 | T31: 11.23730825 | U31: 10.82274874 | BA31: Piped water on premises | BB31: Yes | BC31: N/A | BD31: N/A | BE31: N/A | BF31: N/A | BG31: N/A | BH31: N/A | BI31: N/A | BJ31: N/A | BK31: N/A | BL31: N/A | BM31: N/A | BN31: N/A | BO31: N/A | BP31: N/A | BQ31: N/A | BR31: N/A | BS31: N/A | BT31: N/A | BU31: N/A
B32: No | C32: 100 | D32: 99.95368278 | E32: 97.5207818 | F32: 80.13412304 | G32: 50.55996633 | H32: 87.51047029 | I32: 79.11505774 | J32: 70.66241777 | K32: 59.15927796 | L32: 33.69373685 | M32: 100 | N32: 100 | O32: 100 | P32: 99.89843109 | Q32: 96.97583435 | R32: 93.9784888 | S32: 71.71111228 | T32: 88.76269175 | U32: 89.17725126 | BB32: No | BC32: N/A | BD32: N/A | BE32: N/A | BF32: N/A | BG32: N/A | BH32: N/A | BI32: N/A | BJ32: N/A | BK32: N/A | BL32: N/A | BM32: N/A | BN32: N/A | BO32: N/A | BP32: N/A | BQ32: N/A | BR32: N/A | BS32: N/A | BT32: N/A | BU32: N/A
A33: Piped water into dwelling | B33: Yes | C33: N/A | D33: N/A | E33: N/A | F33: N/A | G33: N/A | H33: N/A | I33: N/A | J33: N/A | K33: N/A | L33: N/A | M33: N/A | N33: N/A | O33: N/A | P33: N/A | Q33: N/A | R33: N/A | S33: N/A | T33: N/A | U33: N/A | BA33: Piped water into dwelling | BB33: Yes | BC33: N/A | BD33: N/A | BE33: N/A | BF33: N/A | BG33: N/A | BH33: N/A | BI33: N/A | BJ33: N/A | BK33: N/A | BL33: N/A | BM33: N/A | BN33: N/A | BO33: N/A | BP33: N/A | BQ33: N/A | BR33: N/A | BS33: N/A | BT33: N/A | BU33: N/A
B34: No | C34: N/A | D34: N/A | E34: N/A | F34: N/A | G34: N/A | H34: N/A | I34: N/A | J34: N/A | K34: N/A | L34: N/A | M34: N/A | N34: N/A | O34: N/A | P34: N/A | Q34: N/A | R34: N/A | S34: N/A | T34: N/A | U34: N/A | BB34: No | BC34: N/A | BD34: N/A | BE34: N/A | BF34: N/A | BG34: N/A | BH34: N/A | BI34: N/A | BJ34: N/A | BK34: N/A | BL34: N/A | BM34: N/A | BN34: N/A | BO34: N/A | BP34: N/A | BQ34: N/A | BR34: N/A | BS34: N/A | BT34: N/A | BU34: N/A
A35: Water source on premises | B35: Yes | C35: N/A | D35: N/A | E35: N/A | F35: N/A | G35: N/A | H35: N/A | I35: N/A | J35: N/A | K35: N/A | L35: N/A | M35: N/A | N35: N/A | O35: N/A | P35: N/A | Q35: N/A | R35: N/A | S35: N/A | T35: N/A | U35: N/A | BA35: Water source on premises | BB35: Yes | BC35: N/A | BD35: N/A | BE35: N/A | BF35: N/A | BG35: N/A | BH35: N/A | BI35: N/A | BJ35: N/A | BK35: N/A | BL35: N/A | BM35: N/A | BN35: N/A | BO35: N/A | BP35: N/A | BQ35: N/A | BR35: N/A | BS35: N/A | BT35: N/A | BU35: N/A
B36: No | C36: N/A | D36: N/A | E36: N/A | F36: N/A | G36: N/A | H36: N/A | I36: N/A | J36: N/A | K36: N/A | L36: N/A | M36: N/A | N36: N/A | O36: N/A | P36: N/A | Q36: N/A | R36: N/A | S36: N/A | T36: N/A | U36: N/A | BB36: No | BC36: N/A | BD36: N/A | BE36: N/A | BF36: N/A | BG36: N/A | BH36: N/A | BI36: N/A | BJ36: N/A | BK36: N/A | BL36: N/A | BM36: N/A | BN36: N/A | BO36: N/A | BP36: N/A | BQ36: N/A | BR36: N/A | BS36: N/A | BT36: N/A | BU36: N/A
A37: Improved Water source on premises | B37: Yes | C37: N/A | D37: N/A | E37: N/A | F37: N/A | G37: N/A | H37: N/A | I37: N/A | J37: N/A | K37: N/A | L37: N/A | M37: N/A | N37: N/A | O37: N/A | P37: N/A | Q37: N/A | R37: N/A | S37: N/A | T37: N/A | U37: N/A | BA37: Improved water source on premises | BB37: Yes | BC37: N/A | BD37: N/A | BE37: N/A | BF37: N/A | BG37: N/A | BH37: N/A | BI37: N/A | BJ37: N/A | BK37: N/A | BL37: N/A | BM37: N/A | BN37: N/A | BO37: N/A | BP37: N/A | BQ37: N/A | BR37: N/A | BS37: N/A | BT37: N/A | BU37: N/A
B38: No | C38: N/A | D38: N/A | E38: N/A | F38: N/A | G38: N/A | H38: N/A | I38: N/A | J38: N/A | K38: N/A | L38: N/A | M38: N/A | N38: N/A | O38: N/A | P38: N/A | Q38: N/A | R38: N/A | S38: N/A | T38: N/A | U38: N/A | BB38: No | BC38: N/A | BD38: N/A | BE38: N/A | BF38: N/A | BG38: N/A | BH38: N/A | BI38: N/A | BJ38: N/A | BK38: N/A | BL38: N/A | BM38: N/A | BN38: N/A | BO38: N/A | BP38: N/A | BQ38: N/A | BR38: N/A | BS38: N/A | BT38: N/A | BU38: N/A
A39: Piped water on premises available when needed | B39: Yes | C39: N/A | D39: N/A | E39: N/A | F39: N/A | G39: N/A | H39: N/A | I39: N/A | J39: N/A | K39: N/A | L39: N/A | M39: N/A | N39: N/A | O39: N/A | P39: N/A | Q39: N/A | R39: N/A | S39: N/A | T39: N/A | U39: N/A | BA39: Piped water on premises available when needed | BB39: Yes | BC39: N/A | BD39: N/A | BE39: N/A | BF39: N/A | BG39: N/A | BH39: N/A | BI39: N/A | BJ39: N/A | BK39: N/A | BL39: N/A | BM39: N/A | BN39: N/A | BO39: N/A | BP39: N/A | BQ39: N/A | BR39: N/A | BS39: N/A | BT39: N/A | BU39: N/A
B40: No | C40: N/A | D40: N/A | E40: N/A | F40: N/A | G40: N/A | H40: N/A | I40: N/A | J40: N/A | K40: N/A | L40: N/A | M40: N/A | N40: N/A | O40: N/A | P40: N/A | Q40: N/A | R40: N/A | S40: N/A | T40: N/A | U40: N/A | BB40: No | BC40: N/A | BD40: N/A | BE40: N/A | BF40: N/A | BG40: N/A | BH40: N/A | BI40: N/A | BJ40: N/A | BK40: N/A | BL40: N/A | BM40: N/A | BN40: N/A | BO40: N/A | BP40: N/A | BQ40: N/A | BR40: N/A | BS40: N/A | BT40: N/A | BU40: N/A
A41: Water point at more than 30 minutes | B41: Yes | C41: N/A | D41: N/A | E41: N/A | F41: N/A | G41: N/A | H41: N/A | I41: N/A | J41: N/A | K41: N/A | L41: N/A | M41: N/A | N41: N/A | O41: N/A | P41: N/A | Q41: N/A | R41: N/A | S41: N/A | T41: N/A | U41: N/A | BA41: Water point at more than 30 minutes | BB41: Yes | BC41: N/A | BD41: N/A | BE41: N/A | BF41: N/A | BG41: N/A | BH41: N/A | BI41: N/A | BJ41: N/A | BK41: N/A | BL41: N/A | BM41: N/A | BN41: N/A | BO41: N/A | BP41: N/A | BQ41: N/A | BR41: N/A | BS41: N/A | BT41: N/A | BU41: N/A
B42: No | C42: N/A | D42: N/A | E42: N/A | F42: N/A | G42: N/A | H42: N/A | I42: N/A | J42: N/A | K42: N/A | L42: N/A | M42: N/A | N42: N/A | O42: N/A | P42: N/A | Q42: N/A | R42: N/A | S42: N/A | T42: N/A | U42: N/A | BB42: No | BC42: N/A | BD42: N/A | BE42: N/A | BF42: N/A | BG42: N/A | BH42: N/A | BI42: N/A | BJ42: N/A | BK42: N/A | BL42: N/A | BM42: N/A | BN42: N/A | BO42: N/A | BP42: N/A | BQ42: N/A | BR42: N/A | BS42: N/A | BT42: N/A | BU42: N/A
A43: Water source available when needed | B43: Yes | C43: N/A | D43: N/A | E43: N/A | F43: N/A | G43: N/A | H43: N/A | I43: N/A | J43: N/A | K43: N/A | L43: N/A | M43: N/A | N43: N/A | O43: N/A | P43: N/A | Q43: N/A | R43: N/A | S43: N/A | T43: N/A | U43: N/A | BA43: Water source available when needed | BB43: Yes | BC43: N/A | BD43: N/A | BE43: N/A | BF43: N/A | BG43: N/A | BH43: N/A | BI43: N/A | BJ43: N/A | BK43: N/A | BL43: N/A | BM43: N/A | BN43: N/A | BO43: N/A | BP43: N/A | BQ43: N/A | BR43: N/A | BS43: N/A | BT43: N/A | BU43: N/A
B44: No | C44: N/A | D44: N/A | E44: N/A | F44: N/A | G44: N/A | H44: N/A | I44: N/A | J44: N/A | K44: N/A | L44: N/A | M44: N/A | N44: N/A | O44: N/A | P44: N/A | Q44: N/A | R44: N/A | S44: N/A | T44: N/A | U44: N/A | BB44: No | BC44: N/A | BD44: N/A | BE44: N/A | BF44: N/A | BG44: N/A | BH44: N/A | BI44: N/A | BJ44: N/A | BK44: N/A | BL44: N/A | BM44: N/A | BN44: N/A | BO44: N/A | BP44: N/A | BQ44: N/A | BR44: N/A | BS44: N/A | BT44: N/A | BU44: N/A
A45: Improved water source available when needed | B45: Yes | C45: N/A | D45: N/A | E45: N/A | F45: N/A | G45: N/A | H45: N/A | I45: N/A | J45: N/A | K45: N/A | L45: N/A | M45: N/A | N45: N/A | O45: N/A | P45: N/A | Q45: N/A | R45: N/A | S45: N/A | T45: N/A | U45: N/A | BA45: Improved water source available when needed | BB45: Yes | BC45: N/A | BD45: N/A | BE45: N/A | BF45: N/A | BG45: N/A | BH45: N/A | BI45: N/A | BJ45: N/A | BK45: N/A | BL45: N/A | BM45: N/A | BN45: N/A | BO45: N/A | BP45: N/A | BQ45: N/A | BR45: N/A | BS45: N/A | BT45: N/A | BU45: N/A
B46: No | C46: N/A | D46: N/A | E46: N/A | F46: N/A | G46: N/A | H46: N/A | I46: N/A | J46: N/A | K46: N/A | L46: N/A | M46: N/A | N46: N/A | O46: N/A | P46: N/A | Q46: N/A | R46: N/A | S46: N/A | T46: N/A | U46: N/A | BB46: No | BC46: N/A | BD46: N/A | BE46: N/A | BF46: N/A | BG46: N/A | BH46: N/A | BI46: N/A | BJ46: N/A | BK46: N/A | BL46: N/A | BM46: N/A | BN46: N/A | BO46: N/A | BP46: N/A | BQ46: N/A | BR46: N/A | BS46: N/A | BT46: N/A | BU46: N/A
A47: Microbiological quality at point of collection | B47: Not contaminated (No E. coli in 100 mL) | C47: N/A | D47: N/A | E47: N/A | F47: N/A | G47: N/A | H47: N/A | I47: N/A | J47: N/A | K47: N/A | L47: N/A | M47: N/A | N47: N/A | O47: N/A | P47: N/A | Q47: N/A | R47: N/A | S47: N/A | T47: N/A | U47: N/A | BA47: Microbiological quality at point of collection | BB47: Not contaminated (No E. coli in 100 mL) | BC47: N/A | BD47: N/A | BE47: N/A | BF47: N/A | BG47: N/A | BH47: N/A | BI47: N/A | BJ47: N/A | BK47: N/A | BL47: N/A | BM47: N/A | BN47: N/A | BO47: N/A | BP47: N/A | BQ47: N/A | BR47: N/A | BS47: N/A | BT47: N/A | BU47: N/A
B48: Contaminated (E. coli detected in 100 mL) | C48: N/A | D48: N/A | E48: N/A | F48: N/A | G48: N/A | H48: N/A | I48: N/A | J48: N/A | K48: N/A | L48: N/A | M48: N/A | N48: N/A | O48: N/A | P48: N/A | Q48: N/A | R48: N/A | S48: N/A | T48: N/A | U48: N/A | BB48: Contaminated (E. coli detected in 100 mL) | BC48: N/A | BD48: N/A | BE48: N/A | BF48: N/A | BG48: N/A | BH48: N/A | BI48: N/A | BJ48: N/A | BK48: N/A | BL48: N/A | BM48: N/A | BN48: N/A | BO48: N/A | BP48: N/A | BQ48: N/A | BR48: N/A | BS48: N/A | BT48: N/A | BU48: N/A
B49: Highly contaminated (>100 CFU/100 mL) | C49: N/A | D49: N/A | E49: N/A | F49: N/A | G49: N/A | H49: N/A | I49: N/A | J49: N/A | K49: N/A | L49: N/A | M49: N/A | N49: N/A | O49: N/A | P49: N/A | Q49: N/A | R49: N/A | S49: N/A | T49: N/A | U49: N/A | BB49: Highly contaminated (>100 CFU/100 mL) | BC49: N/A | BD49: N/A | BE49: N/A | BF49: N/A | BG49: N/A | BH49: N/A | BI49: N/A | BJ49: N/A | BK49: N/A | BL49: N/A | BM49: N/A | BN49: N/A | BO49: N/A | BP49: N/A | BQ49: N/A | BR49: N/A | BS49: N/A | BT49: N/A | BU49: N/A
A50: Microbiological quality of improved water sources at point of collection | B50: Not contaminated (No E. coli in 100 mL) | C50: N/A | D50: N/A | E50: N/A | F50: N/A | G50: N/A | H50: N/A | I50: N/A | J50: N/A | K50: N/A | L50: N/A | M50: N/A | N50: N/A | O50: N/A | P50: N/A | Q50: N/A | R50: N/A | S50: N/A | T50: N/A | U50: N/A | BA50: Microbiological quality of improved water sources at point of collection | BB50: Not contaminated (No E. coli in 100 mL) | BC50: N/A | BD50: N/A | BE50: N/A | BF50: N/A | BG50: N/A | BH50: N/A | BI50: N/A | BJ50: N/A | BK50: N/A | BL50: N/A | BM50: N/A | BN50: N/A | BO50: N/A | BP50: N/A | BQ50: N/A | BR50: N/A | BS50: N/A | BT50: N/A | BU50: N/A
B51: Contaminated (E. coli detected in 100 mL) | C51: N/A | D51: N/A | E51: N/A | F51: N/A | G51: N/A | H51: N/A | I51: N/A | J51: N/A | K51: N/A | L51: N/A | M51: N/A | N51: N/A | O51: N/A | P51: N/A | Q51: N/A | R51: N/A | S51: N/A | T51: N/A | U51: N/A | BB51: Contaminated (E. coli detected in 100 mL) | BC51: N/A | BD51: N/A | BE51: N/A | BF51: N/A | BG51: N/A | BH51: N/A | BI51: N/A | BJ51: N/A | BK51: N/A | BL51: N/A | BM51: N/A | BN51: N/A | BO51: N/A | BP51: N/A | BQ51: N/A | BR51: N/A | BS51: N/A | BT51: N/A | BU51: N/A
B52: Highly contaminated (>100 CFU/100 mL) | C52: N/A | D52: N/A | E52: N/A | F52: N/A | G52: N/A | H52: N/A | I52: N/A | J52: N/A | K52: N/A | L52: N/A | M52: N/A | N52: N/A | O52: N/A | P52: N/A | Q52: N/A | R52: N/A | S52: N/A | T52: N/A | U52: N/A | BB52: Highly contaminated (>100 CFU/100 mL) | BC52: N/A | BD52: N/A | BE52: N/A | BF52: N/A | BG52: N/A | BH52: N/A | BI52: N/A | BJ52: N/A | BK52: N/A | BL52: N/A | BM52: N/A | BN52: N/A | BO52: N/A | BP52: N/A | BQ52: N/A | BR52: N/A | BS52: N/A | BT52: N/A | BU52: N/A
A53: Microbiological quality of piped on premises at point of collection | B53: Not contaminated (No E. coli in 100 mL) | C53: N/A | D53: N/A | E53: N/A | F53: N/A | G53: N/A | H53: N/A | I53: N/A | J53: N/A | K53: N/A | L53: N/A | M53: N/A | N53: N/A | O53: N/A | P53: N/A | Q53: N/A | R53: N/A | S53: N/A | T53: N/A | U53: N/A | BA53: Microbiological quality of piped on premises at point of collection | BB53: Not contaminated (No E. coli in 100 mL) | BC53: N/A | BD53: N/A | BE53: N/A | BF53: N/A | BG53: N/A | BH53: N/A | BI53: N/A | BJ53: N/A | BK53: N/A | BL53: N/A | BM53: N/A | BN53: N/A | BO53: N/A | BP53: N/A | BQ53: N/A | BR53: N/A | BS53: N/A | BT53: N/A | BU53: N/A
B54: Contaminated (E. coli detected in 100 mL) | C54: N/A | D54: N/A | E54: N/A | F54: N/A | G54: N/A | H54: N/A | I54: N/A | J54: N/A | K54: N/A | L54: N/A | M54: N/A | N54: N/A | O54: N/A | P54: N/A | Q54: N/A | R54: N/A | S54: N/A | T54: N/A | U54: N/A | BB54: Contaminated (E. coli detected in 100 mL) | BC54: N/A | BD54: N/A | BE54: N/A | BF54: N/A | BG54: N/A | BH54: N/A | BI54: N/A | BJ54: N/A | BK54: N/A | BL54: N/A | BM54: N/A | BN54: N/A | BO54: N/A | BP54: N/A | BQ54: N/A | BR54: N/A | BS54: N/A | BT54: N/A | BU54: N/A
B55: Highly contaminated (>100 CFU/100 mL) | C55: N/A | D55: N/A | E55: N/A | F55: N/A | G55: N/A | H55: N/A | I55: N/A | J55: N/A | K55: N/A | L55: N/A | M55: N/A | N55: N/A | O55: N/A | P55: N/A | Q55: N/A | R55: N/A | S55: N/A | T55: N/A | U55: N/A | BB55: Highly contaminated (>100 CFU/100 mL) | BC55: N/A | BD55: N/A | BE55: N/A | BF55: N/A | BG55: N/A | BH55: N/A | BI55: N/A | BJ55: N/A | BK55: N/A | BL55: N/A | BM55: N/A | BN55: N/A | BO55: N/A | BP55: N/A | BQ55: N/A | BR55: N/A | BS55: N/A | BT55: N/A | BU55: N/A
C56: NATIONAL wealth index quintile | H56: URBAN wealth index quintile | M56: RURAL wealth index quintile | R56: SUB-REGIONS: | BA56: Raw numbers of respondents: | BB56: Use of drinking water sources | BC56: NATIONAL wealth index quintile | BH56: URBAN wealth index quintile | BM56: RURAL wealth index quintile | BR56: SUB-REGIONS:
A57: Percentage based on weighted population | C57: Poorest | D57: Poor | E57: Middle | F57: Rich | G57: Richest | H57: Poorest | I57: Poor | J57: Middle | K57: Rich | L57: Richest | M57: Poorest | N57: Poor | O57: Middle | P57: Rich | Q57: Richest | R57: Hiperendemica | S57: Luanda | T57: Mesoendemica Estavel | U57: Mesoendemica Instavel | BA57: Water data, raw numbers (weighted) | BC57: Poorest | BD57: Poor | BE57: Middle | BF57: Rich | BG57: Richest | BH57: Poorest | BI57: Poor | BJ57: Middle | BK57: Rich | BL57: Richest | BM57: Poorest | BN57: Poor | BO57: Middle | BP57: Rich | BQ57: Richest | BR57: Hiperendemica | BS57: Luanda | BT57: Mesoendemica Estavel | BU57: Mesoendemica Instavel
A58: Source of drinking water | B58: Piped into dwelling | C58: 0 | D58: 0 | E58: 0.7158772925 | F58: 5.565766487 | G58: 24.89810135 | H58: 3.082474348 | I58: 6.434436693 | J58: 7.606126096 | K58: 15.45115423 | L58: 42.14338807 | M58: 0 | N58: 0 | O58: 0 | P58: 0 | Q58: 0.6771259962 | R58: 2.94604062 | S58: 13.53903612 | T58: 4.084046254 | U58: 4.208969341
B59: Piped to yard/plot | C59: 0 | D59: 0.04631722039 | E59: 1.763340912 | F59: 14.30011048 | G59: 24.54193233 | H59: 9.407055361 | I59: 14.45050556 | J59: 21.73145614 | K59: 25.3895678 | L59: 24.16287508 | M59: 0 | N59: 0 | O59: 0 | P59: 0.1015689072 | Q59: 2.347039657 | R59: 3.075470578 | S59: 14.7498516 | T59: 7.153261998 | U59: 6.613779399
B60: Public tap/standpipe | C60: 4.627695918 | D60: 6.875841024 | E60: 18.91728012 | F60: 35.4536664 | G60: 21.53429514 | H60: 31.42468276 | I60: 39.56266387 | J60: 30.36548906 | K60: 27.66946617 | L60: 10.75142015 | M60: 5.467976297 | N60: 3.746681362 | O60: 5.227656056 | P60: 11.56507341 | Q60: 24.67146719 | R60: 6.040345439 | S60: 26.76365234 | T60: 16.62278585 | U60: 19.3603919
B61: Tube well or borehole | C61: 4.042756995 | D61: 5.113404174 | E61: 4.241933273 | F61: 2.631828831 | G61: 1.695022733 | H61: 1.328511222 | I61: 1.257939867 | J61: 4.206850817 | K61: 2.301332674 | L61: 0.5697744045 | M61: 3.253217237 | N61: 4.975121741 | O61: 5.071477133 | P61: 6.060278128 | Q61: 4.017679705 | R61: 0.2732179555 | S61: 0 | T61: 0.1844455367 | U61: 19.81599219
B62: Protected well | C62: 7.798399852 | D62: 14.8661086 | E62: 27.50230577 | F62: 6.880706202 | G62: 1.77104071 | H62: 20.71995526 | I62: 2.698374049 | J62: 2.389232086 | K62: 1.89416987 | L62: 0.2893797288 | M62: 6.94759715 | N62: 8.487250666 | O62: 13.43937033 | P62: 23.18358445 | Q62: 28.39280826 | R62: 10.26256696 | S62: 0.4543793146 | T62: 22.65841269 | U62: 6.318523043
B63: Unprotected well | C63: 5.157448767 | D63: 6.988518951 | E63: 9.836873796 | F63: 3.071552566 | G63: 0.2252965987 | H63: 5.610040263 | I63: 0 | J63: 0.328133274 | K63: 0 | L63: 0 | M63: 2.92044869 | N63: 8.077812146 | O63: 6.595352574 | P63: 8.951034018 | Q63: 12.29269196 | R63: 2.151046352 | S63: 0 | T63: 9.159796294 | U63: 6.912397847
B64: Protected spring | C64: 4.275728085 | D64: 4.214610262 | E64: 2.670628531 | F64: 4.074997557 | G64: 3.760698638 | H64: 3.036551469 | I64: 4.735089511 | J64: 4.963362509 | K64: 3.872039653 | L64: 3.687617763 | M64: 3.987283995 | N64: 5.3636655 | O64: 3.838464657 | P64: 2.461958868 | Q64: 2.434329207 | R64: 5.232783611 | S64: 5.48750403 | T64: 2.73940482 | U64: 1.960879243
B65: Unprotected spring | C65: 2.439051948 | D65: 2.572691588 | E65: 2.200907515 | F65: 0.7032252254 | G65: 0.2979210118 | H65: 0.4129999379 | I65: 0.1324817007 | J65: 0.1331126071 | K65: 0.2899959395 | L65: 0.1857073694 | M65: 1.914841783 | N65: 3.910137578 | O65: 2.014948685 | P65: 2.640975691 | Q65: 2.679467079 | R65: 6.359275197 | S65: 0.3407844859 | T65: 0.587153776 | U65: 0.2585000554
B66: River/dam/lake/ponds/stream/canal/irirgation channel | C66: 68.13860411 | D66: 55.95347924 | E66: 26.44521694 | F66: 3.506799468 | G66: 0.1581162067 | H66: 10.14877619 | I66: 0.6558692017 | J66: 0.2116198858 | K66: 0.03035688588 | L66: 0 | M66: 70.65167889 | N66: 63.84246252 | O66: 59.89049916 | P66: 40.8596521 | Q66: 19.30090774 | R66: 58.03225196 | S66: 1.159336744 | T66: 36.08061817 | U66: 30.43975597
B67: Rainwater | C67: 0 | D67: 0.1006037277 | E67: 0.09573640635 | F67: 0.3171281155 | G67: 0.07639639491 | H67: 0 | I67: 0.5299268028 | J67: 0.2396026928 | K67: 0.1845428706 | L67: 0 | M67: 0 | N67: 0 | O67: 0.1196680812 | P67: 0.05135678807 | Q67: 0.1629888651 | R67: 0.09892303764 | S67: 0.3145702947 | T67: 0.05123487131 | U67: 0
B68: Tanker truck | C68: 0 | D68: 0.4418103915 | E68: 3.692824709 | F68: 22.61747702 | G68: 19.73232275 | H68: 13.75867953 | I68: 28.20457948 | J68: 26.91349154 | K68: 22.30332407 | L68: 15.89124489 | M68: 0 | N68: 0 | O68: 0.3392003477 | P68: 1.267820166 | Q68: 2.399737169 | R68: 0.8950329872 | S68: 35.69667618 | T68: 0.5059825325 | U68: 0
B69: Cart with small tank | C69: 3.52031432 | D69: 2.669713548 | E69: 1.838962075 | F69: 0.1869376868 | G69: 0.06548262421 | H69: 0.7988973661 | I69: 0.3312723268 | J69: 0.07986756428 | K69: 0.1581796033 | L69: 0 | M69: 4.856955963 | N69: 1.560544527 | O69: 3.233069842 | P69: 2.856697476 | Q69: 0.6237571758 | R69: 4.5780423 | S69: 0.1572851474 | T69: 0.1614252487 | U69: 3.624280943
B70: Bottled water | C70: 0 | D70: 0.02137772323 | E70: 0 | F70: 0.1312254271 | G70: 0.9101687337 | H70: 0 | I70: 0.2119707211 | J70: 0.1064900857 | K70: 0.1581796033 | L70: 2.053296304 | M70: 0 | N70: 0.03632395761 | O70: 0 | P70: 0 | Q70: 0 | R70: 0 | S70: 0.8213779917 | T70: 0.01143195192 | U70: 0.01766684118
B71: Other | C71: 0 | D71: 0.1355235503 | E71: 0.07811265454 | F71: 0.5585785415 | G71: 0.3332047903 | H71: 0.2713762825 | I71: 0.7948902042 | J71: 0.7251656408 | K71: 0.2976906245 | L71: 0.265296242 | M71: 0 | N71: 0 | O71: 0.2302931311 | P71: 0 | Q71: 0 | R71: 0.05500299901 | S71: 0.5155457608 | T71: 0 | U71: 0.4688632286
A108: =A1026 -> Angola
A109: =A1034 -> 2011
A110: Use of sanitation facilities
A111: by wealth quintile and sub-national region
A112: Notes:
A113: WHO/UNICEF JMP customised wealth index excludes water,
A114: sanitation and hygiene assets.
A115: Survey used for analysis: | B115: =A1025 -> MIS11
A116: =B1030 -> 
A117: =B1029 -> Ratio of Shared improved based on: | B117: DHS16
A120: Use of sanitation facilities | C120: NATIONAL wealth index quintile | H120: URBAN wealth index quintile | M120: RURAL wealth index quintile | R120: SUB-REGIONS: | BA120: Raw numbers of respondents: | BB120: Use of sanitation facilities | BC120: NATIONAL wealth index quintile | BH120: URBAN wealth index quintile | BM120: RURAL wealth index quintile | BR120: SUB-REGIONS:
A121: Weighted percentage (used in graphs) | C121: Poorest | D121: Poor | E121: Middle | F121: Rich | G121: Richest | H121: Poorest | I121: Poor | J121: Middle | K121: Rich | L121: Richest | M121: Poorest | N121: Poor | O121: Middle | P121: Rich | Q121: Richest | R121: Hiperendemica | S121: Luanda | T121: Mesoendemica Estavel | U121: Mesoendemica Instavel | BA121: Sanitation data, raw numbers (weighted) | BC121: Poorest | BD121: Poor | BE121: Middle | BF121: Rich | BG121: Richest | BH121: Poorest | BI121: Poor | BJ121: Middle | BK121: Rich | BL121: Richest | BM121: Poorest | BN121: Poor | BO121: Middle | BP121: Rich | BQ121: Richest | BR121: Hiperendemica | BS121: Luanda | BT121: Mesoendemica Estavel | BU121: Mesoendemica Instavel
A122: Sanitation | B122: Improved | C122: 6.360661448 | D122: 15.49975158 | E122: 36.67081466 | F122: 83.07681467 | G122: 97.52905313 | H122: 63.865721 | I122: 87.96625743 | J122: 95.38125574 | K122: 97.71898494 | L122: 99.1670045 | M122: 6.597141299 | N122: 8.32705223 | O122: 13.74683716 | P122: 19.57625381 | Q122: 47.20633686 | R122: 27.04918167 | S122: 93.44927793 | T122: 37.68292208 | U122: 28.19992425 | BA122: Sanitation | BB122: Improved | BC122: 515.633808 | BD122: 1256.673601 | BE122: 2975.417421 | BF122: 6725.540223 | BG122: 7911.2165 | BH122: 2133.188546 | BI122: 2939.099654 | BJ122: 3171.742616 | BK122: 3281.434971 | BL122: 3309.178421 | BM122: 314.042703 | BN122: 397.335467 | BO122: 655.895012 | BP122: 932.749048 | BQ122: 2249.815115 | BR122: 2230.326857 | BS122: 9467.707418 | BT122: 5713.252092 | BU122: 1973.195186
B123: Not Improved | C123: 93.63933855 | D123: 84.50024842 | E123: 63.32918534 | F123: 16.92318533 | G123: 2.470946874 | H123: 36.134279 | I123: 12.03374257 | J123: 4.61874426 | K123: 2.28101506 | L123: 0.8329955037 | M123: 93.4028587 | N123: 91.67294777 | O123: 86.25316284 | P123: 80.42374619 | Q123: 52.79366314 | R123: 72.95081833 | S123: 6.550722073 | T123: 62.31707792 | U123: 71.80007575 | BB123: Not Improved | BC123: 7590.972906 | BD123: 6851.027959 | BE123: 5138.439466 | BF123: 1370.028017 | BG123: 200.434589 | BH123: 1206.926484 | BI123: 402.067448 | BJ123: 153.588542 | BK123: 76.59722 | BL123: 27.796854 | BM123: 4446.241923 | BN123: 4374.286663 | BO123: 4115.348033 | BP123: 3831.947289 | BQ123: 2516.102481 | BR123: 6015.12354 | BS123: 663.678964 | BT123: 9448.130775 | BU123: 5023.969658
A124: Sanitation ladder | B124: Basic | C124: =C122*'DHS16'!C129/100 -> 4.613502879 | D124: =D122*'DHS16'!D129/100 -> 10.1797495 | E124: =E122*'DHS16'!E129/100 -> 21.71564032 | F124: =F122*'DHS16'!F129/100 -> 54.85095245 | G124: =G122*'DHS16'!G129/100 -> 85.63042927 | H124: =H122*'DHS16'!H129/100 -> 33.11882197 | I124: =I122*'DHS16'!I129/100 -> 50.66905884 | J124: =J122*'DHS16'!J129/100 -> 59.33053851 | K124: =K122*'DHS16'!K129/100 -> 72.93847612 | L124: =L122*'DHS16'!L129/100 -> 92.52599391 | M124: =M122*'DHS16'!M129/100 -> 5.151437358 | N124: =N122*'DHS16'!N129/100 -> 6.418719041 | O124: =O122*'DHS16'!O129/100 -> 11.41941531 | P124: =P122*'DHS16'!P129/100 -> 15.4367776 | Q124: =Q122*'DHS16'!Q129/100 -> 37.50826296 | R124: =R122*'DHS16'!R129/100 -> 20.92177691 | S124: =S122*'DHS16'!S129/100 -> 57.41570329 | T124: =T122*'DHS16'!T129/100 -> 24.96534149 | U124: =U122*'DHS16'!U129/100 -> 15.00091296 | BA124: Sanitation ladder | BB124: Basic | BC124: 0 | BD124: 33.865496 | BE124: 159.238126 | BF124: 614.903641 | BG124: 2542.560055 | BH124: 189.959366 | BI124: 304.391311 | BJ124: 362.499929 | BK124: 706.381517 | BL124: 1667.74814 | BM124: 0 | BN124: 7.54449 | BO124: 1.63133 | BP124: 40.156164 | BQ124: 70.255071 | BR124: 294.694673 | BS124: 1952.013726 | BT124: 806.780883 | BU124: 297.078036
B125: Limited | C125: =C122*'DHS16'!C128/100 -> 1.747158569 | D125: =D122*'DHS16'!D128/100 -> 5.320002083 | E125: =E122*'DHS16'!E128/100 -> 14.95517435 | F125: =F122*'DHS16'!F128/100 -> 28.22586221 | G125: =G122*'DHS16'!G128/100 -> 11.89862386 | H125: =H122*'DHS16'!H128/100 -> 30.74689903 | I125: =I122*'DHS16'!I128/100 -> 37.29719858 | J125: =J122*'DHS16'!J128/100 -> 36.05071723 | K125: =K122*'DHS16'!K128/100 -> 24.78050882 | L125: =L122*'DHS16'!L128/100 -> 6.641010582 | M125: =M122*'DHS16'!M128/100 -> 1.445703941 | N125: =N122*'DHS16'!N128/100 -> 1.90833319 | O125: =O122*'DHS16'!O128/100 -> 2.32742185 | P125: =P122*'DHS16'!P128/100 -> 4.139476203 | Q125: =Q122*'DHS16'!Q128/100 -> 9.698073904 | R125: =R122*'DHS16'!R128/100 -> 6.127404755 | S125: =S122*'DHS16'!S128/100 -> 36.03357464 | T125: =T122*'DHS16'!T128/100 -> 12.71758059 | U125: =U122*'DHS16'!U128/100 -> 13.19901129 | BB125: Limited | BC125: 34.480708 | BD125: 273.794505 | BE125: 551.440195 | BF125: 1669.148918 | BG125: 2252.684217 | BH125: 442.160218 | BI125: 727.908678 | BJ125: 897.269052 | BK125: 1116.909599 | BL125: 780.672357 | BM125: 4.660749 | BN125: 73.574147 | BO125: 122.419445 | BP125: 137.267515 | BQ125: 478.706783 | BR125: 240.938552 | BS125: 2727.188347 | BT125: 1192.156467 | BU125: 621.265177
B126: Unimproved | C126: =100-(C124+C125+C127) -> 12.91676537 | D126: =100-(D124+D125+D127) -> 23.71004804 | E126: 26.76056775 | F126: 12.87810455 | G126: 2.171804471 | H126: 20.57715773 | I126: 11.13098102 | J126: 4.020243809 | K126: 2.28101506 | L126: 0.8329955037 | M126: 10.90536217 | N126: 16.60824519 | O126: 24.0374837 | P126: 29.84815103 | Q126: 24.79134341 | R126: 15.23899438 | S126: 5.783410907 | T126: 22.89690356 | U126: 14.94233446 | BB126: Unimproved | BC126: 310.194167 | BD126: 581.759839 | BE126: 549.425211 | BF126: 542.916349 | BG126: 316.47276 | BH126: 350.319431 | BI126: 254.570611 | BJ126: 269.669962 | BK126: 109.907666 | BL126: 53.23467 | BM126: 169.783866 | BN126: 242.149041 | BO126: 345.541537 | BP126: 261.449128 | BQ126: 244.142414 | BR126: 683.64043 | BS126: 400.486515 | BT126: 801.509909 | BU126: 415.131472
B127: Open defecation | C127: =C161 -> 80.72257318 | D127: =D161 -> 60.79020037 | E127: 36.56861759 | F127: 4.045080781 | G127: 0.2991424031 | H127: 15.55712128 | I127: 0.9027615525 | J127: 0.5985004517 | K127: 0 | L127: 0 | M127: 82.49749653 | N127: 75.06470258 | O127: 62.21567914 | P127: 50.57559516 | Q127: 28.00231972 | R127: 57.71182395 | S127: 0.7673111662 | T127: 39.42017436 | U127: 56.85774128 | BB127: Open defecation | BC127: 37.63149 | BD127: 21.043583 | BE127: 48.642069 | BF127: 39.119774 | BG127: 2.655861 | BH127: 36.459306 | BI127: 21.531714 | BJ127: 0 | BK127: 0 | BL127: 2.655861 | BM127: 28.272902 | BN127: 16.76501 | BO127: 4.625263 | BP127: 27.898133 | BQ127: 10.884588 | BR127: 107.828224 | BS127: 6.197009 | BT127: 21.124572 | BU127: 13.942972
A128: Shared among Improved Sanitation | B128: Yes | C128: N/A | D128: N/A | E128: N/A | F128: N/A | G128: N/A | H128: N/A | I128: N/A | J128: N/A | K128: N/A | L128: N/A | M128: N/A | N128: N/A | O128: N/A | P128: N/A | Q128: N/A | R128: N/A | S128: N/A | T128: N/A | U128: N/A | BA128: Shared among improved sanitation facilities | BB128: Yes | BC128: N/A | BD128: N/A | BE128: N/A | BF128: N/A | BG128: N/A | BH128: N/A | BI128: N/A | BJ128: N/A | BK128: N/A | BL128: N/A | BM128: N/A | BN128: N/A | BO128: N/A | BP128: N/A | BQ128: N/A | BR128: N/A | BS128: N/A | BT128: N/A | BU128: N/A
B129: No | C129: N/A | D129: N/A | E129: N/A | F129: N/A | G129: N/A | H129: N/A | I129: N/A | J129: N/A | K129: N/A | L129: N/A | M129: N/A | N129: N/A | O129: N/A | P129: N/A | Q129: N/A | R129: N/A | S129: N/A | T129: N/A | U129: N/A | BB129: No | BC129: N/A | BD129: N/A | BE129: N/A | BF129: N/A | BG129: N/A | BH129: N/A | BI129: N/A | BJ129: N/A | BK129: N/A | BL129: N/A | BM129: N/A | BN129: N/A | BO129: N/A | BP129: N/A | BQ129: N/A | BR129: N/A | BS129: N/A | BT129: N/A | BU129: N/A
A130: Manually calculated ratios | B130: Improved latrines
B131: Other
B132: Other
C133: NATIONAL wealth index quintile | H133: URBAN wealth index quintile | M133: RURAL wealth index quintile | R133: SUB-REGIONS: | BA133: Raw numbers of respondents: | BB133: Use of sanitation facilities | BC133: NATIONAL wealth index quintile | BH133: URBAN wealth index quintile | BM133: RURAL wealth index quintile | BR133: SUB-REGIONS:
A134: Percentage based on weighted population | C134: Poorest | D134: Poor | E134: Middle | F134: Rich | G134: Richest | H134: Poorest | I134: Poor | J134: Middle | K134: Rich | L134: Richest | M134: Poorest | N134: Poor | O134: Middle | P134: Rich | Q134: Richest | R134: Hiperendemica | S134: Luanda | T134: Mesoendemica Estavel | U134: Mesoendemica Instavel | BA134: Sanitation data, raw numbers (weighted) | BC134: Poorest | BD134: Poor | BE134: Middle | BF134: Rich | BG134: Richest | BH134: Poorest | BI134: Poor | BJ134: Middle | BK134: Rich | BL134: Richest | BM134: Poorest | BN134: Poor | BO134: Middle | BP134: Rich | BQ134: Richest | BR134: Hiperendemica | BS134: Luanda | BT134: Mesoendemica Estavel | BU134: Mesoendemica Instavel
A135: Sanitation type | B135: Sewer connection | C135: 0 | D135: 0.4176953943 | E135: 1.962545411 | F135: 7.59555874 | G135: 31.34454413 | H135: 5.687210299 | I135: 9.110328867 | J135: 10.90116779 | K135: 21.03557908 | L135: 49.97783929 | M135: 0 | N135: 0.1581116399 | O135: 0.03419088033 | P135: 0.8427853773 | Q135: 1.474114262 | R135: 3.574027601 | S135: 19.26699518 | T135: 5.321288237 | U135: 4.245691543 | BA135: Sanitation type | BB135: Sewer connection | BC135: N/A | BD135: N/A | BE135: N/A | BF135: N/A | BG135: N/A | BH135: N/A | BI135: N/A | BJ135: N/A | BK135: N/A | BL135: N/A | BM135: N/A | BN135: N/A | BO135: N/A | BP135: N/A | BQ135: N/A | BR135: N/A | BS135: N/A | BT135: N/A | BU135: N/A
